Workbook

Sheet Accueil
F2: =IF(Accueil!O2<>"",Accueil!O2,"") -> 2014 - 2015 | O2: =Renseignements!F3 -> 2014 - 2015
A3: 2015
O5: 3 | AC5: Résultats du 1er trimestre
O6: Accueil | S6: 1 | AC6: Résultats du 2e trimestre
C7: Classe 1 | O7: 1AM1 | S7: 2 | AC7: Résultats du 3e trimestre
C8: Classe 2 | O8: 1AM2 | S8: 3 | AC8: Resultat des 3 trimestres
C9: Classe 3 | O9: 4AM1 | S9: 4 | AC9: Résultats des contrôles du 1er trimestre
C10: Classe 4 | S10: 5 | AC10: Résultats des contrôles du 2e trimestre
C11: Classe 5 | AC11: Résultats des contrôles du 3e trimestre
C12: Classe 6
C13: Classe 7
C14: Classe 8
O15: =COUNTIF(O7:O14,"><") -> 3
C16: Nombre de classes
C40: 2015
C44: 2015
C45: 2016
C46: 2017
C47: 2018
C48: 2019
C49: 2020
C50: 2021
C51: 2022
C52: 2023
C53: 2024
C54: 2025

Sheet Renseignements
B2: Nom & Prénom | C2: Collège ou Lycée | D2: Commune | E2: Matière | F2: Année Scolaire
B3: Toufik MERINE | C3: Collège | D3: Mostaganem | E3: Mathématiques | F3: 2014 - 2015
C146: =C3&" - "&D3 -> Collège - Mostaganem

Sheet 1
D2: =IF(Renseignements!C146<>"",Renseignements!C146,"") -> Collège - Mostaganem | E2: =IF(Accueil!F5<>"",Accueil!F5,"") ->  | F2: =IF(Accueil!G5<>"",Accueil!G5,"") ->  | G2: =IF(Accueil!#REF!<>"",Accueil!#REF!,"") ->  | H2: =IF(Accueil!J5<>"",Accueil!J5,"") ->  | I2: =IF(Accueil!K5<>"",Accueil!K5,"") ->  | J2: =IF(Accueil!#REF!<>"",Accueil!#REF!,"") ->  | S2: =IF(Accueil!F2<>"",Accueil!F2,"") -> 2014 - 2015 | T2: =IF(#REF!<>"",#REF!,"") ->  | Y2: =IF(D2<>"",D2,"") -> Collège - Mostaganem | Z2: =IF(#REF!<>"",#REF!,"") ->  | AA2: =IF(#REF!<>"",#REF!,"") ->  | AB2: =IF(#REF!<>"",#REF!,"") ->  | AC2: =IF(#REF!<>"",#REF!,"") ->  | AH2: =IF(S2<>"",S2,"") -> 2014 - 2015 | AI2: =IF(N2<>"",N2,"") ->  | AP2: =Y2 -> Collège - Mostaganem | AY2: =AH2 -> 2014 - 2015
D3: =IF(Accueil!E6<>"",Accueil!E6,"") ->  | E3: =IF(Accueil!F6<>"",Accueil!F6,"") ->  | F3: =IF(Accueil!G6<>"",Accueil!G6,"") ->  | G3: =IF(Accueil!I5<>"",Accueil!I5,"") ->  | H3: =IF(Accueil!J6<>"",Accueil!J6,"") ->  | I3: =IF(Accueil!K6<>"",Accueil!K6,"") ->  | J3: =IF(Accueil!#REF!<>"",Accueil!#REF!,"") ->  | S3: =IF(#REF!<>"",#REF!,"") ->  | T3: =IF(#REF!<>"",#REF!,"") ->  | Y3: =IF(#REF!<>"",#REF!,"") ->  | Z3: =IF(#REF!<>"",#REF!,"") ->  | AA3: =IF(#REF!<>"",#REF!,"") ->  | AB3: =IF(#REF!<>"",#REF!,"") ->  | AC3: =IF(#REF!<>"",#REF!,"") ->  | AH3: =IF(M3<>"",M3,"") ->  | AI3: =IF(N3<>"",N3,"") -> 
D4: Classe: | E4: =IF(Accueil!O7<>"",Accueil!O7,"") -> 1AM1 | K4: Résultats des contrôles du 1er trimestre | Y4: Classe: | Z4: =E4 -> 1AM1 | AD4: Résultats du 1er trimestre
D5: Matière: | E5: =IF(Renseignements!E3<>"",Renseignements!E3,"") -> Mathématiques | Y5: Matière: | Z5: =IF(E5<>"",E5,"") -> Mathématiques | AP5: Classement (Premier trimestre)
D6: Prof: | E6: =IF(Renseignements!B3<>"",Renseignements!B3,"") -> Toufik MERINE | Q6: Coeffi: | S6: 2 | T6: =HYPERLINK("#"&ADDRESS(ROW(),COLUMN()-1),CHAR(128)) -> € | Y6: Prof: | Z6: =IF(E6<>"",E6,"") -> Toufik MERINE | AH6: =S6 -> 2
D9: Nom | E9: Prénom | F9: Date de naissance | G9: Contrôle en classe | H9: Cahiers | I9: test 1 | J9: test 2 | K9: test 3 | L9: test 4 | M9: test 5 | N9: test 6 | O9: Travail à la maison | P9: Travail à la maison | Q9: M. des contrôles | R9: Dev. S.1 | S9: Dev. S.2 | T9: Compo/20 | Y9: Nom | Z9: Prénom | AA9: Date de naissance | AB9: Contrôle contenu | AC9: Devoir 1 | AD9: Devoir 2 | AE9: M. des contrôles | AF9: Compo / 60 | AG9: Moyenne Trim / 20 | AH9: Moy par coeffi | AI9: Observ | AP9: Nom et Prénom | AQ9: Moyenne Trim / 20
A16: 1 | C16: g | D16: baroudi | E16: Ahmed | F16: 2001-07-21 | W16: 1 | X16: =C16 -> g | Y16: baroudi | Z16: Ahmed | AA16: =IF(F16<>"",F16,"") -> 2001-07-21 | AB16: =IF(Q16<>"",Q16,"") ->  | AE16: =IF(Q16="","",2*AVERAGE(AB16:AD16)) ->  | AF16: =IF(T16="","",T16*3) ->  | AG16: =IF(T16="","",(AF16+AE16)/5) ->  | AH16: =IF(T16="","",AG16*$AH$6) ->  | AN16: 1 | AP16: =IF(ISNA(MATCH(AN16,'1'!$AW$16:$AW$53,0)),"",INDEX('1'!$AT$16:$AT$53,MATCH(AN16,'1'!$AW$16:$AW$53,0))) -> baroudi Ahmed | AQ16: =IF($AP16<>"",VLOOKUP($AP16,'1'!$AT$16:$AV$53,3,0),"") -> 0 | AS16: 1 | AT16: =D16&" "&E16 -> baroudi Ahmed | AV16: =IF(AG16="",0,AG16) -> 0 | AW16: =IF(AT16<>"",COUNTIF($AX$16:$AX$53,">"&AX16)+COUNTIF($AX$16:AX16,AX16),"") -> 1 | AX16: =IF(AV16<>"",AV16*1000,"") -> 0
A17: 2 | C17: f | D17: Brahami | E17: Zahia | F17: 2002-02-21 | W17: 2 | X17: f | Y17: Brahami | Z17: Zahia | AA17: 2002-02-21 | AN17: 2 | AP17: =IF(ISNA(MATCH(AN17,'1'!$AW$16:$AW$53,0)),"",INDEX('1'!$AT$16:$AT$53,MATCH(AN17,'1'!$AW$16:$AW$53,0))) -> Brahami Zahia | AQ17: =IF($AP17<>"",VLOOKUP($AP17,'1'!$AT$16:$AV$53,3,0),"") -> 0 | AS17: 2 | AT17: Brahami Zahia | AV17: =IF(AG17="",0,AG17) -> 0 | AW17: =IF(AT17<>"",COUNTIF($AX$16:$AX$53,">"&AX17)+COUNTIF($AX$16:AX17,AX17),"") -> 2 | AX17: =IF(AV17<>"",AV17*1000,"") -> 0
A18: 3 | W18: 3 | X18: 0 | Y18: 0 | Z18: 0 | AN18: 3 | AP18: =IF(ISNA(MATCH(AN18,'1'!$AW$16:$AW$53,0)),"",INDEX('1'!$AT$16:$AT$53,MATCH(AN18,'1'!$AW$16:$AW$53,0))) ->  | AQ18: =IF($AP18<>"",VLOOKUP($AP18,'1'!$AT$16:$AV$53,3,0),"") -> 0 | AS18: 3 | AV18: 0 | AW18: =IF(AT18<>"",COUNTIF($AX$16:$AX$53,">"&AX18)+COUNTIF($AX$16:AX18,AX18),"") -> 3 | AX18: 0
A19: 4 | W19: 4 | X19: 0 | Y19: 0 | Z19: 0 | AN19: 4 | AP19: =IF(ISNA(MATCH(AN19,'1'!$AW$16:$AW$53,0)),"",INDEX('1'!$AT$16:$AT$53,MATCH(AN19,'1'!$AW$16:$AW$53,0))) ->  | AQ19: =IF($AP19<>"",VLOOKUP($AP19,'1'!$AT$16:$AV$53,3,0),"") -> 0 | AS19: 4 | AV19: 0 | AW19: =IF(AT19<>"",COUNTIF($AX$16:$AX$53,">"&AX19)+COUNTIF($AX$16:AX19,AX19),"") -> 4 | AX19: 0
A20: 5 | W20: 5 | X20: 0 | Y20: 0 | Z20: 0 | AN20: 5 | AP20: =IF(ISNA(MATCH(AN20,'1'!$AW$16:$AW$53,0)),"",INDEX('1'!$AT$16:$AT$53,MATCH(AN20,'1'!$AW$16:$AW$53,0))) ->  | AQ20: =IF($AP20<>"",VLOOKUP($AP20,'1'!$AT$16:$AV$53,3,0),"") -> 0 | AS20: 5 | AV20: 0 | AW20: =IF(AT20<>"",COUNTIF($AX$16:$AX$53,">"&AX20)+COUNTIF($AX$16:AX20,AX20),"") -> 5 | AX20: 0
A21: 6 | W21: 6 | X21: 0 | Y21: 0 | Z21: 0 | AN21: 6 | AP21: =IF(ISNA(MATCH(AN21,'1'!$AW$16:$AW$53,0)),"",INDEX('1'!$AT$16:$AT$53,MATCH(AN21,'1'!$AW$16:$AW$53,0))) ->  | AQ21: =IF($AP21<>"",VLOOKUP($AP21,'1'!$AT$16:$AV$53,3,0),"") -> 0 | AS21: 6 | AV21: 0 | AW21: =IF(AT21<>"",COUNTIF($AX$16:$AX$53,">"&AX21)+COUNTIF($AX$16:AX21,AX21),"") -> 6 | AX21: 0
A22: 7 | W22: 7 | X22: 0 | Y22: 0 | Z22: 0 | AN22: 7 | AP22: =IF(ISNA(MATCH(AN22,'1'!$AW$16:$AW$53,0)),"",INDEX('1'!$AT$16:$AT$53,MATCH(AN22,'1'!$AW$16:$AW$53,0))) ->  | AQ22: =IF($AP22<>"",VLOOKUP($AP22,'1'!$AT$16:$AV$53,3,0),"") -> 0 | AS22: 7 | AV22: 0 | AW22: =IF(AT22<>"",COUNTIF($AX$16:$AX$53,">"&AX22)+COUNTIF($AX$16:AX22,AX22),"") -> 7 | AX22: 0
A23: 8 | W23: 8 | X23: 0 | Y23: 0 | Z23: 0 | AN23: 8 | AP23: =IF(ISNA(MATCH(AN23,'1'!$AW$16:$AW$53,0)),"",INDEX('1'!$AT$16:$AT$53,MATCH(AN23,'1'!$AW$16:$AW$53,0))) ->  | AQ23: =IF($AP23<>"",VLOOKUP($AP23,'1'!$AT$16:$AV$53,3,0),"") -> 0 | AS23: 8 | AV23: 0 | AW23: =IF(AT23<>"",COUNTIF($AX$16:$AX$53,">"&AX23)+COUNTIF($AX$16:AX23,AX23),"") -> 8 | AX23: 0
A24: 9 | W24: 9 | X24: 0 | Y24: 0 | Z24: 0 | AN24: 9 | AP24: =IF(ISNA(MATCH(AN24,'1'!$AW$16:$AW$53,0)),"",INDEX('1'!$AT$16:$AT$53,MATCH(AN24,'1'!$AW$16:$AW$53,0))) ->  | AQ24: =IF($AP24<>"",VLOOKUP($AP24,'1'!$AT$16:$AV$53,3,0),"") -> 0 | AS24: 9 | AV24: 0 | AW24: =IF(AT24<>"",COUNTIF($AX$16:$AX$53,">"&AX24)+COUNTIF($AX$16:AX24,AX24),"") -> 9 | AX24: 0
A25: 10 | W25: 10 | X25: 0 | Y25: 0 | Z25: 0 | AN25: 10 | AP25: =IF(ISNA(MATCH(AN25,'1'!$AW$16:$AW$53,0)),"",INDEX('1'!$AT$16:$AT$53,MATCH(AN25,'1'!$AW$16:$AW$53,0))) ->  | AQ25: =IF($AP25<>"",VLOOKUP($AP25,'1'!$AT$16:$AV$53,3,0),"") -> 0 | AS25: 10 | AV25: 0 | AW25: =IF(AT25<>"",COUNTIF($AX$16:$AX$53,">"&AX25)+COUNTIF($AX$16:AX25,AX25),"") -> 10 | AX25: 0
A26: 11 | W26: 11 | X26: 0 | Y26: 0 | Z26: 0 | AN26: 11 | AP26: =IF(ISNA(MATCH(AN26,'1'!$AW$16:$AW$53,0)),"",INDEX('1'!$AT$16:$AT$53,MATCH(AN26,'1'!$AW$16:$AW$53,0))) ->  | AQ26: =IF($AP26<>"",VLOOKUP($AP26,'1'!$AT$16:$AV$53,3,0),"") -> 0 | AS26: 11 | AV26: 0 | AW26: =IF(AT26<>"",COUNTIF($AX$16:$AX$53,">"&AX26)+COUNTIF($AX$16:AX26,AX26),"") -> 11 | AX26: 0
A27: 12 | W27: 12 | X27: 0 | Y27: 0 | Z27: 0 | AN27: 12 | AP27: =IF(ISNA(MATCH(AN27,'1'!$AW$16:$AW$53,0)),"",INDEX('1'!$AT$16:$AT$53,MATCH(AN27,'1'!$AW$16:$AW$53,0))) ->  | AQ27: =IF($AP27<>"",VLOOKUP($AP27,'1'!$AT$16:$AV$53,3,0),"") -> 0 | AS27: 12 | AV27: 0 | AW27: =IF(AT27<>"",COUNTIF($AX$16:$AX$53,">"&AX27)+COUNTIF($AX$16:AX27,AX27),"") -> 12 | AX27: 0
A28: 13 | W28: 13 | X28: 0 | Y28: 0 | Z28: 0 | AN28: 13 | AP28: =IF(ISNA(MATCH(AN28,'1'!$AW$16:$AW$53,0)),"",INDEX('1'!$AT$16:$AT$53,MATCH(AN28,'1'!$AW$16:$AW$53,0))) ->  | AQ28: =IF($AP28<>"",VLOOKUP($AP28,'1'!$AT$16:$AV$53,3,0),"") -> 0 | AS28: 13 | AV28: 0 | AW28: =IF(AT28<>"",COUNTIF($AX$16:$AX$53,">"&AX28)+COUNTIF($AX$16:AX28,AX28),"") -> 13 | AX28: 0
A29: 14 | W29: 14 | X29: 0 | Y29: 0 | Z29: 0 | AN29: 14 | AP29: =IF(ISNA(MATCH(AN29,'1'!$AW$16:$AW$53,0)),"",INDEX('1'!$AT$16:$AT$53,MATCH(AN29,'1'!$AW$16:$AW$53,0))) ->  | AQ29: =IF($AP29<>"",VLOOKUP($AP29,'1'!$AT$16:$AV$53,3,0),"") -> 0 | AS29: 14 | AV29: 0 | AW29: =IF(AT29<>"",COUNTIF($AX$16:$AX$53,">"&AX29)+COUNTIF($AX$16:AX29,AX29),"") -> 14 | AX29: 0
A30: 15 | W30: 15 | X30: 0 | Y30: 0 | Z30: 0 | AN30: 15 | AP30: =IF(ISNA(MATCH(AN30,'1'!$AW$16:$AW$53,0)),"",INDEX('1'!$AT$16:$AT$53,MATCH(AN30,'1'!$AW$16:$AW$53,0))) ->  | AQ30: =IF($AP30<>"",VLOOKUP($AP30,'1'!$AT$16:$AV$53,3,0),"") -> 0 | AS30: 15 | AV30: 0 | AW30: =IF(AT30<>"",COUNTIF($AX$16:$AX$53,">"&AX30)+COUNTIF($AX$16:AX30,AX30),"") -> 15 | AX30: 0
A31: 16 | W31: 16 | X31: 0 | Y31: 0 | Z31: 0 | AN31: 16 | AP31: =IF(ISNA(MATCH(AN31,'1'!$AW$16:$AW$53,0)),"",INDEX('1'!$AT$16:$AT$53,MATCH(AN31,'1'!$AW$16:$AW$53,0))) ->  | AQ31: =IF($AP31<>"",VLOOKUP($AP31,'1'!$AT$16:$AV$53,3,0),"") -> 0 | AS31: 16 | AV31: 0 | AW31: =IF(AT31<>"",COUNTIF($AX$16:$AX$53,">"&AX31)+COUNTIF($AX$16:AX31,AX31),"") -> 16 | AX31: 0
A32: 17 | W32: 17 | X32: 0 | Y32: 0 | Z32: 0 | AN32: 17 | AP32: =IF(ISNA(MATCH(AN32,'1'!$AW$16:$AW$53,0)),"",INDEX('1'!$AT$16:$AT$53,MATCH(AN32,'1'!$AW$16:$AW$53,0))) ->  | AQ32: =IF($AP32<>"",VLOOKUP($AP32,'1'!$AT$16:$AV$53,3,0),"") -> 0 | AS32: 17 | AV32: 0 | AW32: =IF(AT32<>"",COUNTIF($AX$16:$AX$53,">"&AX32)+COUNTIF($AX$16:AX32,AX32),"") -> 17 | AX32: 0
A33: 18 | W33: 18 | X33: 0 | Y33: 0 | Z33: 0 | AN33: 18 | AP33: =IF(ISNA(MATCH(AN33,'1'!$AW$16:$AW$53,0)),"",INDEX('1'!$AT$16:$AT$53,MATCH(AN33,'1'!$AW$16:$AW$53,0))) ->  | AQ33: =IF($AP33<>"",VLOOKUP($AP33,'1'!$AT$16:$AV$53,3,0),"") -> 0 | AS33: 18 | AV33: 0 | AW33: =IF(AT33<>"",COUNTIF($AX$16:$AX$53,">"&AX33)+COUNTIF($AX$16:AX33,AX33),"") -> 18 | AX33: 0
A34: 19 | W34: 19 | X34: 0 | Y34: 0 | Z34: 0 | AN34: 19 | AP34: =IF(ISNA(MATCH(AN34,'1'!$AW$16:$AW$53,0)),"",INDEX('1'!$AT$16:$AT$53,MATCH(AN34,'1'!$AW$16:$AW$53,0))) ->  | AQ34: =IF($AP34<>"",VLOOKUP($AP34,'1'!$AT$16:$AV$53,3,0),"") -> 0 | AS34: 19 | AV34: 0 | AW34: =IF(AT34<>"",COUNTIF($AX$16:$AX$53,">"&AX34)+COUNTIF($AX$16:AX34,AX34),"") -> 19 | AX34: 0
A35: 20 | W35: 20 | X35: 0 | Y35: 0 | Z35: 0 | AN35: 20 | AP35: =IF(ISNA(MATCH(AN35,'1'!$AW$16:$AW$53,0)),"",INDEX('1'!$AT$16:$AT$53,MATCH(AN35,'1'!$AW$16:$AW$53,0))) ->  | AQ35: =IF($AP35<>"",VLOOKUP($AP35,'1'!$AT$16:$AV$53,3,0),"") -> 0 | AS35: 20 | AV35: 0 | AW35: =IF(AT35<>"",COUNTIF($AX$16:$AX$53,">"&AX35)+COUNTIF($AX$16:AX35,AX35),"") -> 20 | AX35: 0
A36: 21 | W36: 21 | X36: 0 | Y36: 0 | Z36: 0 | AN36: 21 | AP36: =IF(ISNA(MATCH(AN36,'1'!$AW$16:$AW$53,0)),"",INDEX('1'!$AT$16:$AT$53,MATCH(AN36,'1'!$AW$16:$AW$53,0))) ->  | AQ36: =IF($AP36<>"",VLOOKUP($AP36,'1'!$AT$16:$AV$53,3,0),"") -> 0 | AS36: 21 | AV36: 0 | AW36: =IF(AT36<>"",COUNTIF($AX$16:$AX$53,">"&AX36)+COUNTIF($AX$16:AX36,AX36),"") -> 21 | AX36: 0
A37: 22 | W37: 22 | X37: 0 | Y37: 0 | Z37: 0 | AN37: 22 | AP37: =IF(ISNA(MATCH(AN37,'1'!$AW$16:$AW$53,0)),"",INDEX('1'!$AT$16:$AT$53,MATCH(AN37,'1'!$AW$16:$AW$53,0))) ->  | AQ37: =IF($AP37<>"",VLOOKUP($AP37,'1'!$AT$16:$AV$53,3,0),"") -> 0 | AS37: 22 | AV37: 0 | AW37: =IF(AT37<>"",COUNTIF($AX$16:$AX$53,">"&AX37)+COUNTIF($AX$16:AX37,AX37),"") -> 22 | AX37: 0
A38: 23 | W38: 23 | X38: 0 | Y38: 0 | Z38: 0 | AN38: 23 | AP38: =IF(ISNA(MATCH(AN38,'1'!$AW$16:$AW$53,0)),"",INDEX('1'!$AT$16:$AT$53,MATCH(AN38,'1'!$AW$16:$AW$53,0))) ->  | AQ38: =IF($AP38<>"",VLOOKUP($AP38,'1'!$AT$16:$AV$53,3,0),"") -> 0 | AS38: 23 | AV38: 0 | AW38: =IF(AT38<>"",COUNTIF($AX$16:$AX$53,">"&AX38)+COUNTIF($AX$16:AX38,AX38),"") -> 23 | AX38: 0
A39: 24 | W39: 24 | X39: 0 | Y39: 0 | Z39: 0 | AN39: 24 | AP39: =IF(ISNA(MATCH(AN39,'1'!$AW$16:$AW$53,0)),"",INDEX('1'!$AT$16:$AT$53,MATCH(AN39,'1'!$AW$16:$AW$53,0))) ->  | AQ39: =IF($AP39<>"",VLOOKUP($AP39,'1'!$AT$16:$AV$53,3,0),"") -> 0 | AS39: 24 | AV39: 0 | AW39: =IF(AT39<>"",COUNTIF($AX$16:$AX$53,">"&AX39)+COUNTIF($AX$16:AX39,AX39),"") -> 24 | AX39: 0
A40: 25 | W40: 25 | X40: 0 | Y40: 0 | Z40: 0 | AN40: 25 | AP40: =IF(ISNA(MATCH(AN40,'1'!$AW$16:$AW$53,0)),"",INDEX('1'!$AT$16:$AT$53,MATCH(AN40,'1'!$AW$16:$AW$53,0))) ->  | AQ40: =IF($AP40<>"",VLOOKUP($AP40,'1'!$AT$16:$AV$53,3,0),"") -> 0 | AS40: 25 | AV40: 0 | AW40: =IF(AT40<>"",COUNTIF($AX$16:$AX$53,">"&AX40)+COUNTIF($AX$16:AX40,AX40),"") -> 25 | AX40: 0
A41: 26 | W41: 26 | X41: 0 | Y41: 0 | Z41: 0 | AN41: 26 | AP41: =IF(ISNA(MATCH(AN41,'1'!$AW$16:$AW$53,0)),"",INDEX('1'!$AT$16:$AT$53,MATCH(AN41,'1'!$AW$16:$AW$53,0))) ->  | AQ41: =IF($AP41<>"",VLOOKUP($AP41,'1'!$AT$16:$AV$53,3,0),"") -> 0 | AS41: 26 | AV41: 0 | AW41: =IF(AT41<>"",COUNTIF($AX$16:$AX$53,">"&AX41)+COUNTIF($AX$16:AX41,AX41),"") -> 26 | AX41: 0
A42: 27 | W42: 27 | X42: 0 | Y42: 0 | Z42: 0 | AN42: 27 | AP42: =IF(ISNA(MATCH(AN42,'1'!$AW$16:$AW$53,0)),"",INDEX('1'!$AT$16:$AT$53,MATCH(AN42,'1'!$AW$16:$AW$53,0))) ->  | AQ42: =IF($AP42<>"",VLOOKUP($AP42,'1'!$AT$16:$AV$53,3,0),"") -> 0 | AS42: 27 | AV42: 0 | AW42: =IF(AT42<>"",COUNTIF($AX$16:$AX$53,">"&AX42)+COUNTIF($AX$16:AX42,AX42),"") -> 27 | AX42: 0
A43: 28 | W43: 28 | X43: 0 | Y43: 0 | Z43: 0 | AN43: 28 | AP43: =IF(ISNA(MATCH(AN43,'1'!$AW$16:$AW$53,0)),"",INDEX('1'!$AT$16:$AT$53,MATCH(AN43,'1'!$AW$16:$AW$53,0))) ->  | AQ43: =IF($AP43<>"",VLOOKUP($AP43,'1'!$AT$16:$AV$53,3,0),"") -> 0 | AS43: 28 | AV43: 0 | AW43: =IF(AT43<>"",COUNTIF($AX$16:$AX$53,">"&AX43)+COUNTIF($AX$16:AX43,AX43),"") -> 28 | AX43: 0
A44: 29 | W44: 29 | X44: 0 | Y44: 0 | Z44: 0 | AN44: 29 | AP44: =IF(ISNA(MATCH(AN44,'1'!$AW$16:$AW$53,0)),"",INDEX('1'!$AT$16:$AT$53,MATCH(AN44,'1'!$AW$16:$AW$53,0))) ->  | AQ44: =IF($AP44<>"",VLOOKUP($AP44,'1'!$AT$16:$AV$53,3,0),"") -> 0 | AS44: 29 | AV44: 0 | AW44: =IF(AT44<>"",COUNTIF($AX$16:$AX$53,">"&AX44)+COUNTIF($AX$16:AX44,AX44),"") -> 29 | AX44: 0
A45: 30 | W45: 30 | X45: 0 | Y45: 0 | Z45: 0 | AN45: 30 | AP45: =IF(ISNA(MATCH(AN45,'1'!$AW$16:$AW$53,0)),"",INDEX('1'!$AT$16:$AT$53,MATCH(AN45,'1'!$AW$16:$AW$53,0))) ->  | AQ45: =IF($AP45<>"",VLOOKUP($AP45,'1'!$AT$16:$AV$53,3,0),"") -> 0 | AS45: 30 | AV45: 0 | AW45: =IF(AT45<>"",COUNTIF($AX$16:$AX$53,">"&AX45)+COUNTIF($AX$16:AX45,AX45),"") -> 30 | AX45: 0
A46: 31 | W46: 31 | X46: 0 | Y46: 0 | Z46: 0 | AN46: 31 | AP46: =IF(ISNA(MATCH(AN46,'1'!$AW$16:$AW$53,0)),"",INDEX('1'!$AT$16:$AT$53,MATCH(AN46,'1'!$AW$16:$AW$53,0))) ->  | AQ46: =IF($AP46<>"",VLOOKUP($AP46,'1'!$AT$16:$AV$53,3,0),"") -> 0 | AS46: 31 | AV46: 0 | AW46: =IF(AT46<>"",COUNTIF($AX$16:$AX$53,">"&AX46)+COUNTIF($AX$16:AX46,AX46),"") -> 31 | AX46: 0
A47: 32 | W47: 32 | X47: 0 | Y47: 0 | Z47: 0 | AN47: 32 | AP47: =IF(ISNA(MATCH(AN47,'1'!$AW$16:$AW$53,0)),"",INDEX('1'!$AT$16:$AT$53,MATCH(AN47,'1'!$AW$16:$AW$53,0))) ->  | AQ47: =IF($AP47<>"",VLOOKUP($AP47,'1'!$AT$16:$AV$53,3,0),"") -> 0 | AS47: 32 | AV47: 0 | AW47: =IF(AT47<>"",COUNTIF($AX$16:$AX$53,">"&AX47)+COUNTIF($AX$16:AX47,AX47),"") -> 32 | AX47: 0
A48: 33 | W48: 33 | X48: 0 | Y48: 0 | Z48: 0 | AN48: 33 | AP48: =IF(ISNA(MATCH(AN48,'1'!$AW$16:$AW$53,0)),"",INDEX('1'!$AT$16:$AT$53,MATCH(AN48,'1'!$AW$16:$AW$53,0))) ->  | AQ48: =IF($AP48<>"",VLOOKUP($AP48,'1'!$AT$16:$AV$53,3,0),"") -> 0 | AS48: 33 | AV48: 0 | AW48: =IF(AT48<>"",COUNTIF($AX$16:$AX$53,">"&AX48)+COUNTIF($AX$16:AX48,AX48),"") -> 33 | AX48: 0
A49: 34 | W49: 34 | X49: 0 | Y49: 0 | Z49: 0 | AN49: 34 | AP49: =IF(ISNA(MATCH(AN49,'1'!$AW$16:$AW$53,0)),"",INDEX('1'!$AT$16:$AT$53,MATCH(AN49,'1'!$AW$16:$AW$53,0))) ->  | AQ49: =IF($AP49<>"",VLOOKUP($AP49,'1'!$AT$16:$AV$53,3,0),"") -> 0 | AS49: 34 | AV49: 0 | AW49: =IF(AT49<>"",COUNTIF($AX$16:$AX$53,">"&AX49)+COUNTIF($AX$16:AX49,AX49),"") -> 34 | AX49: 0
A50: 35 | W50: 35 | X50: 0 | Y50: 0 | Z50: 0 | AN50: 35 | AP50: =IF(ISNA(MATCH(AN50,'1'!$AW$16:$AW$53,0)),"",INDEX('1'!$AT$16:$AT$53,MATCH(AN50,'1'!$AW$16:$AW$53,0))) ->  | AQ50: =IF($AP50<>"",VLOOKUP($AP50,'1'!$AT$16:$AV$53,3,0),"") -> 0 | AS50: 35 | AV50: 0 | AW50: =IF(AT50<>"",COUNTIF($AX$16:$AX$53,">"&AX50)+COUNTIF($AX$16:AX50,AX50),"") -> 35 | AX50: 0
A51: 36 | W51: 36 | X51: 0 | Y51: 0 | Z51: 0 | AN51: 36 | AP51: =IF(ISNA(MATCH(AN51,'1'!$AW$16:$AW$53,0)),"",INDEX('1'!$AT$16:$AT$53,MATCH(AN51,'1'!$AW$16:$AW$53,0))) ->  | AQ51: =IF($AP51<>"",VLOOKUP($AP51,'1'!$AT$16:$AV$53,3,0),"") -> 0 | AS51: 36 | AV51: 0 | AW51: =IF(AT51<>"",COUNTIF($AX$16:$AX$53,">"&AX51)+COUNTIF($AX$16:AX51,AX51),"") -> 36 | AX51: 0
A52: 37 | W52: 37 | X52: 0 | Y52: 0 | Z52: 0 | AN52: 37 | AP52: =IF(ISNA(MATCH(AN52,'1'!$AW$16:$AW$53,0)),"",INDEX('1'!$AT$16:$AT$53,MATCH(AN52,'1'!$AW$16:$AW$53,0))) ->  | AQ52: =IF($AP52<>"",VLOOKUP($AP52,'1'!$AT$16:$AV$53,3,0),"") -> 0 | AS52: 37 | AV52: 0 | AW52: =IF(AT52<>"",COUNTIF($AX$16:$AX$53,">"&AX52)+COUNTIF($AX$16:AX52,AX52),"") -> 37 | AX52: 0
A53: 38 | W53: 38 | X53: 0 | Y53: 0 | Z53: 0 | AN53: 38 | AP53: =IF(ISNA(MATCH(AN53,'1'!$AW$16:$AW$53,0)),"",INDEX('1'!$AT$16:$AT$53,MATCH(AN53,'1'!$AW$16:$AW$53,0))) ->  | AQ53: =IF($AP53<>"",VLOOKUP($AP53,'1'!$AT$16:$AV$53,3,0),"") -> 0 | AS53: 38 | AV53: 0 | AW53: =IF(AT53<>"",COUNTIF($AX$16:$AX$53,">"&AX53)+COUNTIF($AX$16:AX53,AX53),"") -> 38 | AX53: 0
D56: ="Effectif Total : " &F56 -> Effectif Total : 0 | F56: =SUM(F58:F59) -> 0 | R56: =COUNTIFS(R16:R53,">=10") -> 0 | Y56: ="Effectif Total : " &Z58 -> Effectif Total : 0 | AA56: =F56 -> 0 | AP56: =Y56 -> Effectif Total : 0 | AQ56: =F56 -> 0 | AR56: =COUNTA(AP16:AP53) -> 38
D58: ="Filles : "&F58 -> Filles : 0 | F58: =COUNTIFS(C16:C53,"أ") -> 0 | S58: =COUNTIFS(S16:S53,">=10") -> 0 | Y58: =D58 -> Filles : 0 | Z58: =F56 -> 0 | AA58: =AA56 -> 0 | AC58: Moyenne trimestrielle >=10 | AG58: =COUNTIFS(AG16:AG53,">=10") -> 0 | AH58: =AG58/AA56 ->  | AP58: =Y58 -> Filles : 0 | AQ58: =AQ56 -> 0
D59: ="Garçon : "&F59 -> Garçon : 0 | F59: =COUNTIFS(C16:C53,"ذ") -> 0 | T59: =COUNTIFS(T16:T53,">=10") -> 0 | Y59: =D59 -> Garçon : 0 | AA59: =AA58 -> 0 | AP59: =Y59 -> Garçon : 0 | AQ59: =AQ58 -> 0
D64: =IF(D2<>"",D2,"") -> Collège - Mostaganem | S64: =IF(S2<>"",S2,"") -> 2014 - 2015 | T64: =IF(#REF!<>"",#REF!,"") ->  | Y64: =D64 -> Collège - Mostaganem | AH64: =IF(S64<>"",S64,"") -> 2014 - 2015 | AI64: =IF(N64<>"",N64,"") ->  | AP64: =Y64 -> Collège - Mostaganem | AY64: =AH64 -> 2014 - 2015
S65: =IF(#REF!<>"",#REF!,"") ->  | T65: =IF(#REF!<>"",#REF!,"") ->  | AH65: =IF(M65<>"",M65,"") ->  | AI65: =IF(N65<>"",N65,"") -> 
D66: Classe: | E66: =E4 -> 1AM1 | K66: Résultats des contrôles du 2e trimestre | Y66: Classe: | Z66: =E66 -> 1AM1 | AD66: Résultats du 2e trimestre
D67: Matière: | E67: =IF(E5<>"",E5,"") -> Mathématiques | Y67: Matière: | Z67: =IF(E67<>"",E67,"") -> Mathématiques | AP67: Classement (Deuxième trimestre)
D68: Prof: | E68: =IF(E6<>"",E6,"") -> Toufik MERINE | Y68: Prof: | Z68: =IF(E68<>"",E68,"") -> Toufik MERINE | AH68: =AH6 -> 2
D71: Nom | E71: Prénom | F71: Date de naissance | G71: Contrôle en classe | H71: Cahiers | I71: test 1 | J71: test 2 | K71: test 3 | L71: test 4 | M71: test 5 | N71: test 6 | O71: Travail à la maison | P71: Travail à la maison | Q71: M. des contrôles | R71: Dev. S.1 | S71: Dev. S.2 | T71: Compo/20 | Y71: Nom | Z71: Prénom | AA71: Date de naissance | AB71: Contrôle contenu | AC71: Devoir 1 | AD71: Devoir 2 | AE71: M. des contrôles | AF71: Compo / 60 | AG71: Moyenne Trim / 20 | AH71: Moy par coeffi | AI71: Observ | AP71: Nom et Prénom | AQ71: Moyenne Trim / 20
A78: 1 | C78: =C16 -> g | D78: =D16 -> baroudi | E78: Ahmed | F78: =IF(F16<>"",F16,"") -> 2001-07-21 | W78: 1 | X78: =C78 -> g | Y78: baroudi | Z78: Ahmed | AA78: =IF(F78<>"",F78,"") -> 2001-07-21 | AB78: =IF(Q78<>"",Q78,"") ->  | AE78: =IF(Q78="","",2*AVERAGE(AB78:AD78)) ->  | AF78: =IF(T78="","",T78*3) ->  | AG78: =IF(T78="","",(AF78+AE78)/5) ->  | AH78: =IF(T78="","",AG78*$AH$6) ->  | AN78: 1 | AP78: =IF(ISNA(MATCH(AN78,'1'!$AW$78:$AW$115,0)),"",INDEX('1'!$AT$78:$AT$115,MATCH(AN78,'1'!$AW$78:$AW$115,0))) -> baroudi Ahmed | AQ78: =IF($AP78<>"",VLOOKUP($AP78,'1'!$AT$78:$AV$115,3,0),"") -> 0 | AS78: 1 | AT78: =D78&" "&E78 -> baroudi Ahmed | AV78: =IF(AG78="",0,AG78) -> 0 | AW78: =IF(AT78<>"",COUNTIF($AX$78:$AX$115,">"&AX78)+COUNTIF($AX$78:AX78,AX78),"") -> 1 | AX78: =IF(AV78<>"",AV78*1000,"") -> 0
A79: 2 | C79: =C17 -> f | D79: Brahami | E79: Zahia | F79: 2002-02-21 | W79: 2 | X79: f | Y79: Brahami | Z79: Zahia | AA79: 2002-02-21 | AN79: 2 | AP79: =IF(ISNA(MATCH(AN79,'1'!$AW$78:$AW$115,0)),"",INDEX('1'!$AT$78:$AT$115,MATCH(AN79,'1'!$AW$78:$AW$115,0))) -> Brahami Zahia | AQ79: =IF($AP79<>"",VLOOKUP($AP79,'1'!$AT$78:$AV$115,3,0),"") -> 0 | AS79: 2 | AT79: Brahami Zahia | AV79: =IF(AG79="",0,AG79) -> 0 | AW79: =IF(AT79<>"",COUNTIF($AX$78:$AX$115,">"&AX79)+COUNTIF($AX$78:AX79,AX79),"") -> 2 | AX79: =IF(AV79<>"",AV79*1000,"") -> 0
A80: 3 | C80: 0 | D80: 0 | E80: 0 | W80: 3 | X80: 0 | Y80: 0 | Z80: 0 | AN80: 3 | AP80: =IF(ISNA(MATCH(AN80,'1'!$AW$78:$AW$115,0)),"",INDEX('1'!$AT$78:$AT$115,MATCH(AN80,'1'!$AW$78:$AW$115,0))) -> 0 0 | AQ80: =IF($AP80<>"",VLOOKUP($AP80,'1'!$AT$78:$AV$115,3,0),"") -> 0 | AS80: 3 | AT80: 0 0 | AV80: 0 | AW80: =IF(AT80<>"",COUNTIF($AX$78:$AX$115,">"&AX80)+COUNTIF($AX$78:AX80,AX80),"") -> 3 | AX80: 0
A81: 4 | C81: 0 | D81: 0 | E81: 0 | W81: 4 | X81: 0 | Y81: 0 | Z81: 0 | AN81: 4 | AP81: =IF(ISNA(MATCH(AN81,'1'!$AW$78:$AW$115,0)),"",INDEX('1'!$AT$78:$AT$115,MATCH(AN81,'1'!$AW$78:$AW$115,0))) -> 0 0 | AQ81: =IF($AP81<>"",VLOOKUP($AP81,'1'!$AT$78:$AV$115,3,0),"") -> 0 | AS81: 4 | AT81: 0 0 | AV81: 0 | AW81: =IF(AT81<>"",COUNTIF($AX$78:$AX$115,">"&AX81)+COUNTIF($AX$78:AX81,AX81),"") -> 4 | AX81: 0
A82: 5 | C82: 0 | D82: 0 | E82: 0 | W82: 5 | X82: 0 | Y82: 0 | Z82: 0 | AN82: 5 | AP82: =IF(ISNA(MATCH(AN82,'1'!$AW$78:$AW$115,0)),"",INDEX('1'!$AT$78:$AT$115,MATCH(AN82,'1'!$AW$78:$AW$115,0))) -> 0 0 | AQ82: =IF($AP82<>"",VLOOKUP($AP82,'1'!$AT$78:$AV$115,3,0),"") -> 0 | AS82: 5 | AT82: 0 0 | AV82: 0 | AW82: =IF(AT82<>"",COUNTIF($AX$78:$AX$115,">"&AX82)+COUNTIF($AX$78:AX82,AX82),"") -> 5 | AX82: 0
A83: 6 | C83: 0 | D83: 0 | E83: 0 | W83: 6 | X83: 0 | Y83: 0 | Z83: 0 | AN83: 6 | AP83: =IF(ISNA(MATCH(AN83,'1'!$AW$78:$AW$115,0)),"",INDEX('1'!$AT$78:$AT$115,MATCH(AN83,'1'!$AW$78:$AW$115,0))) -> 0 0 | AQ83: =IF($AP83<>"",VLOOKUP($AP83,'1'!$AT$78:$AV$115,3,0),"") -> 0 | AS83: 6 | AT83: 0 0 | AV83: 0 | AW83: =IF(AT83<>"",COUNTIF($AX$78:$AX$115,">"&AX83)+COUNTIF($AX$78:AX83,AX83),"") -> 6 | AX83: 0
A84: 7 | C84: 0 | D84: 0 | E84: 0 | W84: 7 | X84: 0 | Y84: 0 | Z84: 0 | AN84: 7 | AP84: =IF(ISNA(MATCH(AN84,'1'!$AW$78:$AW$115,0)),"",INDEX('1'!$AT$78:$AT$115,MATCH(AN84,'1'!$AW$78:$AW$115,0))) -> 0 0 | AQ84: =IF($AP84<>"",VLOOKUP($AP84,'1'!$AT$78:$AV$115,3,0),"") -> 0 | AS84: 7 | AT84: 0 0 | AV84: 0 | AW84: =IF(AT84<>"",COUNTIF($AX$78:$AX$115,">"&AX84)+COUNTIF($AX$78:AX84,AX84),"") -> 7 | AX84: 0
A85: 8 | C85: 0 | D85: 0 | E85: 0 | W85: 8 | X85: 0 | Y85: 0 | Z85: 0 | AN85: 8 | AP85: =IF(ISNA(MATCH(AN85,'1'!$AW$78:$AW$115,0)),"",INDEX('1'!$AT$78:$AT$115,MATCH(AN85,'1'!$AW$78:$AW$115,0))) -> 0 0 | AQ85: =IF($AP85<>"",VLOOKUP($AP85,'1'!$AT$78:$AV$115,3,0),"") -> 0 | AS85: 8 | AT85: 0 0 | AV85: 0 | AW85: =IF(AT85<>"",COUNTIF($AX$78:$AX$115,">"&AX85)+COUNTIF($AX$78:AX85,AX85),"") -> 8 | AX85: 0
A86: 9 | C86: 0 | D86: 0 | E86: 0 | W86: 9 | X86: 0 | Y86: 0 | Z86: 0 | AN86: 9 | AP86: =IF(ISNA(MATCH(AN86,'1'!$AW$78:$AW$115,0)),"",INDEX('1'!$AT$78:$AT$115,MATCH(AN86,'1'!$AW$78:$AW$115,0))) -> 0 0 | AQ86: =IF($AP86<>"",VLOOKUP($AP86,'1'!$AT$78:$AV$115,3,0),"") -> 0 | AS86: 9 | AT86: 0 0 | AV86: 0 | AW86: =IF(AT86<>"",COUNTIF($AX$78:$AX$115,">"&AX86)+COUNTIF($AX$78:AX86,AX86),"") -> 9 | AX86: 0
A87: 10 | C87: 0 | D87: 0 | E87: 0 | W87: 10 | X87: 0 | Y87: 0 | Z87: 0 | AN87: 10 | AP87: =IF(ISNA(MATCH(AN87,'1'!$AW$78:$AW$115,0)),"",INDEX('1'!$AT$78:$AT$115,MATCH(AN87,'1'!$AW$78:$AW$115,0))) -> 0 0 | AQ87: =IF($AP87<>"",VLOOKUP($AP87,'1'!$AT$78:$AV$115,3,0),"") -> 0 | AS87: 10 | AT87: 0 0 | AV87: 0 | AW87: =IF(AT87<>"",COUNTIF($AX$78:$AX$115,">"&AX87)+COUNTIF($AX$78:AX87,AX87),"") -> 10 | AX87: 0
A88: 11 | C88: 0 | D88: 0 | E88: 0 | W88: 11 | X88: 0 | Y88: 0 | Z88: 0 | AN88: 11 | AP88: =IF(ISNA(MATCH(AN88,'1'!$AW$78:$AW$115,0)),"",INDEX('1'!$AT$78:$AT$115,MATCH(AN88,'1'!$AW$78:$AW$115,0))) -> 0 0 | AQ88: =IF($AP88<>"",VLOOKUP($AP88,'1'!$AT$78:$AV$115,3,0),"") -> 0 | AS88: 11 | AT88: 0 0 | AV88: 0 | AW88: =IF(AT88<>"",COUNTIF($AX$78:$AX$115,">"&AX88)+COUNTIF($AX$78:AX88,AX88),"") -> 11 | AX88: 0
A89: 12 | C89: 0 | D89: 0 | E89: 0 | W89: 12 | X89: 0 | Y89: 0 | Z89: 0 | AN89: 12 | AP89: =IF(ISNA(MATCH(AN89,'1'!$AW$78:$AW$115,0)),"",INDEX('1'!$AT$78:$AT$115,MATCH(AN89,'1'!$AW$78:$AW$115,0))) -> 0 0 | AQ89: =IF($AP89<>"",VLOOKUP($AP89,'1'!$AT$78:$AV$115,3,0),"") -> 0 | AS89: 12 | AT89: 0 0 | AV89: 0 | AW89: =IF(AT89<>"",COUNTIF($AX$78:$AX$115,">"&AX89)+COUNTIF($AX$78:AX89,AX89),"") -> 12 | AX89: 0
A90: 13 | C90: 0 | D90: 0 | E90: 0 | W90: 13 | X90: 0 | Y90: 0 | Z90: 0 | AN90: 13 | AP90: =IF(ISNA(MATCH(AN90,'1'!$AW$78:$AW$115,0)),"",INDEX('1'!$AT$78:$AT$115,MATCH(AN90,'1'!$AW$78:$AW$115,0))) -> 0 0 | AQ90: =IF($AP90<>"",VLOOKUP($AP90,'1'!$AT$78:$AV$115,3,0),"") -> 0 | AS90: 13 | AT90: 0 0 | AV90: 0 | AW90: =IF(AT90<>"",COUNTIF($AX$78:$AX$115,">"&AX90)+COUNTIF($AX$78:AX90,AX90),"") -> 13 | AX90: 0
A91: 14 | C91: 0 | D91: 0 | E91: 0 | W91: 14 | X91: 0 | Y91: 0 | Z91: 0 | AN91: 14 | AP91: =IF(ISNA(MATCH(AN91,'1'!$AW$78:$AW$115,0)),"",INDEX('1'!$AT$78:$AT$115,MATCH(AN91,'1'!$AW$78:$AW$115,0))) -> 0 0 | AQ91: =IF($AP91<>"",VLOOKUP($AP91,'1'!$AT$78:$AV$115,3,0),"") -> 0 | AS91: 14 | AT91: 0 0 | AV91: 0 | AW91: =IF(AT91<>"",COUNTIF($AX$78:$AX$115,">"&AX91)+COUNTIF($AX$78:AX91,AX91),"") -> 14 | AX91: 0
A92: 15 | C92: 0 | D92: 0 | E92: 0 | W92: 15 | X92: 0 | Y92: 0 | Z92: 0 | AN92: 15 | AP92: =IF(ISNA(MATCH(AN92,'1'!$AW$78:$AW$115,0)),"",INDEX('1'!$AT$78:$AT$115,MATCH(AN92,'1'!$AW$78:$AW$115,0))) -> 0 0 | AQ92: =IF($AP92<>"",VLOOKUP($AP92,'1'!$AT$78:$AV$115,3,0),"") -> 0 | AS92: 15 | AT92: 0 0 | AV92: 0 | AW92: =IF(AT92<>"",COUNTIF($AX$78:$AX$115,">"&AX92)+COUNTIF($AX$78:AX92,AX92),"") -> 15 | AX92: 0
A93: 16 | C93: 0 | D93: 0 | E93: 0 | W93: 16 | X93: 0 | Y93: 0 | Z93: 0 | AN93: 16 | AP93: =IF(ISNA(MATCH(AN93,'1'!$AW$78:$AW$115,0)),"",INDEX('1'!$AT$78:$AT$115,MATCH(AN93,'1'!$AW$78:$AW$115,0))) -> 0 0 | AQ93: =IF($AP93<>"",VLOOKUP($AP93,'1'!$AT$78:$AV$115,3,0),"") -> 0 | AS93: 16 | AT93: 0 0 | AV93: 0 | AW93: =IF(AT93<>"",COUNTIF($AX$78:$AX$115,">"&AX93)+COUNTIF($AX$78:AX93,AX93),"") -> 16 | AX93: 0
A94: 17 | C94: 0 | D94: 0 | E94: 0 | W94: 17 | X94: 0 | Y94: 0 | Z94: 0 | AN94: 17 | AP94: =IF(ISNA(MATCH(AN94,'1'!$AW$78:$AW$115,0)),"",INDEX('1'!$AT$78:$AT$115,MATCH(AN94,'1'!$AW$78:$AW$115,0))) -> 0 0 | AQ94: =IF($AP94<>"",VLOOKUP($AP94,'1'!$AT$78:$AV$115,3,0),"") -> 0 | AS94: 17 | AT94: 0 0 | AV94: 0 | AW94: =IF(AT94<>"",COUNTIF($AX$78:$AX$115,">"&AX94)+COUNTIF($AX$78:AX94,AX94),"") -> 17 | AX94: 0
A95: 18 | C95: 0 | D95: 0 | E95: 0 | W95: 18 | X95: 0 | Y95: 0 | Z95: 0 | AN95: 18 | AP95: =IF(ISNA(MATCH(AN95,'1'!$AW$78:$AW$115,0)),"",INDEX('1'!$AT$78:$AT$115,MATCH(AN95,'1'!$AW$78:$AW$115,0))) -> 0 0 | AQ95: =IF($AP95<>"",VLOOKUP($AP95,'1'!$AT$78:$AV$115,3,0),"") -> 0 | AS95: 18 | AT95: 0 0 | AV95: 0 | AW95: =IF(AT95<>"",COUNTIF($AX$78:$AX$115,">"&AX95)+COUNTIF($AX$78:AX95,AX95),"") -> 18 | AX95: 0
A96: 19 | C96: 0 | D96: 0 | E96: 0 | W96: 19 | X96: 0 | Y96: 0 | Z96: 0 | AN96: 19 | AP96: =IF(ISNA(MATCH(AN96,'1'!$AW$78:$AW$115,0)),"",INDEX('1'!$AT$78:$AT$115,MATCH(AN96,'1'!$AW$78:$AW$115,0))) -> 0 0 | AQ96: =IF($AP96<>"",VLOOKUP($AP96,'1'!$AT$78:$AV$115,3,0),"") -> 0 | AS96: 19 | AT96: 0 0 | AV96: 0 | AW96: =IF(AT96<>"",COUNTIF($AX$78:$AX$115,">"&AX96)+COUNTIF($AX$78:AX96,AX96),"") -> 19 | AX96: 0
A97: 20 | C97: 0 | D97: 0 | E97: 0 | W97: 20 | X97: 0 | Y97: 0 | Z97: 0 | AN97: 20 | AP97: =IF(ISNA(MATCH(AN97,'1'!$AW$78:$AW$115,0)),"",INDEX('1'!$AT$78:$AT$115,MATCH(AN97,'1'!$AW$78:$AW$115,0))) -> 0 0 | AQ97: =IF($AP97<>"",VLOOKUP($AP97,'1'!$AT$78:$AV$115,3,0),"") -> 0 | AS97: 20 | AT97: 0 0 | AV97: 0 | AW97: =IF(AT97<>"",COUNTIF($AX$78:$AX$115,">"&AX97)+COUNTIF($AX$78:AX97,AX97),"") -> 20 | AX97: 0
A98: 21 | C98: =C36 -> 0 | D98: 0 | E98: 0 | W98: 21 | X98: 0 | Y98: 0 | Z98: 0 | AN98: 21 | AP98: =IF(ISNA(MATCH(AN98,'1'!$AW$78:$AW$115,0)),"",INDEX('1'!$AT$78:$AT$115,MATCH(AN98,'1'!$AW$78:$AW$115,0))) -> 0 0 | AQ98: =IF($AP98<>"",VLOOKUP($AP98,'1'!$AT$78:$AV$115,3,0),"") -> 0 | AS98: 21 | AT98: 0 0 | AV98: 0 | AW98: =IF(AT98<>"",COUNTIF($AX$78:$AX$115,">"&AX98)+COUNTIF($AX$78:AX98,AX98),"") -> 21 | AX98: 0
A99: 22 | C99: 0 | D99: 0 | E99: 0 | W99: 22 | X99: 0 | Y99: 0 | Z99: 0 | AN99: 22 | AP99: =IF(ISNA(MATCH(AN99,'1'!$AW$78:$AW$115,0)),"",INDEX('1'!$AT$78:$AT$115,MATCH(AN99,'1'!$AW$78:$AW$115,0))) -> 0 0 | AQ99: =IF($AP99<>"",VLOOKUP($AP99,'1'!$AT$78:$AV$115,3,0),"") -> 0 | AS99: 22 | AT99: 0 0 | AV99: 0 | AW99: =IF(AT99<>"",COUNTIF($AX$78:$AX$115,">"&AX99)+COUNTIF($AX$78:AX99,AX99),"") -> 22 | AX99: 0
A100: 23 | C100: 0 | D100: 0 | E100: 0 | W100: 23 | X100: 0 | Y100: 0 | Z100: 0 | AN100: 23 | AP100: =IF(ISNA(MATCH(AN100,'1'!$AW$78:$AW$115,0)),"",INDEX('1'!$AT$78:$AT$115,MATCH(AN100,'1'!$AW$78:$AW$115,0))) -> 0 0 | AQ100: =IF($AP100<>"",VLOOKUP($AP100,'1'!$AT$78:$AV$115,3,0),"") -> 0 | AS100: 23 | AT100: 0 0 | AV100: 0 | AW100: =IF(AT100<>"",COUNTIF($AX$78:$AX$115,">"&AX100)+COUNTIF($AX$78:AX100,AX100),"") -> 23 | AX100: 0
A101: 24 | C101: 0 | D101: 0 | E101: 0 | W101: 24 | X101: 0 | Y101: 0 | Z101: 0 | AN101: 24 | AP101: =IF(ISNA(MATCH(AN101,'1'!$AW$78:$AW$115,0)),"",INDEX('1'!$AT$78:$AT$115,MATCH(AN101,'1'!$AW$78:$AW$115,0))) -> 0 0 | AQ101: =IF($AP101<>"",VLOOKUP($AP101,'1'!$AT$78:$AV$115,3,0),"") -> 0 | AS101: 24 | AT101: 0 0 | AV101: 0 | AW101: =IF(AT101<>"",COUNTIF($AX$78:$AX$115,">"&AX101)+COUNTIF($AX$78:AX101,AX101),"") -> 24 | AX101: 0
A102: 25 | C102: 0 | D102: 0 | E102: 0 | W102: 25 | X102: 0 | Y102: 0 | Z102: 0 | AN102: 25 | AP102: =IF(ISNA(MATCH(AN102,'1'!$AW$78:$AW$115,0)),"",INDEX('1'!$AT$78:$AT$115,MATCH(AN102,'1'!$AW$78:$AW$115,0))) -> 0 0 | AQ102: =IF($AP102<>"",VLOOKUP($AP102,'1'!$AT$78:$AV$115,3,0),"") -> 0 | AS102: 25 | AT102: 0 0 | AV102: 0 | AW102: =IF(AT102<>"",COUNTIF($AX$78:$AX$115,">"&AX102)+COUNTIF($AX$78:AX102,AX102),"") -> 25 | AX102: 0
A103: 26 | C103: 0 | D103: 0 | E103: 0 | W103: 26 | X103: 0 | Y103: 0 | Z103: 0 | AN103: 26 | AP103: =IF(ISNA(MATCH(AN103,'1'!$AW$78:$AW$115,0)),"",INDEX('1'!$AT$78:$AT$115,MATCH(AN103,'1'!$AW$78:$AW$115,0))) -> 0 0 | AQ103: =IF($AP103<>"",VLOOKUP($AP103,'1'!$AT$78:$AV$115,3,0),"") -> 0 | AS103: 26 | AT103: 0 0 | AV103: 0 | AW103: =IF(AT103<>"",COUNTIF($AX$78:$AX$115,">"&AX103)+COUNTIF($AX$78:AX103,AX103),"") -> 26 | AX103: 0
A104: 27 | C104: 0 | D104: 0 | E104: 0 | W104: 27 | X104: 0 | Y104: 0 | Z104: 0 | AN104: 27 | AP104: =IF(ISNA(MATCH(AN104,'1'!$AW$78:$AW$115,0)),"",INDEX('1'!$AT$78:$AT$115,MATCH(AN104,'1'!$AW$78:$AW$115,0))) -> 0 0 | AQ104: =IF($AP104<>"",VLOOKUP($AP104,'1'!$AT$78:$AV$115,3,0),"") -> 0 | AS104: 27 | AT104: 0 0 | AV104: 0 | AW104: =IF(AT104<>"",COUNTIF($AX$78:$AX$115,">"&AX104)+COUNTIF($AX$78:AX104,AX104),"") -> 27 | AX104: 0
A105: 28 | C105: 0 | D105: 0 | E105: 0 | W105: 28 | X105: 0 | Y105: 0 | Z105: 0 | AN105: 28 | AP105: =IF(ISNA(MATCH(AN105,'1'!$AW$78:$AW$115,0)),"",INDEX('1'!$AT$78:$AT$115,MATCH(AN105,'1'!$AW$78:$AW$115,0))) -> 0 0 | AQ105: =IF($AP105<>"",VLOOKUP($AP105,'1'!$AT$78:$AV$115,3,0),"") -> 0 | AS105: 28 | AT105: 0 0 | AV105: 0 | AW105: =IF(AT105<>"",COUNTIF($AX$78:$AX$115,">"&AX105)+COUNTIF($AX$78:AX105,AX105),"") -> 28 | AX105: 0
A106: 29 | C106: 0 | D106: 0 | E106: 0 | W106: 29 | X106: 0 | Y106: 0 | Z106: 0 | AN106: 29 | AP106: =IF(ISNA(MATCH(AN106,'1'!$AW$78:$AW$115,0)),"",INDEX('1'!$AT$78:$AT$115,MATCH(AN106,'1'!$AW$78:$AW$115,0))) -> 0 0 | AQ106: =IF($AP106<>"",VLOOKUP($AP106,'1'!$AT$78:$AV$115,3,0),"") -> 0 | AS106: 29 | AT106: 0 0 | AV106: 0 | AW106: =IF(AT106<>"",COUNTIF($AX$78:$AX$115,">"&AX106)+COUNTIF($AX$78:AX106,AX106),"") -> 29 | AX106: 0
A107: 30 | C107: 0 | D107: 0 | E107: 0 | W107: 30 | X107: 0 | Y107: 0 | Z107: 0 | AN107: 30 | AP107: =IF(ISNA(MATCH(AN107,'1'!$AW$78:$AW$115,0)),"",INDEX('1'!$AT$78:$AT$115,MATCH(AN107,'1'!$AW$78:$AW$115,0))) -> 0 0 | AQ107: =IF($AP107<>"",VLOOKUP($AP107,'1'!$AT$78:$AV$115,3,0),"") -> 0 | AS107: 30 | AT107: 0 0 | AV107: 0 | AW107: =IF(AT107<>"",COUNTIF($AX$78:$AX$115,">"&AX107)+COUNTIF($AX$78:AX107,AX107),"") -> 30 | AX107: 0
A108: 31 | C108: 0 | D108: 0 | E108: 0 | W108: 31 | X108: 0 | Y108: 0 | Z108: 0 | AN108: 31 | AP108: =IF(ISNA(MATCH(AN108,'1'!$AW$78:$AW$115,0)),"",INDEX('1'!$AT$78:$AT$115,MATCH(AN108,'1'!$AW$78:$AW$115,0))) -> 0 0 | AQ108: =IF($AP108<>"",VLOOKUP($AP108,'1'!$AT$78:$AV$115,3,0),"") -> 0 | AS108: 31 | AT108: 0 0 | AV108: 0 | AW108: =IF(AT108<>"",COUNTIF($AX$78:$AX$115,">"&AX108)+COUNTIF($AX$78:AX108,AX108),"") -> 31 | AX108: 0
A109: 32 | C109: 0 | D109: 0 | E109: 0 | W109: 32 | X109: 0 | Y109: 0 | Z109: 0 | AN109: 32 | AP109: =IF(ISNA(MATCH(AN109,'1'!$AW$78:$AW$115,0)),"",INDEX('1'!$AT$78:$AT$115,MATCH(AN109,'1'!$AW$78:$AW$115,0))) -> 0 0 | AQ109: =IF($AP109<>"",VLOOKUP($AP109,'1'!$AT$78:$AV$115,3,0),"") -> 0 | AS109: 32 | AT109: 0 0 | AV109: 0 | AW109: =IF(AT109<>"",COUNTIF($AX$78:$AX$115,">"&AX109)+COUNTIF($AX$78:AX109,AX109),"") -> 32 | AX109: 0
A110: 33 | C110: 0 | D110: 0 | E110: 0 | W110: 33 | X110: 0 | Y110: 0 | Z110: 0 | AN110: 33 | AP110: =IF(ISNA(MATCH(AN110,'1'!$AW$78:$AW$115,0)),"",INDEX('1'!$AT$78:$AT$115,MATCH(AN110,'1'!$AW$78:$AW$115,0))) -> 0 0 | AQ110: =IF($AP110<>"",VLOOKUP($AP110,'1'!$AT$78:$AV$115,3,0),"") -> 0 | AS110: 33 | AT110: 0 0 | AV110: 0 | AW110: =IF(AT110<>"",COUNTIF($AX$78:$AX$115,">"&AX110)+COUNTIF($AX$78:AX110,AX110),"") -> 33 | AX110: 0
A111: 34 | C111: 0 | D111: 0 | E111: 0 | W111: 34 | X111: 0 | Y111: 0 | Z111: 0 | AN111: 34 | AP111: =IF(ISNA(MATCH(AN111,'1'!$AW$78:$AW$115,0)),"",INDEX('1'!$AT$78:$AT$115,MATCH(AN111,'1'!$AW$78:$AW$115,0))) -> 0 0 | AQ111: =IF($AP111<>"",VLOOKUP($AP111,'1'!$AT$78:$AV$115,3,0),"") -> 0 | AS111: 34 | AT111: 0 0 | AV111: 0 | AW111: =IF(AT111<>"",COUNTIF($AX$78:$AX$115,">"&AX111)+COUNTIF($AX$78:AX111,AX111),"") -> 34 | AX111: 0
A112: 35 | C112: 0 | D112: 0 | E112: 0 | W112: 35 | X112: 0 | Y112: 0 | Z112: 0 | AN112: 35 | AP112: =IF(ISNA(MATCH(AN112,'1'!$AW$78:$AW$115,0)),"",INDEX('1'!$AT$78:$AT$115,MATCH(AN112,'1'!$AW$78:$AW$115,0))) -> 0 0 | AQ112: =IF($AP112<>"",VLOOKUP($AP112,'1'!$AT$78:$AV$115,3,0),"") -> 0 | AS112: 35 | AT112: 0 0 | AV112: 0 | AW112: =IF(AT112<>"",COUNTIF($AX$78:$AX$115,">"&AX112)+COUNTIF($AX$78:AX112,AX112),"") -> 35 | AX112: 0
A113: 36 | C113: 0 | D113: 0 | E113: 0 | W113: 36 | X113: 0 | Y113: 0 | Z113: 0 | AN113: 36 | AP113: =IF(ISNA(MATCH(AN113,'1'!$AW$78:$AW$115,0)),"",INDEX('1'!$AT$78:$AT$115,MATCH(AN113,'1'!$AW$78:$AW$115,0))) -> 0 0 | AQ113: =IF($AP113<>"",VLOOKUP($AP113,'1'!$AT$78:$AV$115,3,0),"") -> 0 | AS113: 36 | AT113: 0 0 | AV113: 0 | AW113: =IF(AT113<>"",COUNTIF($AX$78:$AX$115,">"&AX113)+COUNTIF($AX$78:AX113,AX113),"") -> 36 | AX113: 0
A114: 37 | C114: 0 | D114: 0 | E114: 0 | W114: 37 | X114: 0 | Y114: 0 | Z114: 0 | AN114: 37 | AP114: =IF(ISNA(MATCH(AN114,'1'!$AW$78:$AW$115,0)),"",INDEX('1'!$AT$78:$AT$115,MATCH(AN114,'1'!$AW$78:$AW$115,0))) -> 0 0 | AQ114: =IF($AP114<>"",VLOOKUP($AP114,'1'!$AT$78:$AV$115,3,0),"") -> 0 | AS114: 37 | AT114: 0 0 | AV114: 0 | AW114: =IF(AT114<>"",COUNTIF($AX$78:$AX$115,">"&AX114)+COUNTIF($AX$78:AX114,AX114),"") -> 37 | AX114: 0
A115: 38 | C115: 0 | D115: 0 | E115: 0 | W115: 38 | X115: 0 | Y115: 0 | Z115: 0 | AN115: 38 | AP115: =IF(ISNA(MATCH(AN115,'1'!$AW$78:$AW$115,0)),"",INDEX('1'!$AT$78:$AT$115,MATCH(AN115,'1'!$AW$78:$AW$115,0))) -> 0 0 | AQ115: =IF($AP115<>"",VLOOKUP($AP115,'1'!$AT$78:$AV$115,3,0),"") -> 0 | AS115: 38 | AT115: 0 0 | AV115: 0 | AW115: =IF(AT115<>"",COUNTIF($AX$78:$AX$115,">"&AX115)+COUNTIF($AX$78:AX115,AX115),"") -> 38 | AX115: 0
D118: ="Effectif Total : " &F118 -> Effectif Total : 0 | F118: =SUM(F120:F121) -> 0 | R118: =COUNTIFS(R78:R115,">=10") -> 0 | Y118: ="Effectif Total : " &Z120 -> Effectif Total : 0 | AA118: =F118 -> 0 | AP118: =Y118 -> Effectif Total : 0 | AQ118: =F118 -> 0 | AR118: =COUNTA(AP78:AP115) -> 38
D120: ="Filles : "&F120 -> Filles : 0 | F120: =COUNTIFS(C78:C115,"أ") -> 0 | S120: =COUNTIFS(S78:S115,">=10") -> 0 | Y120: =D120 -> Filles : 0 | Z120: =F118 -> 0 | AA120: =AA118 -> 0 | AC120: Moyenne trimestrielle >=10 | AG120: =COUNTIFS(AG78:AG115,">=10") -> 0 | AH120: =AG120/AA118 ->  | AP120: =Y120 -> Filles : 0 | AQ120: =AQ118 -> 0
D121: ="Garçon : "&F121 -> Garçon : 0 | F121: =COUNTIFS(C78:C115,"ذ") -> 0 | T121: =COUNTIFS(T78:T115,">=10") -> 0 | Y121: =D121 -> Garçon : 0 | AA121: =AA120 -> 0 | AP121: =Y121 -> Garçon : 0 | AQ121: =AQ120 -> 0
D126: =D64 -> Collège - Mostaganem | S126: =IF(S64<>"",S64,"") -> 2014 - 2015 | T126: =IF(#REF!<>"",#REF!,"") ->  | Y126: =D126 -> Collège - Mostaganem | AH126: =IF(S126<>"",S126,"") -> 2014 - 2015 | AI126: =IF(N126<>"",N126,"") ->  | AP126: =Y126 -> Collège - Mostaganem | AY126: =AH126 -> 2014 - 2015
S127: =IF(#REF!<>"",#REF!,"") ->  | AH127: =IF(M127<>"",M127,"") ->  | AI127: =IF(N127<>"",N127,"") -> 
D128: Classe: | E128: =E66 -> 1AM1 | K128: Résultats des contrôles du 3e trimestre | Y128: Classe: | Z128: =E128 -> 1AM1 | AD128: Résultats du 3e trimestre
D129: Matière: | E129: =IF(E67<>"",E67,"") -> Mathématiques | Y129: Matière: | Z129: =IF(E129<>"",E129,"") -> Mathématiques | AP129: Classement (Troisième trimestre)
D130: Prof: | E130: =IF(E68<>"",E68,"") -> Toufik MERINE | Y130: Prof: | Z130: =IF(E130<>"",E130,"") -> Toufik MERINE | AH130: =AH68 -> 2
D133: Nom | E133: Prénom | F133: Date de naissance | G133: Contrôle en classe | H133: Cahiers | I133: test 1 | J133: test 2 | K133: test 3 | L133: test 4 | M133: test 5 | N133: test 6 | O133: Travail à la maison | P133: Travail à la maison | Q133: M. des contrôles | R133: Dev. S.1 | S133: Dev. S.2 | T133: Compo/20 | Y133: Nom | Z133: Prénom | AA133: Date de naissance | AB133: Contrôle contenu | AC133: Devoir 1 | AD133: Devoir 2 | AE133: M. des contrôles | AF133: Compo / 60 | AG133: Moyenne Trim / 20 | AH133: Moy par coeffi | AI133: Moy Générale | AP133: Nom et Prénom | AQ133: Moyenne Trim / 20
A140: 1 | C140: =C78 -> g | D140: baroudi | E140: Ahmed | F140: 2001-07-21 | W140: 1 | X140: =C140 -> g | Y140: baroudi | Z140: Ahmed | AA140: =IF(F140<>"",F140,"") -> 2001-07-21 | AB140: =IF(Q140<>"",Q140,"") ->  | AE140: =IF(Q140="","",2*AVERAGE(AB140:AD140)) ->  | AF140: =IF(T140="","",T140*3) ->  | AG140: =IF(T140="","",(AF140+AE140)/5) ->  | AH140: =IF(T140="","",AG140*$AH$6) ->  | AI140: =K202 -> 0 | AN140: 1 | AP140: =IF(ISNA(MATCH(AN140,'1'!$AW$140:$AW$177,0)),"",INDEX('1'!$AT$140:$AT$177,MATCH(AN140,'1'!$AW$140:$AW$177,0))) -> baroudi Ahmed | AQ140: =IF($AP140<>"",VLOOKUP($AP140,'1'!$AT$140:$AV$177,3,0),"") -> 0 | AS140: 1 | AT140: =D140&" "&E140 -> baroudi Ahmed | AV140: =IF(AG140="",0,AG140) -> 0 | AW140: =IF(AT140<>"",COUNTIF($AX$140:$AX$177,">"&AX140)+COUNTIF($AX$140:AX140,AX140),"") -> 1 | AX140: =IF(AV140<>"",AV140*1000,"") -> 0
A141: 2 | C141: f | D141: Brahami | E141: Zahia | F141: 2002-02-21 | W141: 2 | X141: f | Y141: Brahami | Z141: Zahia | AA141: 2002-02-21 | AI141: 0 | AN141: 2 | AP141: =IF(ISNA(MATCH(AN141,'1'!$AW$140:$AW$177,0)),"",INDEX('1'!$AT$140:$AT$177,MATCH(AN141,'1'!$AW$140:$AW$177,0))) -> Brahami Zahia | AQ141: =IF($AP141<>"",VLOOKUP($AP141,'1'!$AT$140:$AV$177,3,0),"") -> 0 | AS141: 2 | AT141: Brahami Zahia | AV141: =IF(AG141="",0,AG141) -> 0 | AW141: =IF(AT141<>"",COUNTIF($AX$140:$AX$177,">"&AX141)+COUNTIF($AX$140:AX141,AX141),"") -> 2 | AX141: =IF(AV141<>"",AV141*1000,"") -> 0
A142: 3 | C142: 0 | D142: 0 | E142: 0 | W142: 3 | X142: 0 | Y142: 0 | Z142: 0 | AI142: 0 | AN142: 3 | AP142: =IF(ISNA(MATCH(AN142,'1'!$AW$140:$AW$177,0)),"",INDEX('1'!$AT$140:$AT$177,MATCH(AN142,'1'!$AW$140:$AW$177,0))) -> 0 0 | AQ142: =IF($AP142<>"",VLOOKUP($AP142,'1'!$AT$140:$AV$177,3,0),"") -> 0 | AS142: 3 | AT142: 0 0 | AV142: 0 | AW142: =IF(AT142<>"",COUNTIF($AX$140:$AX$177,">"&AX142)+COUNTIF($AX$140:AX142,AX142),"") -> 3 | AX142: 0
A143: 4 | C143: 0 | D143: 0 | E143: 0 | W143: 4 | X143: 0 | Y143: 0 | Z143: 0 | AI143: 0 | AN143: 4 | AP143: =IF(ISNA(MATCH(AN143,'1'!$AW$140:$AW$177,0)),"",INDEX('1'!$AT$140:$AT$177,MATCH(AN143,'1'!$AW$140:$AW$177,0))) -> 0 0 | AQ143: =IF($AP143<>"",VLOOKUP($AP143,'1'!$AT$140:$AV$177,3,0),"") -> 0 | AS143: 4 | AT143: 0 0 | AV143: 0 | AW143: =IF(AT143<>"",COUNTIF($AX$140:$AX$177,">"&AX143)+COUNTIF($AX$140:AX143,AX143),"") -> 4 | AX143: 0
A144: 5 | C144: 0 | D144: 0 | E144: 0 | W144: 5 | X144: 0 | Y144: 0 | Z144: 0 | AI144: 0 | AN144: 5 | AP144: =IF(ISNA(MATCH(AN144,'1'!$AW$140:$AW$177,0)),"",INDEX('1'!$AT$140:$AT$177,MATCH(AN144,'1'!$AW$140:$AW$177,0))) -> 0 0 | AQ144: =IF($AP144<>"",VLOOKUP($AP144,'1'!$AT$140:$AV$177,3,0),"") -> 0 | AS144: 5 | AT144: 0 0 | AV144: 0 | AW144: =IF(AT144<>"",COUNTIF($AX$140:$AX$177,">"&AX144)+COUNTIF($AX$140:AX144,AX144),"") -> 5 | AX144: 0
A145: 6 | C145: 0 | D145: 0 | E145: 0 | W145: 6 | X145: 0 | Y145: 0 | Z145: 0 | AI145: 0 | AN145: 6 | AP145: =IF(ISNA(MATCH(AN145,'1'!$AW$140:$AW$177,0)),"",INDEX('1'!$AT$140:$AT$177,MATCH(AN145,'1'!$AW$140:$AW$177,0))) -> 0 0 | AQ145: =IF($AP145<>"",VLOOKUP($AP145,'1'!$AT$140:$AV$177,3,0),"") -> 0 | AS145: 6 | AT145: 0 0 | AV145: 0 | AW145: =IF(AT145<>"",COUNTIF($AX$140:$AX$177,">"&AX145)+COUNTIF($AX$140:AX145,AX145),"") -> 6 | AX145: 0
A146: 7 | C146: 0 | D146: 0 | E146: 0 | W146: 7 | X146: 0 | Y146: 0 | Z146: 0 | AI146: 0 | AN146: 7 | AP146: =IF(ISNA(MATCH(AN146,'1'!$AW$140:$AW$177,0)),"",INDEX('1'!$AT$140:$AT$177,MATCH(AN146,'1'!$AW$140:$AW$177,0))) -> 0 0 | AQ146: =IF($AP146<>"",VLOOKUP($AP146,'1'!$AT$140:$AV$177,3,0),"") -> 0 | AS146: 7 | AT146: 0 0 | AV146: 0 | AW146: =IF(AT146<>"",COUNTIF($AX$140:$AX$177,">"&AX146)+COUNTIF($AX$140:AX146,AX146),"") -> 7 | AX146: 0
A147: 8 | C147: 0 | D147: 0 | E147: 0 | W147: 8 | X147: 0 | Y147: 0 | Z147: 0 | AI147: 0 | AN147: 8 | AP147: =IF(ISNA(MATCH(AN147,'1'!$AW$140:$AW$177,0)),"",INDEX('1'!$AT$140:$AT$177,MATCH(AN147,'1'!$AW$140:$AW$177,0))) -> 0 0 | AQ147: =IF($AP147<>"",VLOOKUP($AP147,'1'!$AT$140:$AV$177,3,0),"") -> 0 | AS147: 8 | AT147: 0 0 | AV147: 0 | AW147: =IF(AT147<>"",COUNTIF($AX$140:$AX$177,">"&AX147)+COUNTIF($AX$140:AX147,AX147),"") -> 8 | AX147: 0
A148: 9 | C148: 0 | D148: 0 | E148: 0 | W148: 9 | X148: 0 | Y148: 0 | Z148: 0 | AI148: 0 | AN148: 9 | AP148: =IF(ISNA(MATCH(AN148,'1'!$AW$140:$AW$177,0)),"",INDEX('1'!$AT$140:$AT$177,MATCH(AN148,'1'!$AW$140:$AW$177,0))) -> 0 0 | AQ148: =IF($AP148<>"",VLOOKUP($AP148,'1'!$AT$140:$AV$177,3,0),"") -> 0 | AS148: 9 | AT148: 0 0 | AV148: 0 | AW148: =IF(AT148<>"",COUNTIF($AX$140:$AX$177,">"&AX148)+COUNTIF($AX$140:AX148,AX148),"") -> 9 | AX148: 0
A149: 10 | C149: 0 | D149: 0 | E149: 0 | W149: 10 | X149: 0 | Y149: 0 | Z149: 0 | AI149: 0 | AN149: 10 | AP149: =IF(ISNA(MATCH(AN149,'1'!$AW$140:$AW$177,0)),"",INDEX('1'!$AT$140:$AT$177,MATCH(AN149,'1'!$AW$140:$AW$177,0))) -> 0 0 | AQ149: =IF($AP149<>"",VLOOKUP($AP149,'1'!$AT$140:$AV$177,3,0),"") -> 0 | AS149: 10 | AT149: 0 0 | AV149: 0 | AW149: =IF(AT149<>"",COUNTIF($AX$140:$AX$177,">"&AX149)+COUNTIF($AX$140:AX149,AX149),"") -> 10 | AX149: 0
A150: 11 | C150: 0 | D150: 0 | E150: 0 | W150: 11 | X150: 0 | Y150: 0 | Z150: 0 | AI150: 0 | AN150: 11 | AP150: =IF(ISNA(MATCH(AN150,'1'!$AW$140:$AW$177,0)),"",INDEX('1'!$AT$140:$AT$177,MATCH(AN150,'1'!$AW$140:$AW$177,0))) -> 0 0 | AQ150: =IF($AP150<>"",VLOOKUP($AP150,'1'!$AT$140:$AV$177,3,0),"") -> 0 | AS150: 11 | AT150: 0 0 | AV150: 0 | AW150: =IF(AT150<>"",COUNTIF($AX$140:$AX$177,">"&AX150)+COUNTIF($AX$140:AX150,AX150),"") -> 11 | AX150: 0
A151: 12 | C151: 0 | D151: 0 | E151: 0 | W151: 12 | X151: 0 | Y151: 0 | Z151: 0 | AI151: 0 | AN151: 12 | AP151: =IF(ISNA(MATCH(AN151,'1'!$AW$140:$AW$177,0)),"",INDEX('1'!$AT$140:$AT$177,MATCH(AN151,'1'!$AW$140:$AW$177,0))) -> 0 0 | AQ151: =IF($AP151<>"",VLOOKUP($AP151,'1'!$AT$140:$AV$177,3,0),"") -> 0 | AS151: 12 | AT151: 0 0 | AV151: 0 | AW151: =IF(AT151<>"",COUNTIF($AX$140:$AX$177,">"&AX151)+COUNTIF($AX$140:AX151,AX151),"") -> 12 | AX151: 0
A152: 13 | C152: 0 | D152: 0 | E152: 0 | W152: 13 | X152: 0 | Y152: 0 | Z152: 0 | AI152: 0 | AN152: 13 | AP152: =IF(ISNA(MATCH(AN152,'1'!$AW$140:$AW$177,0)),"",INDEX('1'!$AT$140:$AT$177,MATCH(AN152,'1'!$AW$140:$AW$177,0))) -> 0 0 | AQ152: =IF($AP152<>"",VLOOKUP($AP152,'1'!$AT$140:$AV$177,3,0),"") -> 0 | AS152: 13 | AT152: 0 0 | AV152: 0 | AW152: =IF(AT152<>"",COUNTIF($AX$140:$AX$177,">"&AX152)+COUNTIF($AX$140:AX152,AX152),"") -> 13 | AX152: 0
A153: 14 | C153: 0 | D153: 0 | E153: 0 | W153: 14 | X153: 0 | Y153: 0 | Z153: 0 | AI153: 0 | AN153: 14 | AP153: =IF(ISNA(MATCH(AN153,'1'!$AW$140:$AW$177,0)),"",INDEX('1'!$AT$140:$AT$177,MATCH(AN153,'1'!$AW$140:$AW$177,0))) -> 0 0 | AQ153: =IF($AP153<>"",VLOOKUP($AP153,'1'!$AT$140:$AV$177,3,0),"") -> 0 | AS153: 14 | AT153: 0 0 | AV153: 0 | AW153: =IF(AT153<>"",COUNTIF($AX$140:$AX$177,">"&AX153)+COUNTIF($AX$140:AX153,AX153),"") -> 14 | AX153: 0
A154: 15 | C154: 0 | D154: 0 | E154: 0 | W154: 15 | X154: 0 | Y154: 0 | Z154: 0 | AI154: 0 | AN154: 15 | AP154: =IF(ISNA(MATCH(AN154,'1'!$AW$140:$AW$177,0)),"",INDEX('1'!$AT$140:$AT$177,MATCH(AN154,'1'!$AW$140:$AW$177,0))) -> 0 0 | AQ154: =IF($AP154<>"",VLOOKUP($AP154,'1'!$AT$140:$AV$177,3,0),"") -> 0 | AS154: 15 | AT154: 0 0 | AV154: 0 | AW154: =IF(AT154<>"",COUNTIF($AX$140:$AX$177,">"&AX154)+COUNTIF($AX$140:AX154,AX154),"") -> 15 | AX154: 0
A155: 16 | C155: 0 | D155: 0 | E155: 0 | W155: 16 | X155: 0 | Y155: 0 | Z155: 0 | AI155: 0 | AN155: 16 | AP155: =IF(ISNA(MATCH(AN155,'1'!$AW$140:$AW$177,0)),"",INDEX('1'!$AT$140:$AT$177,MATCH(AN155,'1'!$AW$140:$AW$177,0))) -> 0 0 | AQ155: =IF($AP155<>"",VLOOKUP($AP155,'1'!$AT$140:$AV$177,3,0),"") -> 0 | AS155: 16 | AT155: 0 0 | AV155: 0 | AW155: =IF(AT155<>"",COUNTIF($AX$140:$AX$177,">"&AX155)+COUNTIF($AX$140:AX155,AX155),"") -> 16 | AX155: 0
A156: 17 | C156: 0 | D156: 0 | E156: 0 | W156: 17 | X156: 0 | Y156: 0 | Z156: 0 | AI156: 0 | AN156: 17 | AP156: =IF(ISNA(MATCH(AN156,'1'!$AW$140:$AW$177,0)),"",INDEX('1'!$AT$140:$AT$177,MATCH(AN156,'1'!$AW$140:$AW$177,0))) -> 0 0 | AQ156: =IF($AP156<>"",VLOOKUP($AP156,'1'!$AT$140:$AV$177,3,0),"") -> 0 | AS156: 17 | AT156: 0 0 | AV156: 0 | AW156: =IF(AT156<>"",COUNTIF($AX$140:$AX$177,">"&AX156)+COUNTIF($AX$140:AX156,AX156),"") -> 17 | AX156: 0
A157: 18 | C157: 0 | D157: 0 | E157: 0 | W157: 18 | X157: 0 | Y157: 0 | Z157: 0 | AI157: 0 | AN157: 18 | AP157: =IF(ISNA(MATCH(AN157,'1'!$AW$140:$AW$177,0)),"",INDEX('1'!$AT$140:$AT$177,MATCH(AN157,'1'!$AW$140:$AW$177,0))) -> 0 0 | AQ157: =IF($AP157<>"",VLOOKUP($AP157,'1'!$AT$140:$AV$177,3,0),"") -> 0 | AS157: 18 | AT157: 0 0 | AV157: 0 | AW157: =IF(AT157<>"",COUNTIF($AX$140:$AX$177,">"&AX157)+COUNTIF($AX$140:AX157,AX157),"") -> 18 | AX157: 0
A158: 19 | C158: 0 | D158: 0 | E158: 0 | W158: 19 | X158: 0 | Y158: 0 | Z158: 0 | AI158: 0 | AN158: 19 | AP158: =IF(ISNA(MATCH(AN158,'1'!$AW$140:$AW$177,0)),"",INDEX('1'!$AT$140:$AT$177,MATCH(AN158,'1'!$AW$140:$AW$177,0))) -> 0 0 | AQ158: =IF($AP158<>"",VLOOKUP($AP158,'1'!$AT$140:$AV$177,3,0),"") -> 0 | AS158: 19 | AT158: 0 0 | AV158: 0 | AW158: =IF(AT158<>"",COUNTIF($AX$140:$AX$177,">"&AX158)+COUNTIF($AX$140:AX158,AX158),"") -> 19 | AX158: 0
A159: 20 | C159: 0 | D159: 0 | E159: 0 | W159: 20 | X159: 0 | Y159: 0 | Z159: 0 | AI159: 0 | AN159: 20 | AP159: =IF(ISNA(MATCH(AN159,'1'!$AW$140:$AW$177,0)),"",INDEX('1'!$AT$140:$AT$177,MATCH(AN159,'1'!$AW$140:$AW$177,0))) -> 0 0 | AQ159: =IF($AP159<>"",VLOOKUP($AP159,'1'!$AT$140:$AV$177,3,0),"") -> 0 | AS159: 20 | AT159: 0 0 | AV159: 0 | AW159: =IF(AT159<>"",COUNTIF($AX$140:$AX$177,">"&AX159)+COUNTIF($AX$140:AX159,AX159),"") -> 20 | AX159: 0
A160: 21 | C160: =C98 -> 0 | D160: 0 | E160: 0 | W160: 21 | X160: 0 | Y160: 0 | Z160: 0 | AI160: 0 | AN160: 21 | AP160: =IF(ISNA(MATCH(AN160,'1'!$AW$140:$AW$177,0)),"",INDEX('1'!$AT$140:$AT$177,MATCH(AN160,'1'!$AW$140:$AW$177,0))) -> 0 0 | AQ160: =IF($AP160<>"",VLOOKUP($AP160,'1'!$AT$140:$AV$177,3,0),"") -> 0 | AS160: 21 | AT160: 0 0 | AV160: 0 | AW160: =IF(AT160<>"",COUNTIF($AX$140:$AX$177,">"&AX160)+COUNTIF($AX$140:AX160,AX160),"") -> 21 | AX160: 0
A161: 22 | C161: 0 | D161: 0 | E161: 0 | W161: 22 | X161: 0 | Y161: 0 | Z161: 0 | AI161: 0 | AN161: 22 | AP161: =IF(ISNA(MATCH(AN161,'1'!$AW$140:$AW$177,0)),"",INDEX('1'!$AT$140:$AT$177,MATCH(AN161,'1'!$AW$140:$AW$177,0))) -> 0 0 | AQ161: =IF($AP161<>"",VLOOKUP($AP161,'1'!$AT$140:$AV$177,3,0),"") -> 0 | AS161: 22 | AT161: 0 0 | AV161: 0 | AW161: =IF(AT161<>"",COUNTIF($AX$140:$AX$177,">"&AX161)+COUNTIF($AX$140:AX161,AX161),"") -> 22 | AX161: 0
A162: 23 | C162: 0 | D162: 0 | E162: 0 | W162: 23 | X162: 0 | Y162: 0 | Z162: 0 | AI162: 0 | AN162: 23 | AP162: =IF(ISNA(MATCH(AN162,'1'!$AW$140:$AW$177,0)),"",INDEX('1'!$AT$140:$AT$177,MATCH(AN162,'1'!$AW$140:$AW$177,0))) -> 0 0 | AQ162: =IF($AP162<>"",VLOOKUP($AP162,'1'!$AT$140:$AV$177,3,0),"") -> 0 | AS162: 23 | AT162: 0 0 | AV162: 0 | AW162: =IF(AT162<>"",COUNTIF($AX$140:$AX$177,">"&AX162)+COUNTIF($AX$140:AX162,AX162),"") -> 23 | AX162: 0
A163: 24 | C163: 0 | D163: 0 | E163: 0 | W163: 24 | X163: 0 | Y163: 0 | Z163: 0 | AI163: 0 | AN163: 24 | AP163: =IF(ISNA(MATCH(AN163,'1'!$AW$140:$AW$177,0)),"",INDEX('1'!$AT$140:$AT$177,MATCH(AN163,'1'!$AW$140:$AW$177,0))) -> 0 0 | AQ163: =IF($AP163<>"",VLOOKUP($AP163,'1'!$AT$140:$AV$177,3,0),"") -> 0 | AS163: 24 | AT163: 0 0 | AV163: 0 | AW163: =IF(AT163<>"",COUNTIF($AX$140:$AX$177,">"&AX163)+COUNTIF($AX$140:AX163,AX163),"") -> 24 | AX163: 0
A164: 25 | C164: 0 | D164: 0 | E164: 0 | W164: 25 | X164: 0 | Y164: 0 | Z164: 0 | AI164: 0 | AN164: 25 | AP164: =IF(ISNA(MATCH(AN164,'1'!$AW$140:$AW$177,0)),"",INDEX('1'!$AT$140:$AT$177,MATCH(AN164,'1'!$AW$140:$AW$177,0))) -> 0 0 | AQ164: =IF($AP164<>"",VLOOKUP($AP164,'1'!$AT$140:$AV$177,3,0),"") -> 0 | AS164: 25 | AT164: 0 0 | AV164: 0 | AW164: =IF(AT164<>"",COUNTIF($AX$140:$AX$177,">"&AX164)+COUNTIF($AX$140:AX164,AX164),"") -> 25 | AX164: 0
A165: 26 | C165: 0 | D165: 0 | E165: 0 | W165: 26 | X165: 0 | Y165: 0 | Z165: 0 | AI165: 0 | AN165: 26 | AP165: =IF(ISNA(MATCH(AN165,'1'!$AW$140:$AW$177,0)),"",INDEX('1'!$AT$140:$AT$177,MATCH(AN165,'1'!$AW$140:$AW$177,0))) -> 0 0 | AQ165: =IF($AP165<>"",VLOOKUP($AP165,'1'!$AT$140:$AV$177,3,0),"") -> 0 | AS165: 26 | AT165: 0 0 | AV165: 0 | AW165: =IF(AT165<>"",COUNTIF($AX$140:$AX$177,">"&AX165)+COUNTIF($AX$140:AX165,AX165),"") -> 26 | AX165: 0
A166: 27 | C166: 0 | D166: 0 | E166: 0 | W166: 27 | X166: 0 | Y166: 0 | Z166: 0 | AI166: 0 | AN166: 27 | AP166: =IF(ISNA(MATCH(AN166,'1'!$AW$140:$AW$177,0)),"",INDEX('1'!$AT$140:$AT$177,MATCH(AN166,'1'!$AW$140:$AW$177,0))) -> 0 0 | AQ166: =IF($AP166<>"",VLOOKUP($AP166,'1'!$AT$140:$AV$177,3,0),"") -> 0 | AS166: 27 | AT166: 0 0 | AV166: 0 | AW166: =IF(AT166<>"",COUNTIF($AX$140:$AX$177,">"&AX166)+COUNTIF($AX$140:AX166,AX166),"") -> 27 | AX166: 0
A167: 28 | C167: 0 | D167: 0 | E167: 0 | W167: 28 | X167: 0 | Y167: 0 | Z167: 0 | AI167: 0 | AN167: 28 | AP167: =IF(ISNA(MATCH(AN167,'1'!$AW$140:$AW$177,0)),"",INDEX('1'!$AT$140:$AT$177,MATCH(AN167,'1'!$AW$140:$AW$177,0))) -> 0 0 | AQ167: =IF($AP167<>"",VLOOKUP($AP167,'1'!$AT$140:$AV$177,3,0),"") -> 0 | AS167: 28 | AT167: 0 0 | AV167: 0 | AW167: =IF(AT167<>"",COUNTIF($AX$140:$AX$177,">"&AX167)+COUNTIF($AX$140:AX167,AX167),"") -> 28 | AX167: 0
A168: 29 | C168: 0 | D168: 0 | E168: 0 | W168: 29 | X168: 0 | Y168: 0 | Z168: 0 | AI168: 0 | AN168: 29 | AP168: =IF(ISNA(MATCH(AN168,'1'!$AW$140:$AW$177,0)),"",INDEX('1'!$AT$140:$AT$177,MATCH(AN168,'1'!$AW$140:$AW$177,0))) -> 0 0 | AQ168: =IF($AP168<>"",VLOOKUP($AP168,'1'!$AT$140:$AV$177,3,0),"") -> 0 | AS168: 29 | AT168: 0 0 | AV168: 0 | AW168: =IF(AT168<>"",COUNTIF($AX$140:$AX$177,">"&AX168)+COUNTIF($AX$140:AX168,AX168),"") -> 29 | AX168: 0
A169: 30 | C169: 0 | D169: 0 | E169: 0 | W169: 30 | X169: 0 | Y169: 0 | Z169: 0 | AI169: 0 | AN169: 30 | AP169: =IF(ISNA(MATCH(AN169,'1'!$AW$140:$AW$177,0)),"",INDEX('1'!$AT$140:$AT$177,MATCH(AN169,'1'!$AW$140:$AW$177,0))) -> 0 0 | AQ169: =IF($AP169<>"",VLOOKUP($AP169,'1'!$AT$140:$AV$177,3,0),"") -> 0 | AS169: 30 | AT169: 0 0 | AV169: 0 | AW169: =IF(AT169<>"",COUNTIF($AX$140:$AX$177,">"&AX169)+COUNTIF($AX$140:AX169,AX169),"") -> 30 | AX169: 0
A170: 31 | C170: 0 | D170: 0 | E170: 0 | W170: 31 | X170: 0 | Y170: 0 | Z170: 0 | AI170: 0 | AN170: 31 | AP170: =IF(ISNA(MATCH(AN170,'1'!$AW$140:$AW$177,0)),"",INDEX('1'!$AT$140:$AT$177,MATCH(AN170,'1'!$AW$140:$AW$177,0))) -> 0 0 | AQ170: =IF($AP170<>"",VLOOKUP($AP170,'1'!$AT$140:$AV$177,3,0),"") -> 0 | AS170: 31 | AT170: 0 0 | AV170: 0 | AW170: =IF(AT170<>"",COUNTIF($AX$140:$AX$177,">"&AX170)+COUNTIF($AX$140:AX170,AX170),"") -> 31 | AX170: 0
A171: 32 | C171: 0 | D171: 0 | E171: 0 | W171: 32 | X171: 0 | Y171: 0 | Z171: 0 | AI171: 0 | AN171: 32 | AP171: =IF(ISNA(MATCH(AN171,'1'!$AW$140:$AW$177,0)),"",INDEX('1'!$AT$140:$AT$177,MATCH(AN171,'1'!$AW$140:$AW$177,0))) -> 0 0 | AQ171: =IF($AP171<>"",VLOOKUP($AP171,'1'!$AT$140:$AV$177,3,0),"") -> 0 | AS171: 32 | AT171: 0 0 | AV171: 0 | AW171: =IF(AT171<>"",COUNTIF($AX$140:$AX$177,">"&AX171)+COUNTIF($AX$140:AX171,AX171),"") -> 32 | AX171: 0
A172: 33 | C172: 0 | D172: 0 | E172: 0 | W172: 33 | X172: 0 | Y172: 0 | Z172: 0 | AI172: 0 | AN172: 33 | AP172: =IF(ISNA(MATCH(AN172,'1'!$AW$140:$AW$177,0)),"",INDEX('1'!$AT$140:$AT$177,MATCH(AN172,'1'!$AW$140:$AW$177,0))) -> 0 0 | AQ172: =IF($AP172<>"",VLOOKUP($AP172,'1'!$AT$140:$AV$177,3,0),"") -> 0 | AS172: 33 | AT172: 0 0 | AV172: 0 | AW172: =IF(AT172<>"",COUNTIF($AX$140:$AX$177,">"&AX172)+COUNTIF($AX$140:AX172,AX172),"") -> 33 | AX172: 0
A173: 34 | C173: 0 | D173: 0 | E173: 0 | W173: 34 | X173: 0 | Y173: 0 | Z173: 0 | AI173: 0 | AN173: 34 | AP173: =IF(ISNA(MATCH(AN173,'1'!$AW$140:$AW$177,0)),"",INDEX('1'!$AT$140:$AT$177,MATCH(AN173,'1'!$AW$140:$AW$177,0))) -> 0 0 | AQ173: =IF($AP173<>"",VLOOKUP($AP173,'1'!$AT$140:$AV$177,3,0),"") -> 0 | AS173: 34 | AT173: 0 0 | AV173: 0 | AW173: =IF(AT173<>"",COUNTIF($AX$140:$AX$177,">"&AX173)+COUNTIF($AX$140:AX173,AX173),"") -> 34 | AX173: 0
A174: 35 | C174: 0 | D174: 0 | E174: 0 | W174: 35 | X174: 0 | Y174: 0 | Z174: 0 | AI174: 0 | AN174: 35 | AP174: =IF(ISNA(MATCH(AN174,'1'!$AW$140:$AW$177,0)),"",INDEX('1'!$AT$140:$AT$177,MATCH(AN174,'1'!$AW$140:$AW$177,0))) -> 0 0 | AQ174: =IF($AP174<>"",VLOOKUP($AP174,'1'!$AT$140:$AV$177,3,0),"") -> 0 | AS174: 35 | AT174: 0 0 | AV174: 0 | AW174: =IF(AT174<>"",COUNTIF($AX$140:$AX$177,">"&AX174)+COUNTIF($AX$140:AX174,AX174),"") -> 35 | AX174: 0
A175: 36 | C175: 0 | D175: 0 | E175: 0 | W175: 36 | X175: 0 | Y175: 0 | Z175: 0 | AI175: 0 | AN175: 36 | AP175: =IF(ISNA(MATCH(AN175,'1'!$AW$140:$AW$177,0)),"",INDEX('1'!$AT$140:$AT$177,MATCH(AN175,'1'!$AW$140:$AW$177,0))) -> 0 0 | AQ175: =IF($AP175<>"",VLOOKUP($AP175,'1'!$AT$140:$AV$177,3,0),"") -> 0 | AS175: 36 | AT175: 0 0 | AV175: 0 | AW175: =IF(AT175<>"",COUNTIF($AX$140:$AX$177,">"&AX175)+COUNTIF($AX$140:AX175,AX175),"") -> 36 | AX175: 0
A176: 37 | C176: 0 | D176: 0 | E176: 0 | W176: 37 | X176: 0 | Y176: 0 | Z176: 0 | AI176: 0 | AN176: 37 | AP176: =IF(ISNA(MATCH(AN176,'1'!$AW$140:$AW$177,0)),"",INDEX('1'!$AT$140:$AT$177,MATCH(AN176,'1'!$AW$140:$AW$177,0))) -> 0 0 | AQ176: =IF($AP176<>"",VLOOKUP($AP176,'1'!$AT$140:$AV$177,3,0),"") -> 0 | AS176: 37 | AT176: 0 0 | AV176: 0 | AW176: =IF(AT176<>"",COUNTIF($AX$140:$AX$177,">"&AX176)+COUNTIF($AX$140:AX176,AX176),"") -> 37 | AX176: 0
A177: 38 | C177: 0 | D177: 0 | E177: 0 | W177: 38 | X177: 0 | Y177: 0 | Z177: 0 | AI177: 0 | AN177: 38 | AP177: =IF(ISNA(MATCH(AN177,'1'!$AW$140:$AW$177,0)),"",INDEX('1'!$AT$140:$AT$177,MATCH(AN177,'1'!$AW$140:$AW$177,0))) -> 0 0 | AQ177: =IF($AP177<>"",VLOOKUP($AP177,'1'!$AT$140:$AV$177,3,0),"") -> 0 | AS177: 38 | AT177: 0 0 | AV177: 0 | AW177: =IF(AT177<>"",COUNTIF($AX$140:$AX$177,">"&AX177)+COUNTIF($AX$140:AX177,AX177),"") -> 38 | AX177: 0
D180: ="Effectif Total : " &F180 -> Effectif Total : 0 | F180: =SUM(F182:F183) -> 0 | R180: =COUNTIFS(R140:R177,">=10") -> 0 | Y180: ="Effectif Total : " &Z182 -> Effectif Total : 0 | AA180: =F180 -> 0 | AP180: =Y180 -> Effectif Total : 0 | AQ180: =F180 -> 0
D182: ="Filles : "&F182 -> Filles : 0 | F182: =COUNTIFS(C140:C177,"أ") -> 0 | S182: =COUNTIFS(S140:S177,">=10") -> 0 | Y182: =D182 -> Filles : 0 | Z182: =F180 -> 0 | AA182: =AA180 -> 0 | AC182: Moyenne trimestrielle >=10 | AG182: =COUNTIFS(AG140:AG177,">=10") -> 0 | AH182: =AG182/AA180 ->  | AP182: =Y182 -> Filles : 0 | AQ182: =AQ180 -> 0
D183: ="Garçon : "&F183 -> Garçon : 0 | F183: =COUNTIFS(C140:C177,"ذ") -> 0 | T183: =COUNTIFS(T140:T177,">=10") -> 0 | Y183: =D183 -> Garçon : 0 | AA183: =AA182 -> 0 | AC183: Moyennegénérale >=10 | AG183: =COUNTIFS(AI140:AI177,">=10") -> 0 | AH183: =AG183/AA180 ->  | AP183: =Y183 -> Garçon : 0 | AQ183: =AQ182 -> 0
D188: =D126 -> Collège - Mostaganem | S188: =IF(S126<>"",S126,"") -> 2014 - 2015 | T188: =IF(#REF!<>"",#REF!,"") ->  | Y188: =D188 -> Collège - Mostaganem | AH188: =IF(S188<>"",S188,"") -> 2014 - 2015 | AI188: =IF(N188<>"",N188,"") -> 
S189: =IF(#REF!<>"",#REF!,"") ->  | AH189: =IF(M189<>"",M189,"") ->  | AI189: =IF(N189<>"",N189,"") -> 
D190: Classe: | E190: =E128 -> 1AM1 | K190: Resultat des 3 trimestres | Y190: Classe: | Z190: =E190 -> 1AM1 | AB190: Classement
D191: Matière: | E191: =IF(E129<>"",E129,"") -> Mathématiques | Y191: Matière: | Z191: =IF(E191<>"",E191,"") -> Mathématiques
D192: Prof: | E192: =IF(E130<>"",E130,"") -> Toufik MERINE | Y192: Prof: | Z192: =IF(E192<>"",E192,"") -> Toufik MERINE
D195: Nom | E195: Prénom | F195: Date de naissance | H195: Moy 1er Trim | I195: Moy 2e Trim | J195: Moy 3e Trim | K195: Moy Générale | L195: L'âge jusqu'aujourd'hui | Y195: Nom et Prénom | AA195: Date de naissance | AB195: Moy Générale | AC195: L'âge jusqu'aujourd'hui
A202: 1 | C202: =C140 -> g | D202: =D16&" "&E16 -> baroudi Ahmed | F202: =F140 -> 2001-07-21 | H202: =IF(T16="","",AG16) ->  | I202: =IF(T78="","",AG78) ->  | J202: =IF(T140="","",AG140) ->  | K202: =IF(SUM(H202:J202)=0,0,AVERAGE(H202:J202)) -> 0 | Q202: =DATEDIF(F202,TODAY(),"y")&" ans "&DATEDIF(F202,TODAY(),"ym")&" mois "&DATEDIF(F202,TODAY(),"md")&" jours" -> 13 ans 11 mois 2 jours | T202: =C202 -> g | W202: 1 | X202: =IF($Y202<>"",VLOOKUP($Y202,'1'!$D$202:$T$239,17,0),"") -> g | Y202: =IF(ISNA(MATCH(W202,'1'!$AC$202:$AC$239,0)),"",INDEX('1'!$D$202:$D$239,MATCH(W202,'1'!$AC$202:$AC$239,0))) -> baroudi Ahmed | AA202: =IF($Y202<>"",VLOOKUP($Y202,'1'!$D$202:$F$239,3,0),"") -> 2001-07-21 | AB202: =IF($Y202<>"",VLOOKUP($Y202,'1'!$D$202:$K$239,8,0),"") -> 0 | AC202: =IF(D202<>"",COUNTIF($AD$202:$AD$239,">"&AD202)+COUNTIF($AD$202:AD202,AD202),"") -> 1 | AD202: =IF(K202<>"",K202*10000,"") -> 0 | AG202: =IF($Y202<>"",VLOOKUP($Y202,'1'!$D$202:$Q$239,14,0),"") -> 13 ans 11 mois 2 jours
A203: 2 | C203: f | D203: =D17&" "&E17 -> Brahami Zahia | F203: 2002-02-21 | K203: =IF(SUM(H203:J203)=0,0,AVERAGE(H203:J203)) -> 0 | Q203: =DATEDIF(F203,TODAY(),"y")&" ans "&DATEDIF(F203,TODAY(),"ym")&" mois "&DATEDIF(F203,TODAY(),"md")&" jours" -> 13 ans 4 mois 2 jours | T203: =C203 -> f | W203: 2 | X203: =IF($Y203<>"",VLOOKUP($Y203,'1'!$D$202:$T$239,17,0),"") -> f | Y203: =IF(ISNA(MATCH(W203,'1'!$AC$202:$AC$239,0)),"",INDEX('1'!$D$202:$D$239,MATCH(W203,'1'!$AC$202:$AC$239,0))) -> Brahami Zahia | AA203: =IF($Y203<>"",VLOOKUP($Y203,'1'!$D$202:$F$239,3,0),"") -> 2002-02-21 | AB203: =IF($Y203<>"",VLOOKUP($Y203,'1'!$D$202:$K$239,8,0),"") -> 0 | AC203: =IF(D203<>"",COUNTIF($AD$202:$AD$239,">"&AD203)+COUNTIF($AD$202:AD203,AD203),"") -> 2 | AD203: =IF(K203<>"",K203*10000,"") -> 0 | AG203: =IF($Y203<>"",VLOOKUP($Y203,'1'!$D$202:$Q$239,14,0),"") -> 13 ans 4 mois 2 jours
A204: 3 | C204: 0 | K204: 0 | T204: 0 | W204: 3 | X204: =IF($Y204<>"",VLOOKUP($Y204,'1'!$D$202:$T$239,17,0),"") -> 0 | Y204: =IF(ISNA(MATCH(W204,'1'!$AC$202:$AC$239,0)),"",INDEX('1'!$D$202:$D$239,MATCH(W204,'1'!$AC$202:$AC$239,0))) ->  | AA204: =IF($Y204<>"",VLOOKUP($Y204,'1'!$D$202:$F$239,3,0),"") ->  | AB204: =IF($Y204<>"",VLOOKUP($Y204,'1'!$D$202:$K$239,8,0),"") -> 0 | AC204: =IF(D204<>"",COUNTIF($AD$202:$AD$239,">"&AD204)+COUNTIF($AD$202:AD204,AD204),"") -> 3 | AD204: 0 | AG204: =IF($Y204<>"",VLOOKUP($Y204,'1'!$D$202:$Q$239,14,0),"") -> 
A205: 4 | C205: 0 | K205: 0 | T205: 0 | W205: 4 | X205: =IF($Y205<>"",VLOOKUP($Y205,'1'!$D$202:$T$239,17,0),"") -> 0 | Y205: =IF(ISNA(MATCH(W205,'1'!$AC$202:$AC$239,0)),"",INDEX('1'!$D$202:$D$239,MATCH(W205,'1'!$AC$202:$AC$239,0))) ->  | AA205: =IF($Y205<>"",VLOOKUP($Y205,'1'!$D$202:$F$239,3,0),"") ->  | AB205: =IF($Y205<>"",VLOOKUP($Y205,'1'!$D$202:$K$239,8,0),"") -> 0 | AC205: =IF(D205<>"",COUNTIF($AD$202:$AD$239,">"&AD205)+COUNTIF($AD$202:AD205,AD205),"") -> 4 | AD205: 0 | AG205: =IF($Y205<>"",VLOOKUP($Y205,'1'!$D$202:$Q$239,14,0),"") -> 
A206: 5 | C206: 0 | K206: 0 | T206: 0 | W206: 5 | X206: =IF($Y206<>"",VLOOKUP($Y206,'1'!$D$202:$T$239,17,0),"") -> 0 | Y206: =IF(ISNA(MATCH(W206,'1'!$AC$202:$AC$239,0)),"",INDEX('1'!$D$202:$D$239,MATCH(W206,'1'!$AC$202:$AC$239,0))) ->  | AA206: =IF($Y206<>"",VLOOKUP($Y206,'1'!$D$202:$F$239,3,0),"") ->  | AB206: =IF($Y206<>"",VLOOKUP($Y206,'1'!$D$202:$K$239,8,0),"") -> 0 | AC206: =IF(D206<>"",COUNTIF($AD$202:$AD$239,">"&AD206)+COUNTIF($AD$202:AD206,AD206),"") -> 5 | AD206: 0 | AG206: =IF($Y206<>"",VLOOKUP($Y206,'1'!$D$202:$Q$239,14,0),"") -> 
A207: 6 | C207: 0 | K207: 0 | T207: 0 | W207: 6 | X207: =IF($Y207<>"",VLOOKUP($Y207,'1'!$D$202:$T$239,17,0),"") -> 0 | Y207: =IF(ISNA(MATCH(W207,'1'!$AC$202:$AC$239,0)),"",INDEX('1'!$D$202:$D$239,MATCH(W207,'1'!$AC$202:$AC$239,0))) ->  | AA207: =IF($Y207<>"",VLOOKUP($Y207,'1'!$D$202:$F$239,3,0),"") ->  | AB207: =IF($Y207<>"",VLOOKUP($Y207,'1'!$D$202:$K$239,8,0),"") -> 0 | AC207: =IF(D207<>"",COUNTIF($AD$202:$AD$239,">"&AD207)+COUNTIF($AD$202:AD207,AD207),"") -> 6 | AD207: 0 | AG207: =IF($Y207<>"",VLOOKUP($Y207,'1'!$D$202:$Q$239,14,0),"") -> 
A208: 7 | C208: 0 | K208: 0 | T208: 0 | W208: 7 | X208: =IF($Y208<>"",VLOOKUP($Y208,'1'!$D$202:$T$239,17,0),"") -> 0 | Y208: =IF(ISNA(MATCH(W208,'1'!$AC$202:$AC$239,0)),"",INDEX('1'!$D$202:$D$239,MATCH(W208,'1'!$AC$202:$AC$239,0))) ->  | AA208: =IF($Y208<>"",VLOOKUP($Y208,'1'!$D$202:$F$239,3,0),"") ->  | AB208: =IF($Y208<>"",VLOOKUP($Y208,'1'!$D$202:$K$239,8,0),"") -> 0 | AC208: =IF(D208<>"",COUNTIF($AD$202:$AD$239,">"&AD208)+COUNTIF($AD$202:AD208,AD208),"") -> 7 | AD208: 0 | AG208: =IF($Y208<>"",VLOOKUP($Y208,'1'!$D$202:$Q$239,14,0),"") -> 
A209: 8 | C209: 0 | K209: 0 | T209: 0 | W209: 8 | X209: =IF($Y209<>"",VLOOKUP($Y209,'1'!$D$202:$T$239,17,0),"") -> 0 | Y209: =IF(ISNA(MATCH(W209,'1'!$AC$202:$AC$239,0)),"",INDEX('1'!$D$202:$D$239,MATCH(W209,'1'!$AC$202:$AC$239,0))) ->  | AA209: =IF($Y209<>"",VLOOKUP($Y209,'1'!$D$202:$F$239,3,0),"") ->  | AB209: =IF($Y209<>"",VLOOKUP($Y209,'1'!$D$202:$K$239,8,0),"") -> 0 | AC209: =IF(D209<>"",COUNTIF($AD$202:$AD$239,">"&AD209)+COUNTIF($AD$202:AD209,AD209),"") -> 8 | AD209: 0 | AG209: =IF($Y209<>"",VLOOKUP($Y209,'1'!$D$202:$Q$239,14,0),"") -> 
A210: 9 | C210: 0 | K210: 0 | T210: 0 | W210: 9 | X210: =IF($Y210<>"",VLOOKUP($Y210,'1'!$D$202:$T$239,17,0),"") -> 0 | Y210: =IF(ISNA(MATCH(W210,'1'!$AC$202:$AC$239,0)),"",INDEX('1'!$D$202:$D$239,MATCH(W210,'1'!$AC$202:$AC$239,0))) ->  | AA210: =IF($Y210<>"",VLOOKUP($Y210,'1'!$D$202:$F$239,3,0),"") ->  | AB210: =IF($Y210<>"",VLOOKUP($Y210,'1'!$D$202:$K$239,8,0),"") -> 0 | AC210: =IF(D210<>"",COUNTIF($AD$202:$AD$239,">"&AD210)+COUNTIF($AD$202:AD210,AD210),"") -> 9 | AD210: 0 | AG210: =IF($Y210<>"",VLOOKUP($Y210,'1'!$D$202:$Q$239,14,0),"") -> 
A211: 10 | C211: 0 | K211: 0 | T211: 0 | W211: 10 | X211: =IF($Y211<>"",VLOOKUP($Y211,'1'!$D$202:$T$239,17,0),"") -> 0 | Y211: =IF(ISNA(MATCH(W211,'1'!$AC$202:$AC$239,0)),"",INDEX('1'!$D$202:$D$239,MATCH(W211,'1'!$AC$202:$AC$239,0))) ->  | AA211: =IF($Y211<>"",VLOOKUP($Y211,'1'!$D$202:$F$239,3,0),"") ->  | AB211: =IF($Y211<>"",VLOOKUP($Y211,'1'!$D$202:$K$239,8,0),"") -> 0 | AC211: =IF(D211<>"",COUNTIF($AD$202:$AD$239,">"&AD211)+COUNTIF($AD$202:AD211,AD211),"") -> 10 | AD211: 0 | AG211: =IF($Y211<>"",VLOOKUP($Y211,'1'!$D$202:$Q$239,14,0),"") -> 
A212: 11 | C212: 0 | K212: 0 | T212: 0 | W212: 11 | X212: =IF($Y212<>"",VLOOKUP($Y212,'1'!$D$202:$T$239,17,0),"") -> 0 | Y212: =IF(ISNA(MATCH(W212,'1'!$AC$202:$AC$239,0)),"",INDEX('1'!$D$202:$D$239,MATCH(W212,'1'!$AC$202:$AC$239,0))) ->  | AA212: =IF($Y212<>"",VLOOKUP($Y212,'1'!$D$202:$F$239,3,0),"") ->  | AB212: =IF($Y212<>"",VLOOKUP($Y212,'1'!$D$202:$K$239,8,0),"") -> 0 | AC212: =IF(D212<>"",COUNTIF($AD$202:$AD$239,">"&AD212)+COUNTIF($AD$202:AD212,AD212),"") -> 11 | AD212: 0 | AG212: =IF($Y212<>"",VLOOKUP($Y212,'1'!$D$202:$Q$239,14,0),"") -> 
A213: 12 | C213: 0 | K213: 0 | T213: 0 | W213: 12 | X213: =IF($Y213<>"",VLOOKUP($Y213,'1'!$D$202:$T$239,17,0),"") -> 0 | Y213: =IF(ISNA(MATCH(W213,'1'!$AC$202:$AC$239,0)),"",INDEX('1'!$D$202:$D$239,MATCH(W213,'1'!$AC$202:$AC$239,0))) ->  | AA213: =IF($Y213<>"",VLOOKUP($Y213,'1'!$D$202:$F$239,3,0),"") ->  | AB213: =IF($Y213<>"",VLOOKUP($Y213,'1'!$D$202:$K$239,8,0),"") -> 0 | AC213: =IF(D213<>"",COUNTIF($AD$202:$AD$239,">"&AD213)+COUNTIF($AD$202:AD213,AD213),"") -> 12 | AD213: 0 | AG213: =IF($Y213<>"",VLOOKUP($Y213,'1'!$D$202:$Q$239,14,0),"") -> 
A214: 13 | C214: 0 | K214: 0 | T214: 0 | W214: 13 | X214: =IF($Y214<>"",VLOOKUP($Y214,'1'!$D$202:$T$239,17,0),"") -> 0 | Y214: =IF(ISNA(MATCH(W214,'1'!$AC$202:$AC$239,0)),"",INDEX('1'!$D$202:$D$239,MATCH(W214,'1'!$AC$202:$AC$239,0))) ->  | AA214: =IF($Y214<>"",VLOOKUP($Y214,'1'!$D$202:$F$239,3,0),"") ->  | AB214: =IF($Y214<>"",VLOOKUP($Y214,'1'!$D$202:$K$239,8,0),"") -> 0 | AC214: =IF(D214<>"",COUNTIF($AD$202:$AD$239,">"&AD214)+COUNTIF($AD$202:AD214,AD214),"") -> 13 | AD214: 0 | AG214: =IF($Y214<>"",VLOOKUP($Y214,'1'!$D$202:$Q$239,14,0),"") -> 
A215: 14 | C215: 0 | K215: 0 | T215: 0 | W215: 14 | X215: =IF($Y215<>"",VLOOKUP($Y215,'1'!$D$202:$T$239,17,0),"") -> 0 | Y215: =IF(ISNA(MATCH(W215,'1'!$AC$202:$AC$239,0)),"",INDEX('1'!$D$202:$D$239,MATCH(W215,'1'!$AC$202:$AC$239,0))) ->  | AA215: =IF($Y215<>"",VLOOKUP($Y215,'1'!$D$202:$F$239,3,0),"") ->  | AB215: =IF($Y215<>"",VLOOKUP($Y215,'1'!$D$202:$K$239,8,0),"") -> 0 | AC215: =IF(D215<>"",COUNTIF($AD$202:$AD$239,">"&AD215)+COUNTIF($AD$202:AD215,AD215),"") -> 14 | AD215: 0 | AG215: =IF($Y215<>"",VLOOKUP($Y215,'1'!$D$202:$Q$239,14,0),"") -> 
A216: 15 | C216: 0 | K216: 0 | T216: 0 | W216: 15 | X216: =IF($Y216<>"",VLOOKUP($Y216,'1'!$D$202:$T$239,17,0),"") -> 0 | Y216: =IF(ISNA(MATCH(W216,'1'!$AC$202:$AC$239,0)),"",INDEX('1'!$D$202:$D$239,MATCH(W216,'1'!$AC$202:$AC$239,0))) ->  | AA216: =IF($Y216<>"",VLOOKUP($Y216,'1'!$D$202:$F$239,3,0),"") ->  | AB216: =IF($Y216<>"",VLOOKUP($Y216,'1'!$D$202:$K$239,8,0),"") -> 0 | AC216: =IF(D216<>"",COUNTIF($AD$202:$AD$239,">"&AD216)+COUNTIF($AD$202:AD216,AD216),"") -> 15 | AD216: 0 | AG216: =IF($Y216<>"",VLOOKUP($Y216,'1'!$D$202:$Q$239,14,0),"") -> 
A217: 16 | C217: 0 | K217: 0 | T217: 0 | W217: 16 | X217: =IF($Y217<>"",VLOOKUP($Y217,'1'!$D$202:$T$239,17,0),"") -> 0 | Y217: =IF(ISNA(MATCH(W217,'1'!$AC$202:$AC$239,0)),"",INDEX('1'!$D$202:$D$239,MATCH(W217,'1'!$AC$202:$AC$239,0))) ->  | AA217: =IF($Y217<>"",VLOOKUP($Y217,'1'!$D$202:$F$239,3,0),"") ->  | AB217: =IF($Y217<>"",VLOOKUP($Y217,'1'!$D$202:$K$239,8,0),"") -> 0 | AC217: =IF(D217<>"",COUNTIF($AD$202:$AD$239,">"&AD217)+COUNTIF($AD$202:AD217,AD217),"") -> 16 | AD217: 0 | AG217: =IF($Y217<>"",VLOOKUP($Y217,'1'!$D$202:$Q$239,14,0),"") -> 
A218: 17 | C218: 0 | K218: 0 | T218: 0 | W218: 17 | X218: =IF($Y218<>"",VLOOKUP($Y218,'1'!$D$202:$T$239,17,0),"") -> 0 | Y218: =IF(ISNA(MATCH(W218,'1'!$AC$202:$AC$239,0)),"",INDEX('1'!$D$202:$D$239,MATCH(W218,'1'!$AC$202:$AC$239,0))) ->  | AA218: =IF($Y218<>"",VLOOKUP($Y218,'1'!$D$202:$F$239,3,0),"") ->  | AB218: =IF($Y218<>"",VLOOKUP($Y218,'1'!$D$202:$K$239,8,0),"") -> 0 | AC218: =IF(D218<>"",COUNTIF($AD$202:$AD$239,">"&AD218)+COUNTIF($AD$202:AD218,AD218),"") -> 17 | AD218: 0 | AG218: =IF($Y218<>"",VLOOKUP($Y218,'1'!$D$202:$Q$239,14,0),"") -> 
A219: 18 | C219: 0 | K219: 0 | T219: 0 | W219: 18 | X219: =IF($Y219<>"",VLOOKUP($Y219,'1'!$D$202:$T$239,17,0),"") -> 0 | Y219: =IF(ISNA(MATCH(W219,'1'!$AC$202:$AC$239,0)),"",INDEX('1'!$D$202:$D$239,MATCH(W219,'1'!$AC$202:$AC$239,0))) ->  | AA219: =IF($Y219<>"",VLOOKUP($Y219,'1'!$D$202:$F$239,3,0),"") ->  | AB219: =IF($Y219<>"",VLOOKUP($Y219,'1'!$D$202:$K$239,8,0),"") -> 0 | AC219: =IF(D219<>"",COUNTIF($AD$202:$AD$239,">"&AD219)+COUNTIF($AD$202:AD219,AD219),"") -> 18 | AD219: 0 | AG219: =IF($Y219<>"",VLOOKUP($Y219,'1'!$D$202:$Q$239,14,0),"") -> 
A220: 19 | C220: 0 | K220: 0 | T220: 0 | W220: 19 | X220: =IF($Y220<>"",VLOOKUP($Y220,'1'!$D$202:$T$239,17,0),"") -> 0 | Y220: =IF(ISNA(MATCH(W220,'1'!$AC$202:$AC$239,0)),"",INDEX('1'!$D$202:$D$239,MATCH(W220,'1'!$AC$202:$AC$239,0))) ->  | AA220: =IF($Y220<>"",VLOOKUP($Y220,'1'!$D$202:$F$239,3,0),"") ->  | AB220: =IF($Y220<>"",VLOOKUP($Y220,'1'!$D$202:$K$239,8,0),"") -> 0 | AC220: =IF(D220<>"",COUNTIF($AD$202:$AD$239,">"&AD220)+COUNTIF($AD$202:AD220,AD220),"") -> 19 | AD220: 0 | AG220: =IF($Y220<>"",VLOOKUP($Y220,'1'!$D$202:$Q$239,14,0),"") -> 
A221: 20 | C221: 0 | K221: 0 | T221: 0 | W221: 20 | X221: =IF($Y221<>"",VLOOKUP($Y221,'1'!$D$202:$T$239,17,0),"") -> 0 | Y221: =IF(ISNA(MATCH(W221,'1'!$AC$202:$AC$239,0)),"",INDEX('1'!$D$202:$D$239,MATCH(W221,'1'!$AC$202:$AC$239,0))) ->  | AA221: =IF($Y221<>"",VLOOKUP($Y221,'1'!$D$202:$F$239,3,0),"") ->  | AB221: =IF($Y221<>"",VLOOKUP($Y221,'1'!$D$202:$K$239,8,0),"") -> 0 | AC221: =IF(D221<>"",COUNTIF($AD$202:$AD$239,">"&AD221)+COUNTIF($AD$202:AD221,AD221),"") -> 20 | AD221: 0 | AG221: =IF($Y221<>"",VLOOKUP($Y221,'1'!$D$202:$Q$239,14,0),"") -> 
A222: 21 | C222: 0 | K222: 0 | T222: 0 | W222: 21 | X222: =IF($Y222<>"",VLOOKUP($Y222,'1'!$D$202:$T$239,17,0),"") -> 0 | Y222: =IF(ISNA(MATCH(W222,'1'!$AC$202:$AC$239,0)),"",INDEX('1'!$D$202:$D$239,MATCH(W222,'1'!$AC$202:$AC$239,0))) ->  | AA222: =IF($Y222<>"",VLOOKUP($Y222,'1'!$D$202:$F$239,3,0),"") ->  | AB222: =IF($Y222<>"",VLOOKUP($Y222,'1'!$D$202:$K$239,8,0),"") -> 0 | AC222: =IF(D222<>"",COUNTIF($AD$202:$AD$239,">"&AD222)+COUNTIF($AD$202:AD222,AD222),"") -> 21 | AD222: 0 | AG222: =IF($Y222<>"",VLOOKUP($Y222,'1'!$D$202:$Q$239,14,0),"") -> 
A223: 22 | C223: 0 | K223: 0 | T223: 0 | W223: 22 | X223: =IF($Y223<>"",VLOOKUP($Y223,'1'!$D$202:$T$239,17,0),"") -> 0 | Y223: =IF(ISNA(MATCH(W223,'1'!$AC$202:$AC$239,0)),"",INDEX('1'!$D$202:$D$239,MATCH(W223,'1'!$AC$202:$AC$239,0))) ->  | AA223: =IF($Y223<>"",VLOOKUP($Y223,'1'!$D$202:$F$239,3,0),"") ->  | AB223: =IF($Y223<>"",VLOOKUP($Y223,'1'!$D$202:$K$239,8,0),"") -> 0 | AC223: =IF(D223<>"",COUNTIF($AD$202:$AD$239,">"&AD223)+COUNTIF($AD$202:AD223,AD223),"") -> 22 | AD223: 0 | AG223: =IF($Y223<>"",VLOOKUP($Y223,'1'!$D$202:$Q$239,14,0),"") -> 
A224: 23 | C224: 0 | K224: 0 | T224: 0 | W224: 23 | X224: =IF($Y224<>"",VLOOKUP($Y224,'1'!$D$202:$T$239,17,0),"") -> 0 | Y224: =IF(ISNA(MATCH(W224,'1'!$AC$202:$AC$239,0)),"",INDEX('1'!$D$202:$D$239,MATCH(W224,'1'!$AC$202:$AC$239,0))) ->  | AA224: =IF($Y224<>"",VLOOKUP($Y224,'1'!$D$202:$F$239,3,0),"") ->  | AB224: =IF($Y224<>"",VLOOKUP($Y224,'1'!$D$202:$K$239,8,0),"") -> 0 | AC224: =IF(D224<>"",COUNTIF($AD$202:$AD$239,">"&AD224)+COUNTIF($AD$202:AD224,AD224),"") -> 23 | AD224: 0 | AG224: =IF($Y224<>"",VLOOKUP($Y224,'1'!$D$202:$Q$239,14,0),"") -> 
A225: 24 | C225: 0 | K225: 0 | T225: 0 | W225: 24 | X225: =IF($Y225<>"",VLOOKUP($Y225,'1'!$D$202:$T$239,17,0),"") -> 0 | Y225: =IF(ISNA(MATCH(W225,'1'!$AC$202:$AC$239,0)),"",INDEX('1'!$D$202:$D$239,MATCH(W225,'1'!$AC$202:$AC$239,0))) ->  | AA225: =IF($Y225<>"",VLOOKUP($Y225,'1'!$D$202:$F$239,3,0),"") ->  | AB225: =IF($Y225<>"",VLOOKUP($Y225,'1'!$D$202:$K$239,8,0),"") -> 0 | AC225: =IF(D225<>"",COUNTIF($AD$202:$AD$239,">"&AD225)+COUNTIF($AD$202:AD225,AD225),"") -> 24 | AD225: 0 | AG225: =IF($Y225<>"",VLOOKUP($Y225,'1'!$D$202:$Q$239,14,0),"") -> 
A226: 25 | C226: 0 | K226: 0 | T226: 0 | W226: 25 | X226: =IF($Y226<>"",VLOOKUP($Y226,'1'!$D$202:$T$239,17,0),"") -> 0 | Y226: =IF(ISNA(MATCH(W226,'1'!$AC$202:$AC$239,0)),"",INDEX('1'!$D$202:$D$239,MATCH(W226,'1'!$AC$202:$AC$239,0))) ->  | AA226: =IF($Y226<>"",VLOOKUP($Y226,'1'!$D$202:$F$239,3,0),"") ->  | AB226: =IF($Y226<>"",VLOOKUP($Y226,'1'!$D$202:$K$239,8,0),"") -> 0 | AC226: =IF(D226<>"",COUNTIF($AD$202:$AD$239,">"&AD226)+COUNTIF($AD$202:AD226,AD226),"") -> 25 | AD226: 0 | AG226: =IF($Y226<>"",VLOOKUP($Y226,'1'!$D$202:$Q$239,14,0),"") -> 
A227: 26 | C227: 0 | K227: 0 | T227: 0 | W227: 26 | X227: =IF($Y227<>"",VLOOKUP($Y227,'1'!$D$202:$T$239,17,0),"") -> 0 | Y227: =IF(ISNA(MATCH(W227,'1'!$AC$202:$AC$239,0)),"",INDEX('1'!$D$202:$D$239,MATCH(W227,'1'!$AC$202:$AC$239,0))) ->  | AA227: =IF($Y227<>"",VLOOKUP($Y227,'1'!$D$202:$F$239,3,0),"") ->  | AB227: =IF($Y227<>"",VLOOKUP($Y227,'1'!$D$202:$K$239,8,0),"") -> 0 | AC227: =IF(D227<>"",COUNTIF($AD$202:$AD$239,">"&AD227)+COUNTIF($AD$202:AD227,AD227),"") -> 26 | AD227: 0 | AG227: =IF($Y227<>"",VLOOKUP($Y227,'1'!$D$202:$Q$239,14,0),"") -> 
A228: 27 | C228: 0 | K228: 0 | T228: 0 | W228: 27 | X228: =IF($Y228<>"",VLOOKUP($Y228,'1'!$D$202:$T$239,17,0),"") -> 0 | Y228: =IF(ISNA(MATCH(W228,'1'!$AC$202:$AC$239,0)),"",INDEX('1'!$D$202:$D$239,MATCH(W228,'1'!$AC$202:$AC$239,0))) ->  | AA228: =IF($Y228<>"",VLOOKUP($Y228,'1'!$D$202:$F$239,3,0),"") ->  | AB228: =IF($Y228<>"",VLOOKUP($Y228,'1'!$D$202:$K$239,8,0),"") -> 0 | AC228: =IF(D228<>"",COUNTIF($AD$202:$AD$239,">"&AD228)+COUNTIF($AD$202:AD228,AD228),"") -> 27 | AD228: 0 | AG228: =IF($Y228<>"",VLOOKUP($Y228,'1'!$D$202:$Q$239,14,0),"") -> 
A229: 28 | C229: 0 | K229: 0 | T229: 0 | W229: 28 | X229: =IF($Y229<>"",VLOOKUP($Y229,'1'!$D$202:$T$239,17,0),"") -> 0 | Y229: =IF(ISNA(MATCH(W229,'1'!$AC$202:$AC$239,0)),"",INDEX('1'!$D$202:$D$239,MATCH(W229,'1'!$AC$202:$AC$239,0))) ->  | AA229: =IF($Y229<>"",VLOOKUP($Y229,'1'!$D$202:$F$239,3,0),"") ->  | AB229: =IF($Y229<>"",VLOOKUP($Y229,'1'!$D$202:$K$239,8,0),"") -> 0 | AC229: =IF(D229<>"",COUNTIF($AD$202:$AD$239,">"&AD229)+COUNTIF($AD$202:AD229,AD229),"") -> 28 | AD229: 0 | AG229: =IF($Y229<>"",VLOOKUP($Y229,'1'!$D$202:$Q$239,14,0),"") -> 
A230: 29 | C230: 0 | K230: 0 | T230: 0 | W230: 29 | X230: =IF($Y230<>"",VLOOKUP($Y230,'1'!$D$202:$T$239,17,0),"") -> 0 | Y230: =IF(ISNA(MATCH(W230,'1'!$AC$202:$AC$239,0)),"",INDEX('1'!$D$202:$D$239,MATCH(W230,'1'!$AC$202:$AC$239,0))) ->  | AA230: =IF($Y230<>"",VLOOKUP($Y230,'1'!$D$202:$F$239,3,0),"") ->  | AB230: =IF($Y230<>"",VLOOKUP($Y230,'1'!$D$202:$K$239,8,0),"") -> 0 | AC230: =IF(D230<>"",COUNTIF($AD$202:$AD$239,">"&AD230)+COUNTIF($AD$202:AD230,AD230),"") -> 29 | AD230: 0 | AG230: =IF($Y230<>"",VLOOKUP($Y230,'1'!$D$202:$Q$239,14,0),"") -> 
A231: 30 | C231: 0 | K231: 0 | T231: 0 | W231: 30 | X231: =IF($Y231<>"",VLOOKUP($Y231,'1'!$D$202:$T$239,17,0),"") -> 0 | Y231: =IF(ISNA(MATCH(W231,'1'!$AC$202:$AC$239,0)),"",INDEX('1'!$D$202:$D$239,MATCH(W231,'1'!$AC$202:$AC$239,0))) ->  | AA231: =IF($Y231<>"",VLOOKUP($Y231,'1'!$D$202:$F$239,3,0),"") ->  | AB231: =IF($Y231<>"",VLOOKUP($Y231,'1'!$D$202:$K$239,8,0),"") -> 0 | AC231: =IF(D231<>"",COUNTIF($AD$202:$AD$239,">"&AD231)+COUNTIF($AD$202:AD231,AD231),"") -> 30 | AD231: 0 | AG231: =IF($Y231<>"",VLOOKUP($Y231,'1'!$D$202:$Q$239,14,0),"") -> 
A232: 31 | C232: 0 | K232: 0 | T232: 0 | W232: 31 | X232: =IF($Y232<>"",VLOOKUP($Y232,'1'!$D$202:$T$239,17,0),"") -> 0 | Y232: =IF(ISNA(MATCH(W232,'1'!$AC$202:$AC$239,0)),"",INDEX('1'!$D$202:$D$239,MATCH(W232,'1'!$AC$202:$AC$239,0))) ->  | AA232: =IF($Y232<>"",VLOOKUP($Y232,'1'!$D$202:$F$239,3,0),"") ->  | AB232: =IF($Y232<>"",VLOOKUP($Y232,'1'!$D$202:$K$239,8,0),"") -> 0 | AC232: =IF(D232<>"",COUNTIF($AD$202:$AD$239,">"&AD232)+COUNTIF($AD$202:AD232,AD232),"") -> 31 | AD232: 0 | AG232: =IF($Y232<>"",VLOOKUP($Y232,'1'!$D$202:$Q$239,14,0),"") -> 
A233: 32 | C233: 0 | K233: 0 | T233: 0 | W233: 32 | X233: =IF($Y233<>"",VLOOKUP($Y233,'1'!$D$202:$T$239,17,0),"") -> 0 | Y233: =IF(ISNA(MATCH(W233,'1'!$AC$202:$AC$239,0)),"",INDEX('1'!$D$202:$D$239,MATCH(W233,'1'!$AC$202:$AC$239,0))) ->  | AA233: =IF($Y233<>"",VLOOKUP($Y233,'1'!$D$202:$F$239,3,0),"") ->  | AB233: =IF($Y233<>"",VLOOKUP($Y233,'1'!$D$202:$K$239,8,0),"") -> 0 | AC233: =IF(D233<>"",COUNTIF($AD$202:$AD$239,">"&AD233)+COUNTIF($AD$202:AD233,AD233),"") -> 32 | AD233: 0 | AG233: =IF($Y233<>"",VLOOKUP($Y233,'1'!$D$202:$Q$239,14,0),"") -> 
A234: 33 | C234: 0 | K234: 0 | T234: 0 | W234: 33 | X234: =IF($Y234<>"",VLOOKUP($Y234,'1'!$D$202:$T$239,17,0),"") -> 0 | Y234: =IF(ISNA(MATCH(W234,'1'!$AC$202:$AC$239,0)),"",INDEX('1'!$D$202:$D$239,MATCH(W234,'1'!$AC$202:$AC$239,0))) ->  | AA234: =IF($Y234<>"",VLOOKUP($Y234,'1'!$D$202:$F$239,3,0),"") ->  | AB234: =IF($Y234<>"",VLOOKUP($Y234,'1'!$D$202:$K$239,8,0),"") -> 0 | AC234: =IF(D234<>"",COUNTIF($AD$202:$AD$239,">"&AD234)+COUNTIF($AD$202:AD234,AD234),"") -> 33 | AD234: 0 | AG234: =IF($Y234<>"",VLOOKUP($Y234,'1'!$D$202:$Q$239,14,0),"") -> 
A235: 34 | C235: 0 | K235: 0 | T235: 0 | W235: 34 | X235: =IF($Y235<>"",VLOOKUP($Y235,'1'!$D$202:$T$239,17,0),"") -> 0 | Y235: =IF(ISNA(MATCH(W235,'1'!$AC$202:$AC$239,0)),"",INDEX('1'!$D$202:$D$239,MATCH(W235,'1'!$AC$202:$AC$239,0))) ->  | AA235: =IF($Y235<>"",VLOOKUP($Y235,'1'!$D$202:$F$239,3,0),"") ->  | AB235: =IF($Y235<>"",VLOOKUP($Y235,'1'!$D$202:$K$239,8,0),"") -> 0 | AC235: =IF(D235<>"",COUNTIF($AD$202:$AD$239,">"&AD235)+COUNTIF($AD$202:AD235,AD235),"") -> 34 | AD235: 0 | AG235: =IF($Y235<>"",VLOOKUP($Y235,'1'!$D$202:$Q$239,14,0),"") -> 
A236: 35 | C236: 0 | K236: 0 | T236: 0 | W236: 35 | X236: =IF($Y236<>"",VLOOKUP($Y236,'1'!$D$202:$T$239,17,0),"") -> 0 | Y236: =IF(ISNA(MATCH(W236,'1'!$AC$202:$AC$239,0)),"",INDEX('1'!$D$202:$D$239,MATCH(W236,'1'!$AC$202:$AC$239,0))) ->  | AA236: =IF($Y236<>"",VLOOKUP($Y236,'1'!$D$202:$F$239,3,0),"") ->  | AB236: =IF($Y236<>"",VLOOKUP($Y236,'1'!$D$202:$K$239,8,0),"") -> 0 | AC236: =IF(D236<>"",COUNTIF($AD$202:$AD$239,">"&AD236)+COUNTIF($AD$202:AD236,AD236),"") -> 35 | AD236: 0 | AG236: =IF($Y236<>"",VLOOKUP($Y236,'1'!$D$202:$Q$239,14,0),"") -> 
A237: 36 | C237: 0 | K237: 0 | T237: 0 | W237: 36 | X237: =IF($Y237<>"",VLOOKUP($Y237,'1'!$D$202:$T$239,17,0),"") -> 0 | Y237: =IF(ISNA(MATCH(W237,'1'!$AC$202:$AC$239,0)),"",INDEX('1'!$D$202:$D$239,MATCH(W237,'1'!$AC$202:$AC$239,0))) ->  | AA237: =IF($Y237<>"",VLOOKUP($Y237,'1'!$D$202:$F$239,3,0),"") ->  | AB237: =IF($Y237<>"",VLOOKUP($Y237,'1'!$D$202:$K$239,8,0),"") -> 0 | AC237: =IF(D237<>"",COUNTIF($AD$202:$AD$239,">"&AD237)+COUNTIF($AD$202:AD237,AD237),"") -> 36 | AD237: 0 | AG237: =IF($Y237<>"",VLOOKUP($Y237,'1'!$D$202:$Q$239,14,0),"") -> 
A238: 37 | C238: 0 | K238: 0 | T238: 0 | W238: 37 | X238: =IF($Y238<>"",VLOOKUP($Y238,'1'!$D$202:$T$239,17,0),"") -> 0 | Y238: =IF(ISNA(MATCH(W238,'1'!$AC$202:$AC$239,0)),"",INDEX('1'!$D$202:$D$239,MATCH(W238,'1'!$AC$202:$AC$239,0))) ->  | AA238: =IF($Y238<>"",VLOOKUP($Y238,'1'!$D$202:$F$239,3,0),"") ->  | AB238: =IF($Y238<>"",VLOOKUP($Y238,'1'!$D$202:$K$239,8,0),"") -> 0 | AC238: =IF(D238<>"",COUNTIF($AD$202:$AD$239,">"&AD238)+COUNTIF($AD$202:AD238,AD238),"") -> 37 | AD238: 0 | AG238: =IF($Y238<>"",VLOOKUP($Y238,'1'!$D$202:$Q$239,14,0),"") -> 
A239: 38 | C239: 0 | K239: 0 | T239: 0 | W239: 38 | X239: =IF($Y239<>"",VLOOKUP($Y239,'1'!$D$202:$T$239,17,0),"") -> 0 | Y239: =IF(ISNA(MATCH(W239,'1'!$AC$202:$AC$239,0)),"",INDEX('1'!$D$202:$D$239,MATCH(W239,'1'!$AC$202:$AC$239,0))) ->  | AA239: =IF($Y239<>"",VLOOKUP($Y239,'1'!$D$202:$F$239,3,0),"") ->  | AB239: =IF($Y239<>"",VLOOKUP($Y239,'1'!$D$202:$K$239,8,0),"") -> 0 | AC239: =IF(D239<>"",COUNTIF($AD$202:$AD$239,">"&AD239)+COUNTIF($AD$202:AD239,AD239),"") -> 38 | AD239: 0 | AG239: =IF($Y239<>"",VLOOKUP($Y239,'1'!$D$202:$Q$239,14,0),"") -> 
D242: ="Effectif Total : " &F242 -> Effectif Total : 0 | F242: =SUM(F244:F245) -> 0 | Y242: ="المجموع : " &Z244 -> المجموع : 0 | AA242: =F242 -> 0
D244: ="Filles : "&F244 -> Filles : 0 | F244: =COUNTIFS(C202:C239,"أ") -> 0 | Y244: =D244 -> Filles : 0 | Z244: =F242 -> 0 | AA244: =AA242 -> 0
D245: ="Garçon : "&F245 -> Garçon : 0 | F245: =COUNTIFS(C202:C239,"ذ") -> 0 | Y245: =D245 -> Garçon : 0 | AA245: =AA244 -> 0

Sheet 2
D2: =IF('1'!D2<>"",'1'!D2,"") -> Collège - Mostaganem | E2: =IF(Accueil!F5<>"",Accueil!F5,"") ->  | F2: =IF(Accueil!G5<>"",Accueil!G5,"") ->  | G2: =IF(Accueil!#REF!<>"",Accueil!#REF!,"") ->  | H2: =IF(Accueil!J5<>"",Accueil!J5,"") ->  | I2: =IF(Accueil!K5<>"",Accueil!K5,"") ->  | J2: =IF(Accueil!#REF!<>"",Accueil!#REF!,"") ->  | S2: =IF(Accueil!F2<>"",Accueil!F2,"") -> 2014 - 2015 | T2: =IF(#REF!<>"",#REF!,"") ->  | Y2: =IF(D2<>"",D2,"") -> Collège - Mostaganem | Z2: =IF(#REF!<>"",#REF!,"") ->  | AA2: =IF(#REF!<>"",#REF!,"") ->  | AB2: =IF(#REF!<>"",#REF!,"") ->  | AC2: =IF(#REF!<>"",#REF!,"") ->  | AH2: =IF(S2<>"",S2,"") -> 2014 - 2015 | AI2: =IF(N2<>"",N2,"") ->  | AP2: =Y2 -> Collège - Mostaganem | AY2: =AH2 -> 2014 - 2015
D3: =IF(Accueil!E6<>"",Accueil!E6,"") ->  | E3: =IF(Accueil!F6<>"",Accueil!F6,"") ->  | F3: =IF(Accueil!G6<>"",Accueil!G6,"") ->  | G3: =IF(Accueil!I5<>"",Accueil!I5,"") ->  | H3: =IF(Accueil!J6<>"",Accueil!J6,"") ->  | I3: =IF(Accueil!K6<>"",Accueil!K6,"") ->  | J3: =IF(Accueil!#REF!<>"",Accueil!#REF!,"") ->  | S3: =IF(#REF!<>"",#REF!,"") ->  | T3: =IF(#REF!<>"",#REF!,"") ->  | Y3: =IF(#REF!<>"",#REF!,"") ->  | Z3: =IF(#REF!<>"",#REF!,"") ->  | AA3: =IF(#REF!<>"",#REF!,"") ->  | AB3: =IF(#REF!<>"",#REF!,"") ->  | AC3: =IF(#REF!<>"",#REF!,"") ->  | AH3: =IF(M3<>"",M3,"") ->  | AI3: =IF(N3<>"",N3,"") -> 
D4: Classe: | E4: =IF(Accueil!O8<>"",Accueil!O8,"") -> 1AM2 | K4: Résultats des contrôles du 1er trimestre | Y4: Classe: | Z4: =E4 -> 1AM2 | AD4: Résultats du 1er trimestre
D5: Matière: | E5: =IF('1'!E5<>"",'1'!E5,"") -> Mathématiques | Y5: Matière: | Z5: =IF(E5<>"",E5,"") -> Mathématiques | AP5: Classement (Premier trimestre)
D6: Prof: | E6: =IF('1'!E6<>"",'1'!E6,"") -> Toufik MERINE | Q6: Coeffi: | S6: 3 | T6: =HYPERLINK("#"&ADDRESS(ROW(),COLUMN()-1),CHAR(128)) -> € | Y6: Prof: | Z6: =IF(E6<>"",E6,"") -> Toufik MERINE | AH6: =S6 -> 3
D9: Nom | E9: Prénom | F9: Date de naissance | G9: Contrôle en classe | H9: Cahiers | I9: test 1 | J9: test 2 | K9: test 3 | L9: test 4 | M9: test 5 | N9: test 6 | O9: Travail à la maison | P9: Travail à la maison | Q9: M. des contrôles | R9: Dev. S.1 | S9: Dev. S.2 | T9: Compo/20 | Y9: Nom | Z9: Prénom | AA9: Date de naissance | AB9: Contrôle contenu | AC9: Devoir 1 | AD9: Devoir 2 | AE9: M. des contrôles | AF9: Compo / 60 | AG9: Moyenne Trim / 20 | AH9: Moy par coeffi | AI9: Observ | AP9: Nom et Prénom | AQ9: Moyenne Trim / 20
A16: 1 | W16: 1 | X16: =C16 -> 0 | Y16: 0 | Z16: 0 | AA16: =IF(F16<>"",F16,"") ->  | AB16: =IF(Q16<>"",Q16,"") ->  | AE16: =IF(Q16="","",2*AVERAGE(AB16:AD16)) ->  | AF16: =IF(T16="","",T16*3) ->  | AG16: =IF(T16="","",(AF16+AE16)/5) ->  | AH16: =IF(T16="","",AG16*$AH$6) ->  | AN16: 1 | AP16: =IF(ISNA(MATCH(AN16,'2'!$AW$16:$AW$53,0)),"",INDEX('2'!$AT$16:$AT$53,MATCH(AN16,'2'!$AW$16:$AW$53,0))) ->  | AQ16: =IF($AP16<>"",VLOOKUP($AP16,'2'!$AT$16:$AV$53,3,0),"") -> 0 | AS16: 1 | AT16: =D16&" "&E16 ->  | AV16: =IF(AG16="",0,AG16) -> 0 | AW16: =IF(AT16<>"",COUNTIF($AX$16:$AX$53,">"&AX16)+COUNTIF($AX$16:AX16,AX16),"") -> 1 | AX16: =IF(AV16<>"",AV16*1000,"") -> 0
A17: 2 | W17: 2 | X17: 0 | Y17: 0 | Z17: 0 | AN17: 2 | AP17: =IF(ISNA(MATCH(AN17,'2'!$AW$16:$AW$53,0)),"",INDEX('2'!$AT$16:$AT$53,MATCH(AN17,'2'!$AW$16:$AW$53,0))) ->  | AQ17: =IF($AP17<>"",VLOOKUP($AP17,'2'!$AT$16:$AV$53,3,0),"") -> 0 | AS17: 2 | AV17: =IF(AG17="",0,AG17) -> 0 | AW17: =IF(AT17<>"",COUNTIF($AX$16:$AX$53,">"&AX17)+COUNTIF($AX$16:AX17,AX17),"") -> 2 | AX17: =IF(AV17<>"",AV17*1000,"") -> 0
A18: 3 | W18: 3 | X18: 0 | Y18: 0 | Z18: 0 | AN18: 3 | AP18: =IF(ISNA(MATCH(AN18,'2'!$AW$16:$AW$53,0)),"",INDEX('2'!$AT$16:$AT$53,MATCH(AN18,'2'!$AW$16:$AW$53,0))) ->  | AQ18: =IF($AP18<>"",VLOOKUP($AP18,'2'!$AT$16:$AV$53,3,0),"") -> 0 | AS18: 3 | AV18: 0 | AW18: =IF(AT18<>"",COUNTIF($AX$16:$AX$53,">"&AX18)+COUNTIF($AX$16:AX18,AX18),"") -> 3 | AX18: 0
A19: 4 | W19: 4 | X19: 0 | Y19: 0 | Z19: 0 | AN19: 4 | AP19: =IF(ISNA(MATCH(AN19,'2'!$AW$16:$AW$53,0)),"",INDEX('2'!$AT$16:$AT$53,MATCH(AN19,'2'!$AW$16:$AW$53,0))) ->  | AQ19: =IF($AP19<>"",VLOOKUP($AP19,'2'!$AT$16:$AV$53,3,0),"") -> 0 | AS19: 4 | AV19: 0 | AW19: =IF(AT19<>"",COUNTIF($AX$16:$AX$53,">"&AX19)+COUNTIF($AX$16:AX19,AX19),"") -> 4 | AX19: 0
A20: 5 | W20: 5 | X20: 0 | Y20: 0 | Z20: 0 | AN20: 5 | AP20: =IF(ISNA(MATCH(AN20,'2'!$AW$16:$AW$53,0)),"",INDEX('2'!$AT$16:$AT$53,MATCH(AN20,'2'!$AW$16:$AW$53,0))) ->  | AQ20: =IF($AP20<>"",VLOOKUP($AP20,'2'!$AT$16:$AV$53,3,0),"") -> 0 | AS20: 5 | AV20: 0 | AW20: =IF(AT20<>"",COUNTIF($AX$16:$AX$53,">"&AX20)+COUNTIF($AX$16:AX20,AX20),"") -> 5 | AX20: 0
A21: 6 | W21: 6 | X21: 0 | Y21: 0 | Z21: 0 | AN21: 6 | AP21: =IF(ISNA(MATCH(AN21,'2'!$AW$16:$AW$53,0)),"",INDEX('2'!$AT$16:$AT$53,MATCH(AN21,'2'!$AW$16:$AW$53,0))) ->  | AQ21: =IF($AP21<>"",VLOOKUP($AP21,'2'!$AT$16:$AV$53,3,0),"") -> 0 | AS21: 6 | AV21: 0 | AW21: =IF(AT21<>"",COUNTIF($AX$16:$AX$53,">"&AX21)+COUNTIF($AX$16:AX21,AX21),"") -> 6 | AX21: 0
A22: 7 | W22: 7 | X22: 0 | Y22: 0 | Z22: 0 | AN22: 7 | AP22: =IF(ISNA(MATCH(AN22,'2'!$AW$16:$AW$53,0)),"",INDEX('2'!$AT$16:$AT$53,MATCH(AN22,'2'!$AW$16:$AW$53,0))) ->  | AQ22: =IF($AP22<>"",VLOOKUP($AP22,'2'!$AT$16:$AV$53,3,0),"") -> 0 | AS22: 7 | AV22: 0 | AW22: =IF(AT22<>"",COUNTIF($AX$16:$AX$53,">"&AX22)+COUNTIF($AX$16:AX22,AX22),"") -> 7 | AX22: 0
A23: 8 | W23: 8 | X23: 0 | Y23: 0 | Z23: 0 | AN23: 8 | AP23: =IF(ISNA(MATCH(AN23,'2'!$AW$16:$AW$53,0)),"",INDEX('2'!$AT$16:$AT$53,MATCH(AN23,'2'!$AW$16:$AW$53,0))) ->  | AQ23: =IF($AP23<>"",VLOOKUP($AP23,'2'!$AT$16:$AV$53,3,0),"") -> 0 | AS23: 8 | AV23: 0 | AW23: =IF(AT23<>"",COUNTIF($AX$16:$AX$53,">"&AX23)+COUNTIF($AX$16:AX23,AX23),"") -> 8 | AX23: 0
A24: 9 | W24: 9 | X24: 0 | Y24: 0 | Z24: 0 | AN24: 9 | AP24: =IF(ISNA(MATCH(AN24,'2'!$AW$16:$AW$53,0)),"",INDEX('2'!$AT$16:$AT$53,MATCH(AN24,'2'!$AW$16:$AW$53,0))) ->  | AQ24: =IF($AP24<>"",VLOOKUP($AP24,'2'!$AT$16:$AV$53,3,0),"") -> 0 | AS24: 9 | AV24: 0 | AW24: =IF(AT24<>"",COUNTIF($AX$16:$AX$53,">"&AX24)+COUNTIF($AX$16:AX24,AX24),"") -> 9 | AX24: 0
A25: 10 | W25: 10 | X25: 0 | Y25: 0 | Z25: 0 | AN25: 10 | AP25: =IF(ISNA(MATCH(AN25,'2'!$AW$16:$AW$53,0)),"",INDEX('2'!$AT$16:$AT$53,MATCH(AN25,'2'!$AW$16:$AW$53,0))) ->  | AQ25: =IF($AP25<>"",VLOOKUP($AP25,'2'!$AT$16:$AV$53,3,0),"") -> 0 | AS25: 10 | AV25: 0 | AW25: =IF(AT25<>"",COUNTIF($AX$16:$AX$53,">"&AX25)+COUNTIF($AX$16:AX25,AX25),"") -> 10 | AX25: 0
A26: 11 | W26: 11 | X26: 0 | Y26: 0 | Z26: 0 | AN26: 11 | AP26: =IF(ISNA(MATCH(AN26,'2'!$AW$16:$AW$53,0)),"",INDEX('2'!$AT$16:$AT$53,MATCH(AN26,'2'!$AW$16:$AW$53,0))) ->  | AQ26: =IF($AP26<>"",VLOOKUP($AP26,'2'!$AT$16:$AV$53,3,0),"") -> 0 | AS26: 11 | AV26: 0 | AW26: =IF(AT26<>"",COUNTIF($AX$16:$AX$53,">"&AX26)+COUNTIF($AX$16:AX26,AX26),"") -> 11 | AX26: 0
A27: 12 | W27: 12 | X27: 0 | Y27: 0 | Z27: 0 | AN27: 12 | AP27: =IF(ISNA(MATCH(AN27,'2'!$AW$16:$AW$53,0)),"",INDEX('2'!$AT$16:$AT$53,MATCH(AN27,'2'!$AW$16:$AW$53,0))) ->  | AQ27: =IF($AP27<>"",VLOOKUP($AP27,'2'!$AT$16:$AV$53,3,0),"") -> 0 | AS27: 12 | AV27: 0 | AW27: =IF(AT27<>"",COUNTIF($AX$16:$AX$53,">"&AX27)+COUNTIF($AX$16:AX27,AX27),"") -> 12 | AX27: 0
A28: 13 | W28: 13 | X28: 0 | Y28: 0 | Z28: 0 | AN28: 13 | AP28: =IF(ISNA(MATCH(AN28,'2'!$AW$16:$AW$53,0)),"",INDEX('2'!$AT$16:$AT$53,MATCH(AN28,'2'!$AW$16:$AW$53,0))) ->  | AQ28: =IF($AP28<>"",VLOOKUP($AP28,'2'!$AT$16:$AV$53,3,0),"") -> 0 | AS28: 13 | AV28: 0 | AW28: =IF(AT28<>"",COUNTIF($AX$16:$AX$53,">"&AX28)+COUNTIF($AX$16:AX28,AX28),"") -> 13 | AX28: 0
A29: 14 | W29: 14 | X29: 0 | Y29: 0 | Z29: 0 | AN29: 14 | AP29: =IF(ISNA(MATCH(AN29,'2'!$AW$16:$AW$53,0)),"",INDEX('2'!$AT$16:$AT$53,MATCH(AN29,'2'!$AW$16:$AW$53,0))) ->  | AQ29: =IF($AP29<>"",VLOOKUP($AP29,'2'!$AT$16:$AV$53,3,0),"") -> 0 | AS29: 14 | AV29: 0 | AW29: =IF(AT29<>"",COUNTIF($AX$16:$AX$53,">"&AX29)+COUNTIF($AX$16:AX29,AX29),"") -> 14 | AX29: 0
A30: 15 | W30: 15 | X30: 0 | Y30: 0 | Z30: 0 | AN30: 15 | AP30: =IF(ISNA(MATCH(AN30,'2'!$AW$16:$AW$53,0)),"",INDEX('2'!$AT$16:$AT$53,MATCH(AN30,'2'!$AW$16:$AW$53,0))) ->  | AQ30: =IF($AP30<>"",VLOOKUP($AP30,'2'!$AT$16:$AV$53,3,0),"") -> 0 | AS30: 15 | AV30: 0 | AW30: =IF(AT30<>"",COUNTIF($AX$16:$AX$53,">"&AX30)+COUNTIF($AX$16:AX30,AX30),"") -> 15 | AX30: 0
A31: 16 | W31: 16 | X31: 0 | Y31: 0 | Z31: 0 | AN31: 16 | AP31: =IF(ISNA(MATCH(AN31,'2'!$AW$16:$AW$53,0)),"",INDEX('2'!$AT$16:$AT$53,MATCH(AN31,'2'!$AW$16:$AW$53,0))) ->  | AQ31: =IF($AP31<>"",VLOOKUP($AP31,'2'!$AT$16:$AV$53,3,0),"") -> 0 | AS31: 16 | AV31: 0 | AW31: =IF(AT31<>"",COUNTIF($AX$16:$AX$53,">"&AX31)+COUNTIF($AX$16:AX31,AX31),"") -> 16 | AX31: 0
A32: 17 | W32: 17 | X32: 0 | Y32: 0 | Z32: 0 | AN32: 17 | AP32: =IF(ISNA(MATCH(AN32,'2'!$AW$16:$AW$53,0)),"",INDEX('2'!$AT$16:$AT$53,MATCH(AN32,'2'!$AW$16:$AW$53,0))) ->  | AQ32: =IF($AP32<>"",VLOOKUP($AP32,'2'!$AT$16:$AV$53,3,0),"") -> 0 | AS32: 17 | AV32: 0 | AW32: =IF(AT32<>"",COUNTIF($AX$16:$AX$53,">"&AX32)+COUNTIF($AX$16:AX32,AX32),"") -> 17 | AX32: 0
A33: 18 | W33: 18 | X33: 0 | Y33: 0 | Z33: 0 | AN33: 18 | AP33: =IF(ISNA(MATCH(AN33,'2'!$AW$16:$AW$53,0)),"",INDEX('2'!$AT$16:$AT$53,MATCH(AN33,'2'!$AW$16:$AW$53,0))) ->  | AQ33: =IF($AP33<>"",VLOOKUP($AP33,'2'!$AT$16:$AV$53,3,0),"") -> 0 | AS33: 18 | AV33: 0 | AW33: =IF(AT33<>"",COUNTIF($AX$16:$AX$53,">"&AX33)+COUNTIF($AX$16:AX33,AX33),"") -> 18 | AX33: 0
A34: 19 | W34: 19 | X34: 0 | Y34: 0 | Z34: 0 | AN34: 19 | AP34: =IF(ISNA(MATCH(AN34,'2'!$AW$16:$AW$53,0)),"",INDEX('2'!$AT$16:$AT$53,MATCH(AN34,'2'!$AW$16:$AW$53,0))) ->  | AQ34: =IF($AP34<>"",VLOOKUP($AP34,'2'!$AT$16:$AV$53,3,0),"") -> 0 | AS34: 19 | AV34: 0 | AW34: =IF(AT34<>"",COUNTIF($AX$16:$AX$53,">"&AX34)+COUNTIF($AX$16:AX34,AX34),"") -> 19 | AX34: 0
A35: 20 | W35: 20 | X35: 0 | Y35: 0 | Z35: 0 | AN35: 20 | AP35: =IF(ISNA(MATCH(AN35,'2'!$AW$16:$AW$53,0)),"",INDEX('2'!$AT$16:$AT$53,MATCH(AN35,'2'!$AW$16:$AW$53,0))) ->  | AQ35: =IF($AP35<>"",VLOOKUP($AP35,'2'!$AT$16:$AV$53,3,0),"") -> 0 | AS35: 20 | AV35: 0 | AW35: =IF(AT35<>"",COUNTIF($AX$16:$AX$53,">"&AX35)+COUNTIF($AX$16:AX35,AX35),"") -> 20 | AX35: 0
A36: 21 | W36: 21 | X36: 0 | Y36: 0 | Z36: 0 | AN36: 21 | AP36: =IF(ISNA(MATCH(AN36,'2'!$AW$16:$AW$53,0)),"",INDEX('2'!$AT$16:$AT$53,MATCH(AN36,'2'!$AW$16:$AW$53,0))) ->  | AQ36: =IF($AP36<>"",VLOOKUP($AP36,'2'!$AT$16:$AV$53,3,0),"") -> 0 | AS36: 21 | AV36: 0 | AW36: =IF(AT36<>"",COUNTIF($AX$16:$AX$53,">"&AX36)+COUNTIF($AX$16:AX36,AX36),"") -> 21 | AX36: 0
A37: 22 | W37: 22 | X37: 0 | Y37: 0 | Z37: 0 | AN37: 22 | AP37: =IF(ISNA(MATCH(AN37,'2'!$AW$16:$AW$53,0)),"",INDEX('2'!$AT$16:$AT$53,MATCH(AN37,'2'!$AW$16:$AW$53,0))) ->  | AQ37: =IF($AP37<>"",VLOOKUP($AP37,'2'!$AT$16:$AV$53,3,0),"") -> 0 | AS37: 22 | AV37: 0 | AW37: =IF(AT37<>"",COUNTIF($AX$16:$AX$53,">"&AX37)+COUNTIF($AX$16:AX37,AX37),"") -> 22 | AX37: 0
A38: 23 | W38: 23 | X38: 0 | Y38: 0 | Z38: 0 | AN38: 23 | AP38: =IF(ISNA(MATCH(AN38,'2'!$AW$16:$AW$53,0)),"",INDEX('2'!$AT$16:$AT$53,MATCH(AN38,'2'!$AW$16:$AW$53,0))) ->  | AQ38: =IF($AP38<>"",VLOOKUP($AP38,'2'!$AT$16:$AV$53,3,0),"") -> 0 | AS38: 23 | AV38: 0 | AW38: =IF(AT38<>"",COUNTIF($AX$16:$AX$53,">"&AX38)+COUNTIF($AX$16:AX38,AX38),"") -> 23 | AX38: 0
A39: 24 | W39: 24 | X39: 0 | Y39: 0 | Z39: 0 | AN39: 24 | AP39: =IF(ISNA(MATCH(AN39,'2'!$AW$16:$AW$53,0)),"",INDEX('2'!$AT$16:$AT$53,MATCH(AN39,'2'!$AW$16:$AW$53,0))) ->  | AQ39: =IF($AP39<>"",VLOOKUP($AP39,'2'!$AT$16:$AV$53,3,0),"") -> 0 | AS39: 24 | AV39: 0 | AW39: =IF(AT39<>"",COUNTIF($AX$16:$AX$53,">"&AX39)+COUNTIF($AX$16:AX39,AX39),"") -> 24 | AX39: 0
A40: 25 | W40: 25 | X40: 0 | Y40: 0 | Z40: 0 | AN40: 25 | AP40: =IF(ISNA(MATCH(AN40,'2'!$AW$16:$AW$53,0)),"",INDEX('2'!$AT$16:$AT$53,MATCH(AN40,'2'!$AW$16:$AW$53,0))) ->  | AQ40: =IF($AP40<>"",VLOOKUP($AP40,'2'!$AT$16:$AV$53,3,0),"") -> 0 | AS40: 25 | AV40: 0 | AW40: =IF(AT40<>"",COUNTIF($AX$16:$AX$53,">"&AX40)+COUNTIF($AX$16:AX40,AX40),"") -> 25 | AX40: 0
A41: 26 | W41: 26 | X41: 0 | Y41: 0 | Z41: 0 | AN41: 26 | AP41: =IF(ISNA(MATCH(AN41,'2'!$AW$16:$AW$53,0)),"",INDEX('2'!$AT$16:$AT$53,MATCH(AN41,'2'!$AW$16:$AW$53,0))) ->  | AQ41: =IF($AP41<>"",VLOOKUP($AP41,'2'!$AT$16:$AV$53,3,0),"") -> 0 | AS41: 26 | AV41: 0 | AW41: =IF(AT41<>"",COUNTIF($AX$16:$AX$53,">"&AX41)+COUNTIF($AX$16:AX41,AX41),"") -> 26 | AX41: 0
A42: 27 | W42: 27 | X42: 0 | Y42: 0 | Z42: 0 | AN42: 27 | AP42: =IF(ISNA(MATCH(AN42,'2'!$AW$16:$AW$53,0)),"",INDEX('2'!$AT$16:$AT$53,MATCH(AN42,'2'!$AW$16:$AW$53,0))) ->  | AQ42: =IF($AP42<>"",VLOOKUP($AP42,'2'!$AT$16:$AV$53,3,0),"") -> 0 | AS42: 27 | AV42: 0 | AW42: =IF(AT42<>"",COUNTIF($AX$16:$AX$53,">"&AX42)+COUNTIF($AX$16:AX42,AX42),"") -> 27 | AX42: 0
A43: 28 | W43: 28 | X43: 0 | Y43: 0 | Z43: 0 | AN43: 28 | AP43: =IF(ISNA(MATCH(AN43,'2'!$AW$16:$AW$53,0)),"",INDEX('2'!$AT$16:$AT$53,MATCH(AN43,'2'!$AW$16:$AW$53,0))) ->  | AQ43: =IF($AP43<>"",VLOOKUP($AP43,'2'!$AT$16:$AV$53,3,0),"") -> 0 | AS43: 28 | AV43: 0 | AW43: =IF(AT43<>"",COUNTIF($AX$16:$AX$53,">"&AX43)+COUNTIF($AX$16:AX43,AX43),"") -> 28 | AX43: 0
A44: 29 | W44: 29 | X44: 0 | Y44: 0 | Z44: 0 | AN44: 29 | AP44: =IF(ISNA(MATCH(AN44,'2'!$AW$16:$AW$53,0)),"",INDEX('2'!$AT$16:$AT$53,MATCH(AN44,'2'!$AW$16:$AW$53,0))) ->  | AQ44: =IF($AP44<>"",VLOOKUP($AP44,'2'!$AT$16:$AV$53,3,0),"") -> 0 | AS44: 29 | AV44: 0 | AW44: =IF(AT44<>"",COUNTIF($AX$16:$AX$53,">"&AX44)+COUNTIF($AX$16:AX44,AX44),"") -> 29 | AX44: 0
A45: 30 | W45: 30 | X45: 0 | Y45: 0 | Z45: 0 | AN45: 30 | AP45: =IF(ISNA(MATCH(AN45,'2'!$AW$16:$AW$53,0)),"",INDEX('2'!$AT$16:$AT$53,MATCH(AN45,'2'!$AW$16:$AW$53,0))) ->  | AQ45: =IF($AP45<>"",VLOOKUP($AP45,'2'!$AT$16:$AV$53,3,0),"") -> 0 | AS45: 30 | AV45: 0 | AW45: =IF(AT45<>"",COUNTIF($AX$16:$AX$53,">"&AX45)+COUNTIF($AX$16:AX45,AX45),"") -> 30 | AX45: 0
A46: 31 | W46: 31 | X46: 0 | Y46: 0 | Z46: 0 | AN46: 31 | AP46: =IF(ISNA(MATCH(AN46,'2'!$AW$16:$AW$53,0)),"",INDEX('2'!$AT$16:$AT$53,MATCH(AN46,'2'!$AW$16:$AW$53,0))) ->  | AQ46: =IF($AP46<>"",VLOOKUP($AP46,'2'!$AT$16:$AV$53,3,0),"") -> 0 | AS46: 31 | AV46: 0 | AW46: =IF(AT46<>"",COUNTIF($AX$16:$AX$53,">"&AX46)+COUNTIF($AX$16:AX46,AX46),"") -> 31 | AX46: 0
A47: 32 | W47: 32 | X47: 0 | Y47: 0 | Z47: 0 | AN47: 32 | AP47: =IF(ISNA(MATCH(AN47,'2'!$AW$16:$AW$53,0)),"",INDEX('2'!$AT$16:$AT$53,MATCH(AN47,'2'!$AW$16:$AW$53,0))) ->  | AQ47: =IF($AP47<>"",VLOOKUP($AP47,'2'!$AT$16:$AV$53,3,0),"") -> 0 | AS47: 32 | AV47: 0 | AW47: =IF(AT47<>"",COUNTIF($AX$16:$AX$53,">"&AX47)+COUNTIF($AX$16:AX47,AX47),"") -> 32 | AX47: 0
A48: 33 | W48: 33 | X48: 0 | Y48: 0 | Z48: 0 | AN48: 33 | AP48: =IF(ISNA(MATCH(AN48,'2'!$AW$16:$AW$53,0)),"",INDEX('2'!$AT$16:$AT$53,MATCH(AN48,'2'!$AW$16:$AW$53,0))) ->  | AQ48: =IF($AP48<>"",VLOOKUP($AP48,'2'!$AT$16:$AV$53,3,0),"") -> 0 | AS48: 33 | AV48: 0 | AW48: =IF(AT48<>"",COUNTIF($AX$16:$AX$53,">"&AX48)+COUNTIF($AX$16:AX48,AX48),"") -> 33 | AX48: 0
A49: 34 | W49: 34 | X49: 0 | Y49: 0 | Z49: 0 | AN49: 34 | AP49: =IF(ISNA(MATCH(AN49,'2'!$AW$16:$AW$53,0)),"",INDEX('2'!$AT$16:$AT$53,MATCH(AN49,'2'!$AW$16:$AW$53,0))) ->  | AQ49: =IF($AP49<>"",VLOOKUP($AP49,'2'!$AT$16:$AV$53,3,0),"") -> 0 | AS49: 34 | AV49: 0 | AW49: =IF(AT49<>"",COUNTIF($AX$16:$AX$53,">"&AX49)+COUNTIF($AX$16:AX49,AX49),"") -> 34 | AX49: 0
A50: 35 | W50: 35 | X50: 0 | Y50: 0 | Z50: 0 | AN50: 35 | AP50: =IF(ISNA(MATCH(AN50,'2'!$AW$16:$AW$53,0)),"",INDEX('2'!$AT$16:$AT$53,MATCH(AN50,'2'!$AW$16:$AW$53,0))) ->  | AQ50: =IF($AP50<>"",VLOOKUP($AP50,'2'!$AT$16:$AV$53,3,0),"") -> 0 | AS50: 35 | AV50: 0 | AW50: =IF(AT50<>"",COUNTIF($AX$16:$AX$53,">"&AX50)+COUNTIF($AX$16:AX50,AX50),"") -> 35 | AX50: 0
A51: 36 | W51: 36 | X51: 0 | Y51: 0 | Z51: 0 | AN51: 36 | AP51: =IF(ISNA(MATCH(AN51,'2'!$AW$16:$AW$53,0)),"",INDEX('2'!$AT$16:$AT$53,MATCH(AN51,'2'!$AW$16:$AW$53,0))) ->  | AQ51: =IF($AP51<>"",VLOOKUP($AP51,'2'!$AT$16:$AV$53,3,0),"") -> 0 | AS51: 36 | AV51: 0 | AW51: =IF(AT51<>"",COUNTIF($AX$16:$AX$53,">"&AX51)+COUNTIF($AX$16:AX51,AX51),"") -> 36 | AX51: 0
A52: 37 | W52: 37 | X52: 0 | Y52: 0 | Z52: 0 | AN52: 37 | AP52: =IF(ISNA(MATCH(AN52,'2'!$AW$16:$AW$53,0)),"",INDEX('2'!$AT$16:$AT$53,MATCH(AN52,'2'!$AW$16:$AW$53,0))) ->  | AQ52: =IF($AP52<>"",VLOOKUP($AP52,'2'!$AT$16:$AV$53,3,0),"") -> 0 | AS52: 37 | AV52: 0 | AW52: =IF(AT52<>"",COUNTIF($AX$16:$AX$53,">"&AX52)+COUNTIF($AX$16:AX52,AX52),"") -> 37 | AX52: 0
A53: 38 | W53: 38 | X53: 0 | Y53: 0 | Z53: 0 | AN53: 38 | AP53: =IF(ISNA(MATCH(AN53,'2'!$AW$16:$AW$53,0)),"",INDEX('2'!$AT$16:$AT$53,MATCH(AN53,'2'!$AW$16:$AW$53,0))) ->  | AQ53: =IF($AP53<>"",VLOOKUP($AP53,'2'!$AT$16:$AV$53,3,0),"") -> 0 | AS53: 38 | AV53: 0 | AW53: =IF(AT53<>"",COUNTIF($AX$16:$AX$53,">"&AX53)+COUNTIF($AX$16:AX53,AX53),"") -> 38 | AX53: 0
D56: ="Effectif Total : " &F56 -> Effectif Total : 0 | F56: =SUM(F58:F59) -> 0 | R56: =COUNTIFS(R16:R53,">=10") -> 0 | Y56: ="Effectif Total : " &Z58 -> Effectif Total : 0 | AA56: =F56 -> 0 | AP56: =Y56 -> Effectif Total : 0 | AQ56: =F56 -> 0 | AR56: =COUNTA(AP16:AP53) -> 38
D58: ="Filles : "&F58 -> Filles : 0 | F58: =COUNTIFS(C16:C53,"أ") -> 0 | S58: =COUNTIFS(S16:S53,">=10") -> 0 | Y58: =D58 -> Filles : 0 | Z58: =F56 -> 0 | AA58: =AA56 -> 0 | AC58: Moyenne trimestrielle >=10 | AG58: =COUNTIFS(AG16:AG53,">=10") -> 0 | AH58: =AG58/AA56 ->  | AP58: =Y58 -> Filles : 0 | AQ58: =AQ56 -> 0
D59: ="Garçon : "&F59 -> Garçon : 0 | F59: =COUNTIFS(C16:C53,"ذ") -> 0 | T59: =COUNTIFS(T16:T53,">=10") -> 0 | Y59: =D59 -> Garçon : 0 | AA59: =AA58 -> 0 | AP59: =Y59 -> Garçon : 0 | AQ59: =AQ58 -> 0
D64: =IF(D2<>"",D2,"") -> Collège - Mostaganem | S64: =IF(S2<>"",S2,"") -> 2014 - 2015 | T64: =IF(#REF!<>"",#REF!,"") ->  | Y64: =D64 -> Collège - Mostaganem | AH64: =IF(S64<>"",S64,"") -> 2014 - 2015 | AI64: =IF(N64<>"",N64,"") ->  | AP64: =Y64 -> Collège - Mostaganem | AY64: =AH64 -> 2014 - 2015
S65: =IF(#REF!<>"",#REF!,"") ->  | T65: =IF(#REF!<>"",#REF!,"") ->  | AH65: =IF(M65<>"",M65,"") ->  | AI65: =IF(N65<>"",N65,"") -> 
D66: Classe: | E66: =E4 -> 1AM2 | K66: Résultats des contrôles du 2e trimestre | Y66: Classe: | Z66: =E66 -> 1AM2 | AD66: Résultats du 2e trimestre
D67: Matière: | E67: =IF(E5<>"",E5,"") -> Mathématiques | Y67: Matière: | Z67: =IF(E67<>"",E67,"") -> Mathématiques | AP67: Classement (Deuxième trimestre)
D68: Prof: | E68: =IF(E6<>"",E6,"") -> Toufik MERINE | Y68: Prof: | Z68: =IF(E68<>"",E68,"") -> Toufik MERINE | AH68: =AH6 -> 3
D71: Nom | E71: Prénom | F71: Date de naissance | G71: Contrôle en classe | H71: Cahiers | I71: test 1 | J71: test 2 | K71: test 3 | L71: test 4 | M71: test 5 | N71: test 6 | O71: Travail à la maison | P71: Travail à la maison | Q71: M. des contrôles | R71: Dev. S.1 | S71: Dev. S.2 | T71: Compo/20 | Y71: Nom | Z71: Prénom | AA71: Date de naissance | AB71: Contrôle contenu | AC71: Devoir 1 | AD71: Devoir 2 | AE71: M. des contrôles | AF71: Compo / 60 | AG71: Moyenne Trim / 20 | AH71: Moy par coeffi | AI71: Observ | AP71: Nom et Prénom | AQ71: Moyenne Trim / 20
A78: 1 | C78: =C16 -> 0 | D78: =D16 -> 0 | E78: 0 | F78: =IF(F16<>"",F16,"") ->  | W78: 1 | X78: =C78 -> 0 | Y78: 0 | Z78: 0 | AA78: =IF(F78<>"",F78,"") ->  | AB78: =IF(Q78<>"",Q78,"") ->  | AE78: =IF(Q78="","",2*AVERAGE(AB78:AD78)) ->  | AF78: =IF(T78="","",T78*3) ->  | AG78: =IF(T78="","",(AF78+AE78)/5) ->  | AH78: =IF(T78="","",AG78*$AH$6) ->  | AN78: 1 | AP78: =IF(ISNA(MATCH(AN78,'2'!$AW$78:$AW$115,0)),"",INDEX('2'!$AT$78:$AT$115,MATCH(AN78,'2'!$AW$78:$AW$115,0))) -> 0 0 | AQ78: =IF($AP78<>"",VLOOKUP($AP78,'2'!$AT$78:$AV$115,3,0),"") -> 0 | AS78: 1 | AT78: =D78&" "&E78 -> 0 0 | AV78: =IF(AG78="",0,AG78) -> 0 | AW78: =IF(AT78<>"",COUNTIF($AX$78:$AX$115,">"&AX78)+COUNTIF($AX$78:AX78,AX78),"") -> 1 | AX78: =IF(AV78<>"",AV78*1000,"") -> 0
A79: 2 | C79: =C17 -> 0 | D79: 0 | E79: 0 | W79: 2 | X79: 0 | Y79: 0 | Z79: 0 | AN79: 2 | AP79: =IF(ISNA(MATCH(AN79,'2'!$AW$78:$AW$115,0)),"",INDEX('2'!$AT$78:$AT$115,MATCH(AN79,'2'!$AW$78:$AW$115,0))) -> 0 0 | AQ79: =IF($AP79<>"",VLOOKUP($AP79,'2'!$AT$78:$AV$115,3,0),"") -> 0 | AS79: 2 | AT79: 0 0 | AV79: =IF(AG79="",0,AG79) -> 0 | AW79: =IF(AT79<>"",COUNTIF($AX$78:$AX$115,">"&AX79)+COUNTIF($AX$78:AX79,AX79),"") -> 2 | AX79: =IF(AV79<>"",AV79*1000,"") -> 0
A80: 3 | C80: 0 | D80: 0 | E80: 0 | W80: 3 | X80: 0 | Y80: 0 | Z80: 0 | AN80: 3 | AP80: =IF(ISNA(MATCH(AN80,'2'!$AW$78:$AW$115,0)),"",INDEX('2'!$AT$78:$AT$115,MATCH(AN80,'2'!$AW$78:$AW$115,0))) -> 0 0 | AQ80: =IF($AP80<>"",VLOOKUP($AP80,'2'!$AT$78:$AV$115,3,0),"") -> 0 | AS80: 3 | AT80: 0 0 | AV80: 0 | AW80: =IF(AT80<>"",COUNTIF($AX$78:$AX$115,">"&AX80)+COUNTIF($AX$78:AX80,AX80),"") -> 3 | AX80: 0
A81: 4 | C81: 0 | D81: 0 | E81: 0 | W81: 4 | X81: 0 | Y81: 0 | Z81: 0 | AN81: 4 | AP81: =IF(ISNA(MATCH(AN81,'2'!$AW$78:$AW$115,0)),"",INDEX('2'!$AT$78:$AT$115,MATCH(AN81,'2'!$AW$78:$AW$115,0))) -> 0 0 | AQ81: =IF($AP81<>"",VLOOKUP($AP81,'2'!$AT$78:$AV$115,3,0),"") -> 0 | AS81: 4 | AT81: 0 0 | AV81: 0 | AW81: =IF(AT81<>"",COUNTIF($AX$78:$AX$115,">"&AX81)+COUNTIF($AX$78:AX81,AX81),"") -> 4 | AX81: 0
A82: 5 | C82: 0 | D82: 0 | E82: 0 | W82: 5 | X82: 0 | Y82: 0 | Z82: 0 | AN82: 5 | AP82: =IF(ISNA(MATCH(AN82,'2'!$AW$78:$AW$115,0)),"",INDEX('2'!$AT$78:$AT$115,MATCH(AN82,'2'!$AW$78:$AW$115,0))) -> 0 0 | AQ82: =IF($AP82<>"",VLOOKUP($AP82,'2'!$AT$78:$AV$115,3,0),"") -> 0 | AS82: 5 | AT82: 0 0 | AV82: 0 | AW82: =IF(AT82<>"",COUNTIF($AX$78:$AX$115,">"&AX82)+COUNTIF($AX$78:AX82,AX82),"") -> 5 | AX82: 0
A83: 6 | C83: 0 | D83: 0 | E83: 0 | W83: 6 | X83: 0 | Y83: 0 | Z83: 0 | AN83: 6 | AP83: =IF(ISNA(MATCH(AN83,'2'!$AW$78:$AW$115,0)),"",INDEX('2'!$AT$78:$AT$115,MATCH(AN83,'2'!$AW$78:$AW$115,0))) -> 0 0 | AQ83: =IF($AP83<>"",VLOOKUP($AP83,'2'!$AT$78:$AV$115,3,0),"") -> 0 | AS83: 6 | AT83: 0 0 | AV83: 0 | AW83: =IF(AT83<>"",COUNTIF($AX$78:$AX$115,">"&AX83)+COUNTIF($AX$78:AX83,AX83),"") -> 6 | AX83: 0
A84: 7 | C84: 0 | D84: 0 | E84: 0 | W84: 7 | X84: 0 | Y84: 0 | Z84: 0 | AN84: 7 | AP84: =IF(ISNA(MATCH(AN84,'2'!$AW$78:$AW$115,0)),"",INDEX('2'!$AT$78:$AT$115,MATCH(AN84,'2'!$AW$78:$AW$115,0))) -> 0 0 | AQ84: =IF($AP84<>"",VLOOKUP($AP84,'2'!$AT$78:$AV$115,3,0),"") -> 0 | AS84: 7 | AT84: 0 0 | AV84: 0 | AW84: =IF(AT84<>"",COUNTIF($AX$78:$AX$115,">"&AX84)+COUNTIF($AX$78:AX84,AX84),"") -> 7 | AX84: 0
A85: 8 | C85: 0 | D85: 0 | E85: 0 | W85: 8 | X85: 0 | Y85: 0 | Z85: 0 | AN85: 8 | AP85: =IF(ISNA(MATCH(AN85,'2'!$AW$78:$AW$115,0)),"",INDEX('2'!$AT$78:$AT$115,MATCH(AN85,'2'!$AW$78:$AW$115,0))) -> 0 0 | AQ85: =IF($AP85<>"",VLOOKUP($AP85,'2'!$AT$78:$AV$115,3,0),"") -> 0 | AS85: 8 | AT85: 0 0 | AV85: 0 | AW85: =IF(AT85<>"",COUNTIF($AX$78:$AX$115,">"&AX85)+COUNTIF($AX$78:AX85,AX85),"") -> 8 | AX85: 0
A86: 9 | C86: 0 | D86: 0 | E86: 0 | W86: 9 | X86: 0 | Y86: 0 | Z86: 0 | AN86: 9 | AP86: =IF(ISNA(MATCH(AN86,'2'!$AW$78:$AW$115,0)),"",INDEX('2'!$AT$78:$AT$115,MATCH(AN86,'2'!$AW$78:$AW$115,0))) -> 0 0 | AQ86: =IF($AP86<>"",VLOOKUP($AP86,'2'!$AT$78:$AV$115,3,0),"") -> 0 | AS86: 9 | AT86: 0 0 | AV86: 0 | AW86: =IF(AT86<>"",COUNTIF($AX$78:$AX$115,">"&AX86)+COUNTIF($AX$78:AX86,AX86),"") -> 9 | AX86: 0
A87: 10 | C87: 0 | D87: 0 | E87: 0 | W87: 10 | X87: 0 | Y87: 0 | Z87: 0 | AN87: 10 | AP87: =IF(ISNA(MATCH(AN87,'2'!$AW$78:$AW$115,0)),"",INDEX('2'!$AT$78:$AT$115,MATCH(AN87,'2'!$AW$78:$AW$115,0))) -> 0 0 | AQ87: =IF($AP87<>"",VLOOKUP($AP87,'2'!$AT$78:$AV$115,3,0),"") -> 0 | AS87: 10 | AT87: 0 0 | AV87: 0 | AW87: =IF(AT87<>"",COUNTIF($AX$78:$AX$115,">"&AX87)+COUNTIF($AX$78:AX87,AX87),"") -> 10 | AX87: 0
A88: 11 | C88: 0 | D88: 0 | E88: 0 | W88: 11 | X88: 0 | Y88: 0 | Z88: 0 | AN88: 11 | AP88: =IF(ISNA(MATCH(AN88,'2'!$AW$78:$AW$115,0)),"",INDEX('2'!$AT$78:$AT$115,MATCH(AN88,'2'!$AW$78:$AW$115,0))) -> 0 0 | AQ88: =IF($AP88<>"",VLOOKUP($AP88,'2'!$AT$78:$AV$115,3,0),"") -> 0 | AS88: 11 | AT88: 0 0 | AV88: 0 | AW88: =IF(AT88<>"",COUNTIF($AX$78:$AX$115,">"&AX88)+COUNTIF($AX$78:AX88,AX88),"") -> 11 | AX88: 0
A89: 12 | C89: 0 | D89: 0 | E89: 0 | W89: 12 | X89: 0 | Y89: 0 | Z89: 0 | AN89: 12 | AP89: =IF(ISNA(MATCH(AN89,'2'!$AW$78:$AW$115,0)),"",INDEX('2'!$AT$78:$AT$115,MATCH(AN89,'2'!$AW$78:$AW$115,0))) -> 0 0 | AQ89: =IF($AP89<>"",VLOOKUP($AP89,'2'!$AT$78:$AV$115,3,0),"") -> 0 | AS89: 12 | AT89: 0 0 | AV89: 0 | AW89: =IF(AT89<>"",COUNTIF($AX$78:$AX$115,">"&AX89)+COUNTIF($AX$78:AX89,AX89),"") -> 12 | AX89: 0
A90: 13 | C90: 0 | D90: 0 | E90: 0 | W90: 13 | X90: 0 | Y90: 0 | Z90: 0 | AN90: 13 | AP90: =IF(ISNA(MATCH(AN90,'2'!$AW$78:$AW$115,0)),"",INDEX('2'!$AT$78:$AT$115,MATCH(AN90,'2'!$AW$78:$AW$115,0))) -> 0 0 | AQ90: =IF($AP90<>"",VLOOKUP($AP90,'2'!$AT$78:$AV$115,3,0),"") -> 0 | AS90: 13 | AT90: 0 0 | AV90: 0 | AW90: =IF(AT90<>"",COUNTIF($AX$78:$AX$115,">"&AX90)+COUNTIF($AX$78:AX90,AX90),"") -> 13 | AX90: 0
A91: 14 | C91: 0 | D91: 0 | E91: 0 | W91: 14 | X91: 0 | Y91: 0 | Z91: 0 | AN91: 14 | AP91: =IF(ISNA(MATCH(AN91,'2'!$AW$78:$AW$115,0)),"",INDEX('2'!$AT$78:$AT$115,MATCH(AN91,'2'!$AW$78:$AW$115,0))) -> 0 0 | AQ91: =IF($AP91<>"",VLOOKUP($AP91,'2'!$AT$78:$AV$115,3,0),"") -> 0 | AS91: 14 | AT91: 0 0 | AV91: 0 | AW91: =IF(AT91<>"",COUNTIF($AX$78:$AX$115,">"&AX91)+COUNTIF($AX$78:AX91,AX91),"") -> 14 | AX91: 0
A92: 15 | C92: 0 | D92: 0 | E92: 0 | W92: 15 | X92: 0 | Y92: 0 | Z92: 0 | AN92: 15 | AP92: =IF(ISNA(MATCH(AN92,'2'!$AW$78:$AW$115,0)),"",INDEX('2'!$AT$78:$AT$115,MATCH(AN92,'2'!$AW$78:$AW$115,0))) -> 0 0 | AQ92: =IF($AP92<>"",VLOOKUP($AP92,'2'!$AT$78:$AV$115,3,0),"") -> 0 | AS92: 15 | AT92: 0 0 | AV92: 0 | AW92: =IF(AT92<>"",COUNTIF($AX$78:$AX$115,">"&AX92)+COUNTIF($AX$78:AX92,AX92),"") -> 15 | AX92: 0
A93: 16 | C93: 0 | D93: 0 | E93: 0 | W93: 16 | X93: 0 | Y93: 0 | Z93: 0 | AN93: 16 | AP93: =IF(ISNA(MATCH(AN93,'2'!$AW$78:$AW$115,0)),"",INDEX('2'!$AT$78:$AT$115,MATCH(AN93,'2'!$AW$78:$AW$115,0))) -> 0 0 | AQ93: =IF($AP93<>"",VLOOKUP($AP93,'2'!$AT$78:$AV$115,3,0),"") -> 0 | AS93: 16 | AT93: 0 0 | AV93: 0 | AW93: =IF(AT93<>"",COUNTIF($AX$78:$AX$115,">"&AX93)+COUNTIF($AX$78:AX93,AX93),"") -> 16 | AX93: 0
A94: 17 | C94: =C32 -> 0 | D94: 0 | E94: 0 | W94: 17 | X94: 0 | Y94: 0 | Z94: 0 | AN94: 17 | AP94: =IF(ISNA(MATCH(AN94,'2'!$AW$78:$AW$115,0)),"",INDEX('2'!$AT$78:$AT$115,MATCH(AN94,'2'!$AW$78:$AW$115,0))) -> 0 0 | AQ94: =IF($AP94<>"",VLOOKUP($AP94,'2'!$AT$78:$AV$115,3,0),"") -> 0 | AS94: 17 | AT94: 0 0 | AV94: 0 | AW94: =IF(AT94<>"",COUNTIF($AX$78:$AX$115,">"&AX94)+COUNTIF($AX$78:AX94,AX94),"") -> 17 | AX94: 0
A95: 18 | C95: 0 | D95: 0 | E95: 0 | W95: 18 | X95: 0 | Y95: 0 | Z95: 0 | AN95: 18 | AP95: =IF(ISNA(MATCH(AN95,'2'!$AW$78:$AW$115,0)),"",INDEX('2'!$AT$78:$AT$115,MATCH(AN95,'2'!$AW$78:$AW$115,0))) -> 0 0 | AQ95: =IF($AP95<>"",VLOOKUP($AP95,'2'!$AT$78:$AV$115,3,0),"") -> 0 | AS95: 18 | AT95: 0 0 | AV95: 0 | AW95: =IF(AT95<>"",COUNTIF($AX$78:$AX$115,">"&AX95)+COUNTIF($AX$78:AX95,AX95),"") -> 18 | AX95: 0
A96: 19 | C96: 0 | D96: 0 | E96: 0 | W96: 19 | X96: 0 | Y96: 0 | Z96: 0 | AN96: 19 | AP96: =IF(ISNA(MATCH(AN96,'2'!$AW$78:$AW$115,0)),"",INDEX('2'!$AT$78:$AT$115,MATCH(AN96,'2'!$AW$78:$AW$115,0))) -> 0 0 | AQ96: =IF($AP96<>"",VLOOKUP($AP96,'2'!$AT$78:$AV$115,3,0),"") -> 0 | AS96: 19 | AT96: 0 0 | AV96: 0 | AW96: =IF(AT96<>"",COUNTIF($AX$78:$AX$115,">"&AX96)+COUNTIF($AX$78:AX96,AX96),"") -> 19 | AX96: 0
A97: 20 | C97: 0 | D97: 0 | E97: 0 | W97: 20 | X97: 0 | Y97: 0 | Z97: 0 | AN97: 20 | AP97: =IF(ISNA(MATCH(AN97,'2'!$AW$78:$AW$115,0)),"",INDEX('2'!$AT$78:$AT$115,MATCH(AN97,'2'!$AW$78:$AW$115,0))) -> 0 0 | AQ97: =IF($AP97<>"",VLOOKUP($AP97,'2'!$AT$78:$AV$115,3,0),"") -> 0 | AS97: 20 | AT97: 0 0 | AV97: 0 | AW97: =IF(AT97<>"",COUNTIF($AX$78:$AX$115,">"&AX97)+COUNTIF($AX$78:AX97,AX97),"") -> 20 | AX97: 0
A98: 21 | C98: 0 | D98: 0 | E98: 0 | W98: 21 | X98: 0 | Y98: 0 | Z98: 0 | AN98: 21 | AP98: =IF(ISNA(MATCH(AN98,'2'!$AW$78:$AW$115,0)),"",INDEX('2'!$AT$78:$AT$115,MATCH(AN98,'2'!$AW$78:$AW$115,0))) -> 0 0 | AQ98: =IF($AP98<>"",VLOOKUP($AP98,'2'!$AT$78:$AV$115,3,0),"") -> 0 | AS98: 21 | AT98: 0 0 | AV98: 0 | AW98: =IF(AT98<>"",COUNTIF($AX$78:$AX$115,">"&AX98)+COUNTIF($AX$78:AX98,AX98),"") -> 21 | AX98: 0
A99: 22 | C99: 0 | D99: 0 | E99: 0 | W99: 22 | X99: 0 | Y99: 0 | Z99: 0 | AN99: 22 | AP99: =IF(ISNA(MATCH(AN99,'2'!$AW$78:$AW$115,0)),"",INDEX('2'!$AT$78:$AT$115,MATCH(AN99,'2'!$AW$78:$AW$115,0))) -> 0 0 | AQ99: =IF($AP99<>"",VLOOKUP($AP99,'2'!$AT$78:$AV$115,3,0),"") -> 0 | AS99: 22 | AT99: 0 0 | AV99: 0 | AW99: =IF(AT99<>"",COUNTIF($AX$78:$AX$115,">"&AX99)+COUNTIF($AX$78:AX99,AX99),"") -> 22 | AX99: 0
A100: 23 | C100: 0 | D100: 0 | E100: 0 | W100: 23 | X100: 0 | Y100: 0 | Z100: 0 | AN100: 23 | AP100: =IF(ISNA(MATCH(AN100,'2'!$AW$78:$AW$115,0)),"",INDEX('2'!$AT$78:$AT$115,MATCH(AN100,'2'!$AW$78:$AW$115,0))) -> 0 0 | AQ100: =IF($AP100<>"",VLOOKUP($AP100,'2'!$AT$78:$AV$115,3,0),"") -> 0 | AS100: 23 | AT100: 0 0 | AV100: 0 | AW100: =IF(AT100<>"",COUNTIF($AX$78:$AX$115,">"&AX100)+COUNTIF($AX$78:AX100,AX100),"") -> 23 | AX100: 0
A101: 24 | C101: 0 | D101: 0 | E101: 0 | W101: 24 | X101: 0 | Y101: 0 | Z101: 0 | AN101: 24 | AP101: =IF(ISNA(MATCH(AN101,'2'!$AW$78:$AW$115,0)),"",INDEX('2'!$AT$78:$AT$115,MATCH(AN101,'2'!$AW$78:$AW$115,0))) -> 0 0 | AQ101: =IF($AP101<>"",VLOOKUP($AP101,'2'!$AT$78:$AV$115,3,0),"") -> 0 | AS101: 24 | AT101: 0 0 | AV101: 0 | AW101: =IF(AT101<>"",COUNTIF($AX$78:$AX$115,">"&AX101)+COUNTIF($AX$78:AX101,AX101),"") -> 24 | AX101: 0
A102: 25 | C102: 0 | D102: 0 | E102: 0 | W102: 25 | X102: 0 | Y102: 0 | Z102: 0 | AN102: 25 | AP102: =IF(ISNA(MATCH(AN102,'2'!$AW$78:$AW$115,0)),"",INDEX('2'!$AT$78:$AT$115,MATCH(AN102,'2'!$AW$78:$AW$115,0))) -> 0 0 | AQ102: =IF($AP102<>"",VLOOKUP($AP102,'2'!$AT$78:$AV$115,3,0),"") -> 0 | AS102: 25 | AT102: 0 0 | AV102: 0 | AW102: =IF(AT102<>"",COUNTIF($AX$78:$AX$115,">"&AX102)+COUNTIF($AX$78:AX102,AX102),"") -> 25 | AX102: 0
A103: 26 | C103: 0 | D103: 0 | E103: 0 | W103: 26 | X103: 0 | Y103: 0 | Z103: 0 | AN103: 26 | AP103: =IF(ISNA(MATCH(AN103,'2'!$AW$78:$AW$115,0)),"",INDEX('2'!$AT$78:$AT$115,MATCH(AN103,'2'!$AW$78:$AW$115,0))) -> 0 0 | AQ103: =IF($AP103<>"",VLOOKUP($AP103,'2'!$AT$78:$AV$115,3,0),"") -> 0 | AS103: 26 | AT103: 0 0 | AV103: 0 | AW103: =IF(AT103<>"",COUNTIF($AX$78:$AX$115,">"&AX103)+COUNTIF($AX$78:AX103,AX103),"") -> 26 | AX103: 0
A104: 27 | C104: 0 | D104: 0 | E104: 0 | W104: 27 | X104: 0 | Y104: 0 | Z104: 0 | AN104: 27 | AP104: =IF(ISNA(MATCH(AN104,'2'!$AW$78:$AW$115,0)),"",INDEX('2'!$AT$78:$AT$115,MATCH(AN104,'2'!$AW$78:$AW$115,0))) -> 0 0 | AQ104: =IF($AP104<>"",VLOOKUP($AP104,'2'!$AT$78:$AV$115,3,0),"") -> 0 | AS104: 27 | AT104: 0 0 | AV104: 0 | AW104: =IF(AT104<>"",COUNTIF($AX$78:$AX$115,">"&AX104)+COUNTIF($AX$78:AX104,AX104),"") -> 27 | AX104: 0
A105: 28 | C105: 0 | D105: 0 | E105: 0 | W105: 28 | X105: 0 | Y105: 0 | Z105: 0 | AN105: 28 | AP105: =IF(ISNA(MATCH(AN105,'2'!$AW$78:$AW$115,0)),"",INDEX('2'!$AT$78:$AT$115,MATCH(AN105,'2'!$AW$78:$AW$115,0))) -> 0 0 | AQ105: =IF($AP105<>"",VLOOKUP($AP105,'2'!$AT$78:$AV$115,3,0),"") -> 0 | AS105: 28 | AT105: 0 0 | AV105: 0 | AW105: =IF(AT105<>"",COUNTIF($AX$78:$AX$115,">"&AX105)+COUNTIF($AX$78:AX105,AX105),"") -> 28 | AX105: 0
A106: 29 | C106: 0 | D106: 0 | E106: 0 | W106: 29 | X106: 0 | Y106: 0 | Z106: 0 | AN106: 29 | AP106: =IF(ISNA(MATCH(AN106,'2'!$AW$78:$AW$115,0)),"",INDEX('2'!$AT$78:$AT$115,MATCH(AN106,'2'!$AW$78:$AW$115,0))) -> 0 0 | AQ106: =IF($AP106<>"",VLOOKUP($AP106,'2'!$AT$78:$AV$115,3,0),"") -> 0 | AS106: 29 | AT106: 0 0 | AV106: 0 | AW106: =IF(AT106<>"",COUNTIF($AX$78:$AX$115,">"&AX106)+COUNTIF($AX$78:AX106,AX106),"") -> 29 | AX106: 0
A107: 30 | C107: 0 | D107: 0 | E107: 0 | W107: 30 | X107: 0 | Y107: 0 | Z107: 0 | AN107: 30 | AP107: =IF(ISNA(MATCH(AN107,'2'!$AW$78:$AW$115,0)),"",INDEX('2'!$AT$78:$AT$115,MATCH(AN107,'2'!$AW$78:$AW$115,0))) -> 0 0 | AQ107: =IF($AP107<>"",VLOOKUP($AP107,'2'!$AT$78:$AV$115,3,0),"") -> 0 | AS107: 30 | AT107: 0 0 | AV107: 0 | AW107: =IF(AT107<>"",COUNTIF($AX$78:$AX$115,">"&AX107)+COUNTIF($AX$78:AX107,AX107),"") -> 30 | AX107: 0
A108: 31 | C108: 0 | D108: 0 | E108: 0 | W108: 31 | X108: 0 | Y108: 0 | Z108: 0 | AN108: 31 | AP108: =IF(ISNA(MATCH(AN108,'2'!$AW$78:$AW$115,0)),"",INDEX('2'!$AT$78:$AT$115,MATCH(AN108,'2'!$AW$78:$AW$115,0))) -> 0 0 | AQ108: =IF($AP108<>"",VLOOKUP($AP108,'2'!$AT$78:$AV$115,3,0),"") -> 0 | AS108: 31 | AT108: 0 0 | AV108: 0 | AW108: =IF(AT108<>"",COUNTIF($AX$78:$AX$115,">"&AX108)+COUNTIF($AX$78:AX108,AX108),"") -> 31 | AX108: 0
A109: 32 | C109: 0 | D109: 0 | E109: 0 | W109: 32 | X109: 0 | Y109: 0 | Z109: 0 | AN109: 32 | AP109: =IF(ISNA(MATCH(AN109,'2'!$AW$78:$AW$115,0)),"",INDEX('2'!$AT$78:$AT$115,MATCH(AN109,'2'!$AW$78:$AW$115,0))) -> 0 0 | AQ109: =IF($AP109<>"",VLOOKUP($AP109,'2'!$AT$78:$AV$115,3,0),"") -> 0 | AS109: 32 | AT109: 0 0 | AV109: 0 | AW109: =IF(AT109<>"",COUNTIF($AX$78:$AX$115,">"&AX109)+COUNTIF($AX$78:AX109,AX109),"") -> 32 | AX109: 0
A110: 33 | C110: =C48 -> 0 | D110: 0 | E110: 0 | W110: 33 | X110: 0 | Y110: 0 | Z110: 0 | AN110: 33 | AP110: =IF(ISNA(MATCH(AN110,'2'!$AW$78:$AW$115,0)),"",INDEX('2'!$AT$78:$AT$115,MATCH(AN110,'2'!$AW$78:$AW$115,0))) -> 0 0 | AQ110: =IF($AP110<>"",VLOOKUP($AP110,'2'!$AT$78:$AV$115,3,0),"") -> 0 | AS110: 33 | AT110: 0 0 | AV110: 0 | AW110: =IF(AT110<>"",COUNTIF($AX$78:$AX$115,">"&AX110)+COUNTIF($AX$78:AX110,AX110),"") -> 33 | AX110: 0
A111: 34 | C111: 0 | D111: 0 | E111: 0 | W111: 34 | X111: 0 | Y111: 0 | Z111: 0 | AN111: 34 | AP111: =IF(ISNA(MATCH(AN111,'2'!$AW$78:$AW$115,0)),"",INDEX('2'!$AT$78:$AT$115,MATCH(AN111,'2'!$AW$78:$AW$115,0))) -> 0 0 | AQ111: =IF($AP111<>"",VLOOKUP($AP111,'2'!$AT$78:$AV$115,3,0),"") -> 0 | AS111: 34 | AT111: 0 0 | AV111: 0 | AW111: =IF(AT111<>"",COUNTIF($AX$78:$AX$115,">"&AX111)+COUNTIF($AX$78:AX111,AX111),"") -> 34 | AX111: 0
A112: 35 | C112: 0 | D112: 0 | E112: 0 | W112: 35 | X112: 0 | Y112: 0 | Z112: 0 | AN112: 35 | AP112: =IF(ISNA(MATCH(AN112,'2'!$AW$78:$AW$115,0)),"",INDEX('2'!$AT$78:$AT$115,MATCH(AN112,'2'!$AW$78:$AW$115,0))) -> 0 0 | AQ112: =IF($AP112<>"",VLOOKUP($AP112,'2'!$AT$78:$AV$115,3,0),"") -> 0 | AS112: 35 | AT112: 0 0 | AV112: 0 | AW112: =IF(AT112<>"",COUNTIF($AX$78:$AX$115,">"&AX112)+COUNTIF($AX$78:AX112,AX112),"") -> 35 | AX112: 0
A113: 36 | C113: 0 | D113: 0 | E113: 0 | W113: 36 | X113: 0 | Y113: 0 | Z113: 0 | AN113: 36 | AP113: =IF(ISNA(MATCH(AN113,'2'!$AW$78:$AW$115,0)),"",INDEX('2'!$AT$78:$AT$115,MATCH(AN113,'2'!$AW$78:$AW$115,0))) -> 0 0 | AQ113: =IF($AP113<>"",VLOOKUP($AP113,'2'!$AT$78:$AV$115,3,0),"") -> 0 | AS113: 36 | AT113: 0 0 | AV113: 0 | AW113: =IF(AT113<>"",COUNTIF($AX$78:$AX$115,">"&AX113)+COUNTIF($AX$78:AX113,AX113),"") -> 36 | AX113: 0
A114: 37 | C114: 0 | D114: 0 | E114: 0 | W114: 37 | X114: 0 | Y114: 0 | Z114: 0 | AN114: 37 | AP114: =IF(ISNA(MATCH(AN114,'2'!$AW$78:$AW$115,0)),"",INDEX('2'!$AT$78:$AT$115,MATCH(AN114,'2'!$AW$78:$AW$115,0))) -> 0 0 | AQ114: =IF($AP114<>"",VLOOKUP($AP114,'2'!$AT$78:$AV$115,3,0),"") -> 0 | AS114: 37 | AT114: 0 0 | AV114: 0 | AW114: =IF(AT114<>"",COUNTIF($AX$78:$AX$115,">"&AX114)+COUNTIF($AX$78:AX114,AX114),"") -> 37 | AX114: 0
A115: 38 | C115: 0 | D115: 0 | E115: 0 | W115: 38 | X115: 0 | Y115: 0 | Z115: 0 | AN115: 38 | AP115: =IF(ISNA(MATCH(AN115,'2'!$AW$78:$AW$115,0)),"",INDEX('2'!$AT$78:$AT$115,MATCH(AN115,'2'!$AW$78:$AW$115,0))) -> 0 0 | AQ115: =IF($AP115<>"",VLOOKUP($AP115,'2'!$AT$78:$AV$115,3,0),"") -> 0 | AS115: 38 | AT115: 0 0 | AV115: 0 | AW115: =IF(AT115<>"",COUNTIF($AX$78:$AX$115,">"&AX115)+COUNTIF($AX$78:AX115,AX115),"") -> 38 | AX115: 0
D118: ="Effectif Total : " &F118 -> Effectif Total : 0 | F118: =SUM(F120:F121) -> 0 | R118: =COUNTIFS(R78:R115,">=10") -> 0 | Y118: ="Effectif Total : " &Z120 -> Effectif Total : 0 | AA118: =F118 -> 0 | AP118: =Y118 -> Effectif Total : 0 | AQ118: =F118 -> 0 | AR118: =COUNTA(AP78:AP115) -> 38
D120: ="Filles : "&F120 -> Filles : 0 | F120: =COUNTIFS(C78:C115,"أ") -> 0 | S120: =COUNTIFS(S78:S115,">=10") -> 0 | Y120: =D120 -> Filles : 0 | Z120: =F118 -> 0 | AA120: =AA118 -> 0 | AC120: Moyenne trimestrielle >=10 | AG120: =COUNTIFS(AG78:AG115,">=10") -> 0 | AH120: =AG120/AA118 ->  | AP120: =Y120 -> Filles : 0 | AQ120: =AQ118 -> 0
D121: ="Garçon : "&F121 -> Garçon : 0 | F121: =COUNTIFS(C78:C115,"ذ") -> 0 | T121: =COUNTIFS(T78:T115,">=10") -> 0 | Y121: =D121 -> Garçon : 0 | AA121: =AA120 -> 0 | AP121: =Y121 -> Garçon : 0 | AQ121: =AQ120 -> 0
D126: =D64 -> Collège - Mostaganem | S126: =IF(S64<>"",S64,"") -> 2014 - 2015 | T126: =IF(#REF!<>"",#REF!,"") ->  | Y126: =D126 -> Collège - Mostaganem | AH126: =IF(S126<>"",S126,"") -> 2014 - 2015 | AI126: =IF(N126<>"",N126,"") ->  | AP126: =Y126 -> Collège - Mostaganem | AY126: =AH126 -> 2014 - 2015
S127: =IF(#REF!<>"",#REF!,"") ->  | AH127: =IF(M127<>"",M127,"") ->  | AI127: =IF(N127<>"",N127,"") -> 
D128: Classe: | E128: =E66 -> 1AM2 | K128: Résultats des contrôles du 3e trimestre | Y128: Classe: | Z128: =E128 -> 1AM2 | AD128: Résultats du 3e trimestre
D129: Matière: | E129: =IF(E67<>"",E67,"") -> Mathématiques | Y129: Matière: | Z129: =IF(E129<>"",E129,"") -> Mathématiques | AP129: Classement (Troisième trimestre)
D130: Prof: | E130: =IF(E68<>"",E68,"") -> Toufik MERINE | Y130: Prof: | Z130: =IF(E130<>"",E130,"") -> Toufik MERINE | AH130: =AH68 -> 3
D133: Nom | E133: Prénom | F133: Date de naissance | G133: Contrôle en classe | H133: Cahiers | I133: test 1 | J133: test 2 | K133: test 3 | L133: test 4 | M133: test 5 | N133: test 6 | O133: Travail à la maison | P133: Travail à la maison | Q133: M. des contrôles | R133: Dev. S.1 | S133: Dev. S.2 | T133: Compo/20 | Y133: Nom | Z133: Prénom | AA133: Date de naissance | AB133: Contrôle contenu | AC133: Devoir 1 | AD133: Devoir 2 | AE133: M. des contrôles | AF133: Compo / 60 | AG133: Moyenne Trim / 20 | AH133: Moy par coeffi | AI133: Moy Générale | AP133: Nom et Prénom | AQ133: Moyenne Trim / 20
A140: 1 | C140: =C78 -> 0 | D140: 0 | E140: 0 | W140: 1 | X140: =C140 -> 0 | Y140: 0 | Z140: 0 | AA140: =IF(F140<>"",F140,"") ->  | AB140: =IF(Q140<>"",Q140,"") ->  | AE140: =IF(Q140="","",2*AVERAGE(AB140:AD140)) ->  | AF140: =IF(T140="","",T140*3) ->  | AG140: =IF(T140="","",(AF140+AE140)/5) ->  | AH140: =IF(T140="","",AG140*$AH$6) ->  | AI140: =K202 -> 0 | AN140: 1 | AP140: =IF(ISNA(MATCH(AN140,'2'!$AW$140:$AW$177,0)),"",INDEX('2'!$AT$140:$AT$177,MATCH(AN140,'2'!$AW$140:$AW$177,0))) -> 0 0 | AQ140: =IF($AP140<>"",VLOOKUP($AP140,'2'!$AT$140:$AV$177,3,0),"") -> 0 | AS140: 1 | AT140: =D140&" "&E140 -> 0 0 | AV140: =IF(AG140="",0,AG140) -> 0 | AW140: =IF(AT140<>"",COUNTIF($AX$140:$AX$177,">"&AX140)+COUNTIF($AX$140:AX140,AX140),"") -> 1 | AX140: =IF(AV140<>"",AV140*1000,"") -> 0
A141: 2 | C141: 0 | D141: 0 | E141: 0 | W141: 2 | X141: 0 | Y141: 0 | Z141: 0 | AI141: 0 | AN141: 2 | AP141: =IF(ISNA(MATCH(AN141,'2'!$AW$140:$AW$177,0)),"",INDEX('2'!$AT$140:$AT$177,MATCH(AN141,'2'!$AW$140:$AW$177,0))) -> 0 0 | AQ141: =IF($AP141<>"",VLOOKUP($AP141,'2'!$AT$140:$AV$177,3,0),"") -> 0 | AS141: 2 | AT141: 0 0 | AV141: =IF(AG141="",0,AG141) -> 0 | AW141: =IF(AT141<>"",COUNTIF($AX$140:$AX$177,">"&AX141)+COUNTIF($AX$140:AX141,AX141),"") -> 2 | AX141: =IF(AV141<>"",AV141*1000,"") -> 0
A142: 3 | C142: 0 | D142: 0 | E142: 0 | W142: 3 | X142: 0 | Y142: 0 | Z142: 0 | AI142: 0 | AN142: 3 | AP142: =IF(ISNA(MATCH(AN142,'2'!$AW$140:$AW$177,0)),"",INDEX('2'!$AT$140:$AT$177,MATCH(AN142,'2'!$AW$140:$AW$177,0))) -> 0 0 | AQ142: =IF($AP142<>"",VLOOKUP($AP142,'2'!$AT$140:$AV$177,3,0),"") -> 0 | AS142: 3 | AT142: 0 0 | AV142: 0 | AW142: =IF(AT142<>"",COUNTIF($AX$140:$AX$177,">"&AX142)+COUNTIF($AX$140:AX142,AX142),"") -> 3 | AX142: 0
A143: 4 | C143: 0 | D143: 0 | E143: 0 | W143: 4 | X143: 0 | Y143: 0 | Z143: 0 | AI143: 0 | AN143: 4 | AP143: =IF(ISNA(MATCH(AN143,'2'!$AW$140:$AW$177,0)),"",INDEX('2'!$AT$140:$AT$177,MATCH(AN143,'2'!$AW$140:$AW$177,0))) -> 0 0 | AQ143: =IF($AP143<>"",VLOOKUP($AP143,'2'!$AT$140:$AV$177,3,0),"") -> 0 | AS143: 4 | AT143: 0 0 | AV143: 0 | AW143: =IF(AT143<>"",COUNTIF($AX$140:$AX$177,">"&AX143)+COUNTIF($AX$140:AX143,AX143),"") -> 4 | AX143: 0
A144: 5 | C144: 0 | D144: 0 | E144: 0 | W144: 5 | X144: 0 | Y144: 0 | Z144: 0 | AI144: 0 | AN144: 5 | AP144: =IF(ISNA(MATCH(AN144,'2'!$AW$140:$AW$177,0)),"",INDEX('2'!$AT$140:$AT$177,MATCH(AN144,'2'!$AW$140:$AW$177,0))) -> 0 0 | AQ144: =IF($AP144<>"",VLOOKUP($AP144,'2'!$AT$140:$AV$177,3,0),"") -> 0 | AS144: 5 | AT144: 0 0 | AV144: 0 | AW144: =IF(AT144<>"",COUNTIF($AX$140:$AX$177,">"&AX144)+COUNTIF($AX$140:AX144,AX144),"") -> 5 | AX144: 0
A145: 6 | C145: 0 | D145: 0 | E145: 0 | W145: 6 | X145: 0 | Y145: 0 | Z145: 0 | AI145: 0 | AN145: 6 | AP145: =IF(ISNA(MATCH(AN145,'2'!$AW$140:$AW$177,0)),"",INDEX('2'!$AT$140:$AT$177,MATCH(AN145,'2'!$AW$140:$AW$177,0))) -> 0 0 | AQ145: =IF($AP145<>"",VLOOKUP($AP145,'2'!$AT$140:$AV$177,3,0),"") -> 0 | AS145: 6 | AT145: 0 0 | AV145: 0 | AW145: =IF(AT145<>"",COUNTIF($AX$140:$AX$177,">"&AX145)+COUNTIF($AX$140:AX145,AX145),"") -> 6 | AX145: 0
A146: 7 | C146: 0 | D146: 0 | E146: 0 | W146: 7 | X146: 0 | Y146: 0 | Z146: 0 | AI146: 0 | AN146: 7 | AP146: =IF(ISNA(MATCH(AN146,'2'!$AW$140:$AW$177,0)),"",INDEX('2'!$AT$140:$AT$177,MATCH(AN146,'2'!$AW$140:$AW$177,0))) -> 0 0 | AQ146: =IF($AP146<>"",VLOOKUP($AP146,'2'!$AT$140:$AV$177,3,0),"") -> 0 | AS146: 7 | AT146: 0 0 | AV146: 0 | AW146: =IF(AT146<>"",COUNTIF($AX$140:$AX$177,">"&AX146)+COUNTIF($AX$140:AX146,AX146),"") -> 7 | AX146: 0
A147: 8 | C147: 0 | D147: 0 | E147: 0 | W147: 8 | X147: 0 | Y147: 0 | Z147: 0 | AI147: 0 | AN147: 8 | AP147: =IF(ISNA(MATCH(AN147,'2'!$AW$140:$AW$177,0)),"",INDEX('2'!$AT$140:$AT$177,MATCH(AN147,'2'!$AW$140:$AW$177,0))) -> 0 0 | AQ147: =IF($AP147<>"",VLOOKUP($AP147,'2'!$AT$140:$AV$177,3,0),"") -> 0 | AS147: 8 | AT147: 0 0 | AV147: 0 | AW147: =IF(AT147<>"",COUNTIF($AX$140:$AX$177,">"&AX147)+COUNTIF($AX$140:AX147,AX147),"") -> 8 | AX147: 0
A148: 9 | C148: 0 | D148: 0 | E148: 0 | W148: 9 | X148: 0 | Y148: 0 | Z148: 0 | AI148: 0 | AN148: 9 | AP148: =IF(ISNA(MATCH(AN148,'2'!$AW$140:$AW$177,0)),"",INDEX('2'!$AT$140:$AT$177,MATCH(AN148,'2'!$AW$140:$AW$177,0))) -> 0 0 | AQ148: =IF($AP148<>"",VLOOKUP($AP148,'2'!$AT$140:$AV$177,3,0),"") -> 0 | AS148: 9 | AT148: 0 0 | AV148: 0 | AW148: =IF(AT148<>"",COUNTIF($AX$140:$AX$177,">"&AX148)+COUNTIF($AX$140:AX148,AX148),"") -> 9 | AX148: 0
A149: 10 | C149: 0 | D149: 0 | E149: 0 | W149: 10 | X149: 0 | Y149: 0 | Z149: 0 | AI149: 0 | AN149: 10 | AP149: =IF(ISNA(MATCH(AN149,'2'!$AW$140:$AW$177,0)),"",INDEX('2'!$AT$140:$AT$177,MATCH(AN149,'2'!$AW$140:$AW$177,0))) -> 0 0 | AQ149: =IF($AP149<>"",VLOOKUP($AP149,'2'!$AT$140:$AV$177,3,0),"") -> 0 | AS149: 10 | AT149: 0 0 | AV149: 0 | AW149: =IF(AT149<>"",COUNTIF($AX$140:$AX$177,">"&AX149)+COUNTIF($AX$140:AX149,AX149),"") -> 10 | AX149: 0
A150: 11 | C150: 0 | D150: 0 | E150: 0 | W150: 11 | X150: 0 | Y150: 0 | Z150: 0 | AI150: 0 | AN150: 11 | AP150: =IF(ISNA(MATCH(AN150,'2'!$AW$140:$AW$177,0)),"",INDEX('2'!$AT$140:$AT$177,MATCH(AN150,'2'!$AW$140:$AW$177,0))) -> 0 0 | AQ150: =IF($AP150<>"",VLOOKUP($AP150,'2'!$AT$140:$AV$177,3,0),"") -> 0 | AS150: 11 | AT150: 0 0 | AV150: 0 | AW150: =IF(AT150<>"",COUNTIF($AX$140:$AX$177,">"&AX150)+COUNTIF($AX$140:AX150,AX150),"") -> 11 | AX150: 0
A151: 12 | C151: 0 | D151: 0 | E151: 0 | W151: 12 | X151: 0 | Y151: 0 | Z151: 0 | AI151: 0 | AN151: 12 | AP151: =IF(ISNA(MATCH(AN151,'2'!$AW$140:$AW$177,0)),"",INDEX('2'!$AT$140:$AT$177,MATCH(AN151,'2'!$AW$140:$AW$177,0))) -> 0 0 | AQ151: =IF($AP151<>"",VLOOKUP($AP151,'2'!$AT$140:$AV$177,3,0),"") -> 0 | AS151: 12 | AT151: 0 0 | AV151: 0 | AW151: =IF(AT151<>"",COUNTIF($AX$140:$AX$177,">"&AX151)+COUNTIF($AX$140:AX151,AX151),"") -> 12 | AX151: 0
A152: 13 | C152: 0 | D152: 0 | E152: 0 | W152: 13 | X152: 0 | Y152: 0 | Z152: 0 | AI152: 0 | AN152: 13 | AP152: =IF(ISNA(MATCH(AN152,'2'!$AW$140:$AW$177,0)),"",INDEX('2'!$AT$140:$AT$177,MATCH(AN152,'2'!$AW$140:$AW$177,0))) -> 0 0 | AQ152: =IF($AP152<>"",VLOOKUP($AP152,'2'!$AT$140:$AV$177,3,0),"") -> 0 | AS152: 13 | AT152: 0 0 | AV152: 0 | AW152: =IF(AT152<>"",COUNTIF($AX$140:$AX$177,">"&AX152)+COUNTIF($AX$140:AX152,AX152),"") -> 13 | AX152: 0
A153: 14 | C153: 0 | D153: 0 | E153: 0 | W153: 14 | X153: 0 | Y153: 0 | Z153: 0 | AI153: 0 | AN153: 14 | AP153: =IF(ISNA(MATCH(AN153,'2'!$AW$140:$AW$177,0)),"",INDEX('2'!$AT$140:$AT$177,MATCH(AN153,'2'!$AW$140:$AW$177,0))) -> 0 0 | AQ153: =IF($AP153<>"",VLOOKUP($AP153,'2'!$AT$140:$AV$177,3,0),"") -> 0 | AS153: 14 | AT153: 0 0 | AV153: 0 | AW153: =IF(AT153<>"",COUNTIF($AX$140:$AX$177,">"&AX153)+COUNTIF($AX$140:AX153,AX153),"") -> 14 | AX153: 0
A154: 15 | C154: 0 | D154: 0 | E154: 0 | W154: 15 | X154: 0 | Y154: 0 | Z154: 0 | AI154: 0 | AN154: 15 | AP154: =IF(ISNA(MATCH(AN154,'2'!$AW$140:$AW$177,0)),"",INDEX('2'!$AT$140:$AT$177,MATCH(AN154,'2'!$AW$140:$AW$177,0))) -> 0 0 | AQ154: =IF($AP154<>"",VLOOKUP($AP154,'2'!$AT$140:$AV$177,3,0),"") -> 0 | AS154: 15 | AT154: 0 0 | AV154: 0 | AW154: =IF(AT154<>"",COUNTIF($AX$140:$AX$177,">"&AX154)+COUNTIF($AX$140:AX154,AX154),"") -> 15 | AX154: 0
A155: 16 | C155: 0 | D155: 0 | E155: 0 | W155: 16 | X155: 0 | Y155: 0 | Z155: 0 | AI155: 0 | AN155: 16 | AP155: =IF(ISNA(MATCH(AN155,'2'!$AW$140:$AW$177,0)),"",INDEX('2'!$AT$140:$AT$177,MATCH(AN155,'2'!$AW$140:$AW$177,0))) -> 0 0 | AQ155: =IF($AP155<>"",VLOOKUP($AP155,'2'!$AT$140:$AV$177,3,0),"") -> 0 | AS155: 16 | AT155: 0 0 | AV155: 0 | AW155: =IF(AT155<>"",COUNTIF($AX$140:$AX$177,">"&AX155)+COUNTIF($AX$140:AX155,AX155),"") -> 16 | AX155: 0
A156: 17 | C156: =C94 -> 0 | D156: 0 | E156: 0 | W156: 17 | X156: 0 | Y156: 0 | Z156: 0 | AI156: 0 | AN156: 17 | AP156: =IF(ISNA(MATCH(AN156,'2'!$AW$140:$AW$177,0)),"",INDEX('2'!$AT$140:$AT$177,MATCH(AN156,'2'!$AW$140:$AW$177,0))) -> 0 0 | AQ156: =IF($AP156<>"",VLOOKUP($AP156,'2'!$AT$140:$AV$177,3,0),"") -> 0 | AS156: 17 | AT156: 0 0 | AV156: 0 | AW156: =IF(AT156<>"",COUNTIF($AX$140:$AX$177,">"&AX156)+COUNTIF($AX$140:AX156,AX156),"") -> 17 | AX156: 0
A157: 18 | C157: 0 | D157: 0 | E157: 0 | W157: 18 | X157: 0 | Y157: 0 | Z157: 0 | AI157: 0 | AN157: 18 | AP157: =IF(ISNA(MATCH(AN157,'2'!$AW$140:$AW$177,0)),"",INDEX('2'!$AT$140:$AT$177,MATCH(AN157,'2'!$AW$140:$AW$177,0))) -> 0 0 | AQ157: =IF($AP157<>"",VLOOKUP($AP157,'2'!$AT$140:$AV$177,3,0),"") -> 0 | AS157: 18 | AT157: 0 0 | AV157: 0 | AW157: =IF(AT157<>"",COUNTIF($AX$140:$AX$177,">"&AX157)+COUNTIF($AX$140:AX157,AX157),"") -> 18 | AX157: 0
A158: 19 | C158: 0 | D158: 0 | E158: 0 | W158: 19 | X158: 0 | Y158: 0 | Z158: 0 | AI158: 0 | AN158: 19 | AP158: =IF(ISNA(MATCH(AN158,'2'!$AW$140:$AW$177,0)),"",INDEX('2'!$AT$140:$AT$177,MATCH(AN158,'2'!$AW$140:$AW$177,0))) -> 0 0 | AQ158: =IF($AP158<>"",VLOOKUP($AP158,'2'!$AT$140:$AV$177,3,0),"") -> 0 | AS158: 19 | AT158: 0 0 | AV158: 0 | AW158: =IF(AT158<>"",COUNTIF($AX$140:$AX$177,">"&AX158)+COUNTIF($AX$140:AX158,AX158),"") -> 19 | AX158: 0
A159: 20 | C159: 0 | D159: 0 | E159: 0 | W159: 20 | X159: 0 | Y159: 0 | Z159: 0 | AI159: 0 | AN159: 20 | AP159: =IF(ISNA(MATCH(AN159,'2'!$AW$140:$AW$177,0)),"",INDEX('2'!$AT$140:$AT$177,MATCH(AN159,'2'!$AW$140:$AW$177,0))) -> 0 0 | AQ159: =IF($AP159<>"",VLOOKUP($AP159,'2'!$AT$140:$AV$177,3,0),"") -> 0 | AS159: 20 | AT159: 0 0 | AV159: 0 | AW159: =IF(AT159<>"",COUNTIF($AX$140:$AX$177,">"&AX159)+COUNTIF($AX$140:AX159,AX159),"") -> 20 | AX159: 0
A160: 21 | C160: 0 | D160: 0 | E160: 0 | W160: 21 | X160: 0 | Y160: 0 | Z160: 0 | AI160: 0 | AN160: 21 | AP160: =IF(ISNA(MATCH(AN160,'2'!$AW$140:$AW$177,0)),"",INDEX('2'!$AT$140:$AT$177,MATCH(AN160,'2'!$AW$140:$AW$177,0))) -> 0 0 | AQ160: =IF($AP160<>"",VLOOKUP($AP160,'2'!$AT$140:$AV$177,3,0),"") -> 0 | AS160: 21 | AT160: 0 0 | AV160: 0 | AW160: =IF(AT160<>"",COUNTIF($AX$140:$AX$177,">"&AX160)+COUNTIF($AX$140:AX160,AX160),"") -> 21 | AX160: 0
A161: 22 | C161: 0 | D161: 0 | E161: 0 | W161: 22 | X161: 0 | Y161: 0 | Z161: 0 | AI161: 0 | AN161: 22 | AP161: =IF(ISNA(MATCH(AN161,'2'!$AW$140:$AW$177,0)),"",INDEX('2'!$AT$140:$AT$177,MATCH(AN161,'2'!$AW$140:$AW$177,0))) -> 0 0 | AQ161: =IF($AP161<>"",VLOOKUP($AP161,'2'!$AT$140:$AV$177,3,0),"") -> 0 | AS161: 22 | AT161: 0 0 | AV161: 0 | AW161: =IF(AT161<>"",COUNTIF($AX$140:$AX$177,">"&AX161)+COUNTIF($AX$140:AX161,AX161),"") -> 22 | AX161: 0
A162: 23 | C162: 0 | D162: 0 | E162: 0 | W162: 23 | X162: 0 | Y162: 0 | Z162: 0 | AI162: 0 | AN162: 23 | AP162: =IF(ISNA(MATCH(AN162,'2'!$AW$140:$AW$177,0)),"",INDEX('2'!$AT$140:$AT$177,MATCH(AN162,'2'!$AW$140:$AW$177,0))) -> 0 0 | AQ162: =IF($AP162<>"",VLOOKUP($AP162,'2'!$AT$140:$AV$177,3,0),"") -> 0 | AS162: 23 | AT162: 0 0 | AV162: 0 | AW162: =IF(AT162<>"",COUNTIF($AX$140:$AX$177,">"&AX162)+COUNTIF($AX$140:AX162,AX162),"") -> 23 | AX162: 0
A163: 24 | C163: 0 | D163: 0 | E163: 0 | W163: 24 | X163: 0 | Y163: 0 | Z163: 0 | AI163: 0 | AN163: 24 | AP163: =IF(ISNA(MATCH(AN163,'2'!$AW$140:$AW$177,0)),"",INDEX('2'!$AT$140:$AT$177,MATCH(AN163,'2'!$AW$140:$AW$177,0))) -> 0 0 | AQ163: =IF($AP163<>"",VLOOKUP($AP163,'2'!$AT$140:$AV$177,3,0),"") -> 0 | AS163: 24 | AT163: 0 0 | AV163: 0 | AW163: =IF(AT163<>"",COUNTIF($AX$140:$AX$177,">"&AX163)+COUNTIF($AX$140:AX163,AX163),"") -> 24 | AX163: 0
A164: 25 | C164: 0 | D164: 0 | E164: 0 | W164: 25 | X164: 0 | Y164: 0 | Z164: 0 | AI164: 0 | AN164: 25 | AP164: =IF(ISNA(MATCH(AN164,'2'!$AW$140:$AW$177,0)),"",INDEX('2'!$AT$140:$AT$177,MATCH(AN164,'2'!$AW$140:$AW$177,0))) -> 0 0 | AQ164: =IF($AP164<>"",VLOOKUP($AP164,'2'!$AT$140:$AV$177,3,0),"") -> 0 | AS164: 25 | AT164: 0 0 | AV164: 0 | AW164: =IF(AT164<>"",COUNTIF($AX$140:$AX$177,">"&AX164)+COUNTIF($AX$140:AX164,AX164),"") -> 25 | AX164: 0
A165: 26 | C165: 0 | D165: 0 | E165: 0 | W165: 26 | X165: 0 | Y165: 0 | Z165: 0 | AI165: 0 | AN165: 26 | AP165: =IF(ISNA(MATCH(AN165,'2'!$AW$140:$AW$177,0)),"",INDEX('2'!$AT$140:$AT$177,MATCH(AN165,'2'!$AW$140:$AW$177,0))) -> 0 0 | AQ165: =IF($AP165<>"",VLOOKUP($AP165,'2'!$AT$140:$AV$177,3,0),"") -> 0 | AS165: 26 | AT165: 0 0 | AV165: 0 | AW165: =IF(AT165<>"",COUNTIF($AX$140:$AX$177,">"&AX165)+COUNTIF($AX$140:AX165,AX165),"") -> 26 | AX165: 0
A166: 27 | C166: 0 | D166: 0 | E166: 0 | W166: 27 | X166: 0 | Y166: 0 | Z166: 0 | AI166: 0 | AN166: 27 | AP166: =IF(ISNA(MATCH(AN166,'2'!$AW$140:$AW$177,0)),"",INDEX('2'!$AT$140:$AT$177,MATCH(AN166,'2'!$AW$140:$AW$177,0))) -> 0 0 | AQ166: =IF($AP166<>"",VLOOKUP($AP166,'2'!$AT$140:$AV$177,3,0),"") -> 0 | AS166: 27 | AT166: 0 0 | AV166: 0 | AW166: =IF(AT166<>"",COUNTIF($AX$140:$AX$177,">"&AX166)+COUNTIF($AX$140:AX166,AX166),"") -> 27 | AX166: 0
A167: 28 | C167: 0 | D167: 0 | E167: 0 | W167: 28 | X167: 0 | Y167: 0 | Z167: 0 | AI167: 0 | AN167: 28 | AP167: =IF(ISNA(MATCH(AN167,'2'!$AW$140:$AW$177,0)),"",INDEX('2'!$AT$140:$AT$177,MATCH(AN167,'2'!$AW$140:$AW$177,0))) -> 0 0 | AQ167: =IF($AP167<>"",VLOOKUP($AP167,'2'!$AT$140:$AV$177,3,0),"") -> 0 | AS167: 28 | AT167: 0 0 | AV167: 0 | AW167: =IF(AT167<>"",COUNTIF($AX$140:$AX$177,">"&AX167)+COUNTIF($AX$140:AX167,AX167),"") -> 28 | AX167: 0
A168: 29 | C168: 0 | D168: 0 | E168: 0 | W168: 29 | X168: 0 | Y168: 0 | Z168: 0 | AI168: 0 | AN168: 29 | AP168: =IF(ISNA(MATCH(AN168,'2'!$AW$140:$AW$177,0)),"",INDEX('2'!$AT$140:$AT$177,MATCH(AN168,'2'!$AW$140:$AW$177,0))) -> 0 0 | AQ168: =IF($AP168<>"",VLOOKUP($AP168,'2'!$AT$140:$AV$177,3,0),"") -> 0 | AS168: 29 | AT168: 0 0 | AV168: 0 | AW168: =IF(AT168<>"",COUNTIF($AX$140:$AX$177,">"&AX168)+COUNTIF($AX$140:AX168,AX168),"") -> 29 | AX168: 0
A169: 30 | C169: 0 | D169: 0 | E169: 0 | W169: 30 | X169: 0 | Y169: 0 | Z169: 0 | AI169: 0 | AN169: 30 | AP169: =IF(ISNA(MATCH(AN169,'2'!$AW$140:$AW$177,0)),"",INDEX('2'!$AT$140:$AT$177,MATCH(AN169,'2'!$AW$140:$AW$177,0))) -> 0 0 | AQ169: =IF($AP169<>"",VLOOKUP($AP169,'2'!$AT$140:$AV$177,3,0),"") -> 0 | AS169: 30 | AT169: 0 0 | AV169: 0 | AW169: =IF(AT169<>"",COUNTIF($AX$140:$AX$177,">"&AX169)+COUNTIF($AX$140:AX169,AX169),"") -> 30 | AX169: 0
A170: 31 | C170: 0 | D170: 0 | E170: 0 | W170: 31 | X170: 0 | Y170: 0 | Z170: 0 | AI170: 0 | AN170: 31 | AP170: =IF(ISNA(MATCH(AN170,'2'!$AW$140:$AW$177,0)),"",INDEX('2'!$AT$140:$AT$177,MATCH(AN170,'2'!$AW$140:$AW$177,0))) -> 0 0 | AQ170: =IF($AP170<>"",VLOOKUP($AP170,'2'!$AT$140:$AV$177,3,0),"") -> 0 | AS170: 31 | AT170: 0 0 | AV170: 0 | AW170: =IF(AT170<>"",COUNTIF($AX$140:$AX$177,">"&AX170)+COUNTIF($AX$140:AX170,AX170),"") -> 31 | AX170: 0
A171: 32 | C171: 0 | D171: 0 | E171: 0 | W171: 32 | X171: 0 | Y171: 0 | Z171: 0 | AI171: 0 | AN171: 32 | AP171: =IF(ISNA(MATCH(AN171,'2'!$AW$140:$AW$177,0)),"",INDEX('2'!$AT$140:$AT$177,MATCH(AN171,'2'!$AW$140:$AW$177,0))) -> 0 0 | AQ171: =IF($AP171<>"",VLOOKUP($AP171,'2'!$AT$140:$AV$177,3,0),"") -> 0 | AS171: 32 | AT171: 0 0 | AV171: 0 | AW171: =IF(AT171<>"",COUNTIF($AX$140:$AX$177,">"&AX171)+COUNTIF($AX$140:AX171,AX171),"") -> 32 | AX171: 0
A172: 33 | C172: =C110 -> 0 | D172: 0 | E172: 0 | W172: 33 | X172: 0 | Y172: 0 | Z172: 0 | AI172: 0 | AN172: 33 | AP172: =IF(ISNA(MATCH(AN172,'2'!$AW$140:$AW$177,0)),"",INDEX('2'!$AT$140:$AT$177,MATCH(AN172,'2'!$AW$140:$AW$177,0))) -> 0 0 | AQ172: =IF($AP172<>"",VLOOKUP($AP172,'2'!$AT$140:$AV$177,3,0),"") -> 0 | AS172: 33 | AT172: 0 0 | AV172: 0 | AW172: =IF(AT172<>"",COUNTIF($AX$140:$AX$177,">"&AX172)+COUNTIF($AX$140:AX172,AX172),"") -> 33 | AX172: 0
A173: 34 | C173: 0 | D173: 0 | E173: 0 | W173: 34 | X173: 0 | Y173: 0 | Z173: 0 | AI173: 0 | AN173: 34 | AP173: =IF(ISNA(MATCH(AN173,'2'!$AW$140:$AW$177,0)),"",INDEX('2'!$AT$140:$AT$177,MATCH(AN173,'2'!$AW$140:$AW$177,0))) -> 0 0 | AQ173: =IF($AP173<>"",VLOOKUP($AP173,'2'!$AT$140:$AV$177,3,0),"") -> 0 | AS173: 34 | AT173: 0 0 | AV173: 0 | AW173: =IF(AT173<>"",COUNTIF($AX$140:$AX$177,">"&AX173)+COUNTIF($AX$140:AX173,AX173),"") -> 34 | AX173: 0
A174: 35 | C174: 0 | D174: 0 | E174: 0 | W174: 35 | X174: 0 | Y174: 0 | Z174: 0 | AI174: 0 | AN174: 35 | AP174: =IF(ISNA(MATCH(AN174,'2'!$AW$140:$AW$177,0)),"",INDEX('2'!$AT$140:$AT$177,MATCH(AN174,'2'!$AW$140:$AW$177,0))) -> 0 0 | AQ174: =IF($AP174<>"",VLOOKUP($AP174,'2'!$AT$140:$AV$177,3,0),"") -> 0 | AS174: 35 | AT174: 0 0 | AV174: 0 | AW174: =IF(AT174<>"",COUNTIF($AX$140:$AX$177,">"&AX174)+COUNTIF($AX$140:AX174,AX174),"") -> 35 | AX174: 0
A175: 36 | C175: 0 | D175: 0 | E175: 0 | W175: 36 | X175: 0 | Y175: 0 | Z175: 0 | AI175: 0 | AN175: 36 | AP175: =IF(ISNA(MATCH(AN175,'2'!$AW$140:$AW$177,0)),"",INDEX('2'!$AT$140:$AT$177,MATCH(AN175,'2'!$AW$140:$AW$177,0))) -> 0 0 | AQ175: =IF($AP175<>"",VLOOKUP($AP175,'2'!$AT$140:$AV$177,3,0),"") -> 0 | AS175: 36 | AT175: 0 0 | AV175: 0 | AW175: =IF(AT175<>"",COUNTIF($AX$140:$AX$177,">"&AX175)+COUNTIF($AX$140:AX175,AX175),"") -> 36 | AX175: 0
A176: 37 | C176: 0 | D176: 0 | E176: 0 | W176: 37 | X176: 0 | Y176: 0 | Z176: 0 | AI176: 0 | AN176: 37 | AP176: =IF(ISNA(MATCH(AN176,'2'!$AW$140:$AW$177,0)),"",INDEX('2'!$AT$140:$AT$177,MATCH(AN176,'2'!$AW$140:$AW$177,0))) -> 0 0 | AQ176: =IF($AP176<>"",VLOOKUP($AP176,'2'!$AT$140:$AV$177,3,0),"") -> 0 | AS176: 37 | AT176: 0 0 | AV176: 0 | AW176: =IF(AT176<>"",COUNTIF($AX$140:$AX$177,">"&AX176)+COUNTIF($AX$140:AX176,AX176),"") -> 37 | AX176: 0
A177: 38 | C177: 0 | D177: 0 | E177: 0 | W177: 38 | X177: 0 | Y177: 0 | Z177: 0 | AI177: 0 | AN177: 38 | AP177: =IF(ISNA(MATCH(AN177,'2'!$AW$140:$AW$177,0)),"",INDEX('2'!$AT$140:$AT$177,MATCH(AN177,'2'!$AW$140:$AW$177,0))) -> 0 0 | AQ177: =IF($AP177<>"",VLOOKUP($AP177,'2'!$AT$140:$AV$177,3,0),"") -> 0 | AS177: 38 | AT177: 0 0 | AV177: 0 | AW177: =IF(AT177<>"",COUNTIF($AX$140:$AX$177,">"&AX177)+COUNTIF($AX$140:AX177,AX177),"") -> 38 | AX177: 0
D180: ="Effectif Total : " &F180 -> Effectif Total : 0 | F180: =SUM(F182:F183) -> 0 | R180: =COUNTIFS(R140:R177,">=10") -> 0 | Y180: ="Effectif Total : " &Z182 -> Effectif Total : 0 | AA180: =F180 -> 0 | AP180: =Y180 -> Effectif Total : 0 | AQ180: =F180 -> 0
D182: ="Filles : "&F182 -> Filles : 0 | F182: =COUNTIFS(C140:C177,"أ") -> 0 | S182: =COUNTIFS(S140:S177,">=10") -> 0 | Y182: =D182 -> Filles : 0 | Z182: =F180 -> 0 | AA182: =AA180 -> 0 | AC182: Moyenne trimestrielle >=10 | AG182: =COUNTIFS(AG140:AG177,">=10") -> 0 | AH182: =AG182/AA180 ->  | AP182: =Y182 -> Filles : 0 | AQ182: =AQ180 -> 0
D183: ="Garçon : "&F183 -> Garçon : 0 | F183: =COUNTIFS(C140:C177,"ذ") -> 0 | T183: =COUNTIFS(T140:T177,">=10") -> 0 | Y183: =D183 -> Garçon : 0 | AA183: =AA182 -> 0 | AC183: Moyennegénérale >=10 | AG183: =COUNTIFS(AI140:AI177,">=10") -> 0 | AH183: =AG183/AA180 ->  | AP183: =Y183 -> Garçon : 0 | AQ183: =AQ182 -> 0
D188: =D126 -> Collège - Mostaganem | S188: =IF(S126<>"",S126,"") -> 2014 - 2015 | T188: =IF(#REF!<>"",#REF!,"") ->  | Y188: =D188 -> Collège - Mostaganem | AH188: =IF(S188<>"",S188,"") -> 2014 - 2015 | AI188: =IF(N188<>"",N188,"") -> 
S189: =IF(#REF!<>"",#REF!,"") ->  | AH189: =IF(M189<>"",M189,"") ->  | AI189: =IF(N189<>"",N189,"") -> 
D190: Classe: | E190: =E128 -> 1AM2 | K190: Resultat des 3 trimestres | Y190: Classe: | Z190: =E190 -> 1AM2 | AB190: Classement
D191: Matière: | E191: =IF(E129<>"",E129,"") -> Mathématiques | Y191: Matière: | Z191: =IF(E191<>"",E191,"") -> Mathématiques
D192: Prof: | E192: =IF(E130<>"",E130,"") -> Toufik MERINE | Y192: Prof: | Z192: =IF(E192<>"",E192,"") -> Toufik MERINE
D195: Nom | E195: Prénom | F195: Date de naissance | H195: Moy 1er Trim | I195: Moy 2e Trim | J195: Moy 3e Trim | K195: Moy Générale | L195: L'âge jusqu'aujourd'hui | Y195: Nom et Prénom | AA195: Date de naissance | AB195: Moy Générale | AC195: L'âge jusqu'aujourd'hui
A202: 1 | C202: =C140 -> 0 | D202: =D16&" "&E16 ->  | F202: =F140 ->  | H202: =IF(T16="","",AG16) ->  | I202: =IF(T78="","",AG78) ->  | J202: =IF(T140="","",AG140) ->  | K202: =IF(SUM(H202:J202)=0,0,AVERAGE(H202:J202)) -> 0 | Q202: =DATEDIF(F202,TODAY(),"y")&" ans "&DATEDIF(F202,TODAY(),"ym")&" mois "&DATEDIF(F202,TODAY(),"md")&" jours" ->  | T202: =C202 -> 0 | W202: 1 | X202: =IF($Y202<>"",VLOOKUP($Y202,'2'!$D$202:$T$239,17,0),"") -> 0 | Y202: =IF(ISNA(MATCH(W202,'2'!$AC$202:$AC$239,0)),"",INDEX('2'!$D$202:$D$239,MATCH(W202,'2'!$AC$202:$AC$239,0))) ->  | AA202: =IF($Y202<>"",VLOOKUP($Y202,'2'!$D$202:$F$239,3,0),"") ->  | AB202: =IF($Y202<>"",VLOOKUP($Y202,'2'!$D$202:$K$239,8,0),"") -> 0 | AC202: =IF(D202<>"",COUNTIF($AD$202:$AD$239,">"&AD202)+COUNTIF($AD$202:AD202,AD202),"") -> 1 | AD202: =IF(K202<>"",K202*10000,"") -> 0 | AG202: =IF($Y202<>"",VLOOKUP($Y202,'2'!$D$202:$Q$239,14,0),"") -> 
A203: 2 | C203: 0 | D203: =D17&" "&E17 ->  | K203: =IF(SUM(H203:J203)=0,0,AVERAGE(H203:J203)) -> 0 | Q203: =DATEDIF(F203,TODAY(),"y")&" ans "&DATEDIF(F203,TODAY(),"ym")&" mois "&DATEDIF(F203,TODAY(),"md")&" jours" ->  | T203: =C203 -> 0 | W203: 2 | X203: =IF($Y203<>"",VLOOKUP($Y203,'2'!$D$202:$T$239,17,0),"") -> 0 | Y203: =IF(ISNA(MATCH(W203,'2'!$AC$202:$AC$239,0)),"",INDEX('2'!$D$202:$D$239,MATCH(W203,'2'!$AC$202:$AC$239,0))) ->  | AA203: =IF($Y203<>"",VLOOKUP($Y203,'2'!$D$202:$F$239,3,0),"") ->  | AB203: =IF($Y203<>"",VLOOKUP($Y203,'2'!$D$202:$K$239,8,0),"") -> 0 | AC203: =IF(D203<>"",COUNTIF($AD$202:$AD$239,">"&AD203)+COUNTIF($AD$202:AD203,AD203),"") -> 2 | AD203: =IF(K203<>"",K203*10000,"") -> 0 | AG203: =IF($Y203<>"",VLOOKUP($Y203,'2'!$D$202:$Q$239,14,0),"") -> 
A204: 3 | C204: 0 | K204: 0 | T204: 0 | W204: 3 | X204: =IF($Y204<>"",VLOOKUP($Y204,'2'!$D$202:$T$239,17,0),"") -> 0 | Y204: =IF(ISNA(MATCH(W204,'2'!$AC$202:$AC$239,0)),"",INDEX('2'!$D$202:$D$239,MATCH(W204,'2'!$AC$202:$AC$239,0))) ->  | AA204: =IF($Y204<>"",VLOOKUP($Y204,'2'!$D$202:$F$239,3,0),"") ->  | AB204: =IF($Y204<>"",VLOOKUP($Y204,'2'!$D$202:$K$239,8,0),"") -> 0 | AC204: =IF(D204<>"",COUNTIF($AD$202:$AD$239,">"&AD204)+COUNTIF($AD$202:AD204,AD204),"") -> 3 | AD204: 0 | AG204: =IF($Y204<>"",VLOOKUP($Y204,'2'!$D$202:$Q$239,14,0),"") -> 
A205: 4 | C205: 0 | K205: 0 | T205: 0 | W205: 4 | X205: =IF($Y205<>"",VLOOKUP($Y205,'2'!$D$202:$T$239,17,0),"") -> 0 | Y205: =IF(ISNA(MATCH(W205,'2'!$AC$202:$AC$239,0)),"",INDEX('2'!$D$202:$D$239,MATCH(W205,'2'!$AC$202:$AC$239,0))) ->  | AA205: =IF($Y205<>"",VLOOKUP($Y205,'2'!$D$202:$F$239,3,0),"") ->  | AB205: =IF($Y205<>"",VLOOKUP($Y205,'2'!$D$202:$K$239,8,0),"") -> 0 | AC205: =IF(D205<>"",COUNTIF($AD$202:$AD$239,">"&AD205)+COUNTIF($AD$202:AD205,AD205),"") -> 4 | AD205: 0 | AG205: =IF($Y205<>"",VLOOKUP($Y205,'2'!$D$202:$Q$239,14,0),"") -> 
A206: 5 | C206: 0 | K206: 0 | T206: 0 | W206: 5 | X206: =IF($Y206<>"",VLOOKUP($Y206,'2'!$D$202:$T$239,17,0),"") -> 0 | Y206: =IF(ISNA(MATCH(W206,'2'!$AC$202:$AC$239,0)),"",INDEX('2'!$D$202:$D$239,MATCH(W206,'2'!$AC$202:$AC$239,0))) ->  | AA206: =IF($Y206<>"",VLOOKUP($Y206,'2'!$D$202:$F$239,3,0),"") ->  | AB206: =IF($Y206<>"",VLOOKUP($Y206,'2'!$D$202:$K$239,8,0),"") -> 0 | AC206: =IF(D206<>"",COUNTIF($AD$202:$AD$239,">"&AD206)+COUNTIF($AD$202:AD206,AD206),"") -> 5 | AD206: 0 | AG206: =IF($Y206<>"",VLOOKUP($Y206,'2'!$D$202:$Q$239,14,0),"") -> 
A207: 6 | C207: 0 | K207: 0 | T207: 0 | W207: 6 | X207: =IF($Y207<>"",VLOOKUP($Y207,'2'!$D$202:$T$239,17,0),"") -> 0 | Y207: =IF(ISNA(MATCH(W207,'2'!$AC$202:$AC$239,0)),"",INDEX('2'!$D$202:$D$239,MATCH(W207,'2'!$AC$202:$AC$239,0))) ->  | AA207: =IF($Y207<>"",VLOOKUP($Y207,'2'!$D$202:$F$239,3,0),"") ->  | AB207: =IF($Y207<>"",VLOOKUP($Y207,'2'!$D$202:$K$239,8,0),"") -> 0 | AC207: =IF(D207<>"",COUNTIF($AD$202:$AD$239,">"&AD207)+COUNTIF($AD$202:AD207,AD207),"") -> 6 | AD207: 0 | AG207: =IF($Y207<>"",VLOOKUP($Y207,'2'!$D$202:$Q$239,14,0),"") -> 
A208: 7 | C208: 0 | K208: 0 | T208: 0 | W208: 7 | X208: =IF($Y208<>"",VLOOKUP($Y208,'2'!$D$202:$T$239,17,0),"") -> 0 | Y208: =IF(ISNA(MATCH(W208,'2'!$AC$202:$AC$239,0)),"",INDEX('2'!$D$202:$D$239,MATCH(W208,'2'!$AC$202:$AC$239,0))) ->  | AA208: =IF($Y208<>"",VLOOKUP($Y208,'2'!$D$202:$F$239,3,0),"") ->  | AB208: =IF($Y208<>"",VLOOKUP($Y208,'2'!$D$202:$K$239,8,0),"") -> 0 | AC208: =IF(D208<>"",COUNTIF($AD$202:$AD$239,">"&AD208)+COUNTIF($AD$202:AD208,AD208),"") -> 7 | AD208: 0 | AG208: =IF($Y208<>"",VLOOKUP($Y208,'2'!$D$202:$Q$239,14,0),"") -> 
A209: 8 | C209: 0 | K209: 0 | T209: 0 | W209: 8 | X209: =IF($Y209<>"",VLOOKUP($Y209,'2'!$D$202:$T$239,17,0),"") -> 0 | Y209: =IF(ISNA(MATCH(W209,'2'!$AC$202:$AC$239,0)),"",INDEX('2'!$D$202:$D$239,MATCH(W209,'2'!$AC$202:$AC$239,0))) ->  | AA209: =IF($Y209<>"",VLOOKUP($Y209,'2'!$D$202:$F$239,3,0),"") ->  | AB209: =IF($Y209<>"",VLOOKUP($Y209,'2'!$D$202:$K$239,8,0),"") -> 0 | AC209: =IF(D209<>"",COUNTIF($AD$202:$AD$239,">"&AD209)+COUNTIF($AD$202:AD209,AD209),"") -> 8 | AD209: 0 | AG209: =IF($Y209<>"",VLOOKUP($Y209,'2'!$D$202:$Q$239,14,0),"") -> 
A210: 9 | C210: 0 | K210: 0 | T210: 0 | W210: 9 | X210: =IF($Y210<>"",VLOOKUP($Y210,'2'!$D$202:$T$239,17,0),"") -> 0 | Y210: =IF(ISNA(MATCH(W210,'2'!$AC$202:$AC$239,0)),"",INDEX('2'!$D$202:$D$239,MATCH(W210,'2'!$AC$202:$AC$239,0))) ->  | AA210: =IF($Y210<>"",VLOOKUP($Y210,'2'!$D$202:$F$239,3,0),"") ->  | AB210: =IF($Y210<>"",VLOOKUP($Y210,'2'!$D$202:$K$239,8,0),"") -> 0 | AC210: =IF(D210<>"",COUNTIF($AD$202:$AD$239,">"&AD210)+COUNTIF($AD$202:AD210,AD210),"") -> 9 | AD210: 0 | AG210: =IF($Y210<>"",VLOOKUP($Y210,'2'!$D$202:$Q$239,14,0),"") -> 
A211: 10 | C211: 0 | K211: 0 | T211: 0 | W211: 10 | X211: =IF($Y211<>"",VLOOKUP($Y211,'2'!$D$202:$T$239,17,0),"") -> 0 | Y211: =IF(ISNA(MATCH(W211,'2'!$AC$202:$AC$239,0)),"",INDEX('2'!$D$202:$D$239,MATCH(W211,'2'!$AC$202:$AC$239,0))) ->  | AA211: =IF($Y211<>"",VLOOKUP($Y211,'2'!$D$202:$F$239,3,0),"") ->  | AB211: =IF($Y211<>"",VLOOKUP($Y211,'2'!$D$202:$K$239,8,0),"") -> 0 | AC211: =IF(D211<>"",COUNTIF($AD$202:$AD$239,">"&AD211)+COUNTIF($AD$202:AD211,AD211),"") -> 10 | AD211: 0 | AG211: =IF($Y211<>"",VLOOKUP($Y211,'2'!$D$202:$Q$239,14,0),"") -> 
A212: 11 | C212: 0 | K212: 0 | T212: 0 | W212: 11 | X212: =IF($Y212<>"",VLOOKUP($Y212,'2'!$D$202:$T$239,17,0),"") -> 0 | Y212: =IF(ISNA(MATCH(W212,'2'!$AC$202:$AC$239,0)),"",INDEX('2'!$D$202:$D$239,MATCH(W212,'2'!$AC$202:$AC$239,0))) ->  | AA212: =IF($Y212<>"",VLOOKUP($Y212,'2'!$D$202:$F$239,3,0),"") ->  | AB212: =IF($Y212<>"",VLOOKUP($Y212,'2'!$D$202:$K$239,8,0),"") -> 0 | AC212: =IF(D212<>"",COUNTIF($AD$202:$AD$239,">"&AD212)+COUNTIF($AD$202:AD212,AD212),"") -> 11 | AD212: 0 | AG212: =IF($Y212<>"",VLOOKUP($Y212,'2'!$D$202:$Q$239,14,0),"") -> 
A213: 12 | C213: 0 | K213: 0 | T213: 0 | W213: 12 | X213: =IF($Y213<>"",VLOOKUP($Y213,'2'!$D$202:$T$239,17,0),"") -> 0 | Y213: =IF(ISNA(MATCH(W213,'2'!$AC$202:$AC$239,0)),"",INDEX('2'!$D$202:$D$239,MATCH(W213,'2'!$AC$202:$AC$239,0))) ->  | AA213: =IF($Y213<>"",VLOOKUP($Y213,'2'!$D$202:$F$239,3,0),"") ->  | AB213: =IF($Y213<>"",VLOOKUP($Y213,'2'!$D$202:$K$239,8,0),"") -> 0 | AC213: =IF(D213<>"",COUNTIF($AD$202:$AD$239,">"&AD213)+COUNTIF($AD$202:AD213,AD213),"") -> 12 | AD213: 0 | AG213: =IF($Y213<>"",VLOOKUP($Y213,'2'!$D$202:$Q$239,14,0),"") -> 
A214: 13 | C214: 0 | K214: 0 | T214: 0 | W214: 13 | X214: =IF($Y214<>"",VLOOKUP($Y214,'2'!$D$202:$T$239,17,0),"") -> 0 | Y214: =IF(ISNA(MATCH(W214,'2'!$AC$202:$AC$239,0)),"",INDEX('2'!$D$202:$D$239,MATCH(W214,'2'!$AC$202:$AC$239,0))) ->  | AA214: =IF($Y214<>"",VLOOKUP($Y214,'2'!$D$202:$F$239,3,0),"") ->  | AB214: =IF($Y214<>"",VLOOKUP($Y214,'2'!$D$202:$K$239,8,0),"") -> 0 | AC214: =IF(D214<>"",COUNTIF($AD$202:$AD$239,">"&AD214)+COUNTIF($AD$202:AD214,AD214),"") -> 13 | AD214: 0 | AG214: =IF($Y214<>"",VLOOKUP($Y214,'2'!$D$202:$Q$239,14,0),"") -> 
A215: 14 | C215: 0 | K215: 0 | T215: 0 | W215: 14 | X215: =IF($Y215<>"",VLOOKUP($Y215,'2'!$D$202:$T$239,17,0),"") -> 0 | Y215: =IF(ISNA(MATCH(W215,'2'!$AC$202:$AC$239,0)),"",INDEX('2'!$D$202:$D$239,MATCH(W215,'2'!$AC$202:$AC$239,0))) ->  | AA215: =IF($Y215<>"",VLOOKUP($Y215,'2'!$D$202:$F$239,3,0),"") ->  | AB215: =IF($Y215<>"",VLOOKUP($Y215,'2'!$D$202:$K$239,8,0),"") -> 0 | AC215: =IF(D215<>"",COUNTIF($AD$202:$AD$239,">"&AD215)+COUNTIF($AD$202:AD215,AD215),"") -> 14 | AD215: 0 | AG215: =IF($Y215<>"",VLOOKUP($Y215,'2'!$D$202:$Q$239,14,0),"") -> 
A216: 15 | C216: 0 | K216: 0 | T216: 0 | W216: 15 | X216: =IF($Y216<>"",VLOOKUP($Y216,'2'!$D$202:$T$239,17,0),"") -> 0 | Y216: =IF(ISNA(MATCH(W216,'2'!$AC$202:$AC$239,0)),"",INDEX('2'!$D$202:$D$239,MATCH(W216,'2'!$AC$202:$AC$239,0))) ->  | AA216: =IF($Y216<>"",VLOOKUP($Y216,'2'!$D$202:$F$239,3,0),"") ->  | AB216: =IF($Y216<>"",VLOOKUP($Y216,'2'!$D$202:$K$239,8,0),"") -> 0 | AC216: =IF(D216<>"",COUNTIF($AD$202:$AD$239,">"&AD216)+COUNTIF($AD$202:AD216,AD216),"") -> 15 | AD216: 0 | AG216: =IF($Y216<>"",VLOOKUP($Y216,'2'!$D$202:$Q$239,14,0),"") -> 
A217: 16 | C217: 0 | K217: 0 | T217: 0 | W217: 16 | X217: =IF($Y217<>"",VLOOKUP($Y217,'2'!$D$202:$T$239,17,0),"") -> 0 | Y217: =IF(ISNA(MATCH(W217,'2'!$AC$202:$AC$239,0)),"",INDEX('2'!$D$202:$D$239,MATCH(W217,'2'!$AC$202:$AC$239,0))) ->  | AA217: =IF($Y217<>"",VLOOKUP($Y217,'2'!$D$202:$F$239,3,0),"") ->  | AB217: =IF($Y217<>"",VLOOKUP($Y217,'2'!$D$202:$K$239,8,0),"") -> 0 | AC217: =IF(D217<>"",COUNTIF($AD$202:$AD$239,">"&AD217)+COUNTIF($AD$202:AD217,AD217),"") -> 16 | AD217: 0 | AG217: =IF($Y217<>"",VLOOKUP($Y217,'2'!$D$202:$Q$239,14,0),"") -> 
A218: 17 | C218: 0 | K218: 0 | T218: 0 | W218: 17 | X218: =IF($Y218<>"",VLOOKUP($Y218,'2'!$D$202:$T$239,17,0),"") -> 0 | Y218: =IF(ISNA(MATCH(W218,'2'!$AC$202:$AC$239,0)),"",INDEX('2'!$D$202:$D$239,MATCH(W218,'2'!$AC$202:$AC$239,0))) ->  | AA218: =IF($Y218<>"",VLOOKUP($Y218,'2'!$D$202:$F$239,3,0),"") ->  | AB218: =IF($Y218<>"",VLOOKUP($Y218,'2'!$D$202:$K$239,8,0),"") -> 0 | AC218: =IF(D218<>"",COUNTIF($AD$202:$AD$239,">"&AD218)+COUNTIF($AD$202:AD218,AD218),"") -> 17 | AD218: 0 | AG218: =IF($Y218<>"",VLOOKUP($Y218,'2'!$D$202:$Q$239,14,0),"") -> 
A219: 18 | C219: 0 | K219: 0 | T219: 0 | W219: 18 | X219: =IF($Y219<>"",VLOOKUP($Y219,'2'!$D$202:$T$239,17,0),"") -> 0 | Y219: =IF(ISNA(MATCH(W219,'2'!$AC$202:$AC$239,0)),"",INDEX('2'!$D$202:$D$239,MATCH(W219,'2'!$AC$202:$AC$239,0))) ->  | AA219: =IF($Y219<>"",VLOOKUP($Y219,'2'!$D$202:$F$239,3,0),"") ->  | AB219: =IF($Y219<>"",VLOOKUP($Y219,'2'!$D$202:$K$239,8,0),"") -> 0 | AC219: =IF(D219<>"",COUNTIF($AD$202:$AD$239,">"&AD219)+COUNTIF($AD$202:AD219,AD219),"") -> 18 | AD219: 0 | AG219: =IF($Y219<>"",VLOOKUP($Y219,'2'!$D$202:$Q$239,14,0),"") -> 
A220: 19 | C220: 0 | K220: 0 | T220: 0 | W220: 19 | X220: =IF($Y220<>"",VLOOKUP($Y220,'2'!$D$202:$T$239,17,0),"") -> 0 | Y220: =IF(ISNA(MATCH(W220,'2'!$AC$202:$AC$239,0)),"",INDEX('2'!$D$202:$D$239,MATCH(W220,'2'!$AC$202:$AC$239,0))) ->  | AA220: =IF($Y220<>"",VLOOKUP($Y220,'2'!$D$202:$F$239,3,0),"") ->  | AB220: =IF($Y220<>"",VLOOKUP($Y220,'2'!$D$202:$K$239,8,0),"") -> 0 | AC220: =IF(D220<>"",COUNTIF($AD$202:$AD$239,">"&AD220)+COUNTIF($AD$202:AD220,AD220),"") -> 19 | AD220: 0 | AG220: =IF($Y220<>"",VLOOKUP($Y220,'2'!$D$202:$Q$239,14,0),"") -> 
A221: 20 | C221: 0 | K221: 0 | T221: 0 | W221: 20 | X221: =IF($Y221<>"",VLOOKUP($Y221,'2'!$D$202:$T$239,17,0),"") -> 0 | Y221: =IF(ISNA(MATCH(W221,'2'!$AC$202:$AC$239,0)),"",INDEX('2'!$D$202:$D$239,MATCH(W221,'2'!$AC$202:$AC$239,0))) ->  | AA221: =IF($Y221<>"",VLOOKUP($Y221,'2'!$D$202:$F$239,3,0),"") ->  | AB221: =IF($Y221<>"",VLOOKUP($Y221,'2'!$D$202:$K$239,8,0),"") -> 0 | AC221: =IF(D221<>"",COUNTIF($AD$202:$AD$239,">"&AD221)+COUNTIF($AD$202:AD221,AD221),"") -> 20 | AD221: 0 | AG221: =IF($Y221<>"",VLOOKUP($Y221,'2'!$D$202:$Q$239,14,0),"") -> 
A222: 21 | C222: 0 | K222: 0 | T222: 0 | W222: 21 | X222: =IF($Y222<>"",VLOOKUP($Y222,'2'!$D$202:$T$239,17,0),"") -> 0 | Y222: =IF(ISNA(MATCH(W222,'2'!$AC$202:$AC$239,0)),"",INDEX('2'!$D$202:$D$239,MATCH(W222,'2'!$AC$202:$AC$239,0))) ->  | AA222: =IF($Y222<>"",VLOOKUP($Y222,'2'!$D$202:$F$239,3,0),"") ->  | AB222: =IF($Y222<>"",VLOOKUP($Y222,'2'!$D$202:$K$239,8,0),"") -> 0 | AC222: =IF(D222<>"",COUNTIF($AD$202:$AD$239,">"&AD222)+COUNTIF($AD$202:AD222,AD222),"") -> 21 | AD222: 0 | AG222: =IF($Y222<>"",VLOOKUP($Y222,'2'!$D$202:$Q$239,14,0),"") -> 
A223: 22 | C223: 0 | K223: 0 | T223: 0 | W223: 22 | X223: =IF($Y223<>"",VLOOKUP($Y223,'2'!$D$202:$T$239,17,0),"") -> 0 | Y223: =IF(ISNA(MATCH(W223,'2'!$AC$202:$AC$239,0)),"",INDEX('2'!$D$202:$D$239,MATCH(W223,'2'!$AC$202:$AC$239,0))) ->  | AA223: =IF($Y223<>"",VLOOKUP($Y223,'2'!$D$202:$F$239,3,0),"") ->  | AB223: =IF($Y223<>"",VLOOKUP($Y223,'2'!$D$202:$K$239,8,0),"") -> 0 | AC223: =IF(D223<>"",COUNTIF($AD$202:$AD$239,">"&AD223)+COUNTIF($AD$202:AD223,AD223),"") -> 22 | AD223: 0 | AG223: =IF($Y223<>"",VLOOKUP($Y223,'2'!$D$202:$Q$239,14,0),"") -> 
A224: 23 | C224: 0 | K224: 0 | T224: 0 | W224: 23 | X224: =IF($Y224<>"",VLOOKUP($Y224,'2'!$D$202:$T$239,17,0),"") -> 0 | Y224: =IF(ISNA(MATCH(W224,'2'!$AC$202:$AC$239,0)),"",INDEX('2'!$D$202:$D$239,MATCH(W224,'2'!$AC$202:$AC$239,0))) ->  | AA224: =IF($Y224<>"",VLOOKUP($Y224,'2'!$D$202:$F$239,3,0),"") ->  | AB224: =IF($Y224<>"",VLOOKUP($Y224,'2'!$D$202:$K$239,8,0),"") -> 0 | AC224: =IF(D224<>"",COUNTIF($AD$202:$AD$239,">"&AD224)+COUNTIF($AD$202:AD224,AD224),"") -> 23 | AD224: 0 | AG224: =IF($Y224<>"",VLOOKUP($Y224,'2'!$D$202:$Q$239,14,0),"") -> 
A225: 24 | C225: 0 | K225: 0 | T225: 0 | W225: 24 | X225: =IF($Y225<>"",VLOOKUP($Y225,'2'!$D$202:$T$239,17,0),"") -> 0 | Y225: =IF(ISNA(MATCH(W225,'2'!$AC$202:$AC$239,0)),"",INDEX('2'!$D$202:$D$239,MATCH(W225,'2'!$AC$202:$AC$239,0))) ->  | AA225: =IF($Y225<>"",VLOOKUP($Y225,'2'!$D$202:$F$239,3,0),"") ->  | AB225: =IF($Y225<>"",VLOOKUP($Y225,'2'!$D$202:$K$239,8,0),"") -> 0 | AC225: =IF(D225<>"",COUNTIF($AD$202:$AD$239,">"&AD225)+COUNTIF($AD$202:AD225,AD225),"") -> 24 | AD225: 0 | AG225: =IF($Y225<>"",VLOOKUP($Y225,'2'!$D$202:$Q$239,14,0),"") -> 
A226: 25 | C226: 0 | K226: 0 | T226: 0 | W226: 25 | X226: =IF($Y226<>"",VLOOKUP($Y226,'2'!$D$202:$T$239,17,0),"") -> 0 | Y226: =IF(ISNA(MATCH(W226,'2'!$AC$202:$AC$239,0)),"",INDEX('2'!$D$202:$D$239,MATCH(W226,'2'!$AC$202:$AC$239,0))) ->  | AA226: =IF($Y226<>"",VLOOKUP($Y226,'2'!$D$202:$F$239,3,0),"") ->  | AB226: =IF($Y226<>"",VLOOKUP($Y226,'2'!$D$202:$K$239,8,0),"") -> 0 | AC226: =IF(D226<>"",COUNTIF($AD$202:$AD$239,">"&AD226)+COUNTIF($AD$202:AD226,AD226),"") -> 25 | AD226: 0 | AG226: =IF($Y226<>"",VLOOKUP($Y226,'2'!$D$202:$Q$239,14,0),"") -> 
A227: 26 | C227: 0 | K227: 0 | T227: 0 | W227: 26 | X227: =IF($Y227<>"",VLOOKUP($Y227,'2'!$D$202:$T$239,17,0),"") -> 0 | Y227: =IF(ISNA(MATCH(W227,'2'!$AC$202:$AC$239,0)),"",INDEX('2'!$D$202:$D$239,MATCH(W227,'2'!$AC$202:$AC$239,0))) ->  | AA227: =IF($Y227<>"",VLOOKUP($Y227,'2'!$D$202:$F$239,3,0),"") ->  | AB227: =IF($Y227<>"",VLOOKUP($Y227,'2'!$D$202:$K$239,8,0),"") -> 0 | AC227: =IF(D227<>"",COUNTIF($AD$202:$AD$239,">"&AD227)+COUNTIF($AD$202:AD227,AD227),"") -> 26 | AD227: 0 | AG227: =IF($Y227<>"",VLOOKUP($Y227,'2'!$D$202:$Q$239,14,0),"") -> 
A228: 27 | C228: 0 | K228: 0 | T228: 0 | W228: 27 | X228: =IF($Y228<>"",VLOOKUP($Y228,'2'!$D$202:$T$239,17,0),"") -> 0 | Y228: =IF(ISNA(MATCH(W228,'2'!$AC$202:$AC$239,0)),"",INDEX('2'!$D$202:$D$239,MATCH(W228,'2'!$AC$202:$AC$239,0))) ->  | AA228: =IF($Y228<>"",VLOOKUP($Y228,'2'!$D$202:$F$239,3,0),"") ->  | AB228: =IF($Y228<>"",VLOOKUP($Y228,'2'!$D$202:$K$239,8,0),"") -> 0 | AC228: =IF(D228<>"",COUNTIF($AD$202:$AD$239,">"&AD228)+COUNTIF($AD$202:AD228,AD228),"") -> 27 | AD228: 0 | AG228: =IF($Y228<>"",VLOOKUP($Y228,'2'!$D$202:$Q$239,14,0),"") -> 
A229: 28 | C229: 0 | K229: 0 | T229: 0 | W229: 28 | X229: =IF($Y229<>"",VLOOKUP($Y229,'2'!$D$202:$T$239,17,0),"") -> 0 | Y229: =IF(ISNA(MATCH(W229,'2'!$AC$202:$AC$239,0)),"",INDEX('2'!$D$202:$D$239,MATCH(W229,'2'!$AC$202:$AC$239,0))) ->  | AA229: =IF($Y229<>"",VLOOKUP($Y229,'2'!$D$202:$F$239,3,0),"") ->  | AB229: =IF($Y229<>"",VLOOKUP($Y229,'2'!$D$202:$K$239,8,0),"") -> 0 | AC229: =IF(D229<>"",COUNTIF($AD$202:$AD$239,">"&AD229)+COUNTIF($AD$202:AD229,AD229),"") -> 28 | AD229: 0 | AG229: =IF($Y229<>"",VLOOKUP($Y229,'2'!$D$202:$Q$239,14,0),"") -> 
A230: 29 | C230: 0 | K230: 0 | T230: 0 | W230: 29 | X230: =IF($Y230<>"",VLOOKUP($Y230,'2'!$D$202:$T$239,17,0),"") -> 0 | Y230: =IF(ISNA(MATCH(W230,'2'!$AC$202:$AC$239,0)),"",INDEX('2'!$D$202:$D$239,MATCH(W230,'2'!$AC$202:$AC$239,0))) ->  | AA230: =IF($Y230<>"",VLOOKUP($Y230,'2'!$D$202:$F$239,3,0),"") ->  | AB230: =IF($Y230<>"",VLOOKUP($Y230,'2'!$D$202:$K$239,8,0),"") -> 0 | AC230: =IF(D230<>"",COUNTIF($AD$202:$AD$239,">"&AD230)+COUNTIF($AD$202:AD230,AD230),"") -> 29 | AD230: 0 | AG230: =IF($Y230<>"",VLOOKUP($Y230,'2'!$D$202:$Q$239,14,0),"") -> 
A231: 30 | C231: 0 | K231: 0 | T231: 0 | W231: 30 | X231: =IF($Y231<>"",VLOOKUP($Y231,'2'!$D$202:$T$239,17,0),"") -> 0 | Y231: =IF(ISNA(MATCH(W231,'2'!$AC$202:$AC$239,0)),"",INDEX('2'!$D$202:$D$239,MATCH(W231,'2'!$AC$202:$AC$239,0))) ->  | AA231: =IF($Y231<>"",VLOOKUP($Y231,'2'!$D$202:$F$239,3,0),"") ->  | AB231: =IF($Y231<>"",VLOOKUP($Y231,'2'!$D$202:$K$239,8,0),"") -> 0 | AC231: =IF(D231<>"",COUNTIF($AD$202:$AD$239,">"&AD231)+COUNTIF($AD$202:AD231,AD231),"") -> 30 | AD231: 0 | AG231: =IF($Y231<>"",VLOOKUP($Y231,'2'!$D$202:$Q$239,14,0),"") -> 
A232: 31 | C232: 0 | K232: 0 | T232: 0 | W232: 31 | X232: =IF($Y232<>"",VLOOKUP($Y232,'2'!$D$202:$T$239,17,0),"") -> 0 | Y232: =IF(ISNA(MATCH(W232,'2'!$AC$202:$AC$239,0)),"",INDEX('2'!$D$202:$D$239,MATCH(W232,'2'!$AC$202:$AC$239,0))) ->  | AA232: =IF($Y232<>"",VLOOKUP($Y232,'2'!$D$202:$F$239,3,0),"") ->  | AB232: =IF($Y232<>"",VLOOKUP($Y232,'2'!$D$202:$K$239,8,0),"") -> 0 | AC232: =IF(D232<>"",COUNTIF($AD$202:$AD$239,">"&AD232)+COUNTIF($AD$202:AD232,AD232),"") -> 31 | AD232: 0 | AG232: =IF($Y232<>"",VLOOKUP($Y232,'2'!$D$202:$Q$239,14,0),"") -> 
A233: 32 | C233: 0 | K233: 0 | T233: 0 | W233: 32 | X233: =IF($Y233<>"",VLOOKUP($Y233,'2'!$D$202:$T$239,17,0),"") -> 0 | Y233: =IF(ISNA(MATCH(W233,'2'!$AC$202:$AC$239,0)),"",INDEX('2'!$D$202:$D$239,MATCH(W233,'2'!$AC$202:$AC$239,0))) ->  | AA233: =IF($Y233<>"",VLOOKUP($Y233,'2'!$D$202:$F$239,3,0),"") ->  | AB233: =IF($Y233<>"",VLOOKUP($Y233,'2'!$D$202:$K$239,8,0),"") -> 0 | AC233: =IF(D233<>"",COUNTIF($AD$202:$AD$239,">"&AD233)+COUNTIF($AD$202:AD233,AD233),"") -> 32 | AD233: 0 | AG233: =IF($Y233<>"",VLOOKUP($Y233,'2'!$D$202:$Q$239,14,0),"") -> 
A234: 33 | C234: 0 | K234: 0 | T234: 0 | W234: 33 | X234: =IF($Y234<>"",VLOOKUP($Y234,'2'!$D$202:$T$239,17,0),"") -> 0 | Y234: =IF(ISNA(MATCH(W234,'2'!$AC$202:$AC$239,0)),"",INDEX('2'!$D$202:$D$239,MATCH(W234,'2'!$AC$202:$AC$239,0))) ->  | AA234: =IF($Y234<>"",VLOOKUP($Y234,'2'!$D$202:$F$239,3,0),"") ->  | AB234: =IF($Y234<>"",VLOOKUP($Y234,'2'!$D$202:$K$239,8,0),"") -> 0 | AC234: =IF(D234<>"",COUNTIF($AD$202:$AD$239,">"&AD234)+COUNTIF($AD$202:AD234,AD234),"") -> 33 | AD234: 0 | AG234: =IF($Y234<>"",VLOOKUP($Y234,'2'!$D$202:$Q$239,14,0),"") -> 
A235: 34 | C235: 0 | K235: 0 | T235: 0 | W235: 34 | X235: =IF($Y235<>"",VLOOKUP($Y235,'2'!$D$202:$T$239,17,0),"") -> 0 | Y235: =IF(ISNA(MATCH(W235,'2'!$AC$202:$AC$239,0)),"",INDEX('2'!$D$202:$D$239,MATCH(W235,'2'!$AC$202:$AC$239,0))) ->  | AA235: =IF($Y235<>"",VLOOKUP($Y235,'2'!$D$202:$F$239,3,0),"") ->  | AB235: =IF($Y235<>"",VLOOKUP($Y235,'2'!$D$202:$K$239,8,0),"") -> 0 | AC235: =IF(D235<>"",COUNTIF($AD$202:$AD$239,">"&AD235)+COUNTIF($AD$202:AD235,AD235),"") -> 34 | AD235: 0 | AG235: =IF($Y235<>"",VLOOKUP($Y235,'2'!$D$202:$Q$239,14,0),"") -> 
A236: 35 | C236: 0 | K236: 0 | T236: 0 | W236: 35 | X236: =IF($Y236<>"",VLOOKUP($Y236,'2'!$D$202:$T$239,17,0),"") -> 0 | Y236: =IF(ISNA(MATCH(W236,'2'!$AC$202:$AC$239,0)),"",INDEX('2'!$D$202:$D$239,MATCH(W236,'2'!$AC$202:$AC$239,0))) ->  | AA236: =IF($Y236<>"",VLOOKUP($Y236,'2'!$D$202:$F$239,3,0),"") ->  | AB236: =IF($Y236<>"",VLOOKUP($Y236,'2'!$D$202:$K$239,8,0),"") -> 0 | AC236: =IF(D236<>"",COUNTIF($AD$202:$AD$239,">"&AD236)+COUNTIF($AD$202:AD236,AD236),"") -> 35 | AD236: 0 | AG236: =IF($Y236<>"",VLOOKUP($Y236,'2'!$D$202:$Q$239,14,0),"") -> 
A237: 36 | C237: 0 | K237: 0 | T237: 0 | W237: 36 | X237: =IF($Y237<>"",VLOOKUP($Y237,'2'!$D$202:$T$239,17,0),"") -> 0 | Y237: =IF(ISNA(MATCH(W237,'2'!$AC$202:$AC$239,0)),"",INDEX('2'!$D$202:$D$239,MATCH(W237,'2'!$AC$202:$AC$239,0))) ->  | AA237: =IF($Y237<>"",VLOOKUP($Y237,'2'!$D$202:$F$239,3,0),"") ->  | AB237: =IF($Y237<>"",VLOOKUP($Y237,'2'!$D$202:$K$239,8,0),"") -> 0 | AC237: =IF(D237<>"",COUNTIF($AD$202:$AD$239,">"&AD237)+COUNTIF($AD$202:AD237,AD237),"") -> 36 | AD237: 0 | AG237: =IF($Y237<>"",VLOOKUP($Y237,'2'!$D$202:$Q$239,14,0),"") -> 
A238: 37 | C238: 0 | K238: 0 | T238: 0 | W238: 37 | X238: =IF($Y238<>"",VLOOKUP($Y238,'2'!$D$202:$T$239,17,0),"") -> 0 | Y238: =IF(ISNA(MATCH(W238,'2'!$AC$202:$AC$239,0)),"",INDEX('2'!$D$202:$D$239,MATCH(W238,'2'!$AC$202:$AC$239,0))) ->  | AA238: =IF($Y238<>"",VLOOKUP($Y238,'2'!$D$202:$F$239,3,0),"") ->  | AB238: =IF($Y238<>"",VLOOKUP($Y238,'2'!$D$202:$K$239,8,0),"") -> 0 | AC238: =IF(D238<>"",COUNTIF($AD$202:$AD$239,">"&AD238)+COUNTIF($AD$202:AD238,AD238),"") -> 37 | AD238: 0 | AG238: =IF($Y238<>"",VLOOKUP($Y238,'2'!$D$202:$Q$239,14,0),"") -> 
A239: 38 | C239: 0 | K239: 0 | T239: 0 | W239: 38 | X239: =IF($Y239<>"",VLOOKUP($Y239,'2'!$D$202:$T$239,17,0),"") -> 0 | Y239: =IF(ISNA(MATCH(W239,'2'!$AC$202:$AC$239,0)),"",INDEX('2'!$D$202:$D$239,MATCH(W239,'2'!$AC$202:$AC$239,0))) ->  | AA239: =IF($Y239<>"",VLOOKUP($Y239,'2'!$D$202:$F$239,3,0),"") ->  | AB239: =IF($Y239<>"",VLOOKUP($Y239,'2'!$D$202:$K$239,8,0),"") -> 0 | AC239: =IF(D239<>"",COUNTIF($AD$202:$AD$239,">"&AD239)+COUNTIF($AD$202:AD239,AD239),"") -> 38 | AD239: 0 | AG239: =IF($Y239<>"",VLOOKUP($Y239,'2'!$D$202:$Q$239,14,0),"") -> 
D242: ="Effectif Total : " &F242 -> Effectif Total : 0 | F242: =SUM(F244:F245) -> 0 | Y242: ="المجموع : " &Z244 -> المجموع : 0 | AA242: =F242 -> 0
D244: ="Filles : "&F244 -> Filles : 0 | F244: =COUNTIFS(C202:C239,"أ") -> 0 | Y244: =D244 -> Filles : 0 | Z244: =F242 -> 0 | AA244: =AA242 -> 0
D245: ="Garçon : "&F245 -> Garçon : 0 | F245: =COUNTIFS(C202:C239,"ذ") -> 0 | Y245: =D245 -> Garçon : 0 | AA245: =AA244 -> 0

Sheet 3
D2: =IF('2'!D2<>"",'2'!D2,"") -> Collège - Mostaganem | E2: =IF(Accueil!F5<>"",Accueil!F5,"") ->  | F2: =IF(Accueil!G5<>"",Accueil!G5,"") ->  | G2: =IF(Accueil!#REF!<>"",Accueil!#REF!,"") ->  | H2: =IF(Accueil!J5<>"",Accueil!J5,"") ->  | I2: =IF(Accueil!K5<>"",Accueil!K5,"") ->  | J2: =IF(Accueil!#REF!<>"",Accueil!#REF!,"") ->  | S2: =IF(Accueil!F2<>"",Accueil!F2,"") -> 2014 - 2015 | T2: =IF(#REF!<>"",#REF!,"") ->  | Y2: =IF(D2<>"",D2,"") -> Collège - Mostaganem | Z2: =IF(#REF!<>"",#REF!,"") ->  | AA2: =IF(#REF!<>"",#REF!,"") ->  | AB2: =IF(#REF!<>"",#REF!,"") ->  | AC2: =IF(#REF!<>"",#REF!,"") ->  | AH2: =IF(S2<>"",S2,"") -> 2014 - 2015 | AI2: =IF(N2<>"",N2,"") ->  | AP2: =Y2 -> Collège - Mostaganem | AY2: =AH2 -> 2014 - 2015
D3: =IF(Accueil!E6<>"",Accueil!E6,"") ->  | E3: =IF(Accueil!F6<>"",Accueil!F6,"") ->  | F3: =IF(Accueil!G6<>"",Accueil!G6,"") ->  | G3: =IF(Accueil!I5<>"",Accueil!I5,"") ->  | H3: =IF(Accueil!J6<>"",Accueil!J6,"") ->  | I3: =IF(Accueil!K6<>"",Accueil!K6,"") ->  | J3: =IF(Accueil!#REF!<>"",Accueil!#REF!,"") ->  | S3: =IF(#REF!<>"",#REF!,"") ->  | T3: =IF(#REF!<>"",#REF!,"") ->  | Y3: =IF(#REF!<>"",#REF!,"") ->  | Z3: =IF(#REF!<>"",#REF!,"") ->  | AA3: =IF(#REF!<>"",#REF!,"") ->  | AB3: =IF(#REF!<>"",#REF!,"") ->  | AC3: =IF(#REF!<>"",#REF!,"") ->  | AH3: =IF(M3<>"",M3,"") ->  | AI3: =IF(N3<>"",N3,"") -> 
D4: Classe: | E4: =IF(Accueil!O9<>"",Accueil!O9,"") -> 4AM1 | K4: Résultats des contrôles du 1er trimestre | Y4: Classe: | Z4: =E4 -> 4AM1 | AD4: Résultats du 1er trimestre
D5: Matière: | E5: =IF('2'!E5<>"",'2'!E5,"") -> Mathématiques | Y5: Matière: | Z5: =IF(E5<>"",E5,"") -> Mathématiques | AP5: Classement (Premier trimestre)
D6: Prof: | E6: =IF('2'!E6<>"",'2'!E6,"") -> Toufik MERINE | Q6: Coeffi: | S6: 2 | T6: =HYPERLINK("#"&ADDRESS(ROW(),COLUMN()-1),CHAR(128)) -> € | Y6: Prof: | Z6: =IF(E6<>"",E6,"") -> Toufik MERINE | AH6: =S6 -> 2
D9: Nom | E9: Prénom | F9: Date de naissance | G9: Contrôle en classe | H9: Cahiers | I9: test 1 | J9: test 2 | K9: test 3 | L9: test 4 | M9: test 5 | N9: test 6 | O9: Travail à la maison | P9: Travail à la maison | Q9: M. des contrôles | R9: Dev. S.1 | S9: Dev. S.2 | T9: Compo/20 | Y9: Nom | Z9: Prénom | AA9: Date de naissance | AB9: Contrôle contenu | AC9: Devoir 1 | AD9: Devoir 2 | AE9: M. des contrôles | AF9: Compo / 60 | AG9: Moyenne Trim / 20 | AH9: Moy par coeffi | AI9: Observ | AP9: Nom et Prénom | AQ9: Moyenne Trim / 20
A16: 1 | W16: 1 | X16: =C16 -> 0 | Y16: 0 | Z16: 0 | AA16: =IF(F16<>"",F16,"") ->  | AB16: =IF(Q16<>"",Q16,"") ->  | AE16: =IF(Q16="","",2*AVERAGE(AB16:AD16)) ->  | AF16: =IF(T16="","",T16*3) ->  | AG16: =IF(T16="","",(AF16+AE16)/5) ->  | AH16: =IF(T16="","",AG16*$AH$6) ->  | AN16: 1 | AP16: =IF(ISNA(MATCH(AN16,'3'!$AW$16:$AW$53,0)),"",INDEX('3'!$AT$16:$AT$53,MATCH(AN16,'3'!$AW$16:$AW$53,0))) ->  | AQ16: =IF($AP16<>"",VLOOKUP($AP16,'3'!$AT$16:$AV$53,3,0),"") -> 0 | AS16: 1 | AT16: =D16&" "&E16 ->  | AV16: =IF(AG16="",0,AG16) -> 0 | AW16: =IF(AT16<>"",COUNTIF($AX$16:$AX$53,">"&AX16)+COUNTIF($AX$16:AX16,AX16),"") -> 1 | AX16: =IF(AV16<>"",AV16*1000,"") -> 0
A17: 2 | W17: 2 | X17: 0 | Y17: 0 | Z17: 0 | AN17: 2 | AP17: =IF(ISNA(MATCH(AN17,'3'!$AW$16:$AW$53,0)),"",INDEX('3'!$AT$16:$AT$53,MATCH(AN17,'3'!$AW$16:$AW$53,0))) ->  | AQ17: =IF($AP17<>"",VLOOKUP($AP17,'3'!$AT$16:$AV$53,3,0),"") -> 0 | AS17: 2 | AV17: =IF(AG17="",0,AG17) -> 0 | AW17: =IF(AT17<>"",COUNTIF($AX$16:$AX$53,">"&AX17)+COUNTIF($AX$16:AX17,AX17),"") -> 2 | AX17: =IF(AV17<>"",AV17*1000,"") -> 0
A18: 3 | W18: 3 | X18: 0 | Y18: 0 | Z18: 0 | AN18: 3 | AP18: =IF(ISNA(MATCH(AN18,'3'!$AW$16:$AW$53,0)),"",INDEX('3'!$AT$16:$AT$53,MATCH(AN18,'3'!$AW$16:$AW$53,0))) ->  | AQ18: =IF($AP18<>"",VLOOKUP($AP18,'3'!$AT$16:$AV$53,3,0),"") -> 0 | AS18: 3 | AV18: 0 | AW18: =IF(AT18<>"",COUNTIF($AX$16:$AX$53,">"&AX18)+COUNTIF($AX$16:AX18,AX18),"") -> 3 | AX18: 0
A19: 4 | W19: 4 | X19: 0 | Y19: 0 | Z19: 0 | AN19: 4 | AP19: =IF(ISNA(MATCH(AN19,'3'!$AW$16:$AW$53,0)),"",INDEX('3'!$AT$16:$AT$53,MATCH(AN19,'3'!$AW$16:$AW$53,0))) ->  | AQ19: =IF($AP19<>"",VLOOKUP($AP19,'3'!$AT$16:$AV$53,3,0),"") -> 0 | AS19: 4 | AV19: 0 | AW19: =IF(AT19<>"",COUNTIF($AX$16:$AX$53,">"&AX19)+COUNTIF($AX$16:AX19,AX19),"") -> 4 | AX19: 0
A20: 5 | W20: 5 | X20: 0 | Y20: 0 | Z20: 0 | AN20: 5 | AP20: =IF(ISNA(MATCH(AN20,'3'!$AW$16:$AW$53,0)),"",INDEX('3'!$AT$16:$AT$53,MATCH(AN20,'3'!$AW$16:$AW$53,0))) ->  | AQ20: =IF($AP20<>"",VLOOKUP($AP20,'3'!$AT$16:$AV$53,3,0),"") -> 0 | AS20: 5 | AV20: 0 | AW20: =IF(AT20<>"",COUNTIF($AX$16:$AX$53,">"&AX20)+COUNTIF($AX$16:AX20,AX20),"") -> 5 | AX20: 0
A21: 6 | W21: 6 | X21: 0 | Y21: 0 | Z21: 0 | AN21: 6 | AP21: =IF(ISNA(MATCH(AN21,'3'!$AW$16:$AW$53,0)),"",INDEX('3'!$AT$16:$AT$53,MATCH(AN21,'3'!$AW$16:$AW$53,0))) ->  | AQ21: =IF($AP21<>"",VLOOKUP($AP21,'3'!$AT$16:$AV$53,3,0),"") -> 0 | AS21: 6 | AV21: 0 | AW21: =IF(AT21<>"",COUNTIF($AX$16:$AX$53,">"&AX21)+COUNTIF($AX$16:AX21,AX21),"") -> 6 | AX21: 0
A22: 7 | W22: 7 | X22: 0 | Y22: 0 | Z22: 0 | AN22: 7 | AP22: =IF(ISNA(MATCH(AN22,'3'!$AW$16:$AW$53,0)),"",INDEX('3'!$AT$16:$AT$53,MATCH(AN22,'3'!$AW$16:$AW$53,0))) ->  | AQ22: =IF($AP22<>"",VLOOKUP($AP22,'3'!$AT$16:$AV$53,3,0),"") -> 0 | AS22: 7 | AV22: 0 | AW22: =IF(AT22<>"",COUNTIF($AX$16:$AX$53,">"&AX22)+COUNTIF($AX$16:AX22,AX22),"") -> 7 | AX22: 0
A23: 8 | W23: 8 | X23: 0 | Y23: 0 | Z23: 0 | AN23: 8 | AP23: =IF(ISNA(MATCH(AN23,'3'!$AW$16:$AW$53,0)),"",INDEX('3'!$AT$16:$AT$53,MATCH(AN23,'3'!$AW$16:$AW$53,0))) ->  | AQ23: =IF($AP23<>"",VLOOKUP($AP23,'3'!$AT$16:$AV$53,3,0),"") -> 0 | AS23: 8 | AV23: 0 | AW23: =IF(AT23<>"",COUNTIF($AX$16:$AX$53,">"&AX23)+COUNTIF($AX$16:AX23,AX23),"") -> 8 | AX23: 0
A24: 9 | W24: 9 | X24: 0 | Y24: 0 | Z24: 0 | AN24: 9 | AP24: =IF(ISNA(MATCH(AN24,'3'!$AW$16:$AW$53,0)),"",INDEX('3'!$AT$16:$AT$53,MATCH(AN24,'3'!$AW$16:$AW$53,0))) ->  | AQ24: =IF($AP24<>"",VLOOKUP($AP24,'3'!$AT$16:$AV$53,3,0),"") -> 0 | AS24: 9 | AV24: 0 | AW24: =IF(AT24<>"",COUNTIF($AX$16:$AX$53,">"&AX24)+COUNTIF($AX$16:AX24,AX24),"") -> 9 | AX24: 0
A25: 10 | W25: 10 | X25: 0 | Y25: 0 | Z25: 0 | AN25: 10 | AP25: =IF(ISNA(MATCH(AN25,'3'!$AW$16:$AW$53,0)),"",INDEX('3'!$AT$16:$AT$53,MATCH(AN25,'3'!$AW$16:$AW$53,0))) ->  | AQ25: =IF($AP25<>"",VLOOKUP($AP25,'3'!$AT$16:$AV$53,3,0),"") -> 0 | AS25: 10 | AV25: 0 | AW25: =IF(AT25<>"",COUNTIF($AX$16:$AX$53,">"&AX25)+COUNTIF($AX$16:AX25,AX25),"") -> 10 | AX25: 0
A26: 11 | W26: 11 | X26: 0 | Y26: 0 | Z26: 0 | AN26: 11 | AP26: =IF(ISNA(MATCH(AN26,'3'!$AW$16:$AW$53,0)),"",INDEX('3'!$AT$16:$AT$53,MATCH(AN26,'3'!$AW$16:$AW$53,0))) ->  | AQ26: =IF($AP26<>"",VLOOKUP($AP26,'3'!$AT$16:$AV$53,3,0),"") -> 0 | AS26: 11 | AV26: 0 | AW26: =IF(AT26<>"",COUNTIF($AX$16:$AX$53,">"&AX26)+COUNTIF($AX$16:AX26,AX26),"") -> 11 | AX26: 0
A27: 12 | W27: 12 | X27: 0 | Y27: 0 | Z27: 0 | AN27: 12 | AP27: =IF(ISNA(MATCH(AN27,'3'!$AW$16:$AW$53,0)),"",INDEX('3'!$AT$16:$AT$53,MATCH(AN27,'3'!$AW$16:$AW$53,0))) ->  | AQ27: =IF($AP27<>"",VLOOKUP($AP27,'3'!$AT$16:$AV$53,3,0),"") -> 0 | AS27: 12 | AV27: 0 | AW27: =IF(AT27<>"",COUNTIF($AX$16:$AX$53,">"&AX27)+COUNTIF($AX$16:AX27,AX27),"") -> 12 | AX27: 0
A28: 13 | W28: 13 | X28: 0 | Y28: 0 | Z28: 0 | AN28: 13 | AP28: =IF(ISNA(MATCH(AN28,'3'!$AW$16:$AW$53,0)),"",INDEX('3'!$AT$16:$AT$53,MATCH(AN28,'3'!$AW$16:$AW$53,0))) ->  | AQ28: =IF($AP28<>"",VLOOKUP($AP28,'3'!$AT$16:$AV$53,3,0),"") -> 0 | AS28: 13 | AV28: 0 | AW28: =IF(AT28<>"",COUNTIF($AX$16:$AX$53,">"&AX28)+COUNTIF($AX$16:AX28,AX28),"") -> 13 | AX28: 0
A29: 14 | W29: 14 | X29: 0 | Y29: 0 | Z29: 0 | AN29: 14 | AP29: =IF(ISNA(MATCH(AN29,'3'!$AW$16:$AW$53,0)),"",INDEX('3'!$AT$16:$AT$53,MATCH(AN29,'3'!$AW$16:$AW$53,0))) ->  | AQ29: =IF($AP29<>"",VLOOKUP($AP29,'3'!$AT$16:$AV$53,3,0),"") -> 0 | AS29: 14 | AV29: 0 | AW29: =IF(AT29<>"",COUNTIF($AX$16:$AX$53,">"&AX29)+COUNTIF($AX$16:AX29,AX29),"") -> 14 | AX29: 0
A30: 15 | W30: 15 | X30: 0 | Y30: 0 | Z30: 0 | AN30: 15 | AP30: =IF(ISNA(MATCH(AN30,'3'!$AW$16:$AW$53,0)),"",INDEX('3'!$AT$16:$AT$53,MATCH(AN30,'3'!$AW$16:$AW$53,0))) ->  | AQ30: =IF($AP30<>"",VLOOKUP($AP30,'3'!$AT$16:$AV$53,3,0),"") -> 0 | AS30: 15 | AV30: 0 | AW30: =IF(AT30<>"",COUNTIF($AX$16:$AX$53,">"&AX30)+COUNTIF($AX$16:AX30,AX30),"") -> 15 | AX30: 0
A31: 16 | W31: 16 | X31: 0 | Y31: 0 | Z31: 0 | AN31: 16 | AP31: =IF(ISNA(MATCH(AN31,'3'!$AW$16:$AW$53,0)),"",INDEX('3'!$AT$16:$AT$53,MATCH(AN31,'3'!$AW$16:$AW$53,0))) ->  | AQ31: =IF($AP31<>"",VLOOKUP($AP31,'3'!$AT$16:$AV$53,3,0),"") -> 0 | AS31: 16 | AV31: 0 | AW31: =IF(AT31<>"",COUNTIF($AX$16:$AX$53,">"&AX31)+COUNTIF($AX$16:AX31,AX31),"") -> 16 | AX31: 0
A32: 17 | W32: 17 | X32: 0 | Y32: 0 | Z32: 0 | AN32: 17 | AP32: =IF(ISNA(MATCH(AN32,'3'!$AW$16:$AW$53,0)),"",INDEX('3'!$AT$16:$AT$53,MATCH(AN32,'3'!$AW$16:$AW$53,0))) ->  | AQ32: =IF($AP32<>"",VLOOKUP($AP32,'3'!$AT$16:$AV$53,3,0),"") -> 0 | AS32: 17 | AV32: 0 | AW32: =IF(AT32<>"",COUNTIF($AX$16:$AX$53,">"&AX32)+COUNTIF($AX$16:AX32,AX32),"") -> 17 | AX32: 0
A33: 18 | W33: 18 | X33: 0 | Y33: 0 | Z33: 0 | AN33: 18 | AP33: =IF(ISNA(MATCH(AN33,'3'!$AW$16:$AW$53,0)),"",INDEX('3'!$AT$16:$AT$53,MATCH(AN33,'3'!$AW$16:$AW$53,0))) ->  | AQ33: =IF($AP33<>"",VLOOKUP($AP33,'3'!$AT$16:$AV$53,3,0),"") -> 0 | AS33: 18 | AV33: 0 | AW33: =IF(AT33<>"",COUNTIF($AX$16:$AX$53,">"&AX33)+COUNTIF($AX$16:AX33,AX33),"") -> 18 | AX33: 0
A34: 19 | W34: 19 | X34: 0 | Y34: 0 | Z34: 0 | AN34: 19 | AP34: =IF(ISNA(MATCH(AN34,'3'!$AW$16:$AW$53,0)),"",INDEX('3'!$AT$16:$AT$53,MATCH(AN34,'3'!$AW$16:$AW$53,0))) ->  | AQ34: =IF($AP34<>"",VLOOKUP($AP34,'3'!$AT$16:$AV$53,3,0),"") -> 0 | AS34: 19 | AV34: 0 | AW34: =IF(AT34<>"",COUNTIF($AX$16:$AX$53,">"&AX34)+COUNTIF($AX$16:AX34,AX34),"") -> 19 | AX34: 0
A35: 20 | W35: 20 | X35: 0 | Y35: 0 | Z35: 0 | AN35: 20 | AP35: =IF(ISNA(MATCH(AN35,'3'!$AW$16:$AW$53,0)),"",INDEX('3'!$AT$16:$AT$53,MATCH(AN35,'3'!$AW$16:$AW$53,0))) ->  | AQ35: =IF($AP35<>"",VLOOKUP($AP35,'3'!$AT$16:$AV$53,3,0),"") -> 0 | AS35: 20 | AV35: 0 | AW35: =IF(AT35<>"",COUNTIF($AX$16:$AX$53,">"&AX35)+COUNTIF($AX$16:AX35,AX35),"") -> 20 | AX35: 0
A36: 21 | W36: 21 | X36: 0 | Y36: 0 | Z36: 0 | AN36: 21 | AP36: =IF(ISNA(MATCH(AN36,'3'!$AW$16:$AW$53,0)),"",INDEX('3'!$AT$16:$AT$53,MATCH(AN36,'3'!$AW$16:$AW$53,0))) ->  | AQ36: =IF($AP36<>"",VLOOKUP($AP36,'3'!$AT$16:$AV$53,3,0),"") -> 0 | AS36: 21 | AV36: 0 | AW36: =IF(AT36<>"",COUNTIF($AX$16:$AX$53,">"&AX36)+COUNTIF($AX$16:AX36,AX36),"") -> 21 | AX36: 0
A37: 22 | W37: 22 | X37: 0 | Y37: 0 | Z37: 0 | AN37: 22 | AP37: =IF(ISNA(MATCH(AN37,'3'!$AW$16:$AW$53,0)),"",INDEX('3'!$AT$16:$AT$53,MATCH(AN37,'3'!$AW$16:$AW$53,0))) ->  | AQ37: =IF($AP37<>"",VLOOKUP($AP37,'3'!$AT$16:$AV$53,3,0),"") -> 0 | AS37: 22 | AV37: 0 | AW37: =IF(AT37<>"",COUNTIF($AX$16:$AX$53,">"&AX37)+COUNTIF($AX$16:AX37,AX37),"") -> 22 | AX37: 0
A38: 23 | W38: 23 | X38: 0 | Y38: 0 | Z38: 0 | AN38: 23 | AP38: =IF(ISNA(MATCH(AN38,'3'!$AW$16:$AW$53,0)),"",INDEX('3'!$AT$16:$AT$53,MATCH(AN38,'3'!$AW$16:$AW$53,0))) ->  | AQ38: =IF($AP38<>"",VLOOKUP($AP38,'3'!$AT$16:$AV$53,3,0),"") -> 0 | AS38: 23 | AV38: 0 | AW38: =IF(AT38<>"",COUNTIF($AX$16:$AX$53,">"&AX38)+COUNTIF($AX$16:AX38,AX38),"") -> 23 | AX38: 0
A39: 24 | W39: 24 | X39: 0 | Y39: 0 | Z39: 0 | AN39: 24 | AP39: =IF(ISNA(MATCH(AN39,'3'!$AW$16:$AW$53,0)),"",INDEX('3'!$AT$16:$AT$53,MATCH(AN39,'3'!$AW$16:$AW$53,0))) ->  | AQ39: =IF($AP39<>"",VLOOKUP($AP39,'3'!$AT$16:$AV$53,3,0),"") -> 0 | AS39: 24 | AV39: 0 | AW39: =IF(AT39<>"",COUNTIF($AX$16:$AX$53,">"&AX39)+COUNTIF($AX$16:AX39,AX39),"") -> 24 | AX39: 0
A40: 25 | W40: 25 | X40: 0 | Y40: 0 | Z40: 0 | AN40: 25 | AP40: =IF(ISNA(MATCH(AN40,'3'!$AW$16:$AW$53,0)),"",INDEX('3'!$AT$16:$AT$53,MATCH(AN40,'3'!$AW$16:$AW$53,0))) ->  | AQ40: =IF($AP40<>"",VLOOKUP($AP40,'3'!$AT$16:$AV$53,3,0),"") -> 0 | AS40: 25 | AV40: 0 | AW40: =IF(AT40<>"",COUNTIF($AX$16:$AX$53,">"&AX40)+COUNTIF($AX$16:AX40,AX40),"") -> 25 | AX40: 0
A41: 26 | W41: 26 | X41: 0 | Y41: 0 | Z41: 0 | AN41: 26 | AP41: =IF(ISNA(MATCH(AN41,'3'!$AW$16:$AW$53,0)),"",INDEX('3'!$AT$16:$AT$53,MATCH(AN41,'3'!$AW$16:$AW$53,0))) ->  | AQ41: =IF($AP41<>"",VLOOKUP($AP41,'3'!$AT$16:$AV$53,3,0),"") -> 0 | AS41: 26 | AV41: 0 | AW41: =IF(AT41<>"",COUNTIF($AX$16:$AX$53,">"&AX41)+COUNTIF($AX$16:AX41,AX41),"") -> 26 | AX41: 0
A42: 27 | W42: 27 | X42: 0 | Y42: 0 | Z42: 0 | AN42: 27 | AP42: =IF(ISNA(MATCH(AN42,'3'!$AW$16:$AW$53,0)),"",INDEX('3'!$AT$16:$AT$53,MATCH(AN42,'3'!$AW$16:$AW$53,0))) ->  | AQ42: =IF($AP42<>"",VLOOKUP($AP42,'3'!$AT$16:$AV$53,3,0),"") -> 0 | AS42: 27 | AV42: 0 | AW42: =IF(AT42<>"",COUNTIF($AX$16:$AX$53,">"&AX42)+COUNTIF($AX$16:AX42,AX42),"") -> 27 | AX42: 0
A43: 28 | W43: 28 | X43: 0 | Y43: 0 | Z43: 0 | AN43: 28 | AP43: =IF(ISNA(MATCH(AN43,'3'!$AW$16:$AW$53,0)),"",INDEX('3'!$AT$16:$AT$53,MATCH(AN43,'3'!$AW$16:$AW$53,0))) ->  | AQ43: =IF($AP43<>"",VLOOKUP($AP43,'3'!$AT$16:$AV$53,3,0),"") -> 0 | AS43: 28 | AV43: 0 | AW43: =IF(AT43<>"",COUNTIF($AX$16:$AX$53,">"&AX43)+COUNTIF($AX$16:AX43,AX43),"") -> 28 | AX43: 0
A44: 29 | W44: 29 | X44: 0 | Y44: 0 | Z44: 0 | AN44: 29 | AP44: =IF(ISNA(MATCH(AN44,'3'!$AW$16:$AW$53,0)),"",INDEX('3'!$AT$16:$AT$53,MATCH(AN44,'3'!$AW$16:$AW$53,0))) ->  | AQ44: =IF($AP44<>"",VLOOKUP($AP44,'3'!$AT$16:$AV$53,3,0),"") -> 0 | AS44: 29 | AV44: 0 | AW44: =IF(AT44<>"",COUNTIF($AX$16:$AX$53,">"&AX44)+COUNTIF($AX$16:AX44,AX44),"") -> 29 | AX44: 0
A45: 30 | W45: 30 | X45: 0 | Y45: 0 | Z45: 0 | AN45: 30 | AP45: =IF(ISNA(MATCH(AN45,'3'!$AW$16:$AW$53,0)),"",INDEX('3'!$AT$16:$AT$53,MATCH(AN45,'3'!$AW$16:$AW$53,0))) ->  | AQ45: =IF($AP45<>"",VLOOKUP($AP45,'3'!$AT$16:$AV$53,3,0),"") -> 0 | AS45: 30 | AV45: 0 | AW45: =IF(AT45<>"",COUNTIF($AX$16:$AX$53,">"&AX45)+COUNTIF($AX$16:AX45,AX45),"") -> 30 | AX45: 0
A46: 31 | W46: 31 | X46: 0 | Y46: 0 | Z46: 0 | AN46: 31 | AP46: =IF(ISNA(MATCH(AN46,'3'!$AW$16:$AW$53,0)),"",INDEX('3'!$AT$16:$AT$53,MATCH(AN46,'3'!$AW$16:$AW$53,0))) ->  | AQ46: =IF($AP46<>"",VLOOKUP($AP46,'3'!$AT$16:$AV$53,3,0),"") -> 0 | AS46: 31 | AV46: 0 | AW46: =IF(AT46<>"",COUNTIF($AX$16:$AX$53,">"&AX46)+COUNTIF($AX$16:AX46,AX46),"") -> 31 | AX46: 0
A47: 32 | W47: 32 | X47: 0 | Y47: 0 | Z47: 0 | AN47: 32 | AP47: =IF(ISNA(MATCH(AN47,'3'!$AW$16:$AW$53,0)),"",INDEX('3'!$AT$16:$AT$53,MATCH(AN47,'3'!$AW$16:$AW$53,0))) ->  | AQ47: =IF($AP47<>"",VLOOKUP($AP47,'3'!$AT$16:$AV$53,3,0),"") -> 0 | AS47: 32 | AV47: 0 | AW47: =IF(AT47<>"",COUNTIF($AX$16:$AX$53,">"&AX47)+COUNTIF($AX$16:AX47,AX47),"") -> 32 | AX47: 0
A48: 33 | W48: 33 | X48: 0 | Y48: 0 | Z48: 0 | AN48: 33 | AP48: =IF(ISNA(MATCH(AN48,'3'!$AW$16:$AW$53,0)),"",INDEX('3'!$AT$16:$AT$53,MATCH(AN48,'3'!$AW$16:$AW$53,0))) ->  | AQ48: =IF($AP48<>"",VLOOKUP($AP48,'3'!$AT$16:$AV$53,3,0),"") -> 0 | AS48: 33 | AV48: 0 | AW48: =IF(AT48<>"",COUNTIF($AX$16:$AX$53,">"&AX48)+COUNTIF($AX$16:AX48,AX48),"") -> 33 | AX48: 0
A49: 34 | W49: 34 | X49: 0 | Y49: 0 | Z49: 0 | AN49: 34 | AP49: =IF(ISNA(MATCH(AN49,'3'!$AW$16:$AW$53,0)),"",INDEX('3'!$AT$16:$AT$53,MATCH(AN49,'3'!$AW$16:$AW$53,0))) ->  | AQ49: =IF($AP49<>"",VLOOKUP($AP49,'3'!$AT$16:$AV$53,3,0),"") -> 0 | AS49: 34 | AV49: 0 | AW49: =IF(AT49<>"",COUNTIF($AX$16:$AX$53,">"&AX49)+COUNTIF($AX$16:AX49,AX49),"") -> 34 | AX49: 0
A50: 35 | W50: 35 | X50: 0 | Y50: 0 | Z50: 0 | AN50: 35 | AP50: =IF(ISNA(MATCH(AN50,'3'!$AW$16:$AW$53,0)),"",INDEX('3'!$AT$16:$AT$53,MATCH(AN50,'3'!$AW$16:$AW$53,0))) ->  | AQ50: =IF($AP50<>"",VLOOKUP($AP50,'3'!$AT$16:$AV$53,3,0),"") -> 0 | AS50: 35 | AV50: 0 | AW50: =IF(AT50<>"",COUNTIF($AX$16:$AX$53,">"&AX50)+COUNTIF($AX$16:AX50,AX50),"") -> 35 | AX50: 0
A51: 36 | W51: 36 | X51: 0 | Y51: 0 | Z51: 0 | AN51: 36 | AP51: =IF(ISNA(MATCH(AN51,'3'!$AW$16:$AW$53,0)),"",INDEX('3'!$AT$16:$AT$53,MATCH(AN51,'3'!$AW$16:$AW$53,0))) ->  | AQ51: =IF($AP51<>"",VLOOKUP($AP51,'3'!$AT$16:$AV$53,3,0),"") -> 0 | AS51: 36 | AV51: 0 | AW51: =IF(AT51<>"",COUNTIF($AX$16:$AX$53,">"&AX51)+COUNTIF($AX$16:AX51,AX51),"") -> 36 | AX51: 0
A52: 37 | W52: 37 | X52: 0 | Y52: 0 | Z52: 0 | AN52: 37 | AP52: =IF(ISNA(MATCH(AN52,'3'!$AW$16:$AW$53,0)),"",INDEX('3'!$AT$16:$AT$53,MATCH(AN52,'3'!$AW$16:$AW$53,0))) ->  | AQ52: =IF($AP52<>"",VLOOKUP($AP52,'3'!$AT$16:$AV$53,3,0),"") -> 0 | AS52: 37 | AV52: 0 | AW52: =IF(AT52<>"",COUNTIF($AX$16:$AX$53,">"&AX52)+COUNTIF($AX$16:AX52,AX52),"") -> 37 | AX52: 0
A53: 38 | W53: 38 | X53: 0 | Y53: 0 | Z53: 0 | AN53: 38 | AP53: =IF(ISNA(MATCH(AN53,'3'!$AW$16:$AW$53,0)),"",INDEX('3'!$AT$16:$AT$53,MATCH(AN53,'3'!$AW$16:$AW$53,0))) ->  | AQ53: =IF($AP53<>"",VLOOKUP($AP53,'3'!$AT$16:$AV$53,3,0),"") -> 0 | AS53: 38 | AV53: 0 | AW53: =IF(AT53<>"",COUNTIF($AX$16:$AX$53,">"&AX53)+COUNTIF($AX$16:AX53,AX53),"") -> 38 | AX53: 0
D56: ="Effectif Total : " &F56 -> Effectif Total : 0 | F56: =SUM(F58:F59) -> 0 | R56: =COUNTIFS(R16:R53,">=10") -> 0 | Y56: ="Effectif Total : " &Z58 -> Effectif Total : 0 | AA56: =F56 -> 0 | AP56: =Y56 -> Effectif Total : 0 | AQ56: =F56 -> 0 | AR56: =COUNTA(AP16:AP53) -> 38
D58: ="Filles : "&F58 -> Filles : 0 | F58: =COUNTIFS(C16:C53,"أ") -> 0 | S58: =COUNTIFS(S16:S53,">=10") -> 0 | Y58: =D58 -> Filles : 0 | Z58: =F56 -> 0 | AA58: =AA56 -> 0 | AC58: Moyenne trimestrielle >=10 | AG58: =COUNTIFS(AG16:AG53,">=10") -> 0 | AH58: =AG58/AA56 ->  | AP58: =Y58 -> Filles : 0 | AQ58: =AQ56 -> 0
D59: ="Garçon : "&F59 -> Garçon : 0 | F59: =COUNTIFS(C16:C53,"ذ") -> 0 | T59: =COUNTIFS(T16:T53,">=10") -> 0 | Y59: =D59 -> Garçon : 0 | AA59: =AA58 -> 0 | AP59: =Y59 -> Garçon : 0 | AQ59: =AQ58 -> 0
D64: =IF(D2<>"",D2,"") -> Collège - Mostaganem | S64: =IF(S2<>"",S2,"") -> 2014 - 2015 | T64: =IF(#REF!<>"",#REF!,"") ->  | Y64: =D64 -> Collège - Mostaganem | AH64: =IF(S64<>"",S64,"") -> 2014 - 2015 | AI64: =IF(N64<>"",N64,"") ->  | AP64: =Y64 -> Collège - Mostaganem | AY64: =AH64 -> 2014 - 2015
S65: =IF(#REF!<>"",#REF!,"") ->  | T65: =IF(#REF!<>"",#REF!,"") ->  | AH65: =IF(M65<>"",M65,"") ->  | AI65: =IF(N65<>"",N65,"") -> 
D66: Classe: | E66: =E4 -> 4AM1 | K66: Résultats des contrôles du 2e trimestre | Y66: Classe: | Z66: =E66 -> 4AM1 | AD66: Résultats du 2e trimestre
D67: Matière: | E67: =IF(E5<>"",E5,"") -> Mathématiques | Y67: Matière: | Z67: =IF(E67<>"",E67,"") -> Mathématiques | AP67: Classement (Deuxième trimestre)
D68: Prof: | E68: =IF(E6<>"",E6,"") -> Toufik MERINE | Y68: Prof: | Z68: =IF(E68<>"",E68,"") -> Toufik MERINE | AH68: =AH6 -> 2
D71: Nom | E71: Prénom | F71: Date de naissance | G71: Contrôle en classe | H71: Cahiers | I71: test 1 | J71: test 2 | K71: test 3 | L71: test 4 | M71: test 5 | N71: test 6 | O71: Travail à la maison | P71: Travail à la maison | Q71: M. des contrôles | R71: Dev. S.1 | S71: Dev. S.2 | T71: Compo/20 | Y71: Nom | Z71: Prénom | AA71: Date de naissance | AB71: Contrôle contenu | AC71: Devoir 1 | AD71: Devoir 2 | AE71: M. des contrôles | AF71: Compo / 60 | AG71: Moyenne Trim / 20 | AH71: Moy par coeffi | AI71: Observ | AP71: Nom et Prénom | AQ71: Moyenne Trim / 20
A78: 1 | C78: =C16 -> 0 | D78: =D16 -> 0 | E78: 0 | F78: =IF(F16<>"",F16,"") ->  | W78: 1 | X78: =C78 -> 0 | Y78: 0 | Z78: 0 | AA78: =IF(F78<>"",F78,"") ->  | AB78: =IF(Q78<>"",Q78,"") ->  | AE78: =IF(Q78="","",2*AVERAGE(AB78:AD78)) ->  | AF78: =IF(T78="","",T78*3) ->  | AG78: =IF(T78="","",(AF78+AE78)/5) ->  | AH78: =IF(T78="","",AG78*$AH$6) ->  | AN78: 1 | AP78: =IF(ISNA(MATCH(AN78,'3'!$AW$78:$AW$115,0)),"",INDEX('3'!$AT$78:$AT$115,MATCH(AN78,'3'!$AW$78:$AW$115,0))) -> 0 0 | AQ78: =IF($AP78<>"",VLOOKUP($AP78,'3'!$AT$78:$AV$115,3,0),"") -> 0 | AS78: 1 | AT78: =D78&" "&E78 -> 0 0 | AV78: =IF(AG78="",0,AG78) -> 0 | AW78: =IF(AT78<>"",COUNTIF($AX$78:$AX$115,">"&AX78)+COUNTIF($AX$78:AX78,AX78),"") -> 1 | AX78: =IF(AV78<>"",AV78*1000,"") -> 0
A79: 2 | C79: =C17 -> 0 | D79: 0 | E79: 0 | W79: 2 | X79: 0 | Y79: 0 | Z79: 0 | AN79: 2 | AP79: =IF(ISNA(MATCH(AN79,'3'!$AW$78:$AW$115,0)),"",INDEX('3'!$AT$78:$AT$115,MATCH(AN79,'3'!$AW$78:$AW$115,0))) -> 0 0 | AQ79: =IF($AP79<>"",VLOOKUP($AP79,'3'!$AT$78:$AV$115,3,0),"") -> 0 | AS79: 2 | AT79: 0 0 | AV79: =IF(AG79="",0,AG79) -> 0 | AW79: =IF(AT79<>"",COUNTIF($AX$78:$AX$115,">"&AX79)+COUNTIF($AX$78:AX79,AX79),"") -> 2 | AX79: =IF(AV79<>"",AV79*1000,"") -> 0
A80: 3 | C80: 0 | D80: 0 | E80: 0 | W80: 3 | X80: 0 | Y80: 0 | Z80: 0 | AN80: 3 | AP80: =IF(ISNA(MATCH(AN80,'3'!$AW$78:$AW$115,0)),"",INDEX('3'!$AT$78:$AT$115,MATCH(AN80,'3'!$AW$78:$AW$115,0))) -> 0 0 | AQ80: =IF($AP80<>"",VLOOKUP($AP80,'3'!$AT$78:$AV$115,3,0),"") -> 0 | AS80: 3 | AT80: 0 0 | AV80: 0 | AW80: =IF(AT80<>"",COUNTIF($AX$78:$AX$115,">"&AX80)+COUNTIF($AX$78:AX80,AX80),"") -> 3 | AX80: 0
A81: 4 | C81: 0 | D81: 0 | E81: 0 | W81: 4 | X81: 0 | Y81: 0 | Z81: 0 | AN81: 4 | AP81: =IF(ISNA(MATCH(AN81,'3'!$AW$78:$AW$115,0)),"",INDEX('3'!$AT$78:$AT$115,MATCH(AN81,'3'!$AW$78:$AW$115,0))) -> 0 0 | AQ81: =IF($AP81<>"",VLOOKUP($AP81,'3'!$AT$78:$AV$115,3,0),"") -> 0 | AS81: 4 | AT81: 0 0 | AV81: 0 | AW81: =IF(AT81<>"",COUNTIF($AX$78:$AX$115,">"&AX81)+COUNTIF($AX$78:AX81,AX81),"") -> 4 | AX81: 0
A82: 5 | C82: 0 | D82: 0 | E82: 0 | W82: 5 | X82: 0 | Y82: 0 | Z82: 0 | AN82: 5 | AP82: =IF(ISNA(MATCH(AN82,'3'!$AW$78:$AW$115,0)),"",INDEX('3'!$AT$78:$AT$115,MATCH(AN82,'3'!$AW$78:$AW$115,0))) -> 0 0 | AQ82: =IF($AP82<>"",VLOOKUP($AP82,'3'!$AT$78:$AV$115,3,0),"") -> 0 | AS82: 5 | AT82: 0 0 | AV82: 0 | AW82: =IF(AT82<>"",COUNTIF($AX$78:$AX$115,">"&AX82)+COUNTIF($AX$78:AX82,AX82),"") -> 5 | AX82: 0
A83: 6 | C83: 0 | D83: 0 | E83: 0 | W83: 6 | X83: 0 | Y83: 0 | Z83: 0 | AN83: 6 | AP83: =IF(ISNA(MATCH(AN83,'3'!$AW$78:$AW$115,0)),"",INDEX('3'!$AT$78:$AT$115,MATCH(AN83,'3'!$AW$78:$AW$115,0))) -> 0 0 | AQ83: =IF($AP83<>"",VLOOKUP($AP83,'3'!$AT$78:$AV$115,3,0),"") -> 0 | AS83: 6 | AT83: 0 0 | AV83: 0 | AW83: =IF(AT83<>"",COUNTIF($AX$78:$AX$115,">"&AX83)+COUNTIF($AX$78:AX83,AX83),"") -> 6 | AX83: 0
A84: 7 | C84: 0 | D84: 0 | E84: 0 | W84: 7 | X84: 0 | Y84: 0 | Z84: 0 | AN84: 7 | AP84: =IF(ISNA(MATCH(AN84,'3'!$AW$78:$AW$115,0)),"",INDEX('3'!$AT$78:$AT$115,MATCH(AN84,'3'!$AW$78:$AW$115,0))) -> 0 0 | AQ84: =IF($AP84<>"",VLOOKUP($AP84,'3'!$AT$78:$AV$115,3,0),"") -> 0 | AS84: 7 | AT84: 0 0 | AV84: 0 | AW84: =IF(AT84<>"",COUNTIF($AX$78:$AX$115,">"&AX84)+COUNTIF($AX$78:AX84,AX84),"") -> 7 | AX84: 0
A85: 8 | C85: 0 | D85: 0 | E85: 0 | W85: 8 | X85: 0 | Y85: 0 | Z85: 0 | AN85: 8 | AP85: =IF(ISNA(MATCH(AN85,'3'!$AW$78:$AW$115,0)),"",INDEX('3'!$AT$78:$AT$115,MATCH(AN85,'3'!$AW$78:$AW$115,0))) -> 0 0 | AQ85: =IF($AP85<>"",VLOOKUP($AP85,'3'!$AT$78:$AV$115,3,0),"") -> 0 | AS85: 8 | AT85: 0 0 | AV85: 0 | AW85: =IF(AT85<>"",COUNTIF($AX$78:$AX$115,">"&AX85)+COUNTIF($AX$78:AX85,AX85),"") -> 8 | AX85: 0
A86: 9 | C86: 0 | D86: 0 | E86: 0 | W86: 9 | X86: 0 | Y86: 0 | Z86: 0 | AN86: 9 | AP86: =IF(ISNA(MATCH(AN86,'3'!$AW$78:$AW$115,0)),"",INDEX('3'!$AT$78:$AT$115,MATCH(AN86,'3'!$AW$78:$AW$115,0))) -> 0 0 | AQ86: =IF($AP86<>"",VLOOKUP($AP86,'3'!$AT$78:$AV$115,3,0),"") -> 0 | AS86: 9 | AT86: 0 0 | AV86: 0 | AW86: =IF(AT86<>"",COUNTIF($AX$78:$AX$115,">"&AX86)+COUNTIF($AX$78:AX86,AX86),"") -> 9 | AX86: 0
A87: 10 | C87: 0 | D87: 0 | E87: 0 | W87: 10 | X87: 0 | Y87: 0 | Z87: 0 | AN87: 10 | AP87: =IF(ISNA(MATCH(AN87,'3'!$AW$78:$AW$115,0)),"",INDEX('3'!$AT$78:$AT$115,MATCH(AN87,'3'!$AW$78:$AW$115,0))) -> 0 0 | AQ87: =IF($AP87<>"",VLOOKUP($AP87,'3'!$AT$78:$AV$115,3,0),"") -> 0 | AS87: 10 | AT87: 0 0 | AV87: 0 | AW87: =IF(AT87<>"",COUNTIF($AX$78:$AX$115,">"&AX87)+COUNTIF($AX$78:AX87,AX87),"") -> 10 | AX87: 0
A88: 11 | C88: 0 | D88: 0 | E88: 0 | W88: 11 | X88: 0 | Y88: 0 | Z88: 0 | AN88: 11 | AP88: =IF(ISNA(MATCH(AN88,'3'!$AW$78:$AW$115,0)),"",INDEX('3'!$AT$78:$AT$115,MATCH(AN88,'3'!$AW$78:$AW$115,0))) -> 0 0 | AQ88: =IF($AP88<>"",VLOOKUP($AP88,'3'!$AT$78:$AV$115,3,0),"") -> 0 | AS88: 11 | AT88: 0 0 | AV88: 0 | AW88: =IF(AT88<>"",COUNTIF($AX$78:$AX$115,">"&AX88)+COUNTIF($AX$78:AX88,AX88),"") -> 11 | AX88: 0
A89: 12 | C89: 0 | D89: 0 | E89: 0 | W89: 12 | X89: 0 | Y89: 0 | Z89: 0 | AN89: 12 | AP89: =IF(ISNA(MATCH(AN89,'3'!$AW$78:$AW$115,0)),"",INDEX('3'!$AT$78:$AT$115,MATCH(AN89,'3'!$AW$78:$AW$115,0))) -> 0 0 | AQ89: =IF($AP89<>"",VLOOKUP($AP89,'3'!$AT$78:$AV$115,3,0),"") -> 0 | AS89: 12 | AT89: 0 0 | AV89: 0 | AW89: =IF(AT89<>"",COUNTIF($AX$78:$AX$115,">"&AX89)+COUNTIF($AX$78:AX89,AX89),"") -> 12 | AX89: 0
A90: 13 | C90: 0 | D90: 0 | E90: 0 | W90: 13 | X90: 0 | Y90: 0 | Z90: 0 | AN90: 13 | AP90: =IF(ISNA(MATCH(AN90,'3'!$AW$78:$AW$115,0)),"",INDEX('3'!$AT$78:$AT$115,MATCH(AN90,'3'!$AW$78:$AW$115,0))) -> 0 0 | AQ90: =IF($AP90<>"",VLOOKUP($AP90,'3'!$AT$78:$AV$115,3,0),"") -> 0 | AS90: 13 | AT90: 0 0 | AV90: 0 | AW90: =IF(AT90<>"",COUNTIF($AX$78:$AX$115,">"&AX90)+COUNTIF($AX$78:AX90,AX90),"") -> 13 | AX90: 0
A91: 14 | C91: 0 | D91: 0 | E91: 0 | W91: 14 | X91: 0 | Y91: 0 | Z91: 0 | AN91: 14 | AP91: =IF(ISNA(MATCH(AN91,'3'!$AW$78:$AW$115,0)),"",INDEX('3'!$AT$78:$AT$115,MATCH(AN91,'3'!$AW$78:$AW$115,0))) -> 0 0 | AQ91: =IF($AP91<>"",VLOOKUP($AP91,'3'!$AT$78:$AV$115,3,0),"") -> 0 | AS91: 14 | AT91: 0 0 | AV91: 0 | AW91: =IF(AT91<>"",COUNTIF($AX$78:$AX$115,">"&AX91)+COUNTIF($AX$78:AX91,AX91),"") -> 14 | AX91: 0
A92: 15 | C92: 0 | D92: 0 | E92: 0 | W92: 15 | X92: 0 | Y92: 0 | Z92: 0 | AN92: 15 | AP92: =IF(ISNA(MATCH(AN92,'3'!$AW$78:$AW$115,0)),"",INDEX('3'!$AT$78:$AT$115,MATCH(AN92,'3'!$AW$78:$AW$115,0))) -> 0 0 | AQ92: =IF($AP92<>"",VLOOKUP($AP92,'3'!$AT$78:$AV$115,3,0),"") -> 0 | AS92: 15 | AT92: 0 0 | AV92: 0 | AW92: =IF(AT92<>"",COUNTIF($AX$78:$AX$115,">"&AX92)+COUNTIF($AX$78:AX92,AX92),"") -> 15 | AX92: 0
A93: 16 | C93: 0 | D93: 0 | E93: 0 | W93: 16 | X93: 0 | Y93: 0 | Z93: 0 | AN93: 16 | AP93: =IF(ISNA(MATCH(AN93,'3'!$AW$78:$AW$115,0)),"",INDEX('3'!$AT$78:$AT$115,MATCH(AN93,'3'!$AW$78:$AW$115,0))) -> 0 0 | AQ93: =IF($AP93<>"",VLOOKUP($AP93,'3'!$AT$78:$AV$115,3,0),"") -> 0 | AS93: 16 | AT93: 0 0 | AV93: 0 | AW93: =IF(AT93<>"",COUNTIF($AX$78:$AX$115,">"&AX93)+COUNTIF($AX$78:AX93,AX93),"") -> 16 | AX93: 0
A94: 17 | C94: =C32 -> 0 | D94: 0 | E94: 0 | W94: 17 | X94: 0 | Y94: 0 | Z94: 0 | AN94: 17 | AP94: =IF(ISNA(MATCH(AN94,'3'!$AW$78:$AW$115,0)),"",INDEX('3'!$AT$78:$AT$115,MATCH(AN94,'3'!$AW$78:$AW$115,0))) -> 0 0 | AQ94: =IF($AP94<>"",VLOOKUP($AP94,'3'!$AT$78:$AV$115,3,0),"") -> 0 | AS94: 17 | AT94: 0 0 | AV94: 0 | AW94: =IF(AT94<>"",COUNTIF($AX$78:$AX$115,">"&AX94)+COUNTIF($AX$78:AX94,AX94),"") -> 17 | AX94: 0
A95: 18 | C95: 0 | D95: 0 | E95: 0 | W95: 18 | X95: 0 | Y95: 0 | Z95: 0 | AN95: 18 | AP95: =IF(ISNA(MATCH(AN95,'3'!$AW$78:$AW$115,0)),"",INDEX('3'!$AT$78:$AT$115,MATCH(AN95,'3'!$AW$78:$AW$115,0))) -> 0 0 | AQ95: =IF($AP95<>"",VLOOKUP($AP95,'3'!$AT$78:$AV$115,3,0),"") -> 0 | AS95: 18 | AT95: 0 0 | AV95: 0 | AW95: =IF(AT95<>"",COUNTIF($AX$78:$AX$115,">"&AX95)+COUNTIF($AX$78:AX95,AX95),"") -> 18 | AX95: 0
A96: 19 | C96: 0 | D96: 0 | E96: 0 | W96: 19 | X96: 0 | Y96: 0 | Z96: 0 | AN96: 19 | AP96: =IF(ISNA(MATCH(AN96,'3'!$AW$78:$AW$115,0)),"",INDEX('3'!$AT$78:$AT$115,MATCH(AN96,'3'!$AW$78:$AW$115,0))) -> 0 0 | AQ96: =IF($AP96<>"",VLOOKUP($AP96,'3'!$AT$78:$AV$115,3,0),"") -> 0 | AS96: 19 | AT96: 0 0 | AV96: 0 | AW96: =IF(AT96<>"",COUNTIF($AX$78:$AX$115,">"&AX96)+COUNTIF($AX$78:AX96,AX96),"") -> 19 | AX96: 0
A97: 20 | C97: 0 | D97: 0 | E97: 0 | W97: 20 | X97: 0 | Y97: 0 | Z97: 0 | AN97: 20 | AP97: =IF(ISNA(MATCH(AN97,'3'!$AW$78:$AW$115,0)),"",INDEX('3'!$AT$78:$AT$115,MATCH(AN97,'3'!$AW$78:$AW$115,0))) -> 0 0 | AQ97: =IF($AP97<>"",VLOOKUP($AP97,'3'!$AT$78:$AV$115,3,0),"") -> 0 | AS97: 20 | AT97: 0 0 | AV97: 0 | AW97: =IF(AT97<>"",COUNTIF($AX$78:$AX$115,">"&AX97)+COUNTIF($AX$78:AX97,AX97),"") -> 20 | AX97: 0
A98: 21 | C98: 0 | D98: 0 | E98: 0 | W98: 21 | X98: 0 | Y98: 0 | Z98: 0 | AN98: 21 | AP98: =IF(ISNA(MATCH(AN98,'3'!$AW$78:$AW$115,0)),"",INDEX('3'!$AT$78:$AT$115,MATCH(AN98,'3'!$AW$78:$AW$115,0))) -> 0 0 | AQ98: =IF($AP98<>"",VLOOKUP($AP98,'3'!$AT$78:$AV$115,3,0),"") -> 0 | AS98: 21 | AT98: 0 0 | AV98: 0 | AW98: =IF(AT98<>"",COUNTIF($AX$78:$AX$115,">"&AX98)+COUNTIF($AX$78:AX98,AX98),"") -> 21 | AX98: 0
A99: 22 | C99: 0 | D99: 0 | E99: 0 | W99: 22 | X99: 0 | Y99: 0 | Z99: 0 | AN99: 22 | AP99: =IF(ISNA(MATCH(AN99,'3'!$AW$78:$AW$115,0)),"",INDEX('3'!$AT$78:$AT$115,MATCH(AN99,'3'!$AW$78:$AW$115,0))) -> 0 0 | AQ99: =IF($AP99<>"",VLOOKUP($AP99,'3'!$AT$78:$AV$115,3,0),"") -> 0 | AS99: 22 | AT99: 0 0 | AV99: 0 | AW99: =IF(AT99<>"",COUNTIF($AX$78:$AX$115,">"&AX99)+COUNTIF($AX$78:AX99,AX99),"") -> 22 | AX99: 0
A100: 23 | C100: 0 | D100: 0 | E100: 0 | W100: 23 | X100: 0 | Y100: 0 | Z100: 0 | AN100: 23 | AP100: =IF(ISNA(MATCH(AN100,'3'!$AW$78:$AW$115,0)),"",INDEX('3'!$AT$78:$AT$115,MATCH(AN100,'3'!$AW$78:$AW$115,0))) -> 0 0 | AQ100: =IF($AP100<>"",VLOOKUP($AP100,'3'!$AT$78:$AV$115,3,0),"") -> 0 | AS100: 23 | AT100: 0 0 | AV100: 0 | AW100: =IF(AT100<>"",COUNTIF($AX$78:$AX$115,">"&AX100)+COUNTIF($AX$78:AX100,AX100),"") -> 23 | AX100: 0
A101: 24 | C101: 0 | D101: 0 | E101: 0 | W101: 24 | X101: 0 | Y101: 0 | Z101: 0 | AN101: 24 | AP101: =IF(ISNA(MATCH(AN101,'3'!$AW$78:$AW$115,0)),"",INDEX('3'!$AT$78:$AT$115,MATCH(AN101,'3'!$AW$78:$AW$115,0))) -> 0 0 | AQ101: =IF($AP101<>"",VLOOKUP($AP101,'3'!$AT$78:$AV$115,3,0),"") -> 0 | AS101: 24 | AT101: 0 0 | AV101: 0 | AW101: =IF(AT101<>"",COUNTIF($AX$78:$AX$115,">"&AX101)+COUNTIF($AX$78:AX101,AX101),"") -> 24 | AX101: 0
A102: 25 | C102: 0 | D102: 0 | E102: 0 | W102: 25 | X102: 0 | Y102: 0 | Z102: 0 | AN102: 25 | AP102: =IF(ISNA(MATCH(AN102,'3'!$AW$78:$AW$115,0)),"",INDEX('3'!$AT$78:$AT$115,MATCH(AN102,'3'!$AW$78:$AW$115,0))) -> 0 0 | AQ102: =IF($AP102<>"",VLOOKUP($AP102,'3'!$AT$78:$AV$115,3,0),"") -> 0 | AS102: 25 | AT102: 0 0 | AV102: 0 | AW102: =IF(AT102<>"",COUNTIF($AX$78:$AX$115,">"&AX102)+COUNTIF($AX$78:AX102,AX102),"") -> 25 | AX102: 0
A103: 26 | C103: 0 | D103: 0 | E103: 0 | W103: 26 | X103: 0 | Y103: 0 | Z103: 0 | AN103: 26 | AP103: =IF(ISNA(MATCH(AN103,'3'!$AW$78:$AW$115,0)),"",INDEX('3'!$AT$78:$AT$115,MATCH(AN103,'3'!$AW$78:$AW$115,0))) -> 0 0 | AQ103: =IF($AP103<>"",VLOOKUP($AP103,'3'!$AT$78:$AV$115,3,0),"") -> 0 | AS103: 26 | AT103: 0 0 | AV103: 0 | AW103: =IF(AT103<>"",COUNTIF($AX$78:$AX$115,">"&AX103)+COUNTIF($AX$78:AX103,AX103),"") -> 26 | AX103: 0
A104: 27 | C104: 0 | D104: 0 | E104: 0 | W104: 27 | X104: 0 | Y104: 0 | Z104: 0 | AN104: 27 | AP104: =IF(ISNA(MATCH(AN104,'3'!$AW$78:$AW$115,0)),"",INDEX('3'!$AT$78:$AT$115,MATCH(AN104,'3'!$AW$78:$AW$115,0))) -> 0 0 | AQ104: =IF($AP104<>"",VLOOKUP($AP104,'3'!$AT$78:$AV$115,3,0),"") -> 0 | AS104: 27 | AT104: 0 0 | AV104: 0 | AW104: =IF(AT104<>"",COUNTIF($AX$78:$AX$115,">"&AX104)+COUNTIF($AX$78:AX104,AX104),"") -> 27 | AX104: 0
A105: 28 | C105: 0 | D105: 0 | E105: 0 | W105: 28 | X105: 0 | Y105: 0 | Z105: 0 | AN105: 28 | AP105: =IF(ISNA(MATCH(AN105,'3'!$AW$78:$AW$115,0)),"",INDEX('3'!$AT$78:$AT$115,MATCH(AN105,'3'!$AW$78:$AW$115,0))) -> 0 0 | AQ105: =IF($AP105<>"",VLOOKUP($AP105,'3'!$AT$78:$AV$115,3,0),"") -> 0 | AS105: 28 | AT105: 0 0 | AV105: 0 | AW105: =IF(AT105<>"",COUNTIF($AX$78:$AX$115,">"&AX105)+COUNTIF($AX$78:AX105,AX105),"") -> 28 | AX105: 0
A106: 29 | C106: 0 | D106: 0 | E106: 0 | W106: 29 | X106: 0 | Y106: 0 | Z106: 0 | AN106: 29 | AP106: =IF(ISNA(MATCH(AN106,'3'!$AW$78:$AW$115,0)),"",INDEX('3'!$AT$78:$AT$115,MATCH(AN106,'3'!$AW$78:$AW$115,0))) -> 0 0 | AQ106: =IF($AP106<>"",VLOOKUP($AP106,'3'!$AT$78:$AV$115,3,0),"") -> 0 | AS106: 29 | AT106: 0 0 | AV106: 0 | AW106: =IF(AT106<>"",COUNTIF($AX$78:$AX$115,">"&AX106)+COUNTIF($AX$78:AX106,AX106),"") -> 29 | AX106: 0
A107: 30 | C107: 0 | D107: 0 | E107: 0 | W107: 30 | X107: 0 | Y107: 0 | Z107: 0 | AN107: 30 | AP107: =IF(ISNA(MATCH(AN107,'3'!$AW$78:$AW$115,0)),"",INDEX('3'!$AT$78:$AT$115,MATCH(AN107,'3'!$AW$78:$AW$115,0))) -> 0 0 | AQ107: =IF($AP107<>"",VLOOKUP($AP107,'3'!$AT$78:$AV$115,3,0),"") -> 0 | AS107: 30 | AT107: 0 0 | AV107: 0 | AW107: =IF(AT107<>"",COUNTIF($AX$78:$AX$115,">"&AX107)+COUNTIF($AX$78:AX107,AX107),"") -> 30 | AX107: 0
A108: 31 | C108: 0 | D108: 0 | E108: 0 | W108: 31 | X108: 0 | Y108: 0 | Z108: 0 | AN108: 31 | AP108: =IF(ISNA(MATCH(AN108,'3'!$AW$78:$AW$115,0)),"",INDEX('3'!$AT$78:$AT$115,MATCH(AN108,'3'!$AW$78:$AW$115,0))) -> 0 0 | AQ108: =IF($AP108<>"",VLOOKUP($AP108,'3'!$AT$78:$AV$115,3,0),"") -> 0 | AS108: 31 | AT108: 0 0 | AV108: 0 | AW108: =IF(AT108<>"",COUNTIF($AX$78:$AX$115,">"&AX108)+COUNTIF($AX$78:AX108,AX108),"") -> 31 | AX108: 0
A109: 32 | C109: 0 | D109: 0 | E109: 0 | W109: 32 | X109: 0 | Y109: 0 | Z109: 0 | AN109: 32 | AP109: =IF(ISNA(MATCH(AN109,'3'!$AW$78:$AW$115,0)),"",INDEX('3'!$AT$78:$AT$115,MATCH(AN109,'3'!$AW$78:$AW$115,0))) -> 0 0 | AQ109: =IF($AP109<>"",VLOOKUP($AP109,'3'!$AT$78:$AV$115,3,0),"") -> 0 | AS109: 32 | AT109: 0 0 | AV109: 0 | AW109: =IF(AT109<>"",COUNTIF($AX$78:$AX$115,">"&AX109)+COUNTIF($AX$78:AX109,AX109),"") -> 32 | AX109: 0
A110: 33 | C110: =C48 -> 0 | D110: 0 | E110: 0 | W110: 33 | X110: 0 | Y110: 0 | Z110: 0 | AN110: 33 | AP110: =IF(ISNA(MATCH(AN110,'3'!$AW$78:$AW$115,0)),"",INDEX('3'!$AT$78:$AT$115,MATCH(AN110,'3'!$AW$78:$AW$115,0))) -> 0 0 | AQ110: =IF($AP110<>"",VLOOKUP($AP110,'3'!$AT$78:$AV$115,3,0),"") -> 0 | AS110: 33 | AT110: 0 0 | AV110: 0 | AW110: =IF(AT110<>"",COUNTIF($AX$78:$AX$115,">"&AX110)+COUNTIF($AX$78:AX110,AX110),"") -> 33 | AX110: 0
A111: 34 | C111: 0 | D111: 0 | E111: 0 | W111: 34 | X111: 0 | Y111: 0 | Z111: 0 | AN111: 34 | AP111: =IF(ISNA(MATCH(AN111,'3'!$AW$78:$AW$115,0)),"",INDEX('3'!$AT$78:$AT$115,MATCH(AN111,'3'!$AW$78:$AW$115,0))) -> 0 0 | AQ111: =IF($AP111<>"",VLOOKUP($AP111,'3'!$AT$78:$AV$115,3,0),"") -> 0 | AS111: 34 | AT111: 0 0 | AV111: 0 | AW111: =IF(AT111<>"",COUNTIF($AX$78:$AX$115,">"&AX111)+COUNTIF($AX$78:AX111,AX111),"") -> 34 | AX111: 0
A112: 35 | C112: 0 | D112: 0 | E112: 0 | W112: 35 | X112: 0 | Y112: 0 | Z112: 0 | AN112: 35 | AP112: =IF(ISNA(MATCH(AN112,'3'!$AW$78:$AW$115,0)),"",INDEX('3'!$AT$78:$AT$115,MATCH(AN112,'3'!$AW$78:$AW$115,0))) -> 0 0 | AQ112: =IF($AP112<>"",VLOOKUP($AP112,'3'!$AT$78:$AV$115,3,0),"") -> 0 | AS112: 35 | AT112: 0 0 | AV112: 0 | AW112: =IF(AT112<>"",COUNTIF($AX$78:$AX$115,">"&AX112)+COUNTIF($AX$78:AX112,AX112),"") -> 35 | AX112: 0
A113: 36 | C113: 0 | D113: 0 | E113: 0 | W113: 36 | X113: 0 | Y113: 0 | Z113: 0 | AN113: 36 | AP113: =IF(ISNA(MATCH(AN113,'3'!$AW$78:$AW$115,0)),"",INDEX('3'!$AT$78:$AT$115,MATCH(AN113,'3'!$AW$78:$AW$115,0))) -> 0 0 | AQ113: =IF($AP113<>"",VLOOKUP($AP113,'3'!$AT$78:$AV$115,3,0),"") -> 0 | AS113: 36 | AT113: 0 0 | AV113: 0 | AW113: =IF(AT113<>"",COUNTIF($AX$78:$AX$115,">"&AX113)+COUNTIF($AX$78:AX113,AX113),"") -> 36 | AX113: 0
A114: 37 | C114: 0 | D114: 0 | E114: 0 | W114: 37 | X114: 0 | Y114: 0 | Z114: 0 | AN114: 37 | AP114: =IF(ISNA(MATCH(AN114,'3'!$AW$78:$AW$115,0)),"",INDEX('3'!$AT$78:$AT$115,MATCH(AN114,'3'!$AW$78:$AW$115,0))) -> 0 0 | AQ114: =IF($AP114<>"",VLOOKUP($AP114,'3'!$AT$78:$AV$115,3,0),"") -> 0 | AS114: 37 | AT114: 0 0 | AV114: 0 | AW114: =IF(AT114<>"",COUNTIF($AX$78:$AX$115,">"&AX114)+COUNTIF($AX$78:AX114,AX114),"") -> 37 | AX114: 0
A115: 38 | C115: 0 | D115: 0 | E115: 0 | W115: 38 | X115: 0 | Y115: 0 | Z115: 0 | AN115: 38 | AP115: =IF(ISNA(MATCH(AN115,'3'!$AW$78:$AW$115,0)),"",INDEX('3'!$AT$78:$AT$115,MATCH(AN115,'3'!$AW$78:$AW$115,0))) -> 0 0 | AQ115: =IF($AP115<>"",VLOOKUP($AP115,'3'!$AT$78:$AV$115,3,0),"") -> 0 | AS115: 38 | AT115: 0 0 | AV115: 0 | AW115: =IF(AT115<>"",COUNTIF($AX$78:$AX$115,">"&AX115)+COUNTIF($AX$78:AX115,AX115),"") -> 38 | AX115: 0
D118: ="Effectif Total : " &F118 -> Effectif Total : 0 | F118: =SUM(F120:F121) -> 0 | R118: =COUNTIFS(R78:R115,">=10") -> 0 | Y118: ="Effectif Total : " &Z120 -> Effectif Total : 0 | AA118: =F118 -> 0 | AP118: =Y118 -> Effectif Total : 0 | AQ118: =F118 -> 0 | AR118: =COUNTA(AP78:AP115) -> 38
D120: ="Filles : "&F120 -> Filles : 0 | F120: =COUNTIFS(C78:C115,"أ") -> 0 | S120: =COUNTIFS(S78:S115,">=10") -> 0 | Y120: =D120 -> Filles : 0 | Z120: =F118 -> 0 | AA120: =AA118 -> 0 | AC120: Moyenne trimestrielle >=10 | AG120: =COUNTIFS(AG78:AG115,">=10") -> 0 | AH120: =AG120/AA118 ->  | AP120: =Y120 -> Filles : 0 | AQ120: =AQ118 -> 0
D121: ="Garçon : "&F121 -> Garçon : 0 | F121: =COUNTIFS(C78:C115,"ذ") -> 0 | T121: =COUNTIFS(T78:T115,">=10") -> 0 | Y121: =D121 -> Garçon : 0 | AA121: =AA120 -> 0 | AP121: =Y121 -> Garçon : 0 | AQ121: =AQ120 -> 0
D126: =D64 -> Collège - Mostaganem | S126: =IF(S64<>"",S64,"") -> 2014 - 2015 | T126: =IF(#REF!<>"",#REF!,"") ->  | Y126: =D126 -> Collège - Mostaganem | AH126: =IF(S126<>"",S126,"") -> 2014 - 2015 | AI126: =IF(N126<>"",N126,"") ->  | AP126: =Y126 -> Collège - Mostaganem | AY126: =AH126 -> 2014 - 2015
S127: =IF(#REF!<>"",#REF!,"") ->  | AH127: =IF(M127<>"",M127,"") ->  | AI127: =IF(N127<>"",N127,"") -> 
D128: Classe: | E128: =E66 -> 4AM1 | K128: Résultats des contrôles du 3e trimestre | Y128: Classe: | Z128: =E128 -> 4AM1 | AD128: Résultats du 3e trimestre
D129: Matière: | E129: =IF(E67<>"",E67,"") -> Mathématiques | Y129: Matière: | Z129: =IF(E129<>"",E129,"") -> Mathématiques | AP129: Classement (Troisième trimestre)
D130: Prof: | E130: =IF(E68<>"",E68,"") -> Toufik MERINE | Y130: Prof: | Z130: =IF(E130<>"",E130,"") -> Toufik MERINE | AH130: =AH68 -> 2
D133: Nom | E133: Prénom | F133: Date de naissance | G133: Contrôle en classe | H133: Cahiers | I133: test 1 | J133: test 2 | K133: test 3 | L133: test 4 | M133: test 5 | N133: test 6 | O133: Travail à la maison | P133: Travail à la maison | Q133: M. des contrôles | R133: Dev. S.1 | S133: Dev. S.2 | T133: Compo/20 | Y133: Nom | Z133: Prénom | AA133: Date de naissance | AB133: Contrôle contenu | AC133: Devoir 1 | AD133: Devoir 2 | AE133: M. des contrôles | AF133: Compo / 60 | AG133: Moyenne Trim / 20 | AH133: Moy par coeffi | AI133: Moy Générale | AP133: Nom et Prénom | AQ133: Moyenne Trim / 20
A140: 1 | C140: =C78 -> 0 | D140: 0 | E140: 0 | W140: 1 | X140: =C140 -> 0 | Y140: 0 | Z140: 0 | AA140: =IF(F140<>"",F140,"") ->  | AB140: =IF(Q140<>"",Q140,"") ->  | AE140: =IF(Q140="","",2*AVERAGE(AB140:AD140)) ->  | AF140: =IF(T140="","",T140*3) ->  | AG140: =IF(T140="","",(AF140+AE140)/5) ->  | AH140: =IF(T140="","",AG140*$AH$6) ->  | AI140: =K202 -> 0 | AN140: 1 | AP140: =IF(ISNA(MATCH(AN140,'3'!$AW$140:$AW$177,0)),"",INDEX('3'!$AT$140:$AT$177,MATCH(AN140,'3'!$AW$140:$AW$177,0))) -> 0 0 | AQ140: =IF($AP140<>"",VLOOKUP($AP140,'3'!$AT$140:$AV$177,3,0),"") -> 0 | AS140: 1 | AT140: =D140&" "&E140 -> 0 0 | AV140: =IF(AG140="",0,AG140) -> 0 | AW140: =IF(AT140<>"",COUNTIF($AX$140:$AX$177,">"&AX140)+COUNTIF($AX$140:AX140,AX140),"") -> 1 | AX140: =IF(AV140<>"",AV140*1000,"") -> 0
A141: 2 | C141: 0 | D141: 0 | E141: 0 | W141: 2 | X141: 0 | Y141: 0 | Z141: 0 | AI141: 0 | AN141: 2 | AP141: =IF(ISNA(MATCH(AN141,'3'!$AW$140:$AW$177,0)),"",INDEX('3'!$AT$140:$AT$177,MATCH(AN141,'3'!$AW$140:$AW$177,0))) -> 0 0 | AQ141: =IF($AP141<>"",VLOOKUP($AP141,'3'!$AT$140:$AV$177,3,0),"") -> 0 | AS141: 2 | AT141: 0 0 | AV141: =IF(AG141="",0,AG141) -> 0 | AW141: =IF(AT141<>"",COUNTIF($AX$140:$AX$177,">"&AX141)+COUNTIF($AX$140:AX141,AX141),"") -> 2 | AX141: =IF(AV141<>"",AV141*1000,"") -> 0
A142: 3 | C142: 0 | D142: 0 | E142: 0 | W142: 3 | X142: 0 | Y142: 0 | Z142: 0 | AI142: 0 | AN142: 3 | AP142: =IF(ISNA(MATCH(AN142,'3'!$AW$140:$AW$177,0)),"",INDEX('3'!$AT$140:$AT$177,MATCH(AN142,'3'!$AW$140:$AW$177,0))) -> 0 0 | AQ142: =IF($AP142<>"",VLOOKUP($AP142,'3'!$AT$140:$AV$177,3,0),"") -> 0 | AS142: 3 | AT142: 0 0 | AV142: 0 | AW142: =IF(AT142<>"",COUNTIF($AX$140:$AX$177,">"&AX142)+COUNTIF($AX$140:AX142,AX142),"") -> 3 | AX142: 0
A143: 4 | C143: 0 | D143: 0 | E143: 0 | W143: 4 | X143: 0 | Y143: 0 | Z143: 0 | AI143: 0 | AN143: 4 | AP143: =IF(ISNA(MATCH(AN143,'3'!$AW$140:$AW$177,0)),"",INDEX('3'!$AT$140:$AT$177,MATCH(AN143,'3'!$AW$140:$AW$177,0))) -> 0 0 | AQ143: =IF($AP143<>"",VLOOKUP($AP143,'3'!$AT$140:$AV$177,3,0),"") -> 0 | AS143: 4 | AT143: 0 0 | AV143: 0 | AW143: =IF(AT143<>"",COUNTIF($AX$140:$AX$177,">"&AX143)+COUNTIF($AX$140:AX143,AX143),"") -> 4 | AX143: 0
A144: 5 | C144: 0 | D144: 0 | E144: 0 | W144: 5 | X144: 0 | Y144: 0 | Z144: 0 | AI144: 0 | AN144: 5 | AP144: =IF(ISNA(MATCH(AN144,'3'!$AW$140:$AW$177,0)),"",INDEX('3'!$AT$140:$AT$177,MATCH(AN144,'3'!$AW$140:$AW$177,0))) -> 0 0 | AQ144: =IF($AP144<>"",VLOOKUP($AP144,'3'!$AT$140:$AV$177,3,0),"") -> 0 | AS144: 5 | AT144: 0 0 | AV144: 0 | AW144: =IF(AT144<>"",COUNTIF($AX$140:$AX$177,">"&AX144)+COUNTIF($AX$140:AX144,AX144),"") -> 5 | AX144: 0
A145: 6 | C145: 0 | D145: 0 | E145: 0 | W145: 6 | X145: 0 | Y145: 0 | Z145: 0 | AI145: 0 | AN145: 6 | AP145: =IF(ISNA(MATCH(AN145,'3'!$AW$140:$AW$177,0)),"",INDEX('3'!$AT$140:$AT$177,MATCH(AN145,'3'!$AW$140:$AW$177,0))) -> 0 0 | AQ145: =IF($AP145<>"",VLOOKUP($AP145,'3'!$AT$140:$AV$177,3,0),"") -> 0 | AS145: 6 | AT145: 0 0 | AV145: 0 | AW145: =IF(AT145<>"",COUNTIF($AX$140:$AX$177,">"&AX145)+COUNTIF($AX$140:AX145,AX145),"") -> 6 | AX145: 0
A146: 7 | C146: 0 | D146: 0 | E146: 0 | W146: 7 | X146: 0 | Y146: 0 | Z146: 0 | AI146: 0 | AN146: 7 | AP146: =IF(ISNA(MATCH(AN146,'3'!$AW$140:$AW$177,0)),"",INDEX('3'!$AT$140:$AT$177,MATCH(AN146,'3'!$AW$140:$AW$177,0))) -> 0 0 | AQ146: =IF($AP146<>"",VLOOKUP($AP146,'3'!$AT$140:$AV$177,3,0),"") -> 0 | AS146: 7 | AT146: 0 0 | AV146: 0 | AW146: =IF(AT146<>"",COUNTIF($AX$140:$AX$177,">"&AX146)+COUNTIF($AX$140:AX146,AX146),"") -> 7 | AX146: 0
A147: 8 | C147: 0 | D147: 0 | E147: 0 | W147: 8 | X147: 0 | Y147: 0 | Z147: 0 | AI147: 0 | AN147: 8 | AP147: =IF(ISNA(MATCH(AN147,'3'!$AW$140:$AW$177,0)),"",INDEX('3'!$AT$140:$AT$177,MATCH(AN147,'3'!$AW$140:$AW$177,0))) -> 0 0 | AQ147: =IF($AP147<>"",VLOOKUP($AP147,'3'!$AT$140:$AV$177,3,0),"") -> 0 | AS147: 8 | AT147: 0 0 | AV147: 0 | AW147: =IF(AT147<>"",COUNTIF($AX$140:$AX$177,">"&AX147)+COUNTIF($AX$140:AX147,AX147),"") -> 8 | AX147: 0
A148: 9 | C148: 0 | D148: 0 | E148: 0 | W148: 9 | X148: 0 | Y148: 0 | Z148: 0 | AI148: 0 | AN148: 9 | AP148: =IF(ISNA(MATCH(AN148,'3'!$AW$140:$AW$177,0)),"",INDEX('3'!$AT$140:$AT$177,MATCH(AN148,'3'!$AW$140:$AW$177,0))) -> 0 0 | AQ148: =IF($AP148<>"",VLOOKUP($AP148,'3'!$AT$140:$AV$177,3,0),"") -> 0 | AS148: 9 | AT148: 0 0 | AV148: 0 | AW148: =IF(AT148<>"",COUNTIF($AX$140:$AX$177,">"&AX148)+COUNTIF($AX$140:AX148,AX148),"") -> 9 | AX148: 0
A149: 10 | C149: 0 | D149: 0 | E149: 0 | W149: 10 | X149: 0 | Y149: 0 | Z149: 0 | AI149: 0 | AN149: 10 | AP149: =IF(ISNA(MATCH(AN149,'3'!$AW$140:$AW$177,0)),"",INDEX('3'!$AT$140:$AT$177,MATCH(AN149,'3'!$AW$140:$AW$177,0))) -> 0 0 | AQ149: =IF($AP149<>"",VLOOKUP($AP149,'3'!$AT$140:$AV$177,3,0),"") -> 0 | AS149: 10 | AT149: 0 0 | AV149: 0 | AW149: =IF(AT149<>"",COUNTIF($AX$140:$AX$177,">"&AX149)+COUNTIF($AX$140:AX149,AX149),"") -> 10 | AX149: 0
A150: 11 | C150: 0 | D150: 0 | E150: 0 | W150: 11 | X150: 0 | Y150: 0 | Z150: 0 | AI150: 0 | AN150: 11 | AP150: =IF(ISNA(MATCH(AN150,'3'!$AW$140:$AW$177,0)),"",INDEX('3'!$AT$140:$AT$177,MATCH(AN150,'3'!$AW$140:$AW$177,0))) -> 0 0 | AQ150: =IF($AP150<>"",VLOOKUP($AP150,'3'!$AT$140:$AV$177,3,0),"") -> 0 | AS150: 11 | AT150: 0 0 | AV150: 0 | AW150: =IF(AT150<>"",COUNTIF($AX$140:$AX$177,">"&AX150)+COUNTIF($AX$140:AX150,AX150),"") -> 11 | AX150: 0
A151: 12 | C151: 0 | D151: 0 | E151: 0 | W151: 12 | X151: 0 | Y151: 0 | Z151: 0 | AI151: 0 | AN151: 12 | AP151: =IF(ISNA(MATCH(AN151,'3'!$AW$140:$AW$177,0)),"",INDEX('3'!$AT$140:$AT$177,MATCH(AN151,'3'!$AW$140:$AW$177,0))) -> 0 0 | AQ151: =IF($AP151<>"",VLOOKUP($AP151,'3'!$AT$140:$AV$177,3,0),"") -> 0 | AS151: 12 | AT151: 0 0 | AV151: 0 | AW151: =IF(AT151<>"",COUNTIF($AX$140:$AX$177,">"&AX151)+COUNTIF($AX$140:AX151,AX151),"") -> 12 | AX151: 0
A152: 13 | C152: 0 | D152: 0 | E152: 0 | W152: 13 | X152: 0 | Y152: 0 | Z152: 0 | AI152: 0 | AN152: 13 | AP152: =IF(ISNA(MATCH(AN152,'3'!$AW$140:$AW$177,0)),"",INDEX('3'!$AT$140:$AT$177,MATCH(AN152,'3'!$AW$140:$AW$177,0))) -> 0 0 | AQ152: =IF($AP152<>"",VLOOKUP($AP152,'3'!$AT$140:$AV$177,3,0),"") -> 0 | AS152: 13 | AT152: 0 0 | AV152: 0 | AW152: =IF(AT152<>"",COUNTIF($AX$140:$AX$177,">"&AX152)+COUNTIF($AX$140:AX152,AX152),"") -> 13 | AX152: 0
A153: 14 | C153: 0 | D153: 0 | E153: 0 | W153: 14 | X153: 0 | Y153: 0 | Z153: 0 | AI153: 0 | AN153: 14 | AP153: =IF(ISNA(MATCH(AN153,'3'!$AW$140:$AW$177,0)),"",INDEX('3'!$AT$140:$AT$177,MATCH(AN153,'3'!$AW$140:$AW$177,0))) -> 0 0 | AQ153: =IF($AP153<>"",VLOOKUP($AP153,'3'!$AT$140:$AV$177,3,0),"") -> 0 | AS153: 14 | AT153: 0 0 | AV153: 0 | AW153: =IF(AT153<>"",COUNTIF($AX$140:$AX$177,">"&AX153)+COUNTIF($AX$140:AX153,AX153),"") -> 14 | AX153: 0
A154: 15 | C154: 0 | D154: 0 | E154: 0 | W154: 15 | X154: 0 | Y154: 0 | Z154: 0 | AI154: 0 | AN154: 15 | AP154: =IF(ISNA(MATCH(AN154,'3'!$AW$140:$AW$177,0)),"",INDEX('3'!$AT$140:$AT$177,MATCH(AN154,'3'!$AW$140:$AW$177,0))) -> 0 0 | AQ154: =IF($AP154<>"",VLOOKUP($AP154,'3'!$AT$140:$AV$177,3,0),"") -> 0 | AS154: 15 | AT154: 0 0 | AV154: 0 | AW154: =IF(AT154<>"",COUNTIF($AX$140:$AX$177,">"&AX154)+COUNTIF($AX$140:AX154,AX154),"") -> 15 | AX154: 0
A155: 16 | C155: 0 | D155: 0 | E155: 0 | W155: 16 | X155: 0 | Y155: 0 | Z155: 0 | AI155: 0 | AN155: 16 | AP155: =IF(ISNA(MATCH(AN155,'3'!$AW$140:$AW$177,0)),"",INDEX('3'!$AT$140:$AT$177,MATCH(AN155,'3'!$AW$140:$AW$177,0))) -> 0 0 | AQ155: =IF($AP155<>"",VLOOKUP($AP155,'3'!$AT$140:$AV$177,3,0),"") -> 0 | AS155: 16 | AT155: 0 0 | AV155: 0 | AW155: =IF(AT155<>"",COUNTIF($AX$140:$AX$177,">"&AX155)+COUNTIF($AX$140:AX155,AX155),"") -> 16 | AX155: 0
A156: 17 | C156: =C94 -> 0 | D156: 0 | E156: 0 | W156: 17 | X156: 0 | Y156: 0 | Z156: 0 | AI156: 0 | AN156: 17 | AP156: =IF(ISNA(MATCH(AN156,'3'!$AW$140:$AW$177,0)),"",INDEX('3'!$AT$140:$AT$177,MATCH(AN156,'3'!$AW$140:$AW$177,0))) -> 0 0 | AQ156: =IF($AP156<>"",VLOOKUP($AP156,'3'!$AT$140:$AV$177,3,0),"") -> 0 | AS156: 17 | AT156: 0 0 | AV156: 0 | AW156: =IF(AT156<>"",COUNTIF($AX$140:$AX$177,">"&AX156)+COUNTIF($AX$140:AX156,AX156),"") -> 17 | AX156: 0
A157: 18 | C157: 0 | D157: 0 | E157: 0 | W157: 18 | X157: 0 | Y157: 0 | Z157: 0 | AI157: 0 | AN157: 18 | AP157: =IF(ISNA(MATCH(AN157,'3'!$AW$140:$AW$177,0)),"",INDEX('3'!$AT$140:$AT$177,MATCH(AN157,'3'!$AW$140:$AW$177,0))) -> 0 0 | AQ157: =IF($AP157<>"",VLOOKUP($AP157,'3'!$AT$140:$AV$177,3,0),"") -> 0 | AS157: 18 | AT157: 0 0 | AV157: 0 | AW157: =IF(AT157<>"",COUNTIF($AX$140:$AX$177,">"&AX157)+COUNTIF($AX$140:AX157,AX157),"") -> 18 | AX157: 0
A158: 19 | C158: 0 | D158: 0 | E158: 0 | W158: 19 | X158: 0 | Y158: 0 | Z158: 0 | AI158: 0 | AN158: 19 | AP158: =IF(ISNA(MATCH(AN158,'3'!$AW$140:$AW$177,0)),"",INDEX('3'!$AT$140:$AT$177,MATCH(AN158,'3'!$AW$140:$AW$177,0))) -> 0 0 | AQ158: =IF($AP158<>"",VLOOKUP($AP158,'3'!$AT$140:$AV$177,3,0),"") -> 0 | AS158: 19 | AT158: 0 0 | AV158: 0 | AW158: =IF(AT158<>"",COUNTIF($AX$140:$AX$177,">"&AX158)+COUNTIF($AX$140:AX158,AX158),"") -> 19 | AX158: 0
A159: 20 | C159: 0 | D159: 0 | E159: 0 | W159: 20 | X159: 0 | Y159: 0 | Z159: 0 | AI159: 0 | AN159: 20 | AP159: =IF(ISNA(MATCH(AN159,'3'!$AW$140:$AW$177,0)),"",INDEX('3'!$AT$140:$AT$177,MATCH(AN159,'3'!$AW$140:$AW$177,0))) -> 0 0 | AQ159: =IF($AP159<>"",VLOOKUP($AP159,'3'!$AT$140:$AV$177,3,0),"") -> 0 | AS159: 20 | AT159: 0 0 | AV159: 0 | AW159: =IF(AT159<>"",COUNTIF($AX$140:$AX$177,">"&AX159)+COUNTIF($AX$140:AX159,AX159),"") -> 20 | AX159: 0
A160: 21 | C160: 0 | D160: 0 | E160: 0 | W160: 21 | X160: 0 | Y160: 0 | Z160: 0 | AI160: 0 | AN160: 21 | AP160: =IF(ISNA(MATCH(AN160,'3'!$AW$140:$AW$177,0)),"",INDEX('3'!$AT$140:$AT$177,MATCH(AN160,'3'!$AW$140:$AW$177,0))) -> 0 0 | AQ160: =IF($AP160<>"",VLOOKUP($AP160,'3'!$AT$140:$AV$177,3,0),"") -> 0 | AS160: 21 | AT160: 0 0 | AV160: 0 | AW160: =IF(AT160<>"",COUNTIF($AX$140:$AX$177,">"&AX160)+COUNTIF($AX$140:AX160,AX160),"") -> 21 | AX160: 0
A161: 22 | C161: 0 | D161: 0 | E161: 0 | W161: 22 | X161: 0 | Y161: 0 | Z161: 0 | AI161: 0 | AN161: 22 | AP161: =IF(ISNA(MATCH(AN161,'3'!$AW$140:$AW$177,0)),"",INDEX('3'!$AT$140:$AT$177,MATCH(AN161,'3'!$AW$140:$AW$177,0))) -> 0 0 | AQ161: =IF($AP161<>"",VLOOKUP($AP161,'3'!$AT$140:$AV$177,3,0),"") -> 0 | AS161: 22 | AT161: 0 0 | AV161: 0 | AW161: =IF(AT161<>"",COUNTIF($AX$140:$AX$177,">"&AX161)+COUNTIF($AX$140:AX161,AX161),"") -> 22 | AX161: 0
A162: 23 | C162: 0 | D162: 0 | E162: 0 | W162: 23 | X162: 0 | Y162: 0 | Z162: 0 | AI162: 0 | AN162: 23 | AP162: =IF(ISNA(MATCH(AN162,'3'!$AW$140:$AW$177,0)),"",INDEX('3'!$AT$140:$AT$177,MATCH(AN162,'3'!$AW$140:$AW$177,0))) -> 0 0 | AQ162: =IF($AP162<>"",VLOOKUP($AP162,'3'!$AT$140:$AV$177,3,0),"") -> 0 | AS162: 23 | AT162: 0 0 | AV162: 0 | AW162: =IF(AT162<>"",COUNTIF($AX$140:$AX$177,">"&AX162)+COUNTIF($AX$140:AX162,AX162),"") -> 23 | AX162: 0
A163: 24 | C163: 0 | D163: 0 | E163: 0 | W163: 24 | X163: 0 | Y163: 0 | Z163: 0 | AI163: 0 | AN163: 24 | AP163: =IF(ISNA(MATCH(AN163,'3'!$AW$140:$AW$177,0)),"",INDEX('3'!$AT$140:$AT$177,MATCH(AN163,'3'!$AW$140:$AW$177,0))) -> 0 0 | AQ163: =IF($AP163<>"",VLOOKUP($AP163,'3'!$AT$140:$AV$177,3,0),"") -> 0 | AS163: 24 | AT163: 0 0 | AV163: 0 | AW163: =IF(AT163<>"",COUNTIF($AX$140:$AX$177,">"&AX163)+COUNTIF($AX$140:AX163,AX163),"") -> 24 | AX163: 0
A164: 25 | C164: 0 | D164: 0 | E164: 0 | W164: 25 | X164: 0 | Y164: 0 | Z164: 0 | AI164: 0 | AN164: 25 | AP164: =IF(ISNA(MATCH(AN164,'3'!$AW$140:$AW$177,0)),"",INDEX('3'!$AT$140:$AT$177,MATCH(AN164,'3'!$AW$140:$AW$177,0))) -> 0 0 | AQ164: =IF($AP164<>"",VLOOKUP($AP164,'3'!$AT$140:$AV$177,3,0),"") -> 0 | AS164: 25 | AT164: 0 0 | AV164: 0 | AW164: =IF(AT164<>"",COUNTIF($AX$140:$AX$177,">"&AX164)+COUNTIF($AX$140:AX164,AX164),"") -> 25 | AX164: 0
A165: 26 | C165: 0 | D165: 0 | E165: 0 | W165: 26 | X165: 0 | Y165: 0 | Z165: 0 | AI165: 0 | AN165: 26 | AP165: =IF(ISNA(MATCH(AN165,'3'!$AW$140:$AW$177,0)),"",INDEX('3'!$AT$140:$AT$177,MATCH(AN165,'3'!$AW$140:$AW$177,0))) -> 0 0 | AQ165: =IF($AP165<>"",VLOOKUP($AP165,'3'!$AT$140:$AV$177,3,0),"") -> 0 | AS165: 26 | AT165: 0 0 | AV165: 0 | AW165: =IF(AT165<>"",COUNTIF($AX$140:$AX$177,">"&AX165)+COUNTIF($AX$140:AX165,AX165),"") -> 26 | AX165: 0
A166: 27 | C166: 0 | D166: 0 | E166: 0 | W166: 27 | X166: 0 | Y166: 0 | Z166: 0 | AI166: 0 | AN166: 27 | AP166: =IF(ISNA(MATCH(AN166,'3'!$AW$140:$AW$177,0)),"",INDEX('3'!$AT$140:$AT$177,MATCH(AN166,'3'!$AW$140:$AW$177,0))) -> 0 0 | AQ166: =IF($AP166<>"",VLOOKUP($AP166,'3'!$AT$140:$AV$177,3,0),"") -> 0 | AS166: 27 | AT166: 0 0 | AV166: 0 | AW166: =IF(AT166<>"",COUNTIF($AX$140:$AX$177,">"&AX166)+COUNTIF($AX$140:AX166,AX166),"") -> 27 | AX166: 0
A167: 28 | C167: 0 | D167: 0 | E167: 0 | W167: 28 | X167: 0 | Y167: 0 | Z167: 0 | AI167: 0 | AN167: 28 | AP167: =IF(ISNA(MATCH(AN167,'3'!$AW$140:$AW$177,0)),"",INDEX('3'!$AT$140:$AT$177,MATCH(AN167,'3'!$AW$140:$AW$177,0))) -> 0 0 | AQ167: =IF($AP167<>"",VLOOKUP($AP167,'3'!$AT$140:$AV$177,3,0),"") -> 0 | AS167: 28 | AT167: 0 0 | AV167: 0 | AW167: =IF(AT167<>"",COUNTIF($AX$140:$AX$177,">"&AX167)+COUNTIF($AX$140:AX167,AX167),"") -> 28 | AX167: 0
A168: 29 | C168: 0 | D168: 0 | E168: 0 | W168: 29 | X168: 0 | Y168: 0 | Z168: 0 | AI168: 0 | AN168: 29 | AP168: =IF(ISNA(MATCH(AN168,'3'!$AW$140:$AW$177,0)),"",INDEX('3'!$AT$140:$AT$177,MATCH(AN168,'3'!$AW$140:$AW$177,0))) -> 0 0 | AQ168: =IF($AP168<>"",VLOOKUP($AP168,'3'!$AT$140:$AV$177,3,0),"") -> 0 | AS168: 29 | AT168: 0 0 | AV168: 0 | AW168: =IF(AT168<>"",COUNTIF($AX$140:$AX$177,">"&AX168)+COUNTIF($AX$140:AX168,AX168),"") -> 29 | AX168: 0
A169: 30 | C169: 0 | D169: 0 | E169: 0 | W169: 30 | X169: 0 | Y169: 0 | Z169: 0 | AI169: 0 | AN169: 30 | AP169: =IF(ISNA(MATCH(AN169,'3'!$AW$140:$AW$177,0)),"",INDEX('3'!$AT$140:$AT$177,MATCH(AN169,'3'!$AW$140:$AW$177,0))) -> 0 0 | AQ169: =IF($AP169<>"",VLOOKUP($AP169,'3'!$AT$140:$AV$177,3,0),"") -> 0 | AS169: 30 | AT169: 0 0 | AV169: 0 | AW169: =IF(AT169<>"",COUNTIF($AX$140:$AX$177,">"&AX169)+COUNTIF($AX$140:AX169,AX169),"") -> 30 | AX169: 0
A170: 31 | C170: 0 | D170: 0 | E170: 0 | W170: 31 | X170: 0 | Y170: 0 | Z170: 0 | AI170: 0 | AN170: 31 | AP170: =IF(ISNA(MATCH(AN170,'3'!$AW$140:$AW$177,0)),"",INDEX('3'!$AT$140:$AT$177,MATCH(AN170,'3'!$AW$140:$AW$177,0))) -> 0 0 | AQ170: =IF($AP170<>"",VLOOKUP($AP170,'3'!$AT$140:$AV$177,3,0),"") -> 0 | AS170: 31 | AT170: 0 0 | AV170: 0 | AW170: =IF(AT170<>"",COUNTIF($AX$140:$AX$177,">"&AX170)+COUNTIF($AX$140:AX170,AX170),"") -> 31 | AX170: 0
A171: 32 | C171: 0 | D171: 0 | E171: 0 | W171: 32 | X171: 0 | Y171: 0 | Z171: 0 | AI171: 0 | AN171: 32 | AP171: =IF(ISNA(MATCH(AN171,'3'!$AW$140:$AW$177,0)),"",INDEX('3'!$AT$140:$AT$177,MATCH(AN171,'3'!$AW$140:$AW$177,0))) -> 0 0 | AQ171: =IF($AP171<>"",VLOOKUP($AP171,'3'!$AT$140:$AV$177,3,0),"") -> 0 | AS171: 32 | AT171: 0 0 | AV171: 0 | AW171: =IF(AT171<>"",COUNTIF($AX$140:$AX$177,">"&AX171)+COUNTIF($AX$140:AX171,AX171),"") -> 32 | AX171: 0
A172: 33 | C172: =C110 -> 0 | D172: 0 | E172: 0 | W172: 33 | X172: 0 | Y172: 0 | Z172: 0 | AI172: 0 | AN172: 33 | AP172: =IF(ISNA(MATCH(AN172,'3'!$AW$140:$AW$177,0)),"",INDEX('3'!$AT$140:$AT$177,MATCH(AN172,'3'!$AW$140:$AW$177,0))) -> 0 0 | AQ172: =IF($AP172<>"",VLOOKUP($AP172,'3'!$AT$140:$AV$177,3,0),"") -> 0 | AS172: 33 | AT172: 0 0 | AV172: 0 | AW172: =IF(AT172<>"",COUNTIF($AX$140:$AX$177,">"&AX172)+COUNTIF($AX$140:AX172,AX172),"") -> 33 | AX172: 0
A173: 34 | C173: 0 | D173: 0 | E173: 0 | W173: 34 | X173: 0 | Y173: 0 | Z173: 0 | AI173: 0 | AN173: 34 | AP173: =IF(ISNA(MATCH(AN173,'3'!$AW$140:$AW$177,0)),"",INDEX('3'!$AT$140:$AT$177,MATCH(AN173,'3'!$AW$140:$AW$177,0))) -> 0 0 | AQ173: =IF($AP173<>"",VLOOKUP($AP173,'3'!$AT$140:$AV$177,3,0),"") -> 0 | AS173: 34 | AT173: 0 0 | AV173: 0 | AW173: =IF(AT173<>"",COUNTIF($AX$140:$AX$177,">"&AX173)+COUNTIF($AX$140:AX173,AX173),"") -> 34 | AX173: 0
A174: 35 | C174: 0 | D174: 0 | E174: 0 | W174: 35 | X174: 0 | Y174: 0 | Z174: 0 | AI174: 0 | AN174: 35 | AP174: =IF(ISNA(MATCH(AN174,'3'!$AW$140:$AW$177,0)),"",INDEX('3'!$AT$140:$AT$177,MATCH(AN174,'3'!$AW$140:$AW$177,0))) -> 0 0 | AQ174: =IF($AP174<>"",VLOOKUP($AP174,'3'!$AT$140:$AV$177,3,0),"") -> 0 | AS174: 35 | AT174: 0 0 | AV174: 0 | AW174: =IF(AT174<>"",COUNTIF($AX$140:$AX$177,">"&AX174)+COUNTIF($AX$140:AX174,AX174),"") -> 35 | AX174: 0
A175: 36 | C175: 0 | D175: 0 | E175: 0 | W175: 36 | X175: 0 | Y175: 0 | Z175: 0 | AI175: 0 | AN175: 36 | AP175: =IF(ISNA(MATCH(AN175,'3'!$AW$140:$AW$177,0)),"",INDEX('3'!$AT$140:$AT$177,MATCH(AN175,'3'!$AW$140:$AW$177,0))) -> 0 0 | AQ175: =IF($AP175<>"",VLOOKUP($AP175,'3'!$AT$140:$AV$177,3,0),"") -> 0 | AS175: 36 | AT175: 0 0 | AV175: 0 | AW175: =IF(AT175<>"",COUNTIF($AX$140:$AX$177,">"&AX175)+COUNTIF($AX$140:AX175,AX175),"") -> 36 | AX175: 0
A176: 37 | C176: 0 | D176: 0 | E176: 0 | W176: 37 | X176: 0 | Y176: 0 | Z176: 0 | AI176: 0 | AN176: 37 | AP176: =IF(ISNA(MATCH(AN176,'3'!$AW$140:$AW$177,0)),"",INDEX('3'!$AT$140:$AT$177,MATCH(AN176,'3'!$AW$140:$AW$177,0))) -> 0 0 | AQ176: =IF($AP176<>"",VLOOKUP($AP176,'3'!$AT$140:$AV$177,3,0),"") -> 0 | AS176: 37 | AT176: 0 0 | AV176: 0 | AW176: =IF(AT176<>"",COUNTIF($AX$140:$AX$177,">"&AX176)+COUNTIF($AX$140:AX176,AX176),"") -> 37 | AX176: 0
A177: 38 | C177: 0 | D177: 0 | E177: 0 | W177: 38 | X177: 0 | Y177: 0 | Z177: 0 | AI177: 0 | AN177: 38 | AP177: =IF(ISNA(MATCH(AN177,'3'!$AW$140:$AW$177,0)),"",INDEX('3'!$AT$140:$AT$177,MATCH(AN177,'3'!$AW$140:$AW$177,0))) -> 0 0 | AQ177: =IF($AP177<>"",VLOOKUP($AP177,'3'!$AT$140:$AV$177,3,0),"") -> 0 | AS177: 38 | AT177: 0 0 | AV177: 0 | AW177: =IF(AT177<>"",COUNTIF($AX$140:$AX$177,">"&AX177)+COUNTIF($AX$140:AX177,AX177),"") -> 38 | AX177: 0
D180: ="Effectif Total : " &F180 -> Effectif Total : 0 | F180: =SUM(F182:F183) -> 0 | R180: =COUNTIFS(R140:R177,">=10") -> 0 | Y180: ="Effectif Total : " &Z182 -> Effectif Total : 0 | AA180: =F180 -> 0 | AP180: =Y180 -> Effectif Total : 0 | AQ180: =F180 -> 0
D182: ="Filles : "&F182 -> Filles : 0 | F182: =COUNTIFS(C140:C177,"أ") -> 0 | S182: =COUNTIFS(S140:S177,">=10") -> 0 | Y182: =D182 -> Filles : 0 | Z182: =F180 -> 0 | AA182: =AA180 -> 0 | AC182: Moyenne trimestrielle >=10 | AG182: =COUNTIFS(AG140:AG177,">=10") -> 0 | AH182: =AG182/AA180 ->  | AP182: =Y182 -> Filles : 0 | AQ182: =AQ180 -> 0
D183: ="Garçon : "&F183 -> Garçon : 0 | F183: =COUNTIFS(C140:C177,"ذ") -> 0 | T183: =COUNTIFS(T140:T177,">=10") -> 0 | Y183: =D183 -> Garçon : 0 | AA183: =AA182 -> 0 | AC183: Moyennegénérale >=10 | AG183: =COUNTIFS(AI140:AI177,">=10") -> 0 | AH183: =AG183/AA180 ->  | AP183: =Y183 -> Garçon : 0 | AQ183: =AQ182 -> 0
D188: =D126 -> Collège - Mostaganem | S188: =IF(S126<>"",S126,"") -> 2014 - 2015 | T188: =IF(#REF!<>"",#REF!,"") ->  | Y188: =D188 -> Collège - Mostaganem | AH188: =IF(S188<>"",S188,"") -> 2014 - 2015 | AI188: =IF(N188<>"",N188,"") -> 
S189: =IF(#REF!<>"",#REF!,"") ->  | AH189: =IF(M189<>"",M189,"") ->  | AI189: =IF(N189<>"",N189,"") -> 
D190: Classe: | E190: =E128 -> 4AM1 | K190: Resultat des 3 trimestres | Y190: Classe: | Z190: =E190 -> 4AM1 | AB190: Classement
D191: Matière: | E191: =IF(E129<>"",E129,"") -> Mathématiques | Y191: Matière: | Z191: =IF(E191<>"",E191,"") -> Mathématiques
D192: Prof: | E192: =IF(E130<>"",E130,"") -> Toufik MERINE | Y192: Prof: | Z192: =IF(E192<>"",E192,"") -> Toufik MERINE
D195: Nom | E195: Prénom | F195: Date de naissance | H195: Moy 1er Trim | I195: Moy 2e Trim | J195: Moy 3e Trim | K195: Moy Générale | L195: L'âge jusqu'aujourd'hui | Y195: Nom et Prénom | AA195: Date de naissance | AB195: Moy Générale | AC195: L'âge jusqu'aujourd'hui
A202: 1 | C202: =C140 -> 0 | D202: =D16&" "&E16 ->  | F202: =F140 ->  | H202: =IF(T16="","",AG16) ->  | I202: =IF(T78="","",AG78) ->  | J202: =IF(T140="","",AG140) ->  | K202: =IF(SUM(H202:J202)=0,0,AVERAGE(H202:J202)) -> 0 | Q202: =DATEDIF(F202,TODAY(),"y")&" ans "&DATEDIF(F202,TODAY(),"ym")&" mois "&DATEDIF(F202,TODAY(),"md")&" jours" ->  | T202: =C202 -> 0 | W202: 1 | X202: =IF($Y202<>"",VLOOKUP($Y202,'3'!$D$202:$T$239,17,0),"") -> 0 | Y202: =IF(ISNA(MATCH(W202,'3'!$AC$202:$AC$239,0)),"",INDEX('3'!$D$202:$D$239,MATCH(W202,'3'!$AC$202:$AC$239,0))) ->  | AA202: =IF($Y202<>"",VLOOKUP($Y202,'3'!$D$202:$F$239,3,0),"") ->  | AB202: =IF($Y202<>"",VLOOKUP($Y202,'3'!$D$202:$K$239,8,0),"") -> 0 | AC202: =IF(D202<>"",COUNTIF($AD$202:$AD$239,">"&AD202)+COUNTIF($AD$202:AD202,AD202),"") -> 1 | AD202: =IF(K202<>"",K202*10000,"") -> 0 | AG202: =IF($Y202<>"",VLOOKUP($Y202,'3'!$D$202:$Q$239,14,0),"") -> 
A203: 2 | C203: 0 | D203: =D17&" "&E17 ->  | K203: =IF(SUM(H203:J203)=0,0,AVERAGE(H203:J203)) -> 0 | Q203: =DATEDIF(F203,TODAY(),"y")&" ans "&DATEDIF(F203,TODAY(),"ym")&" mois "&DATEDIF(F203,TODAY(),"md")&" jours" ->  | T203: =C203 -> 0 | W203: 2 | X203: =IF($Y203<>"",VLOOKUP($Y203,'3'!$D$202:$T$239,17,0),"") -> 0 | Y203: =IF(ISNA(MATCH(W203,'3'!$AC$202:$AC$239,0)),"",INDEX('3'!$D$202:$D$239,MATCH(W203,'3'!$AC$202:$AC$239,0))) ->  | AA203: =IF($Y203<>"",VLOOKUP($Y203,'3'!$D$202:$F$239,3,0),"") ->  | AB203: =IF($Y203<>"",VLOOKUP($Y203,'3'!$D$202:$K$239,8,0),"") -> 0 | AC203: =IF(D203<>"",COUNTIF($AD$202:$AD$239,">"&AD203)+COUNTIF($AD$202:AD203,AD203),"") -> 2 | AD203: =IF(K203<>"",K203*10000,"") -> 0 | AG203: =IF($Y203<>"",VLOOKUP($Y203,'3'!$D$202:$Q$239,14,0),"") -> 
A204: 3 | C204: 0 | K204: 0 | T204: 0 | W204: 3 | X204: =IF($Y204<>"",VLOOKUP($Y204,'3'!$D$202:$T$239,17,0),"") -> 0 | Y204: =IF(ISNA(MATCH(W204,'3'!$AC$202:$AC$239,0)),"",INDEX('3'!$D$202:$D$239,MATCH(W204,'3'!$AC$202:$AC$239,0))) ->  | AA204: =IF($Y204<>"",VLOOKUP($Y204,'3'!$D$202:$F$239,3,0),"") ->  | AB204: =IF($Y204<>"",VLOOKUP($Y204,'3'!$D$202:$K$239,8,0),"") -> 0 | AC204: =IF(D204<>"",COUNTIF($AD$202:$AD$239,">"&AD204)+COUNTIF($AD$202:AD204,AD204),"") -> 3 | AD204: 0 | AG204: =IF($Y204<>"",VLOOKUP($Y204,'3'!$D$202:$Q$239,14,0),"") -> 
A205: 4 | C205: 0 | K205: 0 | T205: 0 | W205: 4 | X205: =IF($Y205<>"",VLOOKUP($Y205,'3'!$D$202:$T$239,17,0),"") -> 0 | Y205: =IF(ISNA(MATCH(W205,'3'!$AC$202:$AC$239,0)),"",INDEX('3'!$D$202:$D$239,MATCH(W205,'3'!$AC$202:$AC$239,0))) ->  | AA205: =IF($Y205<>"",VLOOKUP($Y205,'3'!$D$202:$F$239,3,0),"") ->  | AB205: =IF($Y205<>"",VLOOKUP($Y205,'3'!$D$202:$K$239,8,0),"") -> 0 | AC205: =IF(D205<>"",COUNTIF($AD$202:$AD$239,">"&AD205)+COUNTIF($AD$202:AD205,AD205),"") -> 4 | AD205: 0 | AG205: =IF($Y205<>"",VLOOKUP($Y205,'3'!$D$202:$Q$239,14,0),"") -> 
A206: 5 | C206: 0 | K206: 0 | T206: 0 | W206: 5 | X206: =IF($Y206<>"",VLOOKUP($Y206,'3'!$D$202:$T$239,17,0),"") -> 0 | Y206: =IF(ISNA(MATCH(W206,'3'!$AC$202:$AC$239,0)),"",INDEX('3'!$D$202:$D$239,MATCH(W206,'3'!$AC$202:$AC$239,0))) ->  | AA206: =IF($Y206<>"",VLOOKUP($Y206,'3'!$D$202:$F$239,3,0),"") ->  | AB206: =IF($Y206<>"",VLOOKUP($Y206,'3'!$D$202:$K$239,8,0),"") -> 0 | AC206: =IF(D206<>"",COUNTIF($AD$202:$AD$239,">"&AD206)+COUNTIF($AD$202:AD206,AD206),"") -> 5 | AD206: 0 | AG206: =IF($Y206<>"",VLOOKUP($Y206,'3'!$D$202:$Q$239,14,0),"") -> 
A207: 6 | C207: 0 | K207: 0 | T207: 0 | W207: 6 | X207: =IF($Y207<>"",VLOOKUP($Y207,'3'!$D$202:$T$239,17,0),"") -> 0 | Y207: =IF(ISNA(MATCH(W207,'3'!$AC$202:$AC$239,0)),"",INDEX('3'!$D$202:$D$239,MATCH(W207,'3'!$AC$202:$AC$239,0))) ->  | AA207: =IF($Y207<>"",VLOOKUP($Y207,'3'!$D$202:$F$239,3,0),"") ->  | AB207: =IF($Y207<>"",VLOOKUP($Y207,'3'!$D$202:$K$239,8,0),"") -> 0 | AC207: =IF(D207<>"",COUNTIF($AD$202:$AD$239,">"&AD207)+COUNTIF($AD$202:AD207,AD207),"") -> 6 | AD207: 0 | AG207: =IF($Y207<>"",VLOOKUP($Y207,'3'!$D$202:$Q$239,14,0),"") -> 
A208: 7 | C208: 0 | K208: 0 | T208: 0 | W208: 7 | X208: =IF($Y208<>"",VLOOKUP($Y208,'3'!$D$202:$T$239,17,0),"") -> 0 | Y208: =IF(ISNA(MATCH(W208,'3'!$AC$202:$AC$239,0)),"",INDEX('3'!$D$202:$D$239,MATCH(W208,'3'!$AC$202:$AC$239,0))) ->  | AA208: =IF($Y208<>"",VLOOKUP($Y208,'3'!$D$202:$F$239,3,0),"") ->  | AB208: =IF($Y208<>"",VLOOKUP($Y208,'3'!$D$202:$K$239,8,0),"") -> 0 | AC208: =IF(D208<>"",COUNTIF($AD$202:$AD$239,">"&AD208)+COUNTIF($AD$202:AD208,AD208),"") -> 7 | AD208: 0 | AG208: =IF($Y208<>"",VLOOKUP($Y208,'3'!$D$202:$Q$239,14,0),"") -> 
A209: 8 | C209: 0 | K209: 0 | T209: 0 | W209: 8 | X209: =IF($Y209<>"",VLOOKUP($Y209,'3'!$D$202:$T$239,17,0),"") -> 0 | Y209: =IF(ISNA(MATCH(W209,'3'!$AC$202:$AC$239,0)),"",INDEX('3'!$D$202:$D$239,MATCH(W209,'3'!$AC$202:$AC$239,0))) ->  | AA209: =IF($Y209<>"",VLOOKUP($Y209,'3'!$D$202:$F$239,3,0),"") ->  | AB209: =IF($Y209<>"",VLOOKUP($Y209,'3'!$D$202:$K$239,8,0),"") -> 0 | AC209: =IF(D209<>"",COUNTIF($AD$202:$AD$239,">"&AD209)+COUNTIF($AD$202:AD209,AD209),"") -> 8 | AD209: 0 | AG209: =IF($Y209<>"",VLOOKUP($Y209,'3'!$D$202:$Q$239,14,0),"") -> 
A210: 9 | C210: 0 | K210: 0 | T210: 0 | W210: 9 | X210: =IF($Y210<>"",VLOOKUP($Y210,'3'!$D$202:$T$239,17,0),"") -> 0 | Y210: =IF(ISNA(MATCH(W210,'3'!$AC$202:$AC$239,0)),"",INDEX('3'!$D$202:$D$239,MATCH(W210,'3'!$AC$202:$AC$239,0))) ->  | AA210: =IF($Y210<>"",VLOOKUP($Y210,'3'!$D$202:$F$239,3,0),"") ->  | AB210: =IF($Y210<>"",VLOOKUP($Y210,'3'!$D$202:$K$239,8,0),"") -> 0 | AC210: =IF(D210<>"",COUNTIF($AD$202:$AD$239,">"&AD210)+COUNTIF($AD$202:AD210,AD210),"") -> 9 | AD210: 0 | AG210: =IF($Y210<>"",VLOOKUP($Y210,'3'!$D$202:$Q$239,14,0),"") -> 
A211: 10 | C211: 0 | K211: 0 | T211: 0 | W211: 10 | X211: =IF($Y211<>"",VLOOKUP($Y211,'3'!$D$202:$T$239,17,0),"") -> 0 | Y211: =IF(ISNA(MATCH(W211,'3'!$AC$202:$AC$239,0)),"",INDEX('3'!$D$202:$D$239,MATCH(W211,'3'!$AC$202:$AC$239,0))) ->  | AA211: =IF($Y211<>"",VLOOKUP($Y211,'3'!$D$202:$F$239,3,0),"") ->  | AB211: =IF($Y211<>"",VLOOKUP($Y211,'3'!$D$202:$K$239,8,0),"") -> 0 | AC211: =IF(D211<>"",COUNTIF($AD$202:$AD$239,">"&AD211)+COUNTIF($AD$202:AD211,AD211),"") -> 10 | AD211: 0 | AG211: =IF($Y211<>"",VLOOKUP($Y211,'3'!$D$202:$Q$239,14,0),"") -> 
A212: 11 | C212: 0 | K212: 0 | T212: 0 | W212: 11 | X212: =IF($Y212<>"",VLOOKUP($Y212,'3'!$D$202:$T$239,17,0),"") -> 0 | Y212: =IF(ISNA(MATCH(W212,'3'!$AC$202:$AC$239,0)),"",INDEX('3'!$D$202:$D$239,MATCH(W212,'3'!$AC$202:$AC$239,0))) ->  | AA212: =IF($Y212<>"",VLOOKUP($Y212,'3'!$D$202:$F$239,3,0),"") ->  | AB212: =IF($Y212<>"",VLOOKUP($Y212,'3'!$D$202:$K$239,8,0),"") -> 0 | AC212: =IF(D212<>"",COUNTIF($AD$202:$AD$239,">"&AD212)+COUNTIF($AD$202:AD212,AD212),"") -> 11 | AD212: 0 | AG212: =IF($Y212<>"",VLOOKUP($Y212,'3'!$D$202:$Q$239,14,0),"") -> 
A213: 12 | C213: 0 | K213: 0 | T213: 0 | W213: 12 | X213: =IF($Y213<>"",VLOOKUP($Y213,'3'!$D$202:$T$239,17,0),"") -> 0 | Y213: =IF(ISNA(MATCH(W213,'3'!$AC$202:$AC$239,0)),"",INDEX('3'!$D$202:$D$239,MATCH(W213,'3'!$AC$202:$AC$239,0))) ->  | AA213: =IF($Y213<>"",VLOOKUP($Y213,'3'!$D$202:$F$239,3,0),"") ->  | AB213: =IF($Y213<>"",VLOOKUP($Y213,'3'!$D$202:$K$239,8,0),"") -> 0 | AC213: =IF(D213<>"",COUNTIF($AD$202:$AD$239,">"&AD213)+COUNTIF($AD$202:AD213,AD213),"") -> 12 | AD213: 0 | AG213: =IF($Y213<>"",VLOOKUP($Y213,'3'!$D$202:$Q$239,14,0),"") -> 
A214: 13 | C214: 0 | K214: 0 | T214: 0 | W214: 13 | X214: =IF($Y214<>"",VLOOKUP($Y214,'3'!$D$202:$T$239,17,0),"") -> 0 | Y214: =IF(ISNA(MATCH(W214,'3'!$AC$202:$AC$239,0)),"",INDEX('3'!$D$202:$D$239,MATCH(W214,'3'!$AC$202:$AC$239,0))) ->  | AA214: =IF($Y214<>"",VLOOKUP($Y214,'3'!$D$202:$F$239,3,0),"") ->  | AB214: =IF($Y214<>"",VLOOKUP($Y214,'3'!$D$202:$K$239,8,0),"") -> 0 | AC214: =IF(D214<>"",COUNTIF($AD$202:$AD$239,">"&AD214)+COUNTIF($AD$202:AD214,AD214),"") -> 13 | AD214: 0 | AG214: =IF($Y214<>"",VLOOKUP($Y214,'3'!$D$202:$Q$239,14,0),"") -> 
A215: 14 | C215: 0 | K215: 0 | T215: 0 | W215: 14 | X215: =IF($Y215<>"",VLOOKUP($Y215,'3'!$D$202:$T$239,17,0),"") -> 0 | Y215: =IF(ISNA(MATCH(W215,'3'!$AC$202:$AC$239,0)),"",INDEX('3'!$D$202:$D$239,MATCH(W215,'3'!$AC$202:$AC$239,0))) ->  | AA215: =IF($Y215<>"",VLOOKUP($Y215,'3'!$D$202:$F$239,3,0),"") ->  | AB215: =IF($Y215<>"",VLOOKUP($Y215,'3'!$D$202:$K$239,8,0),"") -> 0 | AC215: =IF(D215<>"",COUNTIF($AD$202:$AD$239,">"&AD215)+COUNTIF($AD$202:AD215,AD215),"") -> 14 | AD215: 0 | AG215: =IF($Y215<>"",VLOOKUP($Y215,'3'!$D$202:$Q$239,14,0),"") -> 
A216: 15 | C216: 0 | K216: 0 | T216: 0 | W216: 15 | X216: =IF($Y216<>"",VLOOKUP($Y216,'3'!$D$202:$T$239,17,0),"") -> 0 | Y216: =IF(ISNA(MATCH(W216,'3'!$AC$202:$AC$239,0)),"",INDEX('3'!$D$202:$D$239,MATCH(W216,'3'!$AC$202:$AC$239,0))) ->  | AA216: =IF($Y216<>"",VLOOKUP($Y216,'3'!$D$202:$F$239,3,0),"") ->  | AB216: =IF($Y216<>"",VLOOKUP($Y216,'3'!$D$202:$K$239,8,0),"") -> 0 | AC216: =IF(D216<>"",COUNTIF($AD$202:$AD$239,">"&AD216)+COUNTIF($AD$202:AD216,AD216),"") -> 15 | AD216: 0 | AG216: =IF($Y216<>"",VLOOKUP($Y216,'3'!$D$202:$Q$239,14,0),"") -> 
A217: 16 | C217: 0 | K217: 0 | T217: 0 | W217: 16 | X217: =IF($Y217<>"",VLOOKUP($Y217,'3'!$D$202:$T$239,17,0),"") -> 0 | Y217: =IF(ISNA(MATCH(W217,'3'!$AC$202:$AC$239,0)),"",INDEX('3'!$D$202:$D$239,MATCH(W217,'3'!$AC$202:$AC$239,0))) ->  | AA217: =IF($Y217<>"",VLOOKUP($Y217,'3'!$D$202:$F$239,3,0),"") ->  | AB217: =IF($Y217<>"",VLOOKUP($Y217,'3'!$D$202:$K$239,8,0),"") -> 0 | AC217: =IF(D217<>"",COUNTIF($AD$202:$AD$239,">"&AD217)+COUNTIF($AD$202:AD217,AD217),"") -> 16 | AD217: 0 | AG217: =IF($Y217<>"",VLOOKUP($Y217,'3'!$D$202:$Q$239,14,0),"") -> 
A218: 17 | C218: 0 | K218: 0 | T218: 0 | W218: 17 | X218: =IF($Y218<>"",VLOOKUP($Y218,'3'!$D$202:$T$239,17,0),"") -> 0 | Y218: =IF(ISNA(MATCH(W218,'3'!$AC$202:$AC$239,0)),"",INDEX('3'!$D$202:$D$239,MATCH(W218,'3'!$AC$202:$AC$239,0))) ->  | AA218: =IF($Y218<>"",VLOOKUP($Y218,'3'!$D$202:$F$239,3,0),"") ->  | AB218: =IF($Y218<>"",VLOOKUP($Y218,'3'!$D$202:$K$239,8,0),"") -> 0 | AC218: =IF(D218<>"",COUNTIF($AD$202:$AD$239,">"&AD218)+COUNTIF($AD$202:AD218,AD218),"") -> 17 | AD218: 0 | AG218: =IF($Y218<>"",VLOOKUP($Y218,'3'!$D$202:$Q$239,14,0),"") -> 
A219: 18 | C219: 0 | K219: 0 | T219: 0 | W219: 18 | X219: =IF($Y219<>"",VLOOKUP($Y219,'3'!$D$202:$T$239,17,0),"") -> 0 | Y219: =IF(ISNA(MATCH(W219,'3'!$AC$202:$AC$239,0)),"",INDEX('3'!$D$202:$D$239,MATCH(W219,'3'!$AC$202:$AC$239,0))) ->  | AA219: =IF($Y219<>"",VLOOKUP($Y219,'3'!$D$202:$F$239,3,0),"") ->  | AB219: =IF($Y219<>"",VLOOKUP($Y219,'3'!$D$202:$K$239,8,0),"") -> 0 | AC219: =IF(D219<>"",COUNTIF($AD$202:$AD$239,">"&AD219)+COUNTIF($AD$202:AD219,AD219),"") -> 18 | AD219: 0 | AG219: =IF($Y219<>"",VLOOKUP($Y219,'3'!$D$202:$Q$239,14,0),"") -> 
A220: 19 | C220: 0 | K220: 0 | T220: 0 | W220: 19 | X220: =IF($Y220<>"",VLOOKUP($Y220,'3'!$D$202:$T$239,17,0),"") -> 0 | Y220: =IF(ISNA(MATCH(W220,'3'!$AC$202:$AC$239,0)),"",INDEX('3'!$D$202:$D$239,MATCH(W220,'3'!$AC$202:$AC$239,0))) ->  | AA220: =IF($Y220<>"",VLOOKUP($Y220,'3'!$D$202:$F$239,3,0),"") ->  | AB220: =IF($Y220<>"",VLOOKUP($Y220,'3'!$D$202:$K$239,8,0),"") -> 0 | AC220: =IF(D220<>"",COUNTIF($AD$202:$AD$239,">"&AD220)+COUNTIF($AD$202:AD220,AD220),"") -> 19 | AD220: 0 | AG220: =IF($Y220<>"",VLOOKUP($Y220,'3'!$D$202:$Q$239,14,0),"") -> 
A221: 20 | C221: 0 | K221: 0 | T221: 0 | W221: 20 | X221: =IF($Y221<>"",VLOOKUP($Y221,'3'!$D$202:$T$239,17,0),"") -> 0 | Y221: =IF(ISNA(MATCH(W221,'3'!$AC$202:$AC$239,0)),"",INDEX('3'!$D$202:$D$239,MATCH(W221,'3'!$AC$202:$AC$239,0))) ->  | AA221: =IF($Y221<>"",VLOOKUP($Y221,'3'!$D$202:$F$239,3,0),"") ->  | AB221: =IF($Y221<>"",VLOOKUP($Y221,'3'!$D$202:$K$239,8,0),"") -> 0 | AC221: =IF(D221<>"",COUNTIF($AD$202:$AD$239,">"&AD221)+COUNTIF($AD$202:AD221,AD221),"") -> 20 | AD221: 0 | AG221: =IF($Y221<>"",VLOOKUP($Y221,'3'!$D$202:$Q$239,14,0),"") -> 
A222: 21 | C222: 0 | K222: 0 | T222: 0 | W222: 21 | X222: =IF($Y222<>"",VLOOKUP($Y222,'3'!$D$202:$T$239,17,0),"") -> 0 | Y222: =IF(ISNA(MATCH(W222,'3'!$AC$202:$AC$239,0)),"",INDEX('3'!$D$202:$D$239,MATCH(W222,'3'!$AC$202:$AC$239,0))) ->  | AA222: =IF($Y222<>"",VLOOKUP($Y222,'3'!$D$202:$F$239,3,0),"") ->  | AB222: =IF($Y222<>"",VLOOKUP($Y222,'3'!$D$202:$K$239,8,0),"") -> 0 | AC222: =IF(D222<>"",COUNTIF($AD$202:$AD$239,">"&AD222)+COUNTIF($AD$202:AD222,AD222),"") -> 21 | AD222: 0 | AG222: =IF($Y222<>"",VLOOKUP($Y222,'3'!$D$202:$Q$239,14,0),"") -> 
A223: 22 | C223: 0 | K223: 0 | T223: 0 | W223: 22 | X223: =IF($Y223<>"",VLOOKUP($Y223,'3'!$D$202:$T$239,17,0),"") -> 0 | Y223: =IF(ISNA(MATCH(W223,'3'!$AC$202:$AC$239,0)),"",INDEX('3'!$D$202:$D$239,MATCH(W223,'3'!$AC$202:$AC$239,0))) ->  | AA223: =IF($Y223<>"",VLOOKUP($Y223,'3'!$D$202:$F$239,3,0),"") ->  | AB223: =IF($Y223<>"",VLOOKUP($Y223,'3'!$D$202:$K$239,8,0),"") -> 0 | AC223: =IF(D223<>"",COUNTIF($AD$202:$AD$239,">"&AD223)+COUNTIF($AD$202:AD223,AD223),"") -> 22 | AD223: 0 | AG223: =IF($Y223<>"",VLOOKUP($Y223,'3'!$D$202:$Q$239,14,0),"") -> 
A224: 23 | C224: 0 | K224: 0 | T224: 0 | W224: 23 | X224: =IF($Y224<>"",VLOOKUP($Y224,'3'!$D$202:$T$239,17,0),"") -> 0 | Y224: =IF(ISNA(MATCH(W224,'3'!$AC$202:$AC$239,0)),"",INDEX('3'!$D$202:$D$239,MATCH(W224,'3'!$AC$202:$AC$239,0))) ->  | AA224: =IF($Y224<>"",VLOOKUP($Y224,'3'!$D$202:$F$239,3,0),"") ->  | AB224: =IF($Y224<>"",VLOOKUP($Y224,'3'!$D$202:$K$239,8,0),"") -> 0 | AC224: =IF(D224<>"",COUNTIF($AD$202:$AD$239,">"&AD224)+COUNTIF($AD$202:AD224,AD224),"") -> 23 | AD224: 0 | AG224: =IF($Y224<>"",VLOOKUP($Y224,'3'!$D$202:$Q$239,14,0),"") -> 
A225: 24 | C225: 0 | K225: 0 | T225: 0 | W225: 24 | X225: =IF($Y225<>"",VLOOKUP($Y225,'3'!$D$202:$T$239,17,0),"") -> 0 | Y225: =IF(ISNA(MATCH(W225,'3'!$AC$202:$AC$239,0)),"",INDEX('3'!$D$202:$D$239,MATCH(W225,'3'!$AC$202:$AC$239,0))) ->  | AA225: =IF($Y225<>"",VLOOKUP($Y225,'3'!$D$202:$F$239,3,0),"") ->  | AB225: =IF($Y225<>"",VLOOKUP($Y225,'3'!$D$202:$K$239,8,0),"") -> 0 | AC225: =IF(D225<>"",COUNTIF($AD$202:$AD$239,">"&AD225)+COUNTIF($AD$202:AD225,AD225),"") -> 24 | AD225: 0 | AG225: =IF($Y225<>"",VLOOKUP($Y225,'3'!$D$202:$Q$239,14,0),"") -> 
A226: 25 | C226: 0 | K226: 0 | T226: 0 | W226: 25 | X226: =IF($Y226<>"",VLOOKUP($Y226,'3'!$D$202:$T$239,17,0),"") -> 0 | Y226: =IF(ISNA(MATCH(W226,'3'!$AC$202:$AC$239,0)),"",INDEX('3'!$D$202:$D$239,MATCH(W226,'3'!$AC$202:$AC$239,0))) ->  | AA226: =IF($Y226<>"",VLOOKUP($Y226,'3'!$D$202:$F$239,3,0),"") ->  | AB226: =IF($Y226<>"",VLOOKUP($Y226,'3'!$D$202:$K$239,8,0),"") -> 0 | AC226: =IF(D226<>"",COUNTIF($AD$202:$AD$239,">"&AD226)+COUNTIF($AD$202:AD226,AD226),"") -> 25 | AD226: 0 | AG226: =IF($Y226<>"",VLOOKUP($Y226,'3'!$D$202:$Q$239,14,0),"") -> 
A227: 26 | C227: 0 | K227: 0 | T227: 0 | W227: 26 | X227: =IF($Y227<>"",VLOOKUP($Y227,'3'!$D$202:$T$239,17,0),"") -> 0 | Y227: =IF(ISNA(MATCH(W227,'3'!$AC$202:$AC$239,0)),"",INDEX('3'!$D$202:$D$239,MATCH(W227,'3'!$AC$202:$AC$239,0))) ->  | AA227: =IF($Y227<>"",VLOOKUP($Y227,'3'!$D$202:$F$239,3,0),"") ->  | AB227: =IF($Y227<>"",VLOOKUP($Y227,'3'!$D$202:$K$239,8,0),"") -> 0 | AC227: =IF(D227<>"",COUNTIF($AD$202:$AD$239,">"&AD227)+COUNTIF($AD$202:AD227,AD227),"") -> 26 | AD227: 0 | AG227: =IF($Y227<>"",VLOOKUP($Y227,'3'!$D$202:$Q$239,14,0),"") -> 
A228: 27 | C228: 0 | K228: 0 | T228: 0 | W228: 27 | X228: =IF($Y228<>"",VLOOKUP($Y228,'3'!$D$202:$T$239,17,0),"") -> 0 | Y228: =IF(ISNA(MATCH(W228,'3'!$AC$202:$AC$239,0)),"",INDEX('3'!$D$202:$D$239,MATCH(W228,'3'!$AC$202:$AC$239,0))) ->  | AA228: =IF($Y228<>"",VLOOKUP($Y228,'3'!$D$202:$F$239,3,0),"") ->  | AB228: =IF($Y228<>"",VLOOKUP($Y228,'3'!$D$202:$K$239,8,0),"") -> 0 | AC228: =IF(D228<>"",COUNTIF($AD$202:$AD$239,">"&AD228)+COUNTIF($AD$202:AD228,AD228),"") -> 27 | AD228: 0 | AG228: =IF($Y228<>"",VLOOKUP($Y228,'3'!$D$202:$Q$239,14,0),"") -> 
A229: 28 | C229: 0 | K229: 0 | T229: 0 | W229: 28 | X229: =IF($Y229<>"",VLOOKUP($Y229,'3'!$D$202:$T$239,17,0),"") -> 0 | Y229: =IF(ISNA(MATCH(W229,'3'!$AC$202:$AC$239,0)),"",INDEX('3'!$D$202:$D$239,MATCH(W229,'3'!$AC$202:$AC$239,0))) ->  | AA229: =IF($Y229<>"",VLOOKUP($Y229,'3'!$D$202:$F$239,3,0),"") ->  | AB229: =IF($Y229<>"",VLOOKUP($Y229,'3'!$D$202:$K$239,8,0),"") -> 0 | AC229: =IF(D229<>"",COUNTIF($AD$202:$AD$239,">"&AD229)+COUNTIF($AD$202:AD229,AD229),"") -> 28 | AD229: 0 | AG229: =IF($Y229<>"",VLOOKUP($Y229,'3'!$D$202:$Q$239,14,0),"") -> 
A230: 29 | C230: 0 | K230: 0 | T230: 0 | W230: 29 | X230: =IF($Y230<>"",VLOOKUP($Y230,'3'!$D$202:$T$239,17,0),"") -> 0 | Y230: =IF(ISNA(MATCH(W230,'3'!$AC$202:$AC$239,0)),"",INDEX('3'!$D$202:$D$239,MATCH(W230,'3'!$AC$202:$AC$239,0))) ->  | AA230: =IF($Y230<>"",VLOOKUP($Y230,'3'!$D$202:$F$239,3,0),"") ->  | AB230: =IF($Y230<>"",VLOOKUP($Y230,'3'!$D$202:$K$239,8,0),"") -> 0 | AC230: =IF(D230<>"",COUNTIF($AD$202:$AD$239,">"&AD230)+COUNTIF($AD$202:AD230,AD230),"") -> 29 | AD230: 0 | AG230: =IF($Y230<>"",VLOOKUP($Y230,'3'!$D$202:$Q$239,14,0),"") -> 
A231: 30 | C231: 0 | K231: 0 | T231: 0 | W231: 30 | X231: =IF($Y231<>"",VLOOKUP($Y231,'3'!$D$202:$T$239,17,0),"") -> 0 | Y231: =IF(ISNA(MATCH(W231,'3'!$AC$202:$AC$239,0)),"",INDEX('3'!$D$202:$D$239,MATCH(W231,'3'!$AC$202:$AC$239,0))) ->  | AA231: =IF($Y231<>"",VLOOKUP($Y231,'3'!$D$202:$F$239,3,0),"") ->  | AB231: =IF($Y231<>"",VLOOKUP($Y231,'3'!$D$202:$K$239,8,0),"") -> 0 | AC231: =IF(D231<>"",COUNTIF($AD$202:$AD$239,">"&AD231)+COUNTIF($AD$202:AD231,AD231),"") -> 30 | AD231: 0 | AG231: =IF($Y231<>"",VLOOKUP($Y231,'3'!$D$202:$Q$239,14,0),"") -> 
A232: 31 | C232: 0 | K232: 0 | T232: 0 | W232: 31 | X232: =IF($Y232<>"",VLOOKUP($Y232,'3'!$D$202:$T$239,17,0),"") -> 0 | Y232: =IF(ISNA(MATCH(W232,'3'!$AC$202:$AC$239,0)),"",INDEX('3'!$D$202:$D$239,MATCH(W232,'3'!$AC$202:$AC$239,0))) ->  | AA232: =IF($Y232<>"",VLOOKUP($Y232,'3'!$D$202:$F$239,3,0),"") ->  | AB232: =IF($Y232<>"",VLOOKUP($Y232,'3'!$D$202:$K$239,8,0),"") -> 0 | AC232: =IF(D232<>"",COUNTIF($AD$202:$AD$239,">"&AD232)+COUNTIF($AD$202:AD232,AD232),"") -> 31 | AD232: 0 | AG232: =IF($Y232<>"",VLOOKUP($Y232,'3'!$D$202:$Q$239,14,0),"") -> 
A233: 32 | C233: 0 | K233: 0 | T233: 0 | W233: 32 | X233: =IF($Y233<>"",VLOOKUP($Y233,'3'!$D$202:$T$239,17,0),"") -> 0 | Y233: =IF(ISNA(MATCH(W233,'3'!$AC$202:$AC$239,0)),"",INDEX('3'!$D$202:$D$239,MATCH(W233,'3'!$AC$202:$AC$239,0))) ->  | AA233: =IF($Y233<>"",VLOOKUP($Y233,'3'!$D$202:$F$239,3,0),"") ->  | AB233: =IF($Y233<>"",VLOOKUP($Y233,'3'!$D$202:$K$239,8,0),"") -> 0 | AC233: =IF(D233<>"",COUNTIF($AD$202:$AD$239,">"&AD233)+COUNTIF($AD$202:AD233,AD233),"") -> 32 | AD233: 0 | AG233: =IF($Y233<>"",VLOOKUP($Y233,'3'!$D$202:$Q$239,14,0),"") -> 
A234: 33 | C234: 0 | K234: 0 | T234: 0 | W234: 33 | X234: =IF($Y234<>"",VLOOKUP($Y234,'3'!$D$202:$T$239,17,0),"") -> 0 | Y234: =IF(ISNA(MATCH(W234,'3'!$AC$202:$AC$239,0)),"",INDEX('3'!$D$202:$D$239,MATCH(W234,'3'!$AC$202:$AC$239,0))) ->  | AA234: =IF($Y234<>"",VLOOKUP($Y234,'3'!$D$202:$F$239,3,0),"") ->  | AB234: =IF($Y234<>"",VLOOKUP($Y234,'3'!$D$202:$K$239,8,0),"") -> 0 | AC234: =IF(D234<>"",COUNTIF($AD$202:$AD$239,">"&AD234)+COUNTIF($AD$202:AD234,AD234),"") -> 33 | AD234: 0 | AG234: =IF($Y234<>"",VLOOKUP($Y234,'3'!$D$202:$Q$239,14,0),"") -> 
A235: 34 | C235: 0 | K235: 0 | T235: 0 | W235: 34 | X235: =IF($Y235<>"",VLOOKUP($Y235,'3'!$D$202:$T$239,17,0),"") -> 0 | Y235: =IF(ISNA(MATCH(W235,'3'!$AC$202:$AC$239,0)),"",INDEX('3'!$D$202:$D$239,MATCH(W235,'3'!$AC$202:$AC$239,0))) ->  | AA235: =IF($Y235<>"",VLOOKUP($Y235,'3'!$D$202:$F$239,3,0),"") ->  | AB235: =IF($Y235<>"",VLOOKUP($Y235,'3'!$D$202:$K$239,8,0),"") -> 0 | AC235: =IF(D235<>"",COUNTIF($AD$202:$AD$239,">"&AD235)+COUNTIF($AD$202:AD235,AD235),"") -> 34 | AD235: 0 | AG235: =IF($Y235<>"",VLOOKUP($Y235,'3'!$D$202:$Q$239,14,0),"") -> 
A236: 35 | C236: 0 | K236: 0 | T236: 0 | W236: 35 | X236: =IF($Y236<>"",VLOOKUP($Y236,'3'!$D$202:$T$239,17,0),"") -> 0 | Y236: =IF(ISNA(MATCH(W236,'3'!$AC$202:$AC$239,0)),"",INDEX('3'!$D$202:$D$239,MATCH(W236,'3'!$AC$202:$AC$239,0))) ->  | AA236: =IF($Y236<>"",VLOOKUP($Y236,'3'!$D$202:$F$239,3,0),"") ->  | AB236: =IF($Y236<>"",VLOOKUP($Y236,'3'!$D$202:$K$239,8,0),"") -> 0 | AC236: =IF(D236<>"",COUNTIF($AD$202:$AD$239,">"&AD236)+COUNTIF($AD$202:AD236,AD236),"") -> 35 | AD236: 0 | AG236: =IF($Y236<>"",VLOOKUP($Y236,'3'!$D$202:$Q$239,14,0),"") -> 
A237: 36 | C237: 0 | K237: 0 | T237: 0 | W237: 36 | X237: =IF($Y237<>"",VLOOKUP($Y237,'3'!$D$202:$T$239,17,0),"") -> 0 | Y237: =IF(ISNA(MATCH(W237,'3'!$AC$202:$AC$239,0)),"",INDEX('3'!$D$202:$D$239,MATCH(W237,'3'!$AC$202:$AC$239,0))) ->  | AA237: =IF($Y237<>"",VLOOKUP($Y237,'3'!$D$202:$F$239,3,0),"") ->  | AB237: =IF($Y237<>"",VLOOKUP($Y237,'3'!$D$202:$K$239,8,0),"") -> 0 | AC237: =IF(D237<>"",COUNTIF($AD$202:$AD$239,">"&AD237)+COUNTIF($AD$202:AD237,AD237),"") -> 36 | AD237: 0 | AG237: =IF($Y237<>"",VLOOKUP($Y237,'3'!$D$202:$Q$239,14,0),"") -> 
A238: 37 | C238: 0 | K238: 0 | T238: 0 | W238: 37 | X238: =IF($Y238<>"",VLOOKUP($Y238,'3'!$D$202:$T$239,17,0),"") -> 0 | Y238: =IF(ISNA(MATCH(W238,'3'!$AC$202:$AC$239,0)),"",INDEX('3'!$D$202:$D$239,MATCH(W238,'3'!$AC$202:$AC$239,0))) ->  | AA238: =IF($Y238<>"",VLOOKUP($Y238,'3'!$D$202:$F$239,3,0),"") ->  | AB238: =IF($Y238<>"",VLOOKUP($Y238,'3'!$D$202:$K$239,8,0),"") -> 0 | AC238: =IF(D238<>"",COUNTIF($AD$202:$AD$239,">"&AD238)+COUNTIF($AD$202:AD238,AD238),"") -> 37 | AD238: 0 | AG238: =IF($Y238<>"",VLOOKUP($Y238,'3'!$D$202:$Q$239,14,0),"") -> 
A239: 38 | C239: 0 | K239: 0 | T239: 0 | W239: 38 | X239: =IF($Y239<>"",VLOOKUP($Y239,'3'!$D$202:$T$239,17,0),"") -> 0 | Y239: =IF(ISNA(MATCH(W239,'3'!$AC$202:$AC$239,0)),"",INDEX('3'!$D$202:$D$239,MATCH(W239,'3'!$AC$202:$AC$239,0))) ->  | AA239: =IF($Y239<>"",VLOOKUP($Y239,'3'!$D$202:$F$239,3,0),"") ->  | AB239: =IF($Y239<>"",VLOOKUP($Y239,'3'!$D$202:$K$239,8,0),"") -> 0 | AC239: =IF(D239<>"",COUNTIF($AD$202:$AD$239,">"&AD239)+COUNTIF($AD$202:AD239,AD239),"") -> 38 | AD239: 0 | AG239: =IF($Y239<>"",VLOOKUP($Y239,'3'!$D$202:$Q$239,14,0),"") -> 
D242: ="Effectif Total : " &F242 -> Effectif Total : 0 | F242: =SUM(F244:F245) -> 0 | Y242: ="المجموع : " &Z244 -> المجموع : 0 | AA242: =F242 -> 0
D244: ="Filles : "&F244 -> Filles : 0 | F244: =COUNTIFS(C202:C239,"أ") -> 0 | Y244: =D244 -> Filles : 0 | Z244: =F242 -> 0 | AA244: =AA242 -> 0
D245: ="Garçon : "&F245 -> Garçon : 0 | F245: =COUNTIFS(C202:C239,"ذ") -> 0 | Y245: =D245 -> Garçon : 0 | AA245: =AA244 -> 0

Sheet 4
D2: =IF('3'!D2<>"",'3'!D2,"") -> Collège - Mostaganem | E2: =IF(Accueil!F5<>"",Accueil!F5,"") ->  | F2: =IF(Accueil!G5<>"",Accueil!G5,"") ->  | G2: =IF(Accueil!#REF!<>"",Accueil!#REF!,"") ->  | H2: =IF(Accueil!J5<>"",Accueil!J5,"") ->  | I2: =IF(Accueil!K5<>"",Accueil!K5,"") ->  | J2: =IF(Accueil!#REF!<>"",Accueil!#REF!,"") ->  | S2: =IF(Accueil!F2<>"",Accueil!F2,"") -> 2014 - 2015 | T2: =IF(#REF!<>"",#REF!,"") ->  | Y2: =IF(D2<>"",D2,"") -> Collège - Mostaganem | Z2: =IF(#REF!<>"",#REF!,"") ->  | AA2: =IF(#REF!<>"",#REF!,"") ->  | AB2: =IF(#REF!<>"",#REF!,"") ->  | AC2: =IF(#REF!<>"",#REF!,"") ->  | AH2: =IF(S2<>"",S2,"") -> 2014 - 2015 | AI2: =IF(N2<>"",N2,"") ->  | AP2: =Y2 -> Collège - Mostaganem | AY2: =AH2 -> 2014 - 2015
D3: =IF(Accueil!E6<>"",Accueil!E6,"") ->  | E3: =IF(Accueil!F6<>"",Accueil!F6,"") ->  | F3: =IF(Accueil!G6<>"",Accueil!G6,"") ->  | G3: =IF(Accueil!I5<>"",Accueil!I5,"") ->  | H3: =IF(Accueil!J6<>"",Accueil!J6,"") ->  | I3: =IF(Accueil!K6<>"",Accueil!K6,"") ->  | J3: =IF(Accueil!#REF!<>"",Accueil!#REF!,"") ->  | S3: =IF(#REF!<>"",#REF!,"") ->  | T3: =IF(#REF!<>"",#REF!,"") ->  | Y3: =IF(#REF!<>"",#REF!,"") ->  | Z3: =IF(#REF!<>"",#REF!,"") ->  | AA3: =IF(#REF!<>"",#REF!,"") ->  | AB3: =IF(#REF!<>"",#REF!,"") ->  | AC3: =IF(#REF!<>"",#REF!,"") ->  | AH3: =IF(M3<>"",M3,"") ->  | AI3: =IF(N3<>"",N3,"") -> 
D4: Classe: | E4: =IF(Accueil!O10<>"",Accueil!O10,"") ->  | K4: Résultats des contrôles du 1er trimestre | Y4: Classe: | Z4: =E4 ->  | AD4: Résultats du 1er trimestre
D5: Matière: | E5: =IF('3'!E5<>"",'3'!E5,"") -> Mathématiques | Y5: Matière: | Z5: =IF(E5<>"",E5,"") -> Mathématiques | AP5: Classement (Premier trimestre)
D6: Prof: | E6: =IF('3'!E6<>"",'3'!E6,"") -> Toufik MERINE | Q6: Coeffi: | S6: 2 | T6: =HYPERLINK("#"&ADDRESS(ROW(),COLUMN()-1),CHAR(128)) -> € | Y6: Prof: | Z6: =IF(E6<>"",E6,"") -> Toufik MERINE | AH6: =S6 -> 2
D9: Nom | E9: Prénom | F9: Date de naissance | G9: Contrôle en classe | H9: Cahiers | I9: test 1 | J9: test 2 | K9: test 3 | L9: test 4 | M9: test 5 | N9: test 6 | O9: Travail à la maison | P9: Travail à la maison | Q9: M. des contrôles | R9: Dev. S.1 | S9: Dev. S.2 | T9: Compo/20 | Y9: Nom | Z9: Prénom | AA9: Date de naissance | AB9: Contrôle contenu | AC9: Devoir 1 | AD9: Devoir 2 | AE9: M. des contrôles | AF9: Compo / 60 | AG9: Moyenne Trim / 20 | AH9: Moy par coeffi | AI9: Observ | AP9: Nom et Prénom | AQ9: Moyenne Trim / 20
A16: 1 | C16: g | D16: BRAHAMI | E16: HOUARI | F16: 1998-04-04 | G16: 4 | H16: 1 | I16: 4 | Q16: 11 | R16: 7 | S16: 5 | T16: 8 | W16: 1 | X16: =C16 -> g | Y16: BRAHAMI | Z16: HOUARI | AA16: =IF(F16<>"",F16,"") -> 1998-04-04 | AB16: =IF(Q16<>"",Q16,"") -> 11 | AC16: 7 | AD16: 5 | AE16: =IF(Q16="","",2*AVERAGE(AB16:AD16)) -> 15.33333333 | AF16: =IF(T16="","",T16*3) -> 24 | AG16: =IF(T16="","",(AF16+AE16)/5) -> 7.866666667 | AH16: =IF(T16="","",AG16*$AH$6) -> 15.73333333 | AN16: 1 | AP16: =IF(ISNA(MATCH(AN16,'4'!$AW$16:$AW$53,0)),"",INDEX('4'!$AT$16:$AT$53,MATCH(AN16,'4'!$AW$16:$AW$53,0))) -> بومهدي أبو بكر | AQ16: =IF($AP16<>"",VLOOKUP($AP16,'4'!$AT$16:$AV$53,3,0),"") -> 14.23333333 | AS16: 1 | AT16: =D16&" "&E16 -> BRAHAMI HOUARI | AV16: =IF(AG16="",0,AG16) -> 7.866666667 | AW16: =IF(AT16<>"",COUNTIF($AX$16:$AX$53,">"&AX16)+COUNTIF($AX$16:AX16,AX16),"") -> 21 | AX16: =IF(AV16<>"",AV16*1000,"") -> 7866.666667
A17: 2 | C17: g | D17: براهامي | E17: خالد | F17: 1999-07-02 | G17: 12 | H17: 6 | I17: 4 | Q17: 14 | R17: 15 | S17: 10 | T17: 8 | W17: 2 | X17: g | Y17: براهامي | Z17: خالد | AA17: 1999-07-02 | AB17: 14 | AC17: 15 | AD17: 10 | AE17: 26 | AF17: 24 | AG17: 10 | AH17: 20 | AN17: 2 | AP17: =IF(ISNA(MATCH(AN17,'4'!$AW$16:$AW$53,0)),"",INDEX('4'!$AT$16:$AT$53,MATCH(AN17,'4'!$AW$16:$AW$53,0))) -> بلعربي إلياس | AQ17: =IF($AP17<>"",VLOOKUP($AP17,'4'!$AT$16:$AV$53,3,0),"") -> 13.86666667 | AS17: 2 | AT17: براهامي خالد | AV17: =IF(AG17="",0,AG17) -> 10 | AW17: =IF(AT17<>"",COUNTIF($AX$16:$AX$53,">"&AX17)+COUNTIF($AX$16:AX17,AX17),"") -> 7 | AX17: =IF(AV17<>"",AV17*1000,"") -> 10000
A18: 3 | C18: g | D18: بلعربي | E18: إلياس | F18: 2002-01-12 | G18: 16 | H18: 11 | I18: 8 | Q18: 16 | R18: 19 | S18: 15 | T18: 12 | W18: 3 | X18: g | Y18: بلعربي | Z18: إلياس | AA18: 2002-01-12 | AB18: 16 | AC18: 19 | AD18: 15 | AE18: 33.33333333 | AF18: 36 | AG18: 13.86666667 | AH18: 27.73333333 | AN18: 3 | AP18: =IF(ISNA(MATCH(AN18,'4'!$AW$16:$AW$53,0)),"",INDEX('4'!$AT$16:$AT$53,MATCH(AN18,'4'!$AW$16:$AW$53,0))) -> خديم محمد | AQ18: =IF($AP18<>"",VLOOKUP($AP18,'4'!$AT$16:$AV$53,3,0),"") -> 12.23333333 | AS18: 3 | AT18: بلعربي إلياس | AV18: 13.86666667 | AW18: =IF(AT18<>"",COUNTIF($AX$16:$AX$53,">"&AX18)+COUNTIF($AX$16:AX18,AX18),"") -> 2 | AX18: 13866.66667
A19: 4 | C19: f | D19: بوحسون | E19: أحلام | F19: 2000-08-19 | G19: 10.5 | H19: 4 | I19: 0 | Q19: 11 | R19: 13.5 | S19: 8 | T19: 4 | W19: 4 | X19: f | Y19: بوحسون | Z19: أحلام | AA19: 2000-08-19 | AB19: 11 | AC19: 13.5 | AD19: 8 | AE19: 21.66666667 | AF19: 12 | AG19: 6.733333333 | AH19: 13.46666667 | AN19: 4 | AP19: =IF(ISNA(MATCH(AN19,'4'!$AW$16:$AW$53,0)),"",INDEX('4'!$AT$16:$AT$53,MATCH(AN19,'4'!$AW$16:$AW$53,0))) -> فتحي رحمة | AQ19: =IF($AP19<>"",VLOOKUP($AP19,'4'!$AT$16:$AV$53,3,0),"") -> 10.9 | AS19: 4 | AT19: بوحسون أحلام | AV19: 6.733333333 | AW19: =IF(AT19<>"",COUNTIF($AX$16:$AX$53,">"&AX19)+COUNTIF($AX$16:AX19,AX19),"") -> 26 | AX19: 6733.333333
A20: 5 | C20: f | D20: بوسعادة | E20: مريم | F20: 2001-07-13 | G20: 3 | H20: 7 | I20: 5 | Q20: 12 | R20: 6 | S20: 11 | T20: 9 | W20: 5 | X20: f | Y20: بوسعادة | Z20: مريم | AA20: 2001-07-13 | AB20: 12 | AC20: 6 | AD20: 11 | AE20: 19.33333333 | AF20: 27 | AG20: 9.266666667 | AH20: 18.53333333 | AN20: 5 | AP20: =IF(ISNA(MATCH(AN20,'4'!$AW$16:$AW$53,0)),"",INDEX('4'!$AT$16:$AT$53,MATCH(AN20,'4'!$AW$16:$AW$53,0))) -> سعادي كنزة | AQ20: =IF($AP20<>"",VLOOKUP($AP20,'4'!$AT$16:$AV$53,3,0),"") -> 10.63333333 | AS20: 5 | AT20: بوسعادة مريم | AV20: 9.266666667 | AW20: =IF(AT20<>"",COUNTIF($AX$16:$AX$53,">"&AX20)+COUNTIF($AX$16:AX20,AX20),"") -> 15 | AX20: 9266.666667
A21: 6 | C21: f | D21: بومدان | E21: رشيدة | F21: 2000-04-19 | G21: 5 | H21: 3 | I21: 6.5 | Q21: 12 | R21: 8 | S21: 7 | T21: 10.5 | W21: 6 | X21: f | Y21: بومدان | Z21: رشيدة | AA21: 2000-04-19 | AB21: 12 | AC21: 8 | AD21: 7 | AE21: 18 | AF21: 31.5 | AG21: 9.9 | AH21: 19.8 | AN21: 6 | AP21: =IF(ISNA(MATCH(AN21,'4'!$AW$16:$AW$53,0)),"",INDEX('4'!$AT$16:$AT$53,MATCH(AN21,'4'!$AW$16:$AW$53,0))) -> عباس محمد | AQ21: =IF($AP21<>"",VLOOKUP($AP21,'4'!$AT$16:$AV$53,3,0),"") -> 10.53333333 | AS21: 6 | AT21: بومدان رشيدة | AV21: 9.9 | AW21: =IF(AT21<>"",COUNTIF($AX$16:$AX$53,">"&AX21)+COUNTIF($AX$16:AX21,AX21),"") -> 10 | AX21: 9900
A22: 7 | C22: g | D22: بومهدي | E22: أبو بكر | F22: 1997-04-17 | G22: 11 | H22: 4 | I22: 11.5 | Q22: 15 | R22: 14 | S22: 8 | T22: 15.5 | W22: 7 | X22: g | Y22: بومهدي | Z22: أبو بكر | AA22: 1997-04-17 | AB22: 15 | AC22: 14 | AD22: 8 | AE22: 24.66666667 | AF22: 46.5 | AG22: 14.23333333 | AH22: 28.46666667 | AN22: 7 | AP22: =IF(ISNA(MATCH(AN22,'4'!$AW$16:$AW$53,0)),"",INDEX('4'!$AT$16:$AT$53,MATCH(AN22,'4'!$AW$16:$AW$53,0))) -> براهامي خالد | AQ22: =IF($AP22<>"",VLOOKUP($AP22,'4'!$AT$16:$AV$53,3,0),"") -> 10 | AS22: 7 | AT22: بومهدي أبو بكر | AV22: 14.23333333 | AW22: =IF(AT22<>"",COUNTIF($AX$16:$AX$53,">"&AX22)+COUNTIF($AX$16:AX22,AX22),"") -> 1 | AX22: 14233.33333
A23: 8 | D23: تامي | E23: أسامة | F23: 1999-03-26 | G23: 14 | H23: 7 | I23: 1 | Q23: 12 | R23: 17 | S23: 11 | T23: 5 | W23: 8 | X23: 0 | Y23: تامي | Z23: أسامة | AA23: 1999-03-26 | AB23: 12 | AC23: 17 | AD23: 11 | AE23: 26.66666667 | AF23: 15 | AG23: 8.333333333 | AH23: 16.66666667 | AN23: 8 | AP23: =IF(ISNA(MATCH(AN23,'4'!$AW$16:$AW$53,0)),"",INDEX('4'!$AT$16:$AT$53,MATCH(AN23,'4'!$AW$16:$AW$53,0))) -> دوان وسيلة | AQ23: =IF($AP23<>"",VLOOKUP($AP23,'4'!$AT$16:$AV$53,3,0),"") -> 10 | AS23: 8 | AT23: تامي أسامة | AV23: 8.333333333 | AW23: =IF(AT23<>"",COUNTIF($AX$16:$AX$53,">"&AX23)+COUNTIF($AX$16:AX23,AX23),"") -> 17 | AX23: 8333.333333
A24: 9 | C24: ذ | D24: خديم | E24: محمد | F24: 1997-02-01 | G24: 13 | H24: 6 | I24: 7.5 | Q24: 14 | R24: 16 | S24: 10 | T24: 11.5 | W24: 9 | X24: ذ | Y24: خديم | Z24: محمد | AA24: 1997-02-01 | AB24: 14 | AC24: 16 | AD24: 10 | AE24: 26.66666667 | AF24: 34.5 | AG24: 12.23333333 | AH24: 24.46666667 | AN24: 9 | AP24: =IF(ISNA(MATCH(AN24,'4'!$AW$16:$AW$53,0)),"",INDEX('4'!$AT$16:$AT$53,MATCH(AN24,'4'!$AW$16:$AW$53,0))) -> قبلي عبد الإله | AQ24: =IF($AP24<>"",VLOOKUP($AP24,'4'!$AT$16:$AV$53,3,0),"") -> 10 | AS24: 9 | AT24: خديم محمد | AV24: 12.23333333 | AW24: =IF(AT24<>"",COUNTIF($AX$16:$AX$53,">"&AX24)+COUNTIF($AX$16:AX24,AX24),"") -> 3 | AX24: 12233.33333
A25: 10 | C25: ذ | D25: خديمي | E25: أمحمد | F25: 1998-04-18 | G25: 3 | H25: 4 | I25: 3 | Q25: 12 | R25: 6 | S25: 8 | T25: 7 | W25: 10 | X25: ذ | Y25: خديمي | Z25: أمحمد | AA25: 1998-04-18 | AB25: 12 | AC25: 6 | AD25: 8 | AE25: 17.33333333 | AF25: 21 | AG25: 7.666666667 | AH25: 15.33333333 | AN25: 10 | AP25: =IF(ISNA(MATCH(AN25,'4'!$AW$16:$AW$53,0)),"",INDEX('4'!$AT$16:$AT$53,MATCH(AN25,'4'!$AW$16:$AW$53,0))) -> بومدان رشيدة | AQ25: =IF($AP25<>"",VLOOKUP($AP25,'4'!$AT$16:$AV$53,3,0),"") -> 9.9 | AS25: 10 | AT25: خديمي أمحمد | AV25: 7.666666667 | AW25: =IF(AT25<>"",COUNTIF($AX$16:$AX$53,">"&AX25)+COUNTIF($AX$16:AX25,AX25),"") -> 23 | AX25: 7666.666667
A26: 11 | C26: أ | D26: درموز | E26: آمال | F26: 2000-04-11 | G26: 3 | H26: 2 | I26: 5 | Q26: 11 | R26: 6 | S26: 6 | T26: 9 | W26: 11 | X26: أ | Y26: درموز | Z26: آمال | AA26: 2000-04-11 | AB26: 11 | AC26: 6 | AD26: 6 | AE26: 15.33333333 | AF26: 27 | AG26: 8.466666667 | AH26: 16.93333333 | AN26: 11 | AP26: =IF(ISNA(MATCH(AN26,'4'!$AW$16:$AW$53,0)),"",INDEX('4'!$AT$16:$AT$53,MATCH(AN26,'4'!$AW$16:$AW$53,0))) -> رفيف حورية | AQ26: =IF($AP26<>"",VLOOKUP($AP26,'4'!$AT$16:$AV$53,3,0),"") -> 9.833333333 | AS26: 11 | AT26: درموز آمال | AV26: 8.466666667 | AW26: =IF(AT26<>"",COUNTIF($AX$16:$AX$53,">"&AX26)+COUNTIF($AX$16:AX26,AX26),"") -> 16 | AX26: 8466.666667
A27: 12 | C27: ذ | D27: درموز | E27: عبد العزيز | F27: 2001-11-22 | G27: 3 | H27: 8 | I27: 2 | Q27: 14 | R27: 6 | S27: 12 | T27: 6 | W27: 12 | X27: ذ | Y27: درموز | Z27: عبد العزيز | AA27: 2001-11-22 | AB27: 14 | AC27: 6 | AD27: 12 | AE27: 21.33333333 | AF27: 18 | AG27: 7.866666667 | AH27: 15.73333333 | AN27: 12 | AP27: =IF(ISNA(MATCH(AN27,'4'!$AW$16:$AW$53,0)),"",INDEX('4'!$AT$16:$AT$53,MATCH(AN27,'4'!$AW$16:$AW$53,0))) -> عامر أنور | AQ27: =IF($AP27<>"",VLOOKUP($AP27,'4'!$AT$16:$AV$53,3,0),"") -> 9.666666667 | AS27: 12 | AT27: درموز عبد العزيز | AV27: 7.866666667 | AW27: =IF(AT27<>"",COUNTIF($AX$16:$AX$53,">"&AX27)+COUNTIF($AX$16:AX27,AX27),"") -> 22 | AX27: 7866.666667
A28: 13 | C28: أ | D28: دوان | E28: وسيلة | F28: 2002-03-17 | G28: 4 | H28: 7 | I28: 6 | Q28: 12 | R28: 7 | S28: 11 | T28: 10 | W28: 13 | X28: أ | Y28: دوان | Z28: وسيلة | AA28: 2002-03-17 | AB28: 12 | AC28: 7 | AD28: 11 | AE28: 20 | AF28: 30 | AG28: 10 | AH28: 20 | AN28: 13 | AP28: =IF(ISNA(MATCH(AN28,'4'!$AW$16:$AW$53,0)),"",INDEX('4'!$AT$16:$AT$53,MATCH(AN28,'4'!$AW$16:$AW$53,0))) -> فرحات صبيحة | AQ28: =IF($AP28<>"",VLOOKUP($AP28,'4'!$AT$16:$AV$53,3,0),"") -> 9.666666667 | AS28: 13 | AT28: دوان وسيلة | AV28: 10 | AW28: =IF(AT28<>"",COUNTIF($AX$16:$AX$53,">"&AX28)+COUNTIF($AX$16:AX28,AX28),"") -> 8 | AX28: 10000
A29: 14 | C29: أ | D29: دونان | E29: حليمة | F29: 2000-11-28 | G29: 8 | H29: 5 | I29: 1 | Q29: 15 | R29: 11 | S29: 9 | T29: 5 | W29: 14 | X29: أ | Y29: دونان | Z29: حليمة | AA29: 2000-11-28 | AB29: 15 | AC29: 11 | AD29: 9 | AE29: 23.33333333 | AF29: 15 | AG29: 7.666666667 | AH29: 15.33333333 | AN29: 14 | AP29: =IF(ISNA(MATCH(AN29,'4'!$AW$16:$AW$53,0)),"",INDEX('4'!$AT$16:$AT$53,MATCH(AN29,'4'!$AW$16:$AW$53,0))) -> قبلي ميساء | AQ29: =IF($AP29<>"",VLOOKUP($AP29,'4'!$AT$16:$AV$53,3,0),"") -> 9.333333333 | AS29: 14 | AT29: دونان حليمة | AV29: 7.666666667 | AW29: =IF(AT29<>"",COUNTIF($AX$16:$AX$53,">"&AX29)+COUNTIF($AX$16:AX29,AX29),"") -> 24 | AX29: 7666.666667
A30: 15 | C30: أ | D30: رفيف | E30: حورية | F30: 2001-11-29 | G30: 2 | H30: 10 | I30: 5.5 | Q30: 12 | R30: 5 | S30: 14 | T30: 9.5 | W30: 15 | X30: أ | Y30: رفيف | Z30: حورية | AA30: 2001-11-29 | AB30: 12 | AC30: 5 | AD30: 14 | AE30: 20.66666667 | AF30: 28.5 | AG30: 9.833333333 | AH30: 19.66666667 | AN30: 15 | AP30: =IF(ISNA(MATCH(AN30,'4'!$AW$16:$AW$53,0)),"",INDEX('4'!$AT$16:$AT$53,MATCH(AN30,'4'!$AW$16:$AW$53,0))) -> بوسعادة مريم | AQ30: =IF($AP30<>"",VLOOKUP($AP30,'4'!$AT$16:$AV$53,3,0),"") -> 9.266666667 | AS30: 15 | AT30: رفيف حورية | AV30: 9.833333333 | AW30: =IF(AT30<>"",COUNTIF($AX$16:$AX$53,">"&AX30)+COUNTIF($AX$16:AX30,AX30),"") -> 11 | AX30: 9833.333333
A31: 16 | C31: أ | D31: سعادي | E31: كنزة | F31: 2001-11-28 | G31: 7 | H31: 8 | I31: 5.5 | Q31: 15 | R31: 10 | S31: 12 | T31: 9.5 | W31: 16 | X31: أ | Y31: سعادي | Z31: كنزة | AA31: 2001-11-28 | AB31: 15 | AC31: 10 | AD31: 12 | AE31: 24.66666667 | AF31: 28.5 | AG31: 10.63333333 | AH31: 21.26666667 | AN31: 16 | AP31: =IF(ISNA(MATCH(AN31,'4'!$AW$16:$AW$53,0)),"",INDEX('4'!$AT$16:$AT$53,MATCH(AN31,'4'!$AW$16:$AW$53,0))) -> درموز آمال | AQ31: =IF($AP31<>"",VLOOKUP($AP31,'4'!$AT$16:$AV$53,3,0),"") -> 8.466666667 | AS31: 16 | AT31: سعادي كنزة | AV31: 10.63333333 | AW31: =IF(AT31<>"",COUNTIF($AX$16:$AX$53,">"&AX31)+COUNTIF($AX$16:AX31,AX31),"") -> 5 | AX31: 10633.33333
A32: 17 | C32: أ | D32: سعودي | E32: آمنة | F32: 1999-08-19 | G32: 5 | H32: 2 | I32: 4 | Q32: 12 | R32: 8 | S32: 6 | T32: 8 | W32: 17 | X32: أ | Y32: سعودي | Z32: آمنة | AA32: 1999-08-19 | AB32: 12 | AC32: 8 | AD32: 6 | AE32: 17.33333333 | AF32: 24 | AG32: 8.266666667 | AH32: 16.53333333 | AN32: 17 | AP32: =IF(ISNA(MATCH(AN32,'4'!$AW$16:$AW$53,0)),"",INDEX('4'!$AT$16:$AT$53,MATCH(AN32,'4'!$AW$16:$AW$53,0))) -> تامي أسامة | AQ32: =IF($AP32<>"",VLOOKUP($AP32,'4'!$AT$16:$AV$53,3,0),"") -> 8.333333333 | AS32: 17 | AT32: سعودي آمنة | AV32: 8.266666667 | AW32: =IF(AT32<>"",COUNTIF($AX$16:$AX$53,">"&AX32)+COUNTIF($AX$16:AX32,AX32),"") -> 18 | AX32: 8266.666667
A33: 18 | C33: ذ | D33: شاشو | E33: محمد | F33: 1999-09-17 | G33: 0 | H33: 6 | I33: 4 | Q33: 12 | R33: 3 | S33: 10 | T33: 8 | W33: 18 | X33: ذ | Y33: شاشو | Z33: محمد | AA33: 1999-09-17 | AB33: 12 | AC33: 3 | AD33: 10 | AE33: 16.66666667 | AF33: 24 | AG33: 8.133333333 | AH33: 16.26666667 | AN33: 18 | AP33: =IF(ISNA(MATCH(AN33,'4'!$AW$16:$AW$53,0)),"",INDEX('4'!$AT$16:$AT$53,MATCH(AN33,'4'!$AW$16:$AW$53,0))) -> سعودي آمنة | AQ33: =IF($AP33<>"",VLOOKUP($AP33,'4'!$AT$16:$AV$53,3,0),"") -> 8.266666667 | AS33: 18 | AT33: شاشو محمد | AV33: 8.133333333 | AW33: =IF(AT33<>"",COUNTIF($AX$16:$AX$53,">"&AX33)+COUNTIF($AX$16:AX33,AX33),"") -> 19 | AX33: 8133.333333
A34: 19 | C34: ذ | D34: عامر | E34: أنور | F34: 1999-05-16 | G34: 8 | H34: 5 | I34: 5 | Q34: 12 | R34: 11 | S34: 9 | T34: 9 | W34: 19 | X34: ذ | Y34: عامر | Z34: أنور | AA34: 1999-05-16 | AB34: 12 | AC34: 11 | AD34: 9 | AE34: 21.33333333 | AF34: 27 | AG34: 9.666666667 | AH34: 19.33333333 | AN34: 19 | AP34: =IF(ISNA(MATCH(AN34,'4'!$AW$16:$AW$53,0)),"",INDEX('4'!$AT$16:$AT$53,MATCH(AN34,'4'!$AW$16:$AW$53,0))) -> شاشو محمد | AQ34: =IF($AP34<>"",VLOOKUP($AP34,'4'!$AT$16:$AV$53,3,0),"") -> 8.133333333 | AS34: 19 | AT34: عامر أنور | AV34: 9.666666667 | AW34: =IF(AT34<>"",COUNTIF($AX$16:$AX$53,">"&AX34)+COUNTIF($AX$16:AX34,AX34),"") -> 12 | AX34: 9666.666667
A35: 20 | C35: أ | D35: عباس | E35: خضرة | F35: 2002-01-03 | G35: 3 | H35: 5 | I35: 1 | Q35: 12 | R35: 6 | S35: 9 | T35: 5 | W35: 20 | X35: أ | Y35: عباس | Z35: خضرة | AA35: 2002-01-03 | AB35: 12 | AC35: 6 | AD35: 9 | AE35: 18 | AF35: 15 | AG35: 6.6 | AH35: 13.2 | AN35: 20 | AP35: =IF(ISNA(MATCH(AN35,'4'!$AW$16:$AW$53,0)),"",INDEX('4'!$AT$16:$AT$53,MATCH(AN35,'4'!$AW$16:$AW$53,0))) -> كوشة لخضر | AQ35: =IF($AP35<>"",VLOOKUP($AP35,'4'!$AT$16:$AV$53,3,0),"") -> 8.133333333 | AS35: 20 | AT35: عباس خضرة | AV35: 6.6 | AW35: =IF(AT35<>"",COUNTIF($AX$16:$AX$53,">"&AX35)+COUNTIF($AX$16:AX35,AX35),"") -> 27 | AX35: 6600
A36: 21 | C36: ذ | D36: عباس | E36: محمد | F36: 2001-07-21 | G36: 4 | H36: 1 | I36: 8 | Q36: 13 | R36: 7 | S36: 5 | T36: 12 | W36: 21 | X36: ذ | Y36: عباس | Z36: محمد | AA36: 2001-07-21 | AB36: 13 | AC36: 7 | AD36: 5 | AE36: 16.66666667 | AF36: 36 | AG36: 10.53333333 | AH36: 21.06666667 | AN36: 21 | AP36: =IF(ISNA(MATCH(AN36,'4'!$AW$16:$AW$53,0)),"",INDEX('4'!$AT$16:$AT$53,MATCH(AN36,'4'!$AW$16:$AW$53,0))) -> BRAHAMI HOUARI | AQ36: =IF($AP36<>"",VLOOKUP($AP36,'4'!$AT$16:$AV$53,3,0),"") -> 7.866666667 | AS36: 21 | AT36: عباس محمد | AV36: 10.53333333 | AW36: =IF(AT36<>"",COUNTIF($AX$16:$AX$53,">"&AX36)+COUNTIF($AX$16:AX36,AX36),"") -> 6 | AX36: 10533.33333
A37: 22 | C37: أ | D37: فتحي | E37: رحمة | F37: 2002-03-29 | G37: 6 | H37: 3 | I37: 7.5 | Q37: 14 | R37: 9 | S37: 7 | T37: 11.5 | W37: 22 | X37: أ | Y37: فتحي | Z37: رحمة | AA37: 2002-03-29 | AB37: 14 | AC37: 9 | AD37: 7 | AE37: 20 | AF37: 34.5 | AG37: 10.9 | AH37: 21.8 | AN37: 22 | AP37: =IF(ISNA(MATCH(AN37,'4'!$AW$16:$AW$53,0)),"",INDEX('4'!$AT$16:$AT$53,MATCH(AN37,'4'!$AW$16:$AW$53,0))) -> درموز عبد العزيز | AQ37: =IF($AP37<>"",VLOOKUP($AP37,'4'!$AT$16:$AV$53,3,0),"") -> 7.866666667 | AS37: 22 | AT37: فتحي رحمة | AV37: 10.9 | AW37: =IF(AT37<>"",COUNTIF($AX$16:$AX$53,">"&AX37)+COUNTIF($AX$16:AX37,AX37),"") -> 4 | AX37: 10900
A38: 23 | C38: أ | D38: فرحات | E38: أمينة | F38: 1998-11-18 | G38: 12 | H38: 6 | I38: 0 | Q38: 12 | R38: 15 | S38: 10 | T38: 4 | W38: 23 | X38: أ | Y38: فرحات | Z38: أمينة | AA38: 1998-11-18 | AB38: 12 | AC38: 15 | AD38: 10 | AE38: 24.66666667 | AF38: 12 | AG38: 7.333333333 | AH38: 14.66666667 | AN38: 23 | AP38: =IF(ISNA(MATCH(AN38,'4'!$AW$16:$AW$53,0)),"",INDEX('4'!$AT$16:$AT$53,MATCH(AN38,'4'!$AW$16:$AW$53,0))) -> خديمي أمحمد | AQ38: =IF($AP38<>"",VLOOKUP($AP38,'4'!$AT$16:$AV$53,3,0),"") -> 7.666666667 | AS38: 23 | AT38: فرحات أمينة | AV38: 7.333333333 | AW38: =IF(AT38<>"",COUNTIF($AX$16:$AX$53,">"&AX38)+COUNTIF($AX$16:AX38,AX38),"") -> 25 | AX38: 7333.333333
A39: 24 | C39: أ | D39: فرحات | E39: صبيحة | F39: 2000-04-18 | G39: 3 | H39: 0 | I39: 7 | Q39: 13 | R39: 6 | S39: 4 | T39: 11 | W39: 24 | X39: أ | Y39: فرحات | Z39: صبيحة | AA39: 2000-04-18 | AB39: 13 | AC39: 6 | AD39: 4 | AE39: 15.33333333 | AF39: 33 | AG39: 9.666666667 | AH39: 19.33333333 | AN39: 24 | AP39: =IF(ISNA(MATCH(AN39,'4'!$AW$16:$AW$53,0)),"",INDEX('4'!$AT$16:$AT$53,MATCH(AN39,'4'!$AW$16:$AW$53,0))) -> دونان حليمة | AQ39: =IF($AP39<>"",VLOOKUP($AP39,'4'!$AT$16:$AV$53,3,0),"") -> 7.666666667 | AS39: 24 | AT39: فرحات صبيحة | AV39: 9.666666667 | AW39: =IF(AT39<>"",COUNTIF($AX$16:$AX$53,">"&AX39)+COUNTIF($AX$16:AX39,AX39),"") -> 13 | AX39: 9666.666667
A40: 25 | C40: ذ | D40: قبلي | E40: عبد الإله | F40: 2000-05-06 | G40: 7 | H40: 2 | I40: 6 | Q40: 14 | R40: 10 | S40: 6 | T40: 10 | W40: 25 | X40: ذ | Y40: قبلي | Z40: عبد الإله | AA40: 2000-05-06 | AB40: 14 | AC40: 10 | AD40: 6 | AE40: 20 | AF40: 30 | AG40: 10 | AH40: 20 | AN40: 25 | AP40: =IF(ISNA(MATCH(AN40,'4'!$AW$16:$AW$53,0)),"",INDEX('4'!$AT$16:$AT$53,MATCH(AN40,'4'!$AW$16:$AW$53,0))) -> فرحات أمينة | AQ40: =IF($AP40<>"",VLOOKUP($AP40,'4'!$AT$16:$AV$53,3,0),"") -> 7.333333333 | AS40: 25 | AT40: قبلي عبد الإله | AV40: 10 | AW40: =IF(AT40<>"",COUNTIF($AX$16:$AX$53,">"&AX40)+COUNTIF($AX$16:AX40,AX40),"") -> 9 | AX40: 10000
A41: 26 | C41: أ | D41: قبلي | E41: ميساء | F41: 2000-05-06 | G41: 3 | H41: 3 | I41: 6 | Q41: 12 | R41: 6 | S41: 7 | T41: 10 | W41: 26 | X41: أ | Y41: قبلي | Z41: ميساء | AA41: 2000-05-06 | AB41: 12 | AC41: 6 | AD41: 7 | AE41: 16.66666667 | AF41: 30 | AG41: 9.333333333 | AH41: 18.66666667 | AN41: 26 | AP41: =IF(ISNA(MATCH(AN41,'4'!$AW$16:$AW$53,0)),"",INDEX('4'!$AT$16:$AT$53,MATCH(AN41,'4'!$AW$16:$AW$53,0))) -> بوحسون أحلام | AQ41: =IF($AP41<>"",VLOOKUP($AP41,'4'!$AT$16:$AV$53,3,0),"") -> 6.733333333 | AS41: 26 | AT41: قبلي ميساء | AV41: 9.333333333 | AW41: =IF(AT41<>"",COUNTIF($AX$16:$AX$53,">"&AX41)+COUNTIF($AX$16:AX41,AX41),"") -> 14 | AX41: 9333.333333
A42: 27 | C42: ذ | D42: كوشة | E42: لخضر | F42: 1998-03-27 | G42: 3 | H42: 3 | I42: 4 | Q42: 12 | R42: 6 | S42: 7 | T42: 8 | W42: 27 | X42: ذ | Y42: كوشة | Z42: لخضر | AA42: 1998-03-27 | AB42: 12 | AC42: 6 | AD42: 7 | AE42: 16.66666667 | AF42: 24 | AG42: 8.133333333 | AH42: 16.26666667 | AN42: 27 | AP42: =IF(ISNA(MATCH(AN42,'4'!$AW$16:$AW$53,0)),"",INDEX('4'!$AT$16:$AT$53,MATCH(AN42,'4'!$AW$16:$AW$53,0))) -> عباس خضرة | AQ42: =IF($AP42<>"",VLOOKUP($AP42,'4'!$AT$16:$AV$53,3,0),"") -> 6.6 | AS42: 27 | AT42: كوشة لخضر | AV42: 8.133333333 | AW42: =IF(AT42<>"",COUNTIF($AX$16:$AX$53,">"&AX42)+COUNTIF($AX$16:AX42,AX42),"") -> 20 | AX42: 8133.333333
A43: 28 | C43: أ | D43: مهجي | E43: شهيناز | F43: 1998-05-31 | G43: 0 | H43: 0 | I43: 1 | Q43: 12 | R43: 3 | S43: 4 | T43: 5 | W43: 28 | X43: أ | Y43: مهجي | Z43: شهيناز | AA43: 1998-05-31 | AB43: 12 | AC43: 3 | AD43: 4 | AE43: 12.66666667 | AF43: 15 | AG43: 5.533333333 | AH43: 11.06666667 | AN43: 28 | AP43: =IF(ISNA(MATCH(AN43,'4'!$AW$16:$AW$53,0)),"",INDEX('4'!$AT$16:$AT$53,MATCH(AN43,'4'!$AW$16:$AW$53,0))) -> مهجي شهيناز | AQ43: =IF($AP43<>"",VLOOKUP($AP43,'4'!$AT$16:$AV$53,3,0),"") -> 5.533333333 | AS43: 28 | AT43: مهجي شهيناز | AV43: 5.533333333 | AW43: =IF(AT43<>"",COUNTIF($AX$16:$AX$53,">"&AX43)+COUNTIF($AX$16:AX43,AX43),"") -> 28 | AX43: 5533.333333
A44: 29 | W44: 29 | X44: 0 | Y44: 0 | Z44: 0 | AN44: 29 | AP44: =IF(ISNA(MATCH(AN44,'4'!$AW$16:$AW$53,0)),"",INDEX('4'!$AT$16:$AT$53,MATCH(AN44,'4'!$AW$16:$AW$53,0))) ->  | AQ44: =IF($AP44<>"",VLOOKUP($AP44,'4'!$AT$16:$AV$53,3,0),"") -> 0 | AS44: 29 | AV44: 0 | AW44: =IF(AT44<>"",COUNTIF($AX$16:$AX$53,">"&AX44)+COUNTIF($AX$16:AX44,AX44),"") -> 29 | AX44: 0
A45: 30 | W45: 30 | X45: 0 | Y45: 0 | Z45: 0 | AN45: 30 | AP45: =IF(ISNA(MATCH(AN45,'4'!$AW$16:$AW$53,0)),"",INDEX('4'!$AT$16:$AT$53,MATCH(AN45,'4'!$AW$16:$AW$53,0))) ->  | AQ45: =IF($AP45<>"",VLOOKUP($AP45,'4'!$AT$16:$AV$53,3,0),"") -> 0 | AS45: 30 | AV45: 0 | AW45: =IF(AT45<>"",COUNTIF($AX$16:$AX$53,">"&AX45)+COUNTIF($AX$16:AX45,AX45),"") -> 30 | AX45: 0
A46: 31 | W46: 31 | X46: 0 | Y46: 0 | Z46: 0 | AN46: 31 | AP46: =IF(ISNA(MATCH(AN46,'4'!$AW$16:$AW$53,0)),"",INDEX('4'!$AT$16:$AT$53,MATCH(AN46,'4'!$AW$16:$AW$53,0))) ->  | AQ46: =IF($AP46<>"",VLOOKUP($AP46,'4'!$AT$16:$AV$53,3,0),"") -> 0 | AS46: 31 | AV46: 0 | AW46: =IF(AT46<>"",COUNTIF($AX$16:$AX$53,">"&AX46)+COUNTIF($AX$16:AX46,AX46),"") -> 31 | AX46: 0
A47: 32 | W47: 32 | X47: 0 | Y47: 0 | Z47: 0 | AN47: 32 | AP47: =IF(ISNA(MATCH(AN47,'4'!$AW$16:$AW$53,0)),"",INDEX('4'!$AT$16:$AT$53,MATCH(AN47,'4'!$AW$16:$AW$53,0))) ->  | AQ47: =IF($AP47<>"",VLOOKUP($AP47,'4'!$AT$16:$AV$53,3,0),"") -> 0 | AS47: 32 | AV47: 0 | AW47: =IF(AT47<>"",COUNTIF($AX$16:$AX$53,">"&AX47)+COUNTIF($AX$16:AX47,AX47),"") -> 32 | AX47: 0
A48: 33 | W48: 33 | X48: 0 | Y48: 0 | Z48: 0 | AN48: 33 | AP48: =IF(ISNA(MATCH(AN48,'4'!$AW$16:$AW$53,0)),"",INDEX('4'!$AT$16:$AT$53,MATCH(AN48,'4'!$AW$16:$AW$53,0))) ->  | AQ48: =IF($AP48<>"",VLOOKUP($AP48,'4'!$AT$16:$AV$53,3,0),"") -> 0 | AS48: 33 | AV48: 0 | AW48: =IF(AT48<>"",COUNTIF($AX$16:$AX$53,">"&AX48)+COUNTIF($AX$16:AX48,AX48),"") -> 33 | AX48: 0
A49: 34 | W49: 34 | X49: 0 | Y49: 0 | Z49: 0 | AN49: 34 | AP49: =IF(ISNA(MATCH(AN49,'4'!$AW$16:$AW$53,0)),"",INDEX('4'!$AT$16:$AT$53,MATCH(AN49,'4'!$AW$16:$AW$53,0))) ->  | AQ49: =IF($AP49<>"",VLOOKUP($AP49,'4'!$AT$16:$AV$53,3,0),"") -> 0 | AS49: 34 | AV49: 0 | AW49: =IF(AT49<>"",COUNTIF($AX$16:$AX$53,">"&AX49)+COUNTIF($AX$16:AX49,AX49),"") -> 34 | AX49: 0
A50: 35 | W50: 35 | X50: 0 | Y50: 0 | Z50: 0 | AN50: 35 | AP50: =IF(ISNA(MATCH(AN50,'4'!$AW$16:$AW$53,0)),"",INDEX('4'!$AT$16:$AT$53,MATCH(AN50,'4'!$AW$16:$AW$53,0))) ->  | AQ50: =IF($AP50<>"",VLOOKUP($AP50,'4'!$AT$16:$AV$53,3,0),"") -> 0 | AS50: 35 | AV50: 0 | AW50: =IF(AT50<>"",COUNTIF($AX$16:$AX$53,">"&AX50)+COUNTIF($AX$16:AX50,AX50),"") -> 35 | AX50: 0
A51: 36 | W51: 36 | X51: 0 | Y51: 0 | Z51: 0 | AN51: 36 | AP51: =IF(ISNA(MATCH(AN51,'4'!$AW$16:$AW$53,0)),"",INDEX('4'!$AT$16:$AT$53,MATCH(AN51,'4'!$AW$16:$AW$53,0))) ->  | AQ51: =IF($AP51<>"",VLOOKUP($AP51,'4'!$AT$16:$AV$53,3,0),"") -> 0 | AS51: 36 | AV51: 0 | AW51: =IF(AT51<>"",COUNTIF($AX$16:$AX$53,">"&AX51)+COUNTIF($AX$16:AX51,AX51),"") -> 36 | AX51: 0
A52: 37 | W52: 37 | X52: 0 | Y52: 0 | Z52: 0 | AN52: 37 | AP52: =IF(ISNA(MATCH(AN52,'4'!$AW$16:$AW$53,0)),"",INDEX('4'!$AT$16:$AT$53,MATCH(AN52,'4'!$AW$16:$AW$53,0))) ->  | AQ52: =IF($AP52<>"",VLOOKUP($AP52,'4'!$AT$16:$AV$53,3,0),"") -> 0 | AS52: 37 | AV52: 0 | AW52: =IF(AT52<>"",COUNTIF($AX$16:$AX$53,">"&AX52)+COUNTIF($AX$16:AX52,AX52),"") -> 37 | AX52: 0
A53: 38 | W53: 38 | X53: 0 | Y53: 0 | Z53: 0 | AN53: 38 | AP53: =IF(ISNA(MATCH(AN53,'4'!$AW$16:$AW$53,0)),"",INDEX('4'!$AT$16:$AT$53,MATCH(AN53,'4'!$AW$16:$AW$53,0))) ->  | AQ53: =IF($AP53<>"",VLOOKUP($AP53,'4'!$AT$16:$AV$53,3,0),"") -> 0 | AS53: 38 | AV53: 0 | AW53: =IF(AT53<>"",COUNTIF($AX$16:$AX$53,">"&AX53)+COUNTIF($AX$16:AX53,AX53),"") -> 38 | AX53: 0
D56: ="Effectif Total : " &F56 -> Effectif Total : 20 | F56: =SUM(F58:F59) -> 20 | R56: =COUNTIFS(R16:R53,">=10") -> 11 | Y56: ="Effectif Total : " &Z58 -> Effectif Total : 20 | AA56: =F56 -> 20 | AP56: =Y56 -> Effectif Total : 20 | AQ56: =F56 -> 20 | AR56: =COUNTA(AP16:AP53) -> 38
D58: ="Filles : "&F58 -> Filles : 12 | F58: =COUNTIFS(C16:C53,"أ") -> 12 | S58: =COUNTIFS(S16:S53,">=10") -> 11 | Y58: =D58 -> Filles : 12 | Z58: =F56 -> 20 | AA58: =AA56 -> 20 | AC58: Moyenne trimestrielle >=10 | AG58: =COUNTIFS(AG16:AG53,">=10") -> 9 | AH58: =AG58/AA56 -> 0.45 | AP58: =Y58 -> Filles : 12 | AQ58: =AQ56 -> 20
D59: ="Garçon : "&F59 -> Garçon : 8 | F59: =COUNTIFS(C16:C53,"ذ") -> 8 | T59: =COUNTIFS(T16:T53,">=10") -> 10 | Y59: =D59 -> Garçon : 8 | AA59: =AA58 -> 20 | AP59: =Y59 -> Garçon : 8 | AQ59: =AQ58 -> 20
D64: =IF(D2<>"",D2,"") -> Collège - Mostaganem | S64: =IF(S2<>"",S2,"") -> 2014 - 2015 | T64: =IF(#REF!<>"",#REF!,"") ->  | Y64: =D64 -> Collège - Mostaganem | AH64: =IF(S64<>"",S64,"") -> 2014 - 2015 | AI64: =IF(N64<>"",N64,"") ->  | AP64: =Y64 -> Collège - Mostaganem | AY64: =AH64 -> 2014 - 2015
S65: =IF(#REF!<>"",#REF!,"") ->  | T65: =IF(#REF!<>"",#REF!,"") ->  | AH65: =IF(M65<>"",M65,"") ->  | AI65: =IF(N65<>"",N65,"") -> 
D66: Classe: | E66: =E4 ->  | K66: Résultats des contrôles du 2e trimestre | Y66: Classe: | Z66: =E66 ->  | AD66: Résultats du 2e trimestre
D67: Matière: | E67: =IF(E5<>"",E5,"") -> Mathématiques | Y67: Matière: | Z67: =IF(E67<>"",E67,"") -> Mathématiques | AP67: Classement (Deuxième trimestre)
D68: Prof: | E68: =IF(E6<>"",E6,"") -> Toufik MERINE | Y68: Prof: | Z68: =IF(E68<>"",E68,"") -> Toufik MERINE | AH68: =AH6 -> 2
D71: Nom | E71: Prénom | F71: Date de naissance | G71: Contrôle en classe | H71: Cahiers | I71: test 1 | J71: test 2 | K71: test 3 | L71: test 4 | M71: test 5 | N71: test 6 | O71: Travail à la maison | P71: Travail à la maison | Q71: M. des contrôles | R71: Dev. S.1 | S71: Dev. S.2 | T71: Compo/20 | Y71: Nom | Z71: Prénom | AA71: Date de naissance | AB71: Contrôle contenu | AC71: Devoir 1 | AD71: Devoir 2 | AE71: M. des contrôles | AF71: Compo / 60 | AG71: Moyenne Trim / 20 | AH71: Moy par coeffi | AI71: Observ | AP71: Nom et Prénom | AQ71: Moyenne Trim / 20
A78: 1 | C78: =C16 -> g | D78: =D16 -> BRAHAMI | E78: HOUARI | F78: =IF(F16<>"",F16,"") -> 1998-04-04 | G78: 4 | H78: 2 | I78: 10 | K78: =G78+2 -> 6 | L78: =H78+2 -> 4 | M78: =I78+3 -> 13 | Q78: 12 | R78: 6 | S78: 4 | T78: 13 | W78: 1 | X78: =C78 -> g | Y78: BRAHAMI | Z78: HOUARI | AA78: =IF(F78<>"",F78,"") -> 1998-04-04 | AB78: =IF(Q78<>"",Q78,"") -> 12 | AC78: 6 | AD78: 4 | AE78: =IF(Q78="","",2*AVERAGE(AB78:AD78)) -> 14.66666667 | AF78: =IF(T78="","",T78*3) -> 39 | AG78: =IF(T78="","",(AF78+AE78)/5) -> 10.73333333 | AH78: =IF(T78="","",AG78*$AH$6) -> 21.46666667 | AN78: 1 | AP78: =IF(ISNA(MATCH(AN78,'4'!$AW$78:$AW$115,0)),"",INDEX('4'!$AT$78:$AT$115,MATCH(AN78,'4'!$AW$78:$AW$115,0))) -> بلعربي إلياس | AQ78: =IF($AP78<>"",VLOOKUP($AP78,'4'!$AT$78:$AV$115,3,0),"") -> 15.73333333 | AS78: 1 | AT78: =D78&" "&E78 -> BRAHAMI HOUARI | AV78: =IF(AG78="",0,AG78) -> 10.73333333 | AW78: =IF(AT78<>"",COUNTIF($AX$78:$AX$115,">"&AX78)+COUNTIF($AX$78:AX78,AX78),"") -> 5 | AX78: =IF(AV78<>"",AV78*1000,"") -> 10733.33333
A79: 2 | C79: =C17 -> g | D79: براهامي | E79: خالد | F79: 1999-07-02 | G79: 11 | H79: 9 | I79: 4.5 | K79: =G79+2 -> 13 | L79: 11 | M79: =I79+3 -> 7.5 | Q79: 15 | R79: 13 | S79: 11 | T79: 7.5 | W79: 2 | X79: g | Y79: براهامي | Z79: خالد | AA79: 1999-07-02 | AB79: 15 | AC79: 13 | AD79: 11 | AE79: 26 | AF79: 22.5 | AG79: 9.7 | AH79: 19.4 | AN79: 2 | AP79: =IF(ISNA(MATCH(AN79,'4'!$AW$78:$AW$115,0)),"",INDEX('4'!$AT$78:$AT$115,MATCH(AN79,'4'!$AW$78:$AW$115,0))) -> بومهدي أبو بكر | AQ79: =IF($AP79<>"",VLOOKUP($AP79,'4'!$AT$78:$AV$115,3,0),"") -> 14.33333333 | AS79: 2 | AT79: براهامي خالد | AV79: =IF(AG79="",0,AG79) -> 9.7 | AW79: =IF(AT79<>"",COUNTIF($AX$78:$AX$115,">"&AX79)+COUNTIF($AX$78:AX79,AX79),"") -> 9 | AX79: =IF(AV79<>"",AV79*1000,"") -> 9700
A80: 3 | C80: g | D80: بلعربي | E80: إلياس | F80: 2002-01-12 | G80: 17.5 | H80: 16.5 | I80: 11 | K80: 19.5 | L80: 18.5 | M80: 14 | Q80: 17 | R80: 19.5 | S80: 18.5 | T80: 14 | W80: 3 | X80: g | Y80: بلعربي | Z80: إلياس | AA80: 2002-01-12 | AB80: 17 | AC80: 19.5 | AD80: 18.5 | AE80: 36.66666667 | AF80: 42 | AG80: 15.73333333 | AH80: 31.46666667 | AN80: 3 | AP80: =IF(ISNA(MATCH(AN80,'4'!$AW$78:$AW$115,0)),"",INDEX('4'!$AT$78:$AT$115,MATCH(AN80,'4'!$AW$78:$AW$115,0))) -> دونان حليمة | AQ80: =IF($AP80<>"",VLOOKUP($AP80,'4'!$AT$78:$AV$115,3,0),"") -> 12.13333333 | AS80: 3 | AT80: بلعربي إلياس | AV80: 15.73333333 | AW80: =IF(AT80<>"",COUNTIF($AX$78:$AX$115,">"&AX80)+COUNTIF($AX$78:AX80,AX80),"") -> 1 | AX80: 15733.33333
A81: 4 | C81: f | D81: بوحسون | E81: أحلام | F81: 2000-08-19 | G81: 4.5 | H81: 0 | I81: 7 | K81: 6.5 | L81: 2 | M81: 10 | Q81: 12 | R81: 6.5 | S81: 2 | T81: 10 | W81: 4 | X81: f | Y81: بوحسون | Z81: أحلام | AA81: 2000-08-19 | AB81: 12 | AC81: 6.5 | AD81: 2 | AE81: 13.66666667 | AF81: 30 | AG81: 8.733333333 | AH81: 17.46666667 | AN81: 4 | AP81: =IF(ISNA(MATCH(AN81,'4'!$AW$78:$AW$115,0)),"",INDEX('4'!$AT$78:$AT$115,MATCH(AN81,'4'!$AW$78:$AW$115,0))) -> خديم محمد | AQ81: =IF($AP81<>"",VLOOKUP($AP81,'4'!$AT$78:$AV$115,3,0),"") -> 11.53333333 | AS81: 4 | AT81: بوحسون أحلام | AV81: 8.733333333 | AW81: =IF(AT81<>"",COUNTIF($AX$78:$AX$115,">"&AX81)+COUNTIF($AX$78:AX81,AX81),"") -> 10 | AX81: 8733.333333
A82: 5 | C82: f | D82: بوسعادة | E82: مريم | F82: 2001-07-13 | G82: 0 | H82: 3 | I82: 5.5 | K82: 2 | L82: 5 | M82: 8.5 | Q82: 13 | R82: 2 | S82: 5 | T82: 8.5 | W82: 5 | X82: f | Y82: بوسعادة | Z82: مريم | AA82: 2001-07-13 | AB82: 13 | AC82: 2 | AD82: 5 | AE82: 13.33333333 | AF82: 25.5 | AG82: 7.766666667 | AH82: 15.53333333 | AN82: 5 | AP82: =IF(ISNA(MATCH(AN82,'4'!$AW$78:$AW$115,0)),"",INDEX('4'!$AT$78:$AT$115,MATCH(AN82,'4'!$AW$78:$AW$115,0))) -> BRAHAMI HOUARI | AQ82: =IF($AP82<>"",VLOOKUP($AP82,'4'!$AT$78:$AV$115,3,0),"") -> 10.73333333 | AS82: 5 | AT82: بوسعادة مريم | AV82: 7.766666667 | AW82: =IF(AT82<>"",COUNTIF($AX$78:$AX$115,">"&AX82)+COUNTIF($AX$78:AX82,AX82),"") -> 16 | AX82: 7766.666667
A83: 6 | C83: f | D83: بومدان | E83: رشيدة | F83: 2000-04-19 | G83: 3 | H83: 5 | I83: 2.5 | K83: 5 | L83: 7 | M83: 5.5 | Q83: 13 | R83: 5 | S83: 7 | T83: 6 | W83: 6 | X83: f | Y83: بومدان | Z83: رشيدة | AA83: 2000-04-19 | AB83: 13 | AC83: 5 | AD83: 7 | AE83: 16.66666667 | AF83: 18 | AG83: 6.933333333 | AH83: 13.86666667 | AN83: 6 | AP83: =IF(ISNA(MATCH(AN83,'4'!$AW$78:$AW$115,0)),"",INDEX('4'!$AT$78:$AT$115,MATCH(AN83,'4'!$AW$78:$AW$115,0))) -> تامي أسامة | AQ83: =IF($AP83<>"",VLOOKUP($AP83,'4'!$AT$78:$AV$115,3,0),"") -> 10.3 | AS83: 6 | AT83: بومدان رشيدة | AV83: 6.933333333 | AW83: =IF(AT83<>"",COUNTIF($AX$78:$AX$115,">"&AX83)+COUNTIF($AX$78:AX83,AX83),"") -> 21 | AX83: 6933.333333
A84: 7 | C84: g | D84: بومهدي | E84: أبو بكر | F84: 1997-04-17 | G84: 15 | H84: 14 | I84: 10 | K84: 17 | L84: 16 | M84: 13 | Q84: 16 | R84: 17 | S84: 16 | T84: 13 | W84: 7 | X84: g | Y84: بومهدي | Z84: أبو بكر | AA84: 1997-04-17 | AB84: 16 | AC84: 17 | AD84: 16 | AE84: 32.66666667 | AF84: 39 | AG84: 14.33333333 | AH84: 28.66666667 | AN84: 7 | AP84: =IF(ISNA(MATCH(AN84,'4'!$AW$78:$AW$115,0)),"",INDEX('4'!$AT$78:$AT$115,MATCH(AN84,'4'!$AW$78:$AW$115,0))) -> كوشة لخضر | AQ84: =IF($AP84<>"",VLOOKUP($AP84,'4'!$AT$78:$AV$115,3,0),"") -> 10.1 | AS84: 7 | AT84: بومهدي أبو بكر | AV84: 14.33333333 | AW84: =IF(AT84<>"",COUNTIF($AX$78:$AX$115,">"&AX84)+COUNTIF($AX$78:AX84,AX84),"") -> 2 | AX84: 14333.33333
A85: 8 | C85: 0 | D85: تامي | E85: أسامة | F85: 1999-03-26 | G85: 4 | H85: 0 | I85: 7.5 | K85: 6 | L85: 2 | M85: 10.5 | Q85: 13 | R85: 6 | S85: 2 | T85: 12.5 | W85: 8 | X85: 0 | Y85: تامي | Z85: أسامة | AA85: 1999-03-26 | AB85: 13 | AC85: 6 | AD85: 2 | AE85: 14 | AF85: 37.5 | AG85: 10.3 | AH85: 20.6 | AN85: 8 | AP85: =IF(ISNA(MATCH(AN85,'4'!$AW$78:$AW$115,0)),"",INDEX('4'!$AT$78:$AT$115,MATCH(AN85,'4'!$AW$78:$AW$115,0))) -> فرحات أمينة | AQ85: =IF($AP85<>"",VLOOKUP($AP85,'4'!$AT$78:$AV$115,3,0),"") -> 10.06666667 | AS85: 8 | AT85: تامي أسامة | AV85: 10.3 | AW85: =IF(AT85<>"",COUNTIF($AX$78:$AX$115,">"&AX85)+COUNTIF($AX$78:AX85,AX85),"") -> 6 | AX85: 10300
A86: 9 | C86: ذ | D86: خديم | E86: محمد | F86: 1997-02-01 | G86: 5 | H86: 8.5 | I86: 9 | K86: 7 | L86: 10.5 | M86: 12 | Q86: 15 | R86: 7 | S86: 10.5 | T86: 12 | W86: 9 | X86: ذ | Y86: خديم | Z86: محمد | AA86: 1997-02-01 | AB86: 15 | AC86: 7 | AD86: 10.5 | AE86: 21.66666667 | AF86: 36 | AG86: 11.53333333 | AH86: 23.06666667 | AN86: 9 | AP86: =IF(ISNA(MATCH(AN86,'4'!$AW$78:$AW$115,0)),"",INDEX('4'!$AT$78:$AT$115,MATCH(AN86,'4'!$AW$78:$AW$115,0))) -> براهامي خالد | AQ86: =IF($AP86<>"",VLOOKUP($AP86,'4'!$AT$78:$AV$115,3,0),"") -> 9.7 | AS86: 9 | AT86: خديم محمد | AV86: 11.53333333 | AW86: =IF(AT86<>"",COUNTIF($AX$78:$AX$115,">"&AX86)+COUNTIF($AX$78:AX86,AX86),"") -> 4 | AX86: 11533.33333
A87: 10 | C87: ذ | D87: خديمي | E87: أمحمد | F87: 1998-04-18 | G87: 4.5 | H87: 2 | I87: 2.5 | K87: 6.5 | L87: 4 | M87: 5.5 | Q87: 13 | R87: 6.5 | S87: 4 | T87: 5.5 | W87: 10 | X87: ذ | Y87: خديمي | Z87: أمحمد | AA87: 1998-04-18 | AB87: 13 | AC87: 6.5 | AD87: 4 | AE87: 15.66666667 | AF87: 16.5 | AG87: 6.433333333 | AH87: 12.86666667 | AN87: 10 | AP87: =IF(ISNA(MATCH(AN87,'4'!$AW$78:$AW$115,0)),"",INDEX('4'!$AT$78:$AT$115,MATCH(AN87,'4'!$AW$78:$AW$115,0))) -> بوحسون أحلام | AQ87: =IF($AP87<>"",VLOOKUP($AP87,'4'!$AT$78:$AV$115,3,0),"") -> 8.733333333 | AS87: 10 | AT87: خديمي أمحمد | AV87: 6.433333333 | AW87: =IF(AT87<>"",COUNTIF($AX$78:$AX$115,">"&AX87)+COUNTIF($AX$78:AX87,AX87),"") -> 25 | AX87: 6433.333333
A88: 11 | C88: أ | D88: درموز | E88: آمال | F88: 2000-04-11 | G88: 2.5 | H88: 6 | I88: 3.5 | K88: 4.5 | L88: 8 | M88: 6.5 | Q88: 12 | R88: 4.5 | S88: 8 | T88: 6.5 | W88: 11 | X88: أ | Y88: درموز | Z88: آمال | AA88: 2000-04-11 | AB88: 12 | AC88: 4.5 | AD88: 8 | AE88: 16.33333333 | AF88: 19.5 | AG88: 7.166666667 | AH88: 14.33333333 | AN88: 11 | AP88: =IF(ISNA(MATCH(AN88,'4'!$AW$78:$AW$115,0)),"",INDEX('4'!$AT$78:$AT$115,MATCH(AN88,'4'!$AW$78:$AW$115,0))) -> عباس محمد | AQ88: =IF($AP88<>"",VLOOKUP($AP88,'4'!$AT$78:$AV$115,3,0),"") -> 8.733333333 | AS88: 11 | AT88: درموز آمال | AV88: 7.166666667 | AW88: =IF(AT88<>"",COUNTIF($AX$78:$AX$115,">"&AX88)+COUNTIF($AX$78:AX88,AX88),"") -> 18 | AX88: 7166.666667
A89: 12 | C89: ذ | D89: درموز | E89: عبد العزيز | F89: 2001-11-22 | G89: 4.5 | H89: 4 | I89: 5 | K89: 6.5 | L89: 6 | M89: 8 | Q89: 15 | R89: 6.5 | S89: 6 | T89: 8 | W89: 12 | X89: ذ | Y89: درموز | Z89: عبد العزيز | AA89: 2001-11-22 | AB89: 15 | AC89: 6.5 | AD89: 6 | AE89: 18.33333333 | AF89: 24 | AG89: 8.466666667 | AH89: 16.93333333 | AN89: 12 | AP89: =IF(ISNA(MATCH(AN89,'4'!$AW$78:$AW$115,0)),"",INDEX('4'!$AT$78:$AT$115,MATCH(AN89,'4'!$AW$78:$AW$115,0))) -> درموز عبد العزيز | AQ89: =IF($AP89<>"",VLOOKUP($AP89,'4'!$AT$78:$AV$115,3,0),"") -> 8.466666667 | AS89: 12 | AT89: درموز عبد العزيز | AV89: 8.466666667 | AW89: =IF(AT89<>"",COUNTIF($AX$78:$AX$115,">"&AX89)+COUNTIF($AX$78:AX89,AX89),"") -> 12 | AX89: 8466.666667
A90: 13 | C90: أ | D90: دوان | E90: وسيلة | F90: 2002-03-17 | G90: 6 | H90: 1 | I90: 1.5 | K90: 8 | L90: 3 | M90: 4.5 | Q90: 13 | R90: 8 | S90: 3 | T90: 4.5 | W90: 13 | X90: أ | Y90: دوان | Z90: وسيلة | AA90: 2002-03-17 | AB90: 13 | AC90: 8 | AD90: 3 | AE90: 16 | AF90: 13.5 | AG90: 5.9 | AH90: 11.8 | AN90: 13 | AP90: =IF(ISNA(MATCH(AN90,'4'!$AW$78:$AW$115,0)),"",INDEX('4'!$AT$78:$AT$115,MATCH(AN90,'4'!$AW$78:$AW$115,0))) -> مهجي شهيناز | AQ90: =IF($AP90<>"",VLOOKUP($AP90,'4'!$AT$78:$AV$115,3,0),"") -> 8.333333333 | AS90: 13 | AT90: دوان وسيلة | AV90: 5.9 | AW90: =IF(AT90<>"",COUNTIF($AX$78:$AX$115,">"&AX90)+COUNTIF($AX$78:AX90,AX90),"") -> 26 | AX90: 5900
A91: 14 | C91: أ | D91: دونان | E91: حليمة | F91: 2000-11-28 | G91: 6.5 | H91: 6 | I91: 10 | K91: 8.5 | L91: 8 | M91: 13 | Q91: 16 | R91: 8.5 | S91: 8 | T91: 13 | W91: 14 | X91: أ | Y91: دونان | Z91: حليمة | AA91: 2000-11-28 | AB91: 16 | AC91: 8.5 | AD91: 8 | AE91: 21.66666667 | AF91: 39 | AG91: 12.13333333 | AH91: 24.26666667 | AN91: 14 | AP91: =IF(ISNA(MATCH(AN91,'4'!$AW$78:$AW$115,0)),"",INDEX('4'!$AT$78:$AT$115,MATCH(AN91,'4'!$AW$78:$AW$115,0))) -> شاشو محمد | AQ91: =IF($AP91<>"",VLOOKUP($AP91,'4'!$AT$78:$AV$115,3,0),"") -> 8.166666667 | AS91: 14 | AT91: دونان حليمة | AV91: 12.13333333 | AW91: =IF(AT91<>"",COUNTIF($AX$78:$AX$115,">"&AX91)+COUNTIF($AX$78:AX91,AX91),"") -> 3 | AX91: 12133.33333
A92: 15 | C92: أ | D92: رفيف | E92: حورية | F92: 2001-11-29 | G92: 9 | H92: 5 | I92: 2.5 | K92: 11 | L92: 7 | M92: 5.5 | Q92: 13 | R92: 11 | S92: 7 | T92: 5.5 | W92: 15 | X92: أ | Y92: رفيف | Z92: حورية | AA92: 2001-11-29 | AB92: 13 | AC92: 11 | AD92: 7 | AE92: 20.66666667 | AF92: 16.5 | AG92: 7.433333333 | AH92: 14.86666667 | AN92: 15 | AP92: =IF(ISNA(MATCH(AN92,'4'!$AW$78:$AW$115,0)),"",INDEX('4'!$AT$78:$AT$115,MATCH(AN92,'4'!$AW$78:$AW$115,0))) -> سعودي آمنة | AQ92: =IF($AP92<>"",VLOOKUP($AP92,'4'!$AT$78:$AV$115,3,0),"") -> 7.833333333 | AS92: 15 | AT92: رفيف حورية | AV92: 7.433333333 | AW92: =IF(AT92<>"",COUNTIF($AX$78:$AX$115,">"&AX92)+COUNTIF($AX$78:AX92,AX92),"") -> 17 | AX92: 7433.333333
A93: 16 | C93: أ | D93: سعادي | E93: كنزة | F93: 2001-11-28 | G93: 4 | H93: 6 | I93: 2 | K93: 6 | L93: 8 | M93: 5 | Q93: 16 | R93: 6 | S93: 8 | T93: 5 | W93: 16 | X93: أ | Y93: سعادي | Z93: كنزة | AA93: 2001-11-28 | AB93: 16 | AC93: 6 | AD93: 8 | AE93: 20 | AF93: 15 | AG93: 7 | AH93: 14 | AN93: 16 | AP93: =IF(ISNA(MATCH(AN93,'4'!$AW$78:$AW$115,0)),"",INDEX('4'!$AT$78:$AT$115,MATCH(AN93,'4'!$AW$78:$AW$115,0))) -> بوسعادة مريم | AQ93: =IF($AP93<>"",VLOOKUP($AP93,'4'!$AT$78:$AV$115,3,0),"") -> 7.766666667 | AS93: 16 | AT93: سعادي كنزة | AV93: 7 | AW93: =IF(AT93<>"",COUNTIF($AX$78:$AX$115,">"&AX93)+COUNTIF($AX$78:AX93,AX93),"") -> 20 | AX93: 7000
A94: 17 | C94: =C32 -> أ | D94: سعودي | E94: آمنة | F94: 1999-08-19 | G94: 5.5 | H94: 7 | I94: 3.5 | K94: 7.5 | L94: 9 | M94: 6.5 | Q94: 13 | R94: 7.5 | S94: 9 | T94: 6.5 | W94: 17 | X94: أ | Y94: سعودي | Z94: آمنة | AA94: 1999-08-19 | AB94: 13 | AC94: 7.5 | AD94: 9 | AE94: 19.66666667 | AF94: 19.5 | AG94: 7.833333333 | AH94: 15.66666667 | AN94: 17 | AP94: =IF(ISNA(MATCH(AN94,'4'!$AW$78:$AW$115,0)),"",INDEX('4'!$AT$78:$AT$115,MATCH(AN94,'4'!$AW$78:$AW$115,0))) -> رفيف حورية | AQ94: =IF($AP94<>"",VLOOKUP($AP94,'4'!$AT$78:$AV$115,3,0),"") -> 7.433333333 | AS94: 17 | AT94: سعودي آمنة | AV94: 7.833333333 | AW94: =IF(AT94<>"",COUNTIF($AX$78:$AX$115,">"&AX94)+COUNTIF($AX$78:AX94,AX94),"") -> 15 | AX94: 7833.333333
A95: 18 | C95: ذ | D95: شاشو | E95: محمد | F95: 1999-09-17 | G95: 4.5 | H95: 6 | I95: 4.5 | K95: 6.5 | L95: 8 | M95: 7.5 | Q95: 13 | R95: 6.5 | S95: 8 | T95: 7.5 | W95: 18 | X95: ذ | Y95: شاشو | Z95: محمد | AA95: 1999-09-17 | AB95: 13 | AC95: 6.5 | AD95: 8 | AE95: 18.33333333 | AF95: 22.5 | AG95: 8.166666667 | AH95: 16.33333333 | AN95: 18 | AP95: =IF(ISNA(MATCH(AN95,'4'!$AW$78:$AW$115,0)),"",INDEX('4'!$AT$78:$AT$115,MATCH(AN95,'4'!$AW$78:$AW$115,0))) -> درموز آمال | AQ95: =IF($AP95<>"",VLOOKUP($AP95,'4'!$AT$78:$AV$115,3,0),"") -> 7.166666667 | AS95: 18 | AT95: شاشو محمد | AV95: 8.166666667 | AW95: =IF(AT95<>"",COUNTIF($AX$78:$AX$115,">"&AX95)+COUNTIF($AX$78:AX95,AX95),"") -> 14 | AX95: 8166.666667
A96: 19 | C96: ذ | D96: عامر | E96: أنور | F96: 1999-05-16 | G96: 2 | H96: 0 | I96: 2 | K96: 4 | L96: 2 | M96: 5 | Q96: 13 | R96: 4 | S96: 2 | T96: 5 | W96: 19 | X96: ذ | Y96: عامر | Z96: أنور | AA96: 1999-05-16 | AB96: 13 | AC96: 4 | AD96: 2 | AE96: 12.66666667 | AF96: 15 | AG96: 5.533333333 | AH96: 11.06666667 | AN96: 19 | AP96: =IF(ISNA(MATCH(AN96,'4'!$AW$78:$AW$115,0)),"",INDEX('4'!$AT$78:$AT$115,MATCH(AN96,'4'!$AW$78:$AW$115,0))) -> فرحات صبيحة | AQ96: =IF($AP96<>"",VLOOKUP($AP96,'4'!$AT$78:$AV$115,3,0),"") -> 7.1 | AS96: 19 | AT96: عامر أنور | AV96: 5.533333333 | AW96: =IF(AT96<>"",COUNTIF($AX$78:$AX$115,">"&AX96)+COUNTIF($AX$78:AX96,AX96),"") -> 28 | AX96: 5533.333333
A97: 20 | C97: أ | D97: عباس | E97: خضرة | F97: 2002-01-03 | G97: 4.5 | H97: 2 | I97: 3 | K97: 6.5 | L97: 4 | M97: 6 | Q97: 13 | R97: 6.5 | S97: 4 | T97: 6 | W97: 20 | X97: أ | Y97: عباس | Z97: خضرة | AA97: 2002-01-03 | AB97: 13 | AC97: 6.5 | AD97: 4 | AE97: 15.66666667 | AF97: 18 | AG97: 6.733333333 | AH97: 13.46666667 | AN97: 20 | AP97: =IF(ISNA(MATCH(AN97,'4'!$AW$78:$AW$115,0)),"",INDEX('4'!$AT$78:$AT$115,MATCH(AN97,'4'!$AW$78:$AW$115,0))) -> سعادي كنزة | AQ97: =IF($AP97<>"",VLOOKUP($AP97,'4'!$AT$78:$AV$115,3,0),"") -> 7 | AS97: 20 | AT97: عباس خضرة | AV97: 6.733333333 | AW97: =IF(AT97<>"",COUNTIF($AX$78:$AX$115,">"&AX97)+COUNTIF($AX$78:AX97,AX97),"") -> 23 | AX97: 6733.333333
A98: 21 | C98: ذ | D98: عباس | E98: محمد | F98: 2001-07-21 | G98: 6 | H98: 1 | I98: 6 | K98: 8 | L98: 3 | M98: 9 | Q98: 14 | R98: 8 | S98: 3 | T98: 9 | W98: 21 | X98: ذ | Y98: عباس | Z98: محمد | AA98: 2001-07-21 | AB98: 14 | AC98: 8 | AD98: 3 | AE98: 16.66666667 | AF98: 27 | AG98: 8.733333333 | AH98: 17.46666667 | AN98: 21 | AP98: =IF(ISNA(MATCH(AN98,'4'!$AW$78:$AW$115,0)),"",INDEX('4'!$AT$78:$AT$115,MATCH(AN98,'4'!$AW$78:$AW$115,0))) -> بومدان رشيدة | AQ98: =IF($AP98<>"",VLOOKUP($AP98,'4'!$AT$78:$AV$115,3,0),"") -> 6.933333333 | AS98: 21 | AT98: عباس محمد | AV98: 8.733333333 | AW98: =IF(AT98<>"",COUNTIF($AX$78:$AX$115,">"&AX98)+COUNTIF($AX$78:AX98,AX98),"") -> 11 | AX98: 8733.333333
A99: 22 | C99: أ | D99: فتحي | E99: رحمة | F99: 2002-03-29 | G99: 4.5 | H99: 1 | I99: 3 | K99: 6.5 | L99: 3 | M99: 6 | Q99: 15 | R99: 6.5 | S99: 3 | T99: 6 | W99: 22 | X99: أ | Y99: فتحي | Z99: رحمة | AA99: 2002-03-29 | AB99: 15 | AC99: 6.5 | AD99: 3 | AE99: 16.33333333 | AF99: 18 | AG99: 6.866666667 | AH99: 13.73333333 | AN99: 22 | AP99: =IF(ISNA(MATCH(AN99,'4'!$AW$78:$AW$115,0)),"",INDEX('4'!$AT$78:$AT$115,MATCH(AN99,'4'!$AW$78:$AW$115,0))) -> فتحي رحمة | AQ99: =IF($AP99<>"",VLOOKUP($AP99,'4'!$AT$78:$AV$115,3,0),"") -> 6.866666667 | AS99: 22 | AT99: فتحي رحمة | AV99: 6.866666667 | AW99: =IF(AT99<>"",COUNTIF($AX$78:$AX$115,">"&AX99)+COUNTIF($AX$78:AX99,AX99),"") -> 22 | AX99: 6866.666667
A100: 23 | C100: أ | D100: فرحات | E100: أمينة | F100: 1998-11-18 | G100: 1.5 | H100: 3 | I100: 9 | K100: 3.5 | L100: 5 | M100: 12 | Q100: 13 | R100: 3.5 | S100: 5 | T100: 12 | W100: 23 | X100: أ | Y100: فرحات | Z100: أمينة | AA100: 1998-11-18 | AB100: 13 | AC100: 3.5 | AD100: 5 | AE100: 14.33333333 | AF100: 36 | AG100: 10.06666667 | AH100: 20.13333333 | AN100: 23 | AP100: =IF(ISNA(MATCH(AN100,'4'!$AW$78:$AW$115,0)),"",INDEX('4'!$AT$78:$AT$115,MATCH(AN100,'4'!$AW$78:$AW$115,0))) -> عباس خضرة | AQ100: =IF($AP100<>"",VLOOKUP($AP100,'4'!$AT$78:$AV$115,3,0),"") -> 6.733333333 | AS100: 23 | AT100: فرحات أمينة | AV100: 10.06666667 | AW100: =IF(AT100<>"",COUNTIF($AX$78:$AX$115,">"&AX100)+COUNTIF($AX$78:AX100,AX100),"") -> 8 | AX100: 10066.66667
A101: 24 | C101: أ | D101: فرحات | E101: صبيحة | F101: 2000-04-18 | G101: 4 | H101: 2 | I101: 3.5 | K101: 6 | L101: 4 | M101: 6.5 | Q101: 14 | R101: 6 | S101: 4 | T101: 6.5 | W101: 24 | X101: أ | Y101: فرحات | Z101: صبيحة | AA101: 2000-04-18 | AB101: 14 | AC101: 6 | AD101: 4 | AE101: 16 | AF101: 19.5 | AG101: 7.1 | AH101: 14.2 | AN101: 24 | AP101: =IF(ISNA(MATCH(AN101,'4'!$AW$78:$AW$115,0)),"",INDEX('4'!$AT$78:$AT$115,MATCH(AN101,'4'!$AW$78:$AW$115,0))) -> قبلي عبد الإله | AQ101: =IF($AP101<>"",VLOOKUP($AP101,'4'!$AT$78:$AV$115,3,0),"") -> 6.733333333 | AS101: 24 | AT101: فرحات صبيحة | AV101: 7.1 | AW101: =IF(AT101<>"",COUNTIF($AX$78:$AX$115,">"&AX101)+COUNTIF($AX$78:AX101,AX101),"") -> 19 | AX101: 7100
A102: 25 | C102: ذ | D102: قبلي | E102: عبد الإله | F102: 2000-05-06 | G102: 4.5 | H102: 0 | I102: 3 | K102: 6.5 | L102: 2 | M102: 6 | Q102: 15 | R102: 6.5 | S102: 2 | T102: 6 | W102: 25 | X102: ذ | Y102: قبلي | Z102: عبد الإله | AA102: 2000-05-06 | AB102: 15 | AC102: 6.5 | AD102: 2 | AE102: 15.66666667 | AF102: 18 | AG102: 6.733333333 | AH102: 13.46666667 | AN102: 25 | AP102: =IF(ISNA(MATCH(AN102,'4'!$AW$78:$AW$115,0)),"",INDEX('4'!$AT$78:$AT$115,MATCH(AN102,'4'!$AW$78:$AW$115,0))) -> خديمي أمحمد | AQ102: =IF($AP102<>"",VLOOKUP($AP102,'4'!$AT$78:$AV$115,3,0),"") -> 6.433333333 | AS102: 25 | AT102: قبلي عبد الإله | AV102: 6.733333333 | AW102: =IF(AT102<>"",COUNTIF($AX$78:$AX$115,">"&AX102)+COUNTIF($AX$78:AX102,AX102),"") -> 24 | AX102: 6733.333333
A103: 26 | C103: أ | D103: قبلي | E103: ميساء | F103: 2000-05-06 | G103: 3 | H103: 3.5 | I103: 1.5 | K103: 5 | L103: 5.5 | M103: 4.5 | Q103: 13 | R103: 5 | S103: 5.5 | T103: 4.5 | W103: 26 | X103: أ | Y103: قبلي | Z103: ميساء | AA103: 2000-05-06 | AB103: 13 | AC103: 5 | AD103: 5.5 | AE103: 15.66666667 | AF103: 13.5 | AG103: 5.833333333 | AH103: 11.66666667 | AN103: 26 | AP103: =IF(ISNA(MATCH(AN103,'4'!$AW$78:$AW$115,0)),"",INDEX('4'!$AT$78:$AT$115,MATCH(AN103,'4'!$AW$78:$AW$115,0))) -> دوان وسيلة | AQ103: =IF($AP103<>"",VLOOKUP($AP103,'4'!$AT$78:$AV$115,3,0),"") -> 5.9 | AS103: 26 | AT103: قبلي ميساء | AV103: 5.833333333 | AW103: =IF(AT103<>"",COUNTIF($AX$78:$AX$115,">"&AX103)+COUNTIF($AX$78:AX103,AX103),"") -> 27 | AX103: 5833.333333
A104: 27 | C104: ذ | D104: كوشة | E104: لخضر | F104: 1998-03-27 | G104: 5 | H104: 6.5 | I104: 7.5 | K104: 7 | L104: 8.5 | M104: 10.5 | Q104: 13 | R104: 7 | S104: 8.5 | T104: 10.5 | W104: 27 | X104: ذ | Y104: كوشة | Z104: لخضر | AA104: 1998-03-27 | AB104: 13 | AC104: 7 | AD104: 8.5 | AE104: 19 | AF104: 31.5 | AG104: 10.1 | AH104: 20.2 | AN104: 27 | AP104: =IF(ISNA(MATCH(AN104,'4'!$AW$78:$AW$115,0)),"",INDEX('4'!$AT$78:$AT$115,MATCH(AN104,'4'!$AW$78:$AW$115,0))) -> قبلي ميساء | AQ104: =IF($AP104<>"",VLOOKUP($AP104,'4'!$AT$78:$AV$115,3,0),"") -> 5.833333333 | AS104: 27 | AT104: كوشة لخضر | AV104: 10.1 | AW104: =IF(AT104<>"",COUNTIF($AX$78:$AX$115,">"&AX104)+COUNTIF($AX$78:AX104,AX104),"") -> 7 | AX104: 10100
A105: 28 | C105: أ | D105: مهجي | E105: شهيناز | F105: 1998-05-31 | G105: 3 | H105: 2 | I105: 6 | K105: 5 | L105: 4 | M105: 9 | Q105: 13 | R105: 5 | S105: 4 | T105: 9 | W105: 28 | X105: أ | Y105: مهجي | Z105: شهيناز | AA105: 1998-05-31 | AB105: 13 | AC105: 5 | AD105: 4 | AE105: 14.66666667 | AF105: 27 | AG105: 8.333333333 | AH105: 16.66666667 | AN105: 28 | AP105: =IF(ISNA(MATCH(AN105,'4'!$AW$78:$AW$115,0)),"",INDEX('4'!$AT$78:$AT$115,MATCH(AN105,'4'!$AW$78:$AW$115,0))) -> عامر أنور | AQ105: =IF($AP105<>"",VLOOKUP($AP105,'4'!$AT$78:$AV$115,3,0),"") -> 5.533333333 | AS105: 28 | AT105: مهجي شهيناز | AV105: 8.333333333 | AW105: =IF(AT105<>"",COUNTIF($AX$78:$AX$115,">"&AX105)+COUNTIF($AX$78:AX105,AX105),"") -> 13 | AX105: 8333.333333
A106: 29 | C106: 0 | D106: 0 | E106: 0 | W106: 29 | X106: 0 | Y106: 0 | Z106: 0 | AN106: 29 | AP106: =IF(ISNA(MATCH(AN106,'4'!$AW$78:$AW$115,0)),"",INDEX('4'!$AT$78:$AT$115,MATCH(AN106,'4'!$AW$78:$AW$115,0))) -> 0 0 | AQ106: =IF($AP106<>"",VLOOKUP($AP106,'4'!$AT$78:$AV$115,3,0),"") -> 0 | AS106: 29 | AT106: 0 0 | AV106: 0 | AW106: =IF(AT106<>"",COUNTIF($AX$78:$AX$115,">"&AX106)+COUNTIF($AX$78:AX106,AX106),"") -> 29 | AX106: 0
A107: 30 | C107: 0 | D107: 0 | E107: 0 | W107: 30 | X107: 0 | Y107: 0 | Z107: 0 | AN107: 30 | AP107: =IF(ISNA(MATCH(AN107,'4'!$AW$78:$AW$115,0)),"",INDEX('4'!$AT$78:$AT$115,MATCH(AN107,'4'!$AW$78:$AW$115,0))) -> 0 0 | AQ107: =IF($AP107<>"",VLOOKUP($AP107,'4'!$AT$78:$AV$115,3,0),"") -> 0 | AS107: 30 | AT107: 0 0 | AV107: 0 | AW107: =IF(AT107<>"",COUNTIF($AX$78:$AX$115,">"&AX107)+COUNTIF($AX$78:AX107,AX107),"") -> 30 | AX107: 0
A108: 31 | C108: 0 | D108: 0 | E108: 0 | W108: 31 | X108: 0 | Y108: 0 | Z108: 0 | AN108: 31 | AP108: =IF(ISNA(MATCH(AN108,'4'!$AW$78:$AW$115,0)),"",INDEX('4'!$AT$78:$AT$115,MATCH(AN108,'4'!$AW$78:$AW$115,0))) -> 0 0 | AQ108: =IF($AP108<>"",VLOOKUP($AP108,'4'!$AT$78:$AV$115,3,0),"") -> 0 | AS108: 31 | AT108: 0 0 | AV108: 0 | AW108: =IF(AT108<>"",COUNTIF($AX$78:$AX$115,">"&AX108)+COUNTIF($AX$78:AX108,AX108),"") -> 31 | AX108: 0
A109: 32 | C109: 0 | D109: 0 | E109: 0 | W109: 32 | X109: 0 | Y109: 0 | Z109: 0 | AN109: 32 | AP109: =IF(ISNA(MATCH(AN109,'4'!$AW$78:$AW$115,0)),"",INDEX('4'!$AT$78:$AT$115,MATCH(AN109,'4'!$AW$78:$AW$115,0))) -> 0 0 | AQ109: =IF($AP109<>"",VLOOKUP($AP109,'4'!$AT$78:$AV$115,3,0),"") -> 0 | AS109: 32 | AT109: 0 0 | AV109: 0 | AW109: =IF(AT109<>"",COUNTIF($AX$78:$AX$115,">"&AX109)+COUNTIF($AX$78:AX109,AX109),"") -> 32 | AX109: 0
A110: 33 | C110: =C48 -> 0 | D110: 0 | E110: 0 | W110: 33 | X110: 0 | Y110: 0 | Z110: 0 | AN110: 33 | AP110: =IF(ISNA(MATCH(AN110,'4'!$AW$78:$AW$115,0)),"",INDEX('4'!$AT$78:$AT$115,MATCH(AN110,'4'!$AW$78:$AW$115,0))) -> 0 0 | AQ110: =IF($AP110<>"",VLOOKUP($AP110,'4'!$AT$78:$AV$115,3,0),"") -> 0 | AS110: 33 | AT110: 0 0 | AV110: 0 | AW110: =IF(AT110<>"",COUNTIF($AX$78:$AX$115,">"&AX110)+COUNTIF($AX$78:AX110,AX110),"") -> 33 | AX110: 0
A111: 34 | C111: 0 | D111: 0 | E111: 0 | W111: 34 | X111: 0 | Y111: 0 | Z111: 0 | AN111: 34 | AP111: =IF(ISNA(MATCH(AN111,'4'!$AW$78:$AW$115,0)),"",INDEX('4'!$AT$78:$AT$115,MATCH(AN111,'4'!$AW$78:$AW$115,0))) -> 0 0 | AQ111: =IF($AP111<>"",VLOOKUP($AP111,'4'!$AT$78:$AV$115,3,0),"") -> 0 | AS111: 34 | AT111: 0 0 | AV111: 0 | AW111: =IF(AT111<>"",COUNTIF($AX$78:$AX$115,">"&AX111)+COUNTIF($AX$78:AX111,AX111),"") -> 34 | AX111: 0
A112: 35 | C112: 0 | D112: 0 | E112: 0 | W112: 35 | X112: 0 | Y112: 0 | Z112: 0 | AN112: 35 | AP112: =IF(ISNA(MATCH(AN112,'4'!$AW$78:$AW$115,0)),"",INDEX('4'!$AT$78:$AT$115,MATCH(AN112,'4'!$AW$78:$AW$115,0))) -> 0 0 | AQ112: =IF($AP112<>"",VLOOKUP($AP112,'4'!$AT$78:$AV$115,3,0),"") -> 0 | AS112: 35 | AT112: 0 0 | AV112: 0 | AW112: =IF(AT112<>"",COUNTIF($AX$78:$AX$115,">"&AX112)+COUNTIF($AX$78:AX112,AX112),"") -> 35 | AX112: 0
A113: 36 | C113: 0 | D113: 0 | E113: 0 | W113: 36 | X113: 0 | Y113: 0 | Z113: 0 | AN113: 36 | AP113: =IF(ISNA(MATCH(AN113,'4'!$AW$78:$AW$115,0)),"",INDEX('4'!$AT$78:$AT$115,MATCH(AN113,'4'!$AW$78:$AW$115,0))) -> 0 0 | AQ113: =IF($AP113<>"",VLOOKUP($AP113,'4'!$AT$78:$AV$115,3,0),"") -> 0 | AS113: 36 | AT113: 0 0 | AV113: 0 | AW113: =IF(AT113<>"",COUNTIF($AX$78:$AX$115,">"&AX113)+COUNTIF($AX$78:AX113,AX113),"") -> 36 | AX113: 0
A114: 37 | C114: 0 | D114: 0 | E114: 0 | W114: 37 | X114: 0 | Y114: 0 | Z114: 0 | AN114: 37 | AP114: =IF(ISNA(MATCH(AN114,'4'!$AW$78:$AW$115,0)),"",INDEX('4'!$AT$78:$AT$115,MATCH(AN114,'4'!$AW$78:$AW$115,0))) -> 0 0 | AQ114: =IF($AP114<>"",VLOOKUP($AP114,'4'!$AT$78:$AV$115,3,0),"") -> 0 | AS114: 37 | AT114: 0 0 | AV114: 0 | AW114: =IF(AT114<>"",COUNTIF($AX$78:$AX$115,">"&AX114)+COUNTIF($AX$78:AX114,AX114),"") -> 37 | AX114: 0
A115: 38 | C115: 0 | D115: 0 | E115: 0 | W115: 38 | X115: 0 | Y115: 0 | Z115: 0 | AN115: 38 | AP115: =IF(ISNA(MATCH(AN115,'4'!$AW$78:$AW$115,0)),"",INDEX('4'!$AT$78:$AT$115,MATCH(AN115,'4'!$AW$78:$AW$115,0))) -> 0 0 | AQ115: =IF($AP115<>"",VLOOKUP($AP115,'4'!$AT$78:$AV$115,3,0),"") -> 0 | AS115: 38 | AT115: 0 0 | AV115: 0 | AW115: =IF(AT115<>"",COUNTIF($AX$78:$AX$115,">"&AX115)+COUNTIF($AX$78:AX115,AX115),"") -> 38 | AX115: 0
D118: ="Effectif Total : " &F118 -> Effectif Total : 20 | F118: =SUM(F120:F121) -> 20 | R118: =COUNTIFS(R78:R115,">=10") -> 4 | Y118: ="Effectif Total : " &Z120 -> Effectif Total : 20 | AA118: =F118 -> 20 | AP118: =Y118 -> Effectif Total : 20 | AQ118: =F118 -> 20 | AR118: =COUNTA(AP78:AP115) -> 38
D120: ="Filles : "&F120 -> Filles : 12 | F120: =COUNTIFS(C78:C115,"أ") -> 12 | S120: =COUNTIFS(S78:S115,">=10") -> 4 | Y120: =D120 -> Filles : 12 | Z120: =F118 -> 20 | AA120: =AA118 -> 20 | AC120: Moyenne trimestrielle >=10 | AG120: =COUNTIFS(AG78:AG115,">=10") -> 8 | AH120: =AG120/AA118 -> 0.4 | AP120: =Y120 -> Filles : 12 | AQ120: =AQ118 -> 20
D121: ="Garçon : "&F121 -> Garçon : 8 | F121: =COUNTIFS(C78:C115,"ذ") -> 8 | T121: =COUNTIFS(T78:T115,">=10") -> 9 | Y121: =D121 -> Garçon : 8 | AA121: =AA120 -> 20 | AP121: =Y121 -> Garçon : 8 | AQ121: =AQ120 -> 20
D126: =D64 -> Collège - Mostaganem | S126: =IF(S64<>"",S64,"") -> 2014 - 2015 | T126: =IF(#REF!<>"",#REF!,"") ->  | Y126: =D126 -> Collège - Mostaganem | AH126: =IF(S126<>"",S126,"") -> 2014 - 2015 | AI126: =IF(N126<>"",N126,"") ->  | AP126: =Y126 -> Collège - Mostaganem | AY126: =AH126 -> 2014 - 2015
S127: =IF(#REF!<>"",#REF!,"") ->  | AH127: =IF(M127<>"",M127,"") ->  | AI127: =IF(N127<>"",N127,"") -> 
D128: Classe: | E128: =E66 ->  | K128: Résultats des contrôles du 3e trimestre | Y128: Classe: | Z128: =E128 ->  | AD128: Résultats du 3e trimestre
D129: Matière: | E129: =IF(E67<>"",E67,"") -> Mathématiques | Y129: Matière: | Z129: =IF(E129<>"",E129,"") -> Mathématiques | AP129: Classement (Troisième trimestre)
D130: Prof: | E130: =IF(E68<>"",E68,"") -> Toufik MERINE | Y130: Prof: | Z130: =IF(E130<>"",E130,"") -> Toufik MERINE | AH130: =AH68 -> 2
D133: Nom | E133: Prénom | F133: Date de naissance | G133: Contrôle en classe | H133: Cahiers | I133: test 1 | J133: test 2 | K133: test 3 | L133: test 4 | M133: test 5 | N133: test 6 | O133: Travail à la maison | P133: Travail à la maison | Q133: M. des contrôles | R133: Dev. S.1 | S133: Dev. S.2 | T133: Compo/20 | Y133: Nom | Z133: Prénom | AA133: Date de naissance | AB133: Contrôle contenu | AC133: Devoir 1 | AD133: Devoir 2 | AE133: M. des contrôles | AF133: Compo / 60 | AG133: Moyenne Trim / 20 | AH133: Moy par coeffi | AI133: Moy Générale | AP133: Nom et Prénom | AQ133: Moyenne Trim / 20
A140: 1 | C140: =C78 -> g | D140: BRAHAMI | E140: HOUARI | F140: 1998-04-04 | W140: 1 | X140: =C140 -> g | Y140: BRAHAMI | Z140: HOUARI | AA140: =IF(F140<>"",F140,"") -> 1998-04-04 | AB140: =IF(Q140<>"",Q140,"") ->  | AE140: =IF(Q140="","",2*AVERAGE(AB140:AD140)) ->  | AF140: =IF(T140="","",T140*3) ->  | AG140: =IF(T140="","",(AF140+AE140)/5) ->  | AH140: =IF(T140="","",AG140*$AH$6) ->  | AI140: =K202 -> 9.3 | AN140: 1 | AP140: =IF(ISNA(MATCH(AN140,'4'!$AW$140:$AW$177,0)),"",INDEX('4'!$AT$140:$AT$177,MATCH(AN140,'4'!$AW$140:$AW$177,0))) -> BRAHAMI HOUARI | AQ140: =IF($AP140<>"",VLOOKUP($AP140,'4'!$AT$140:$AV$177,3,0),"") -> 0 | AS140: 1 | AT140: =D140&" "&E140 -> BRAHAMI HOUARI | AV140: =IF(AG140="",0,AG140) -> 0 | AW140: =IF(AT140<>"",COUNTIF($AX$140:$AX$177,">"&AX140)+COUNTIF($AX$140:AX140,AX140),"") -> 1 | AX140: =IF(AV140<>"",AV140*1000,"") -> 0
A141: 2 | C141: g | D141: براهامي | E141: خالد | F141: 1999-07-02 | W141: 2 | X141: g | Y141: براهامي | Z141: خالد | AA141: 1999-07-02 | AI141: 9.85 | AN141: 2 | AP141: =IF(ISNA(MATCH(AN141,'4'!$AW$140:$AW$177,0)),"",INDEX('4'!$AT$140:$AT$177,MATCH(AN141,'4'!$AW$140:$AW$177,0))) -> براهامي خالد | AQ141: =IF($AP141<>"",VLOOKUP($AP141,'4'!$AT$140:$AV$177,3,0),"") -> 0 | AS141: 2 | AT141: براهامي خالد | AV141: =IF(AG141="",0,AG141) -> 0 | AW141: =IF(AT141<>"",COUNTIF($AX$140:$AX$177,">"&AX141)+COUNTIF($AX$140:AX141,AX141),"") -> 2 | AX141: =IF(AV141<>"",AV141*1000,"") -> 0
A142: 3 | C142: g | D142: بلعربي | E142: إلياس | F142: 2002-01-12 | W142: 3 | X142: g | Y142: بلعربي | Z142: إلياس | AA142: 2002-01-12 | AI142: 14.8 | AN142: 3 | AP142: =IF(ISNA(MATCH(AN142,'4'!$AW$140:$AW$177,0)),"",INDEX('4'!$AT$140:$AT$177,MATCH(AN142,'4'!$AW$140:$AW$177,0))) -> بلعربي إلياس | AQ142: =IF($AP142<>"",VLOOKUP($AP142,'4'!$AT$140:$AV$177,3,0),"") -> 0 | AS142: 3 | AT142: بلعربي إلياس | AV142: 0 | AW142: =IF(AT142<>"",COUNTIF($AX$140:$AX$177,">"&AX142)+COUNTIF($AX$140:AX142,AX142),"") -> 3 | AX142: 0
A143: 4 | C143: f | D143: بوحسون | E143: أحلام | F143: 2000-08-19 | W143: 4 | X143: f | Y143: بوحسون | Z143: أحلام | AA143: 2000-08-19 | AI143: 7.733333333 | AN143: 4 | AP143: =IF(ISNA(MATCH(AN143,'4'!$AW$140:$AW$177,0)),"",INDEX('4'!$AT$140:$AT$177,MATCH(AN143,'4'!$AW$140:$AW$177,0))) -> بوحسون أحلام | AQ143: =IF($AP143<>"",VLOOKUP($AP143,'4'!$AT$140:$AV$177,3,0),"") -> 0 | AS143: 4 | AT143: بوحسون أحلام | AV143: 0 | AW143: =IF(AT143<>"",COUNTIF($AX$140:$AX$177,">"&AX143)+COUNTIF($AX$140:AX143,AX143),"") -> 4 | AX143: 0
A144: 5 | C144: f | D144: بوسعادة | E144: مريم | F144: 2001-07-13 | W144: 5 | X144: f | Y144: بوسعادة | Z144: مريم | AA144: 2001-07-13 | AI144: 8.516666667 | AN144: 5 | AP144: =IF(ISNA(MATCH(AN144,'4'!$AW$140:$AW$177,0)),"",INDEX('4'!$AT$140:$AT$177,MATCH(AN144,'4'!$AW$140:$AW$177,0))) -> بوسعادة مريم | AQ144: =IF($AP144<>"",VLOOKUP($AP144,'4'!$AT$140:$AV$177,3,0),"") -> 0 | AS144: 5 | AT144: بوسعادة مريم | AV144: 0 | AW144: =IF(AT144<>"",COUNTIF($AX$140:$AX$177,">"&AX144)+COUNTIF($AX$140:AX144,AX144),"") -> 5 | AX144: 0
A145: 6 | C145: f | D145: بومدان | E145: رشيدة | F145: 2000-04-19 | W145: 6 | X145: f | Y145: بومدان | Z145: رشيدة | AA145: 2000-04-19 | AI145: 8.416666667 | AN145: 6 | AP145: =IF(ISNA(MATCH(AN145,'4'!$AW$140:$AW$177,0)),"",INDEX('4'!$AT$140:$AT$177,MATCH(AN145,'4'!$AW$140:$AW$177,0))) -> بومدان رشيدة | AQ145: =IF($AP145<>"",VLOOKUP($AP145,'4'!$AT$140:$AV$177,3,0),"") -> 0 | AS145: 6 | AT145: بومدان رشيدة | AV145: 0 | AW145: =IF(AT145<>"",COUNTIF($AX$140:$AX$177,">"&AX145)+COUNTIF($AX$140:AX145,AX145),"") -> 6 | AX145: 0
A146: 7 | C146: g | D146: بومهدي | E146: أبو بكر | F146: 1997-04-17 | W146: 7 | X146: g | Y146: بومهدي | Z146: أبو بكر | AA146: 1997-04-17 | AI146: 14.28333333 | AN146: 7 | AP146: =IF(ISNA(MATCH(AN146,'4'!$AW$140:$AW$177,0)),"",INDEX('4'!$AT$140:$AT$177,MATCH(AN146,'4'!$AW$140:$AW$177,0))) -> بومهدي أبو بكر | AQ146: =IF($AP146<>"",VLOOKUP($AP146,'4'!$AT$140:$AV$177,3,0),"") -> 0 | AS146: 7 | AT146: بومهدي أبو بكر | AV146: 0 | AW146: =IF(AT146<>"",COUNTIF($AX$140:$AX$177,">"&AX146)+COUNTIF($AX$140:AX146,AX146),"") -> 7 | AX146: 0
A147: 8 | C147: 0 | D147: تامي | E147: أسامة | F147: 1999-03-26 | W147: 8 | X147: 0 | Y147: تامي | Z147: أسامة | AA147: 1999-03-26 | AI147: 9.316666667 | AN147: 8 | AP147: =IF(ISNA(MATCH(AN147,'4'!$AW$140:$AW$177,0)),"",INDEX('4'!$AT$140:$AT$177,MATCH(AN147,'4'!$AW$140:$AW$177,0))) -> تامي أسامة | AQ147: =IF($AP147<>"",VLOOKUP($AP147,'4'!$AT$140:$AV$177,3,0),"") -> 0 | AS147: 8 | AT147: تامي أسامة | AV147: 0 | AW147: =IF(AT147<>"",COUNTIF($AX$140:$AX$177,">"&AX147)+COUNTIF($AX$140:AX147,AX147),"") -> 8 | AX147: 0
A148: 9 | C148: ذ | D148: خديم | E148: محمد | F148: 1997-02-01 | W148: 9 | X148: ذ | Y148: خديم | Z148: محمد | AA148: 1997-02-01 | AI148: 11.88333333 | AN148: 9 | AP148: =IF(ISNA(MATCH(AN148,'4'!$AW$140:$AW$177,0)),"",INDEX('4'!$AT$140:$AT$177,MATCH(AN148,'4'!$AW$140:$AW$177,0))) -> خديم محمد | AQ148: =IF($AP148<>"",VLOOKUP($AP148,'4'!$AT$140:$AV$177,3,0),"") -> 0 | AS148: 9 | AT148: خديم محمد | AV148: 0 | AW148: =IF(AT148<>"",COUNTIF($AX$140:$AX$177,">"&AX148)+COUNTIF($AX$140:AX148,AX148),"") -> 9 | AX148: 0
A149: 10 | C149: ذ | D149: خديمي | E149: أمحمد | F149: 1998-04-18 | W149: 10 | X149: ذ | Y149: خديمي | Z149: أمحمد | AA149: 1998-04-18 | AI149: 7.05 | AN149: 10 | AP149: =IF(ISNA(MATCH(AN149,'4'!$AW$140:$AW$177,0)),"",INDEX('4'!$AT$140:$AT$177,MATCH(AN149,'4'!$AW$140:$AW$177,0))) -> خديمي أمحمد | AQ149: =IF($AP149<>"",VLOOKUP($AP149,'4'!$AT$140:$AV$177,3,0),"") -> 0 | AS149: 10 | AT149: خديمي أمحمد | AV149: 0 | AW149: =IF(AT149<>"",COUNTIF($AX$140:$AX$177,">"&AX149)+COUNTIF($AX$140:AX149,AX149),"") -> 10 | AX149: 0
A150: 11 | C150: أ | D150: درموز | E150: آمال | F150: 2000-04-11 | W150: 11 | X150: أ | Y150: درموز | Z150: آمال | AA150: 2000-04-11 | AI150: 7.816666667 | AN150: 11 | AP150: =IF(ISNA(MATCH(AN150,'4'!$AW$140:$AW$177,0)),"",INDEX('4'!$AT$140:$AT$177,MATCH(AN150,'4'!$AW$140:$AW$177,0))) -> درموز آمال | AQ150: =IF($AP150<>"",VLOOKUP($AP150,'4'!$AT$140:$AV$177,3,0),"") -> 0 | AS150: 11 | AT150: درموز آمال | AV150: 0 | AW150: =IF(AT150<>"",COUNTIF($AX$140:$AX$177,">"&AX150)+COUNTIF($AX$140:AX150,AX150),"") -> 11 | AX150: 0
A151: 12 | C151: ذ | D151: درموز | E151: عبد العزيز | F151: 2001-11-22 | W151: 12 | X151: ذ | Y151: درموز | Z151: عبد العزيز | AA151: 2001-11-22 | AI151: 8.166666667 | AN151: 12 | AP151: =IF(ISNA(MATCH(AN151,'4'!$AW$140:$AW$177,0)),"",INDEX('4'!$AT$140:$AT$177,MATCH(AN151,'4'!$AW$140:$AW$177,0))) -> درموز عبد العزيز | AQ151: =IF($AP151<>"",VLOOKUP($AP151,'4'!$AT$140:$AV$177,3,0),"") -> 0 | AS151: 12 | AT151: درموز عبد العزيز | AV151: 0 | AW151: =IF(AT151<>"",COUNTIF($AX$140:$AX$177,">"&AX151)+COUNTIF($AX$140:AX151,AX151),"") -> 12 | AX151: 0
A152: 13 | C152: أ | D152: دوان | E152: وسيلة | F152: 2002-03-17 | W152: 13 | X152: أ | Y152: دوان | Z152: وسيلة | AA152: 2002-03-17 | AI152: 7.95 | AN152: 13 | AP152: =IF(ISNA(MATCH(AN152,'4'!$AW$140:$AW$177,0)),"",INDEX('4'!$AT$140:$AT$177,MATCH(AN152,'4'!$AW$140:$AW$177,0))) -> دوان وسيلة | AQ152: =IF($AP152<>"",VLOOKUP($AP152,'4'!$AT$140:$AV$177,3,0),"") -> 0 | AS152: 13 | AT152: دوان وسيلة | AV152: 0 | AW152: =IF(AT152<>"",COUNTIF($AX$140:$AX$177,">"&AX152)+COUNTIF($AX$140:AX152,AX152),"") -> 13 | AX152: 0
A153: 14 | C153: أ | D153: دونان | E153: حليمة | F153: 2000-11-28 | W153: 14 | X153: أ | Y153: دونان | Z153: حليمة | AA153: 2000-11-28 | AI153: 9.9 | AN153: 14 | AP153: =IF(ISNA(MATCH(AN153,'4'!$AW$140:$AW$177,0)),"",INDEX('4'!$AT$140:$AT$177,MATCH(AN153,'4'!$AW$140:$AW$177,0))) -> دونان حليمة | AQ153: =IF($AP153<>"",VLOOKUP($AP153,'4'!$AT$140:$AV$177,3,0),"") -> 0 | AS153: 14 | AT153: دونان حليمة | AV153: 0 | AW153: =IF(AT153<>"",COUNTIF($AX$140:$AX$177,">"&AX153)+COUNTIF($AX$140:AX153,AX153),"") -> 14 | AX153: 0
A154: 15 | C154: أ | D154: رفيف | E154: حورية | F154: 2001-11-29 | W154: 15 | X154: أ | Y154: رفيف | Z154: حورية | AA154: 2001-11-29 | AI154: 8.633333333 | AN154: 15 | AP154: =IF(ISNA(MATCH(AN154,'4'!$AW$140:$AW$177,0)),"",INDEX('4'!$AT$140:$AT$177,MATCH(AN154,'4'!$AW$140:$AW$177,0))) -> رفيف حورية | AQ154: =IF($AP154<>"",VLOOKUP($AP154,'4'!$AT$140:$AV$177,3,0),"") -> 0 | AS154: 15 | AT154: رفيف حورية | AV154: 0 | AW154: =IF(AT154<>"",COUNTIF($AX$140:$AX$177,">"&AX154)+COUNTIF($AX$140:AX154,AX154),"") -> 15 | AX154: 0
A155: 16 | C155: أ | D155: سعادي | E155: كنزة | F155: 2001-11-28 | W155: 16 | X155: أ | Y155: سعادي | Z155: كنزة | AA155: 2001-11-28 | AI155: 8.816666667 | AN155: 16 | AP155: =IF(ISNA(MATCH(AN155,'4'!$AW$140:$AW$177,0)),"",INDEX('4'!$AT$140:$AT$177,MATCH(AN155,'4'!$AW$140:$AW$177,0))) -> سعادي كنزة | AQ155: =IF($AP155<>"",VLOOKUP($AP155,'4'!$AT$140:$AV$177,3,0),"") -> 0 | AS155: 16 | AT155: سعادي كنزة | AV155: 0 | AW155: =IF(AT155<>"",COUNTIF($AX$140:$AX$177,">"&AX155)+COUNTIF($AX$140:AX155,AX155),"") -> 16 | AX155: 0
A156: 17 | C156: =C94 -> أ | D156: سعودي | E156: آمنة | F156: 1999-08-19 | W156: 17 | X156: أ | Y156: سعودي | Z156: آمنة | AA156: 1999-08-19 | AI156: 8.05 | AN156: 17 | AP156: =IF(ISNA(MATCH(AN156,'4'!$AW$140:$AW$177,0)),"",INDEX('4'!$AT$140:$AT$177,MATCH(AN156,'4'!$AW$140:$AW$177,0))) -> سعودي آمنة | AQ156: =IF($AP156<>"",VLOOKUP($AP156,'4'!$AT$140:$AV$177,3,0),"") -> 0 | AS156: 17 | AT156: سعودي آمنة | AV156: 0 | AW156: =IF(AT156<>"",COUNTIF($AX$140:$AX$177,">"&AX156)+COUNTIF($AX$140:AX156,AX156),"") -> 17 | AX156: 0
